Workbook

Sheet Lista (hidden)
A1: Depto | B1: Mpio | D1: Udepto | E1: Filtro | H1: Mpio Unicos | N1: Dpto | O1: mpio | P1: para unicos
A2: =_xlfn.UNIQUE(N2:O5000) -> Sin Info | B2: Sin Info | D2: =_xlfn._xlws.SORT(_xlfn.UNIQUE(A2:A3355),,1) -> 0 | E2: =_xlfn._xlws.FILTER($A$2:$B$4500,$A$2:$A$4500=Visor!$Q$7,"") -> ANTIOQUIA | F2: MEDELLÍN | H2: =_xlfn._xlws.SORT(_xlfn.UNIQUE($F$2:$F$1000),,1) -> ABEJORRAL | J2: Conteo | N2: Sin Info | O2: Sin Info | Q2: MES | R2: Abril
A3: ANTIOQUIA | B3: MEDELLÍN | D3: AMAZONAS | E3: ANTIOQUIA | F3: GUARNE | H3: ABRIAQUÍ | J3: =COUNTIF(_xlfn.ANCHORARRAY(H2),"<>"&"")-1 -> 125 | N3: Sin Info | O3: Sin Info
A4: BOGOTÁ, D.C. | B4: BOGOTÁ, D.C. | D4: ANTIOQUIA | E4: ANTIOQUIA | F4: LA UNIÓN | H4: ALEJANDRÍA | N4: Sin Info | O4: Sin Info
A5: VALLE DEL CAUCA | B5: CALI | D5: ARAUCA | E5: ANTIOQUIA | F5: SABANETA | H5: AMAGÁ | N5: ANTIOQUIA | O5: MEDELLÍN
A6: TOLIMA | B6: MELGAR | D6: ARCHIPIÉLAGO DE SAN ANDRÉS, PROVIDENCIA Y SANTA CATALINA | E6: ANTIOQUIA | F6: JARDÍN | H6: AMALFI | N6: BOGOTÁ, D.C. | O6: BOGOTÁ, D.C.
A7: ANTIOQUIA | B7: GUARNE | D7: ATLÁNTICO | E7: ANTIOQUIA | F7: ENVIGADO | H7: ANDES | N7: BOGOTÁ, D.C. | O7: BOGOTÁ, D.C.
A8: ANTIOQUIA | B8: LA UNIÓN | D8: BOGOTÁ, D.C. | E8: ANTIOQUIA | F8: RETIRO | H8: ANGELÓPOLIS | N8: VALLE DEL CAUCA | O8: CALI
A9: SANTANDER | B9: BUCARAMANGA | D9: BOLÍVAR | E9: ANTIOQUIA | F9: PUERTO BERRÍO | H9: ANGOSTURA | N9: BOGOTÁ, D.C. | O9: BOGOTÁ, D.C.
A10: ANTIOQUIA | B10: SABANETA | D10: BOYACÁ | E10: ANTIOQUIA | F10: RIONEGRO | H10: ANORÍ | N10: VALLE DEL CAUCA | O10: CALI
A11: BOLÍVAR | B11: CARTAGENA | D11: CALDAS | E11: ANTIOQUIA | F11: BARBOSA | H11: ANZA | N11: TOLIMA | O11: MELGAR
A12: SANTANDER | B12: AGUADA | D12: CAQUETÁ | E12: ANTIOQUIA | F12: BELLO | H12: APARTADÓ | N12: ANTIOQUIA | O12: GUARNE
A13: CUNDINAMARCA | B13: CAJICÁ | D13: CASANARE | E13: ANTIOQUIA | F13: ARMENIA | H13: ARBOLETES | N13: ANTIOQUIA | O13: MEDELLÍN
A14: HUILA | B14: NEIVA | D14: CAUCA | E14: ANTIOQUIA | F14: COPACABANA | H14: ARGELIA | N14: ANTIOQUIA | O14: LA UNIÓN
A15: QUINDÍO | B15: ARMENIA | D15: CESAR | E15: ANTIOQUIA | F15: BETANIA | H15: ARMENIA | N15: SANTANDER | O15: BUCARAMANGA
A16: CÓRDOBA | B16: MONTERÍA | D16: CHOCÓ | E16: ANTIOQUIA | F16: SEGOVIA | H16: BARBOSA | N16: ANTIOQUIA | O16: SABANETA
A17: ATLÁNTICO | B17: BARRANQUILLA | D17: CÓRDOBA | E17: ANTIOQUIA | F17: VIGÍA DEL FUERTE | H17: BELLO | N17: BOLÍVAR | O17: CARTAGENA
A18: CUNDINAMARCA | B18: CHÍA | D18: CUNDINAMARCA | E18: ANTIOQUIA | F18: ABRIAQUÍ | H18: BELMIRA | N18: SANTANDER | O18: AGUADA
A19: META | B19: ACACÍAS | D19: GUAINÍA | E19: ANTIOQUIA | F19: NARIÑO | H19: BETANIA | N19: CUNDINAMARCA | O19: CAJICÁ
A20: TOLIMA | B20: IBAGUÉ | D20: GUAVIARE | E20: ANTIOQUIA | F20: FREDONIA | H20: BETULIA | N20: HUILA | O20: NEIVA
A21: CAUCA | B21: SANTANDER DE QUILICHAO | D21: HUILA | E21: ANTIOQUIA | F21: CALDAS | H21: BRICEÑO | N21: ANTIOQUIA | O21: MEDELLÍN
A22: RISARALDA | B22: LA VIRGINIA | D22: LA GUAJIRA | E22: ANTIOQUIA | F22: ITAGUI | H22: BURITICÁ | N22: QUINDÍO | O22: ARMENIA
A23: TOLIMA | B23: HONDA | D23: MAGDALENA | E23: ANTIOQUIA | F23: FRONTINO | H23: CÁCERES | N23: CÓRDOBA | O23: MONTERÍA
A24: META | B24: VILLAVICENCIO | D24: META | E24: ANTIOQUIA | F24: SANTO DOMINGO | H24: CAICEDO | N24: CÓRDOBA | O24: MONTERÍA
A25: NORTE DE SANTANDER | B25: LOS PATIOS | D25: NARIÑO | E25: ANTIOQUIA | F25: APARTADÓ | H25: CALDAS | N25: SANTANDER | O25: BUCARAMANGA
A26: META | B26: CUMARAL | D26: NORTE DE SANTANDER | E26: ANTIOQUIA | F26: SOPETRÁN | H26: CAMPAMENTO | N26: ATLÁNTICO | O26: BARRANQUILLA
A27: SANTANDER | B27: ZAPATOCA | D27: PUTUMAYO | E27: ANTIOQUIA | F27: MARINILLA | H27: CAÑASGORDAS | N27: CUNDINAMARCA | O27: CHÍA
A28: CUNDINAMARCA | B28: TENJO | D28: QUINDÍO | E28: ANTIOQUIA | F28: TOLEDO | H28: CARACOLÍ | N28: META | O28: ACACÍAS
A29: MAGDALENA | B29: SANTA MARTA | D29: RISARALDA | E29: ANTIOQUIA | F29: LA CEJA | H29: CARAMANTA | N29: SANTANDER | O29: BUCARAMANGA
A30: SANTANDER | B30: FLORIDABLANCA | D30: SANTANDER | E30: ANTIOQUIA | F30: LA ESTRELLA | H30: CAREPA | N30: TOLIMA | O30: IBAGUÉ
A31: CAUCA | B31: POPAYÁN | D31: Sin Info | E31: ANTIOQUIA | F31: VALPARAÍSO | H31: CAROLINA | N31: ATLÁNTICO | O31: BARRANQUILLA
A32: CUNDINAMARCA | B32: GIRARDOT | D32: SUCRE | E32: ANTIOQUIA | F32: ENTRERRIOS | H32: CAUCASIA | N32: CAUCA | O32: SANTANDER DE QUILICHAO
A33: RISARALDA | B33: PEREIRA | D33: TOLIMA | E33: ANTIOQUIA | F33: PUERTO NARE | H33: CHIGORODÓ | N33: HUILA | O33: NEIVA
A34: ARAUCA | B34: FORTUL | D34: VALLE DEL CAUCA | E34: ANTIOQUIA | F34: PUERTO TRIUNFO | H34: CISNEROS | N34: RISARALDA | O34: LA VIRGINIA
A35: CUNDINAMARCA | B35: FUSAGASUGÁ | D35: VAUPÉS | E35: ANTIOQUIA | F35: GIRARDOTA | H35: CIUDAD BOLÍVAR | N35: TOLIMA | O35: HONDA
A36: CUNDINAMARCA | B36: LA VEGA | D36: VICHADA | E36: ANTIOQUIA | F36: SAN JERÓNIMO | H36: COCORNÁ | N36: META | O36: VILLAVICENCIO
A37: CUNDINAMARCA | B37: SOPÓ | D37: 0 | E37: ANTIOQUIA | F37: SANTAFÉ DE ANTIOQUIA | H37: CONCEPCIÓN | N37: NORTE DE SANTANDER | O37: LOS PATIOS
A38: ANTIOQUIA | B38: JARDÍN | E38: ANTIOQUIA | F38: CONCORDIA | H38: CONCORDIA | N38: META | O38: CUMARAL
A39: BOYACÁ | B39: SOGAMOSO | E39: ANTIOQUIA | F39: SAN PEDRO DE LOS MILAGROS | H39: COPACABANA | N39: SANTANDER | O39: ZAPATOCA
A40: BOYACÁ | B40: DUITAMA | E40: ANTIOQUIA | F40: EL SANTUARIO | H40: DABEIBA | N40: CUNDINAMARCA | O40: TENJO
A41: BOYACÁ | B41: SUTATENZA | E41: ANTIOQUIA | F41: ARGELIA | H41: DON MATÍAS | N41: MAGDALENA | O41: SANTA MARTA
A42: CÓRDOBA | B42: SAN PELAYO | E42: ANTIOQUIA | F42: CAUCASIA | H42: EBÉJICO | N42: SANTANDER | O42: FLORIDABLANCA
A43: VALLE DEL CAUCA | B43: TULUÁ | E43: ANTIOQUIA | F43: EL CARMEN DE VIBORAL | H43: EL BAGRE | N43: CAUCA | O43: POPAYÁN
A44: CALDAS | B44: MANIZALES | E44: ANTIOQUIA | F44: ABEJORRAL | H44: EL CARMEN DE VIBORAL | N44: BOLÍVAR | O44: CARTAGENA
A45: TOLIMA | B45: ESPINAL | E45: ANTIOQUIA | F45: URRAO | H45: EL SANTUARIO | N45: CUNDINAMARCA | O45: GIRARDOT
A46: CESAR | B46: VALLEDUPAR | E46: ANTIOQUIA | F46: ALEJANDRÍA | H46: ENTRERRIOS | N46: RISARALDA | O46: PEREIRA
A47: CUNDINAMARCA | B47: VILLA DE SAN DIEGO DE UBATE | E47: ANTIOQUIA | F47: AMAGÁ | H47: ENVIGADO | N47: ARAUCA | O47: FORTUL
A48: CUNDINAMARCA | B48: ZIPAQUIRÁ | E48: ANTIOQUIA | F48: AMALFI | H48: FREDONIA | N48: VALLE DEL CAUCA | O48: CALI
A49: ARCHIPIÉLAGO DE SAN ANDRÉS, PROVIDENCIA Y SANTA CATALINA | B49: SAN ANDRÉS | E49: ANTIOQUIA | F49: ANDES | H49: FRONTINO | N49: CUNDINAMARCA | O49: FUSAGASUGÁ
A50: NORTE DE SANTANDER | B50: CÚCUTA | E50: ANTIOQUIA | F50: JERICÓ | H50: GIRALDO | N50: CUNDINAMARCA | O50: LA VEGA
A51: CUNDINAMARCA | B51: TOCAIMA | E51: ANTIOQUIA | F51: HISPANIA | H51: GIRARDOTA | N51: TOLIMA | O51: IBAGUÉ
A52: CUNDINAMARCA | B52: LA MESA | E52: ANTIOQUIA | F52: ANGOSTURA | H52: GÓMEZ PLATA | N52: CUNDINAMARCA | O52: SOPÓ
A53: CALDAS | B53: AGUADAS | E53: ANTIOQUIA | F53: TURBO | H53: GRANADA | N53: ANTIOQUIA | O53: JARDÍN
A54: META | B54: SAN MARTÍN | E54: ANTIOQUIA | F54: DON MATÍAS | H54: GUADALUPE | N54: BOYACÁ | O54: SOGAMOSO
A55: CUNDINAMARCA | B55: VILLETA | E55: ANTIOQUIA | F55: BETULIA | H55: GUARNE | N55: BOYACÁ | O55: DUITAMA
A56: BOYACÁ | B56: CHIQUINQUIRÁ | E56: ANTIOQUIA | F56: CIUDAD BOLÍVAR | H56: GUATAPE | N56: BOYACÁ | O56: SUTATENZA
A57: CASANARE | B57: TAURAMENA | E57: ANTIOQUIA | F57: BURITICÁ | H57: HELICONIA | N57: CÓRDOBA | O57: SAN PELAYO
A58: BOYACÁ | B58: PAIPA | E58: ANTIOQUIA | F58: CÁCERES | H58: HISPANIA | N58: VALLE DEL CAUCA | O58: TULUÁ
A59: BOYACÁ | B59: TUNJA | E59: ANTIOQUIA | F59: YARUMAL | H59: ITAGUI | N59: META | O59: VILLAVICENCIO
A60: CUNDINAMARCA | B60: ANAPOIMA | E60: ANTIOQUIA | F60: CAMPAMENTO | H60: ITUANGO | N60: CALDAS | O60: MANIZALES
A61: NARIÑO | B61: PASTO | E61: ANTIOQUIA | F61: REMEDIOS | H61: JARDÍN | N61: TOLIMA | O61: ESPINAL
A62: SANTANDER | B62: PUENTE NACIONAL | E62: ANTIOQUIA | F62: VENECIA | H62: JERICÓ | N62: CESAR | O62: VALLEDUPAR
A63: LA GUAJIRA | B63: RIOHACHA | E63: ANTIOQUIA | F63: CHIGORODÓ | H63: LA CEJA | N63: CUNDINAMARCA | O63: VILLA DE SAN DIEGO DE UBATE
A64: CUNDINAMARCA | B64: LA CALERA | E64: ANTIOQUIA | F64: TITIRIBÍ | H64: LA ESTRELLA | N64: CUNDINAMARCA | O64: ZIPAQUIRÁ
A65: CUNDINAMARCA | B65: AGUA DE DIOS | E65: ANTIOQUIA | F65: CISNEROS | H65: LA PINTADA | N65: ARCHIPIÉLAGO DE SAN ANDRÉS, PROVIDENCIA Y SANTA CATALINA | O65: SAN ANDRÉS
A66: CUNDINAMARCA | B66: MOSQUERA | E66: ANTIOQUIA | F66: CONCEPCIÓN | H66: LA UNIÓN | N66: NORTE DE SANTANDER | O66: CÚCUTA
A67: CESAR | B67: AGUACHICA | E67: ANTIOQUIA | F67: COCORNÁ | H67: LIBORINA | N67: NORTE DE SANTANDER | O67: CÚCUTA
A68: TOLIMA | B68: VILLARRICA | E68: ANTIOQUIA | F68: ARBOLETES | H68: MACEO | N68: CUNDINAMARCA | O68: TOCAIMA
A69: CUNDINAMARCA | B69: FACATATIVÁ | E69: ANTIOQUIA | F69: EBÉJICO | H69: MARINILLA | N69: CUNDINAMARCA | O69: LA MESA
A70: CUNDINAMARCA | B70: TABIO | E70: ANTIOQUIA | F70: SANTA ROSA DE OSOS | H70: MEDELLÍN | N70: CALDAS | O70: AGUADAS
A71: CUNDINAMARCA | B71: SUBACHOQUE | E71: ANTIOQUIA | F71: SANTA BÁRBARA | H71: MONTEBELLO | N71: META | O71: SAN MARTÍN
A72: CUNDINAMARCA | B72: GUASCA | E72: ANTIOQUIA | F72: SAN VICENTE | H72: MURINDÓ | N72: CUNDINAMARCA | O72: VILLETA
A73: CAUCA | B73: PIENDAMÓ | E73: ANTIOQUIA | F73: GIRALDO | H73: MUTATÁ | N73: BOYACÁ | O73: CHIQUINQUIRÁ
A74: TOLIMA | B74: SUÁREZ | E74: ANTIOQUIA | F74: GÓMEZ PLATA | H74: NARIÑO | N74: CASANARE | O74: TAURAMENA
A75: CUNDINAMARCA | B75: FUNZA | E75: ANTIOQUIA | F75: GUATAPE | H75: NECHÍ | N75: BOYACÁ | O75: PAIPA
A76: BOYACÁ | B76: GUATEQUE | E76: ANTIOQUIA | F76: CAROLINA | H76: NECOCLÍ | N76: BOYACÁ | O76: TUNJA
A77: META | B77: GRANADA | E77: ANTIOQUIA | F77: GRANADA | H77: OLAYA | N77: CUNDINAMARCA | O77: ANAPOIMA
A78: CALDAS | B78: LA DORADA | E78: ANTIOQUIA | F78: PEÑOL | H78: PEÑOL | N78: NARIÑO | O78: PASTO
A79: SANTANDER | B79: GIRÓN | E79: ANTIOQUIA | F79: SAN RAFAEL | H79: PEQUE | N79: ANTIOQUIA | O79: SABANETA
A80: SANTANDER | B80: BARRANCABERMEJA | E80: ANTIOQUIA | F80: MURINDÓ | H80: PUEBLORRICO | N80: SANTANDER | O80: PUENTE NACIONAL
A81: TOLIMA | B81: ROVIRA | E81: ANTIOQUIA | F81: OLAYA | H81: PUERTO BERRÍO | N81: CUNDINAMARCA | O81: CHÍA
A82: CUNDINAMARCA | B82: APULO | E82: ANTIOQUIA | F82: SAN JOSÉ DE LA MONTAÑA | H82: PUERTO NARE | N82: LA GUAJIRA | O82: RIOHACHA
A83: VALLE DEL CAUCA | B83: CARTAGO | E83: ANTIOQUIA | F83: PUEBLORRICO | H83: PUERTO TRIUNFO | N83: CUNDINAMARCA | O83: LA CALERA
A84: ANTIOQUIA | B84: ENVIGADO | E84: ANTIOQUIA | F84: SAN ROQUE | H84: REMEDIOS | N84: CUNDINAMARCA | O84: AGUA DE DIOS
A85: ARAUCA | B85: ARAUCA | E85: ANTIOQUIA | F85: YONDÓ | H85: RETIRO | N85: CUNDINAMARCA | O85: TOCAIMA
A86: VALLE DEL CAUCA | B86: PALMIRA | E86: ANTIOQUIA | F86: CARACOLÍ | H86: RIONEGRO | N86: CUNDINAMARCA | O86: MOSQUERA
A87: SANTANDER | B87: SAN GIL | E87: ANTIOQUIA | F87: BELMIRA | H87: SABANALARGA | N87: CESAR | O87: AGUACHICA
A88: SANTANDER | B88: VÉLEZ | E88: ANTIOQUIA | F88: SALGAR | H88: SABANETA | N88: TOLIMA | O88: VILLARRICA
A89: ANTIOQUIA | B89: RETIRO | E89: ANTIOQUIA | F89: TÁMESIS | H89: SALGAR | N89: ANTIOQUIA | O89: GUARNE
A90: GUAVIARE | B90: CALAMAR | E90: ANTIOQUIA | F90: LA PINTADA | H90: SAN ANDRÉS DE CUERQUÍA | N90: CUNDINAMARCA | O90: FACATATIVÁ
A91: CUNDINAMARCA | B91: SOACHA | E91: ANTIOQUIA | F91: SONSON | H91: SAN CARLOS | N91: CUNDINAMARCA | O91: TABIO
A92: VALLE DEL CAUCA | B92: SEVILLA | E92: ANTIOQUIA | F92: TARSO | H92: SAN FRANCISCO | N92: CUNDINAMARCA | O92: SUBACHOQUE
A93: TOLIMA | B93: FLANDES | E93: ANTIOQUIA | F93: VALDIVIA | H93: SAN JERÓNIMO | N93: CUNDINAMARCA | O93: GUASCA
A94: CÓRDOBA | B94: SAHAGÚN | E94: ANTIOQUIA | F94: SAN ANDRÉS DE CUERQUÍA | H94: SAN JOSÉ DE LA MONTAÑA | N94: CAUCA | O94: PIENDAMÓ
A95: ANTIOQUIA | B95: PUERTO BERRÍO | E95: ANTIOQUIA | F95: EL BAGRE | H95: SAN JUAN DE URABÁ | N95: TOLIMA | O95: SUÁREZ
A96: VALLE DEL CAUCA | B96: FLORIDA | E96: ANTIOQUIA | F96: ZARAGOZA | H96: SAN LUIS | N96: CUNDINAMARCA | O96: FUNZA
A97: CUNDINAMARCA | B97: COTA | E97: ANTIOQUIA | F97: SAN FRANCISCO | H97: SAN PEDRO DE LOS MILAGROS | N97: BOYACÁ | O97: GUATEQUE
A98: ATLÁNTICO | B98: SOLEDAD | E98: ANTIOQUIA | F98: CAREPA | H98: SAN PEDRO DE URABA | N98: NORTE DE SANTANDER | O98: CÚCUTA
A99: CUNDINAMARCA | B99: SAN FRANCISCO | E99: ANTIOQUIA | F99: ANORÍ | H99: SAN RAFAEL | N99: META | O99: GRANADA
A100: ANTIOQUIA | B100: RIONEGRO | E100: ANTIOQUIA | F100: ANGELÓPOLIS | H100: SAN ROQUE | N100: CALDAS | O100: LA DORADA
A101: CUNDINAMARCA | B101: MADRID | E101: ANTIOQUIA | F101: SAN PEDRO DE URABA | H101: SAN VICENTE | N101: SANTANDER | O101: GIRÓN
A102: SUCRE | B102: SINCELEJO | E102: ANTIOQUIA | F102: CARAMANTA | H102: SANTA BÁRBARA | N102: SANTANDER | O102: BARRANCABERMEJA
A103: CASANARE | B103: PAZ DE ARIPORO | E103: ANTIOQUIA | F103: MACEO | H103: SANTA ROSA DE OSOS | N103: TOLIMA | O103: ROVIRA
A104: QUINDÍO | B104: CALARCA | E104: ANTIOQUIA | F104: PEQUE | H104: SANTAFÉ DE ANTIOQUIA | N104: CUNDINAMARCA | O104: APULO
A105: CUNDINAMARCA | B105: GRANADA | E105: ANTIOQUIA | F105: SAN CARLOS | H105: SANTO DOMINGO | N105: VALLE DEL CAUCA | O105: CARTAGO
A106: CASANARE | B106: MONTERREY | E106: ANTIOQUIA | F106: SAN JUAN DE URABÁ | H106: SEGOVIA | N106: ANTIOQUIA | O106: ENVIGADO
A107: CUNDINAMARCA | B107: ALBÁN | E107: ANTIOQUIA | F107: NECHÍ | H107: SONSON | N107: ARAUCA | O107: ARAUCA
A108: VALLE DEL CAUCA | B108: GUADALAJARA DE BUGA | E108: ANTIOQUIA | F108: YOLOMBÓ | H108: SOPETRÁN | N108: BOYACÁ | O108: TUNJA
A109: CUNDINAMARCA | B109: TOCANCIPÁ | E109: ANTIOQUIA | F109: VEGACHÍ | H109: TÁMESIS | N109: VALLE DEL CAUCA | O109: PALMIRA
A110: ANTIOQUIA | B110: BARBOSA | E110: ANTIOQUIA | F110: NECOCLÍ | H110: TARAZÁ | N110: SANTANDER | O110: SAN GIL
A111: TOLIMA | B111: SANTA ISABEL | E111: ANTIOQUIA | F111: SAN LUIS | H111: TARSO | N111: SANTANDER | O111: VÉLEZ
A112: BOYACÁ | B112: BOYACÁ | E112: ANTIOQUIA | F112: SABANALARGA | H112: TITIRIBÍ | N112: ANTIOQUIA | O112: RETIRO
A113: HUILA | B113: RIVERA | E113: ANTIOQUIA | F113: MONTEBELLO | H113: TOLEDO | N113: GUAVIARE | O113: CALAMAR
A114: SANTANDER | B114: OIBA | E114: ANTIOQUIA | F114: MUTATÁ | H114: TURBO | N114: CUNDINAMARCA | O114: SOACHA
A115: CUNDINAMARCA | B115: GUADUAS | E115: ANTIOQUIA | F115: BRICEÑO | H115: URAMITA | N115: VALLE DEL CAUCA | O115: SEVILLA
A116: CUNDINAMARCA | B116: ANOLAIMA | E116: ANTIOQUIA | F116: CAÑASGORDAS | H116: URRAO | N116: TOLIMA | O116: FLANDES
A117: CUNDINAMARCA | B117: NEMOCÓN | E117: ANTIOQUIA | F117: YALÍ | H117: VALDIVIA | N117: CÓRDOBA | O117: SAHAGÚN
A118: CUNDINAMARCA | B118: SASAIMA | E118: ANTIOQUIA | F118: URAMITA | H118: VALPARAÍSO | N118: CUNDINAMARCA | O118: MOSQUERA
A119: ANTIOQUIA | B119: BELLO | E119: ANTIOQUIA | F119: GUADALUPE | H119: VEGACHÍ | N119: ANTIOQUIA | O119: PUERTO BERRÍO
A120: VICHADA | B120: CUMARIBO | E120: ANTIOQUIA | F120: CAICEDO | H120: VENECIA | N120: VALLE DEL CAUCA | O120: FLORIDA
A121: CUNDINAMARCA | B121: TENA | E121: ANTIOQUIA | F121: ITUANGO | H121: VIGÍA DEL FUERTE | N121: CUNDINAMARCA | O121: COTA
A122: VALLE DEL CAUCA | B122: LA UNIÓN | E122: ANTIOQUIA | F122: TARAZÁ | H122: YALÍ | N122: ATLÁNTICO | O122: SOLEDAD
A123: CUNDINAMARCA | B123: SAN JUAN DE RÍO SECO | E123: ANTIOQUIA | F123: DABEIBA | H123: YARUMAL | N123: CUNDINAMARCA | O123: SAN FRANCISCO
A124: SANTANDER | B124: SABANA DE TORRES | E124: ANTIOQUIA | F124: ANZA | H124: YOLOMBÓ | N124: ANTIOQUIA | O124: RIONEGRO
A125: GUAVIARE | B125: SAN JOSÉ DEL GUAVIARE | E125: ANTIOQUIA | F125: HELICONIA | H125: YONDÓ | N125: CUNDINAMARCA | O125: MADRID
A126: CUNDINAMARCA | B126: FOMEQUE | E126: ANTIOQUIA | F126: LIBORINA | H126: ZARAGOZA | N126: CUNDINAMARCA | O126: MADRID
A127: CUNDINAMARCA | B127: QUEBRADANEGRA | H127: 0 | N127: SUCRE | O127: SINCELEJO
A128: CUNDINAMARCA | B128: GUAYABAL DE SIQUIMA | N128: CUNDINAMARCA | O128: FUNZA
A129: CHOCÓ | B129: ACANDÍ | N129: CUNDINAMARCA | O129: ZIPAQUIRÁ
A130: CUNDINAMARCA | B130: SIBATÉ | N130: CASANARE | O130: PAZ DE ARIPORO
A131: BOYACÁ | B131: VILLA DE LEYVA | N131: SUCRE | O131: SINCELEJO
A132: CUNDINAMARCA | B132: EL ROSAL | N132: QUINDÍO | O132: CALARCA
A133: ANTIOQUIA | B133: ARMENIA | N133: CUNDINAMARCA | O133: GRANADA
A134: LA GUAJIRA | B134: MAICAO | N134: CUNDINAMARCA | O134: FUSAGASUGÁ
A135: CASANARE | B135: YOPAL | N135: CUNDINAMARCA | O135: SOACHA
A136: CUNDINAMARCA | B136: CAPARRAPÍ | N136: CASANARE | O136: MONTERREY
A137: CUNDINAMARCA | B137: QUIPILE | N137: CUNDINAMARCA | O137: ALBÁN
A138: VALLE DEL CAUCA | B138: JAMUNDÍ | N138: VALLE DEL CAUCA | O138: GUADALAJARA DE BUGA
A139: CUNDINAMARCA | B139: COGUA | N139: CUNDINAMARCA | O139: FACATATIVÁ
A140: TOLIMA | B140: FRESNO | N140: CUNDINAMARCA | O140: TOCANCIPÁ
A141: RISARALDA | B141: DOSQUEBRADAS | N141: ANTIOQUIA | O141: BARBOSA
A142: CUNDINAMARCA | B142: SESQUILÉ | N142: META | O142: ACACÍAS
A143: CUNDINAMARCA | B143: UBALÁ | N143: TOLIMA | O143: SANTA ISABEL
A144: SANTANDER | B144: PUERTO PARRA | N144: CUNDINAMARCA | O144: ALBÁN
A145: PUTUMAYO | B145: MOCOA | N145: BOYACÁ | O145: BOYACÁ
A146: PUTUMAYO | B146: PUERTO ASÍS | N146: HUILA | O146: RIVERA
A147: CUNDINAMARCA | B147: CHOCONTÁ | N147: RISARALDA | O147: PEREIRA
A148: HUILA | B148: GARZÓN | N148: SANTANDER | O148: OIBA
A149: CUNDINAMARCA | B149: VENECIA | N149: CUNDINAMARCA | O149: GUADUAS
A150: CUNDINAMARCA | B150: RICAURTE | N150: CUNDINAMARCA | O150: FACATATIVÁ
A151: HUILA | B151: LA PLATA | N151: CUNDINAMARCA | O151: ANOLAIMA
A152: CUNDINAMARCA | B152: SUESCA | N152: CUNDINAMARCA | O152: AGUA DE DIOS
A153: BOLÍVAR | B153: EL CARMEN DE BOLÍVAR | N153: CUNDINAMARCA | O153: NEMOCÓN
A154: CASANARE | B154: VILLANUEVA | N154: CUNDINAMARCA | O154: LA VEGA
A155: CUNDINAMARCA | B155: EL COLEGIO | N155: META | O155: SAN MARTÍN
A156: CUNDINAMARCA | B156: VIOTÁ | N156: CUNDINAMARCA | O156: SASAIMA
A157: CUNDINAMARCA | B157: CACHIPAY | N157: CUNDINAMARCA | O157: VILLA DE SAN DIEGO DE UBATE
A158: BOYACÁ | B158: CHIVOR | N158: SANTANDER | O158: BARRANCABERMEJA
A159: TOLIMA | B159: MARIQUITA | N159: BOYACÁ | O159: DUITAMA
A160: CUNDINAMARCA | B160: ARBELÁEZ | N160: ANTIOQUIA | O160: BELLO
A161: CUNDINAMARCA | B161: BELTRÁN | N161: CUNDINAMARCA | O161: AGUA DE DIOS
A162: META | B162: PUERTO LÓPEZ | N162: VICHADA | O162: CUMARIBO
A163: META | B163: PUERTO GAITÁN | N163: BOYACÁ | O163: SOGAMOSO
A164: TOLIMA | B164: AMBALEMA | N164: CUNDINAMARCA | O164: TENA
A165: TOLIMA | B165: LÉRIDA | N165: VALLE DEL CAUCA | O165: LA UNIÓN
A166: NORTE DE SANTANDER | B166: OCAÑA | N166: CUNDINAMARCA | O166: CAJICÁ
A167: BOYACÁ | B167: PUERTO BOYACÁ | N167: CUNDINAMARCA | O167: SAN JUAN DE RÍO SECO
A168: MAGDALENA | B168: GUAMAL | N168: CUNDINAMARCA | O168: ALBÁN
A169: CUNDINAMARCA | B169: BITUIMA | N169: BOYACÁ | O169: SOGAMOSO
A170: TOLIMA | B170: LÍBANO | N170: SANTANDER | O170: SABANA DE TORRES
A171: CUNDINAMARCA | B171: VIANÍ | N171: GUAVIARE | O171: SAN JOSÉ DEL GUAVIARE
A172: META | B172: SAN CARLOS DE GUAROA | N172: CUNDINAMARCA | O172: FOMEQUE
A173: CUNDINAMARCA | B173: BOJACÁ | N173: CUNDINAMARCA | O173: GUADUAS
A174: CUNDINAMARCA | B174: SIMIJACA | N174: CUNDINAMARCA | O174: SOPÓ
A175: TOLIMA | B175: COELLO | N175: CUNDINAMARCA | O175: QUEBRADANEGRA
A176: CAQUETÁ | B176: SAN VICENTE DEL CAGUÁN | N176: CUNDINAMARCA | O176: SASAIMA
A177: SANTANDER | B177: LANDÁZURI | N177: CUNDINAMARCA | O177: GUAYABAL DE SIQUIMA
A178: CUNDINAMARCA | B178: PACHO | N178: CHOCÓ | O178: ACANDÍ
A179: CHOCÓ | B179: QUIBDÓ | N179: CUNDINAMARCA | O179: SIBATÉ
A180: CUNDINAMARCA | B180: GACHANCIPÁ | N180: CUNDINAMARCA | O180: TOCANCIPÁ
A181: CUNDINAMARCA | B181: GUACHETÁ | N181: CUNDINAMARCA | O181: SASAIMA
A182: TOLIMA | B182: ARMERO | N182: CUNDINAMARCA | O182: VILLETA
A183: TOLIMA | B183: VENADILLO | N183: BOYACÁ | O183: VILLA DE LEYVA
A184: CUNDINAMARCA | B184: PUERTO SALGAR | N184: CUNDINAMARCA | O184: EL ROSAL
A185: BOYACÁ | B185: CÓMBITA | N185: CUNDINAMARCA | O185: TENJO
A186: CHOCÓ | B186: BOJAYA | N186: GUAVIARE | O186: SAN JOSÉ DEL GUAVIARE
A187: CUNDINAMARCA | B187: CARMEN DE CARUPA | N187: ANTIOQUIA | O187: ARMENIA
A188: CUNDINAMARCA | B188: UBAQUE | N188: LA GUAJIRA | O188: MAICAO
A189: BOYACÁ | B189: RÁQUIRA | N189: CASANARE | O189: YOPAL
A190: CUNDINAMARCA | B190: MANTA | N190: CUNDINAMARCA | O190: CAPARRAPÍ
A191: PUTUMAYO | B191: SIBUNDOY | N191: VALLE DEL CAUCA | O191: CARTAGO
A192: VALLE DEL CAUCA | B192: YUMBO | N192: CUNDINAMARCA | O192: QUIPILE
A193: CUNDINAMARCA | B193: CUCUNUBÁ | N193: VALLE DEL CAUCA | O193: JAMUNDÍ
A194: CUNDINAMARCA | B194: SUTATAUSA | N194: CUNDINAMARCA | O194: LA MESA
A195: CUNDINAMARCA | B195: SUSA | N195: CUNDINAMARCA | O195: COGUA
A196: CUNDINAMARCA | B196: VILLAPINZÓN | N196: CUNDINAMARCA | O196: ANAPOIMA
A197: CUNDINAMARCA | B197: LENGUAZAQUE | N197: CUNDINAMARCA | O197: ANAPOIMA
A198: CUNDINAMARCA | B198: CHAGUANÍ | N198: CUNDINAMARCA | O198: LA MESA
A199: TOLIMA | B199: CAJAMARCA | N199: CUNDINAMARCA | O199: GIRARDOT
A200: CAUCA | B200: ARGELIA | N200: TOLIMA | O200: FRESNO
... 3258 more rows

Sheet Visor
J3: Informe Mensual de las cotizaciones
AB4: Pg. 1
J5: Fecha de corte: 22 de Jun de 2022
L7: Departamento | Q7: ANTIOQUIA
L8: Municipio | Q8: MEDELLÍN
C10: ="Resumen general mes "&Lista!R2&":" -> Resumen general mes Abril:
H12: Total | L12: % | M12: Dependientes | Q12: % | R12: Dep.Privados* | V12: % | W12: Independientes | AA12: %
D13: Nacional | H13: =M13+W13 -> 12865152 | M13: =R13+SUMIFS('Cotizantes Mes'!$AK$2:$AK$4995,'Cotizantes Mes'!$I$2:$I$4995,"Dep_No_priv") -> 10654287 | R13: =SUMIFS('Cotizantes Mes'!$AK$2:$AK$4995,'Cotizantes Mes'!$I$2:$I$4995,"Dep_sec_priv") -> 8956385 | W13: =SUMIFS('Cotizantes Mes'!$AK$2:$AK$4995,'Cotizantes Mes'!$I$2:$I$4995,"Independiente") -> 2210865
D14: =PROPER(Q7) -> Antioquia | H14: =M14+W14 -> 2218186 | L14: =H14/H13 -> 0.1724181728 | M14: =R14+SUMIFS('Cotizantes Mes'!$CA$2:$CA$4995,'Cotizantes Mes'!$AY$2:$AY$4995,"Dep_No_priv") -> 1895419 | Q14: =M14/M13 -> 0.1779020032 | R14: =SUMIFS('Cotizantes Mes'!$CA$2:$CA$4995,'Cotizantes Mes'!$AY$2:$AY$4995,"Dep_sec_priv") -> 1640152 | V14: =R14/R13 -> 0.1831265628 | W14: =SUMIFS('Cotizantes Mes'!$CA$2:$CA$2000,'Cotizantes Mes'!$AY$2:$AY$2000,"Independiente") -> 322767 | AA14: =W14/W13 -> 0.1459912749
D15: =PROPER(Q8) -> Medellín | H15: =M15+W15 -> 1524096 | L15: =H15/H14 -> 0.6870911637 | M15: =R15+SUMIFS('Cotizantes Mes'!$CA$2:$CA$2000,'Cotizantes Mes'!$AY$2:$AY$2000,"Dep_No_priv",'Cotizantes Mes'!$AX$2:$AX$2000,Visor!$Q$8) -> 1327958 | Q15: =M15/M14 -> 0.7006144815 | R15: =SUMIFS('Cotizantes Mes'!$CA$2:$CA$2000,'Cotizantes Mes'!$AY$2:$AY$2000,"Dep_sec_priv",'Cotizantes Mes'!$AX$2:$AX$2000,Visor!$Q$8) -> 1161414 | V15: =R15/R14 -> 0.7081136382 | W15: =SUMIFS('Cotizantes Mes'!$CA$2:$CA$2000,'Cotizantes Mes'!$AY$2:$AY$2000,"Independiente",'Cotizantes Mes'!$AX$2:$AX$2000,Visor!$Q$8) -> 196138 | AA15: =W15/W14 -> 0.6076767451
C16: *Ubicación basada en la ubicación de los cotizantes
C18: Variaciones mensuales del número de cotizantes
C30: ="Variaciones anuales y mensuales de "&Lista!R2 -> Variaciones anuales y mensuales de Abril
L32: Dependientes | P32: Dep. Privados | T32: Independientes
L33: ='Cotizantes Mes'!DL5 -> ∆ Anual Abr | N33: ='Cotizantes Mes'!DM5 -> ∆ Mensual Abr | P33: ='Cotizantes Mes'!DN5 -> ∆ Anual Abr | R33: ='Cotizantes Mes'!DO5 -> ∆ Mensual Abr | T33: =L33 -> ∆ Anual Abr | V33: =N33 -> ∆ Mensual Abr
H34: Nacional | L34: =IFERROR('Cotizantes Mes'!DL6,"") -> 0.07107347141 | N34: =IFERROR('Cotizantes Mes'!DM6,"") -> -0.005114548346 | P34: =IFERROR('Cotizantes Mes'!DN6,"") -> 0.07068116591 | R34: =IFERROR('Cotizantes Mes'!DO6,"") -> -0.006798965057 | T34: =IFERROR('Cotizantes Mes'!DP6,"") -> 0.007851326698 | V34: =IFERROR('Cotizantes Mes'!DQ6,"") -> -0.02550202272
H35: =PROPER(Q7) -> Antioquia | L35: =IFERROR('Cotizantes Mes'!DL7,"") -> 0.0597031698 | N35: =IFERROR('Cotizantes Mes'!DM7,"") -> -0.007455269431 | P35: =IFERROR('Cotizantes Mes'!DN7,"") -> 0.06256984616 | R35: =IFERROR('Cotizantes Mes'!DO7,"") -> -0.00569007807 | T35: =IFERROR('Cotizantes Mes'!DP7,"") -> 0.02529510426 | V35: =IFERROR('Cotizantes Mes'!DQ7,"") -> -0.02087972092
H36: =PROPER(Q8) -> Medellín | L36: =IFERROR('Cotizantes Mes'!DL8,"") -> 0.06221768952 | N36: =IFERROR('Cotizantes Mes'!DM8,"") -> -0.008122004852 | P36: =IFERROR('Cotizantes Mes'!DN8,"") -> 0.06431933961 | R36: =IFERROR('Cotizantes Mes'!DO8,"") -> -0.005113146242 | T36: =IFERROR('Cotizantes Mes'!DP8,"") -> -0.008798306036 | V36: =IFERROR('Cotizantes Mes'!DQ8,"") -> -0.02464519081
C38: *Ubicación basada en la ubicación de los cotizantes
C39: ="Número de aportantes privados por tamaño mes de "&Lista!R2 -> Número de aportantes privados por tamaño mes de Abril
I41: Nacional | L41: % | M41: Cotizantes | O41: =PROPER(Q7) -> Antioquia | R41: % | S41: Cotizantes | U41: =PROPER(Q8) -> Medellín | X41: % | Y41: Cotizantes
E42: Micro | I42: =COUNTIFS(Tamaño!$G$2:$G$600000,"<=10") -> 415341 | L42: =I42/$I$47 -> 0.8092387905 | M42: =SUMIFS(Tamaño!$G$2:$G$600000,Tamaño!$G$2:$G$600000,"<="&10) -> 1231335 | O42: =COUNTIFS(Tamaño!$S$2:$S$300000,"<=10") -> 87190 | R42: =O42/$O$47 -> 0.8191007647 | S42: =SUMIFS(Tamaño!$S$2:$S$300000,Tamaño!$S$2:$S$300000,"<="&10) -> 256889 | U42: =COUNTIFS(Tamaño!$S$2:$S$300000,"<=10",Tamaño!$R$2:$R$300000,Visor!$Q$8) -> 55418 | X42: =U42/$U$47 -> 0.8242310667 | Y42: =SUMIFS(Tamaño!$S$2:$S$300000,Tamaño!$S$2:$S$300000,"<="&10,Tamaño!$R$2:$R$300000,Visor!$Q$8) -> 158852
E43: Pequeñas | I43: =COUNTIFS(Tamaño!$G$2:$G$600000,">=11",Tamaño!$G$2:$G$600000,"<=50") -> 73695 | L43: =I43/$I$47 -> 0.1435852773 | M43: =SUMIFS(Tamaño!$G$2:$G$600000,Tamaño!$G$2:$G$600000,">"&10,Tamaño!$G$2:$G$600000,"<="&50) -> 1594655 | O43: =COUNTIFS(Tamaño!$S$2:$S$300000,">=11",Tamaño!$S$2:$S$300000,"<=50") -> 14740 | R43: =O43/$O$47 -> 0.138473968 | S43: =SUMIFS(Tamaño!$S$2:$S$300000,Tamaño!$S$2:$S$300000,">"&10,Tamaño!$S$2:$S$300000,"<="&50) -> 318735 | U43: =COUNTIFS(Tamaño!$S$2:$S$300000,">=11",Tamaño!$S$2:$S$300000,"<=50",Tamaño!$R$2:$R$300000,Visor!$Q$8) -> 8898 | X43: =U43/$U$47 -> 0.132339818 | Y43: =SUMIFS(Tamaño!$S$2:$S$300000,Tamaño!$S$2:$S$300000,">"&10,Tamaño!$S$2:$S$300000,"<="&50,Tamaño!$R$2:$R$300000,Visor!$Q$8) -> 193391
E44: Medianas | I44: =COUNTIFS(Tamaño!$G$2:$G$600000,">=51",Tamaño!$G$2:$G$600000,"<=200") -> 18410 | L44: =I44/$I$47 -> 0.03586952921 | M44: =SUMIFS(Tamaño!$G$2:$G$600000,Tamaño!$G$2:$G$600000,">"&50,Tamaño!$G$2:$G$600000,"<="&200) -> 1730196 | O44: =COUNTIFS(Tamaño!$S$2:$S$300000,">=51",Tamaño!$S$2:$S$300000,"<=200") -> 3516 | R44: =O44/$O$47 -> 0.03303083253 | S44: =SUMIFS(Tamaño!$S$2:$S$300000,Tamaño!$S$2:$S$300000,">"&50,Tamaño!$S$2:$S$300000,"<="&200) -> 326230 | U44: =COUNTIFS(Tamaño!$S$2:$S$300000,">=51",Tamaño!$S$2:$S$300000,"<=200",Tamaño!$R$2:$R$300000,Visor!$Q$8) -> 2233 | X44: =U44/$U$47 -> 0.03321137486 | Y44: =SUMIFS(Tamaño!$S$2:$S$300000,Tamaño!$S$2:$S$300000,">"&50,Tamaño!$S$2:$S$300000,"<="&200,Tamaño!$R$2:$R$300000,Visor!$Q$8) -> 208494
E45: Grandes | I45: =COUNTIFS(Tamaño!$G$2:$G$600000,">=201",Tamaño!$G$2:$G$600000,"<=500") -> 3725 | L45: =I45/$I$47 -> 0.007257685841 | M45: =SUMIFS(Tamaño!$G$2:$G$600000,Tamaño!$G$2:$G$600000,">"&200,Tamaño!$G$2:$G$600000,"<="&500) -> 1132418 | O45: =COUNTIFS(Tamaño!$S$2:$S$300000,">=201",Tamaño!$S$2:$S$300000,"<=500") -> 632 | R45: =O45/$O$47 -> 0.005937282754 | S45: =SUMIFS(Tamaño!$S$2:$S$300000,Tamaño!$S$2:$S$300000,">"&200,Tamaño!$S$2:$S$300000,"<="&500) -> 193340 | U45: =COUNTIFS(Tamaño!$S$2:$S$300000,">=201",Tamaño!$S$2:$S$300000,"<=500",Tamaño!$R$2:$R$300000,Visor!$Q$8) -> 416 | X45: =U45/$U$47 -> 0.00618716164 | Y45: =SUMIFS(Tamaño!$S$2:$S$300000,Tamaño!$S$2:$S$300000,">"&200,Tamaño!$S$2:$S$300000,"<="&500,Tamaño!$R$2:$R$300000,Visor!$Q$8) -> 129293
E46: Muy Grandes | I46: =COUNTIFS(Tamaño!$G$2:$G$600000,">=501") -> 2078 | L46: =I46/$I$47 -> 0.004048717094 | M46: =SUMIFS(Tamaño!$G$2:$G$600000,Tamaño!$G$2:$G$600000,">"&500) -> 3272236 | O46: =COUNTIFS(Tamaño!$S$2:$S$300000,">=501") -> 368 | R46: =O46/$O$47 -> 0.003457151983 | S46: =SUMIFS(Tamaño!$S$2:$S$300000,Tamaño!$S$2:$S$300000,">"&500) -> 603322 | U46: =COUNTIFS(Tamaño!$S$2:$S$300000,">=501",Tamaño!$R$2:$R$300000,Visor!$Q$8) -> 271 | X46: =U46/$U$47 -> 0.004030578857 | Y46: =SUMIFS(Tamaño!$S$2:$S$300000,Tamaño!$S$2:$S$300000,">"&500,Tamaño!$R$2:$R$300000,Visor!$Q$8) -> 451576
E47: Total | I47: =SUM(I42:K46) -> 513249 | L47: =SUM(L42:L46) -> 1 | M47: =SUM(M42:N46) -> 8960840 | O47: =SUM(O42:Q46) -> 106446 | R47: =SUM(R42:R46) -> 1 | S47: =SUM(S42:T46) -> 1698516 | U47: =SUM(U42:W46) -> 67236 | X47: =SUM(X42:X46) -> 1 | Y47: =SUM(Y42:Z46) -> 1141606
C49: *Ubicación basada en la ubicación de los aportantes
K51: =J3 -> Informe Mensual de las cotizaciones | AB51: Pg. 2
K53: =J5 -> Fecha de corte: 22 de Jun de 2022
L55: Departamento | Q55: =Q7 -> ANTIOQUIA
L56: Municipio | Q56: =Q8 -> MEDELLÍN
C58: ="Resumen por rangos de IBC privados e Independientes mes "&Lista!R2&":" -> Resumen por rangos de IBC privados e Independientes mes Abril:
F60: Nacional | L60: =PROPER($Q$7) -> Antioquia | R60: =PROPER($Q$8) -> Medellín
Z61: <= 1 SMMLV
Z62: 1-2 SMMLV
B63: Privados | Z63: 2-5 SMMLV
Z64: > 5 SMMLV
Z68: <= 1 SMMLV
B69: Independientes | Z69: 1-2 SMMLV
Z70: 2-5 SMMLV
Z71: > 5 SMMLV
C73: *Ubicación basada en la ubicación de los cotizantes
C74: Resumen por actividades económicas aportantes del sector privado
C76: Actividades económicas | K76: =PROPER(Q7) -> Antioquia | S76: =PROPER(Q56) -> Medellín
K77: Apt.Privados | N77: % | O77: Empleados | R77: % | S77: Apt.Privados | V77: % | W77: Empleados | Z77: %
B78: =IF(C78="Total",1,0) -> 0 | C78: =IF(Tamaño!$AP2="",Total,Tamaño!$AP2) -> Otras actividades de servicios | K78: =Tamaño!AQ2 -> 16960 | N78: =K78/Tamaño!$AQ$24 -> 0.1593296131 | O78: =Tamaño!AR2 -> 158069 | R78: =O78/Tamaño!$AR$24 -> 0.09306300323 | S78: =Tamaño!AS2 -> 11351 | V78: =S78/Tamaño!$AS$24 -> 0.1688232494 | W78: =Tamaño!AT2 -> 104075 | Z78: =W78/Tamaño!$AT$24 -> 0.09116542835
B79: =IF(C79="Total",1,0) -> 0 | C79: =IF(C78="Total","",IF(Tamaño!$AQ3=0,"Total",Tamaño!$AP3)) -> Comercio y reparación de vehículos | K79: =IF(C79="","",IF(C79="Total",K78,Tamaño!$AQ3)) -> 14857 | N79: =IF(C79="Total","",K79/Tamaño!$AQ$24) -> 0.1395731169 | O79: =IF(C79="","",IF(C79="Total",O78,Tamaño!$AR3)) -> 154287 | R79: =IF(C79="Total","",O79/Tamaño!$AR$24) -> 0.09083635362 | S79: =IF(C79="","",IF(C79="Total",SUM($S$78:$U78),Tamaño!$AS3)) -> 8431 | V79: =IF(OR(C78="",C78="Total"),"",IF(C79="Total","",S79/Tamaño!$AS$24)) -> 0.1253941341 | W79: =IF(C79="","",IF(C79="Total",SUM($W$78:$W78),Tamaño!$AT3)) -> 94513 | Z79: =IF(OR(C78="Total",C78=""),"",IF(C79="Total","",W79/Tamaño!$AT$24)) -> 0.08278950881
B80: 0 | C80: =IF(C79="Total","",IF(Tamaño!$AQ4=0,"Total",Tamaño!$AP4)) -> Act. profesionales científicas y técnicas | K80: =IF(C80="","",IF(C80="Total",SUM(K78:M79),Tamaño!$AQ4)) -> 13052 | N80: =IF(N79="","",IF(C80="Total","",K80/Tamaño!$AQ$24)) -> 0.1226161622 | O80: =IF(C80="","",IF(C80="Total",SUM($O$78:$Q79),Tamaño!$AR4)) -> 227281 | R80: =IF(N79="","",IF(C80="Total","",O80/Tamaño!$AR$24)) -> 0.1338115155 | S80: =IF(C80="","",IF(C80="Total",SUM($S$78:$U79),Tamaño!$AS4)) -> 9165 | V80: =IF(OR(C79="",C79="Total"),"",IF(C80="Total","",S80/Tamaño!$AS$24)) -> 0.1363109049 | W80: =IF(C80="","",IF(C80="Total",SUM($W$78:$W79),Tamaño!$AT4)) -> 163476 | Z80: =IF(OR(C79="Total",C79=""),"",IF(C80="Total","",W80/Tamaño!$AT$24)) -> 0.1431982663
B81: 0 | C81: =IF(OR(C80="Total",C80=""),"",IF(Tamaño!$AQ5=0,"Total",Tamaño!$AP5)) -> Actividades de servicios administrativos | K81: =IF(C81="","",IF(C81="Total",SUM(K78:M80),Tamaño!$AQ5)) -> 10170 | N81: =IF(N80="","",IF(C81="Total","",K81/Tamaño!$AQ$24)) -> 0.09554140127 | O81: =IF(C81="","",IF(C81="Total",SUM($O$78:$Q80),Tamaño!$AR5)) -> 256591 | R81: =IF(N80="","",IF(C81="Total","",O81/Tamaño!$AR$24)) -> 0.1510677556 | S81: =IF(C81="","",IF(C81="Total",SUM($S$78:$U80),Tamaño!$AS5)) -> 6888 | V81: =IF(OR(C80="",C80="Total"),"",IF(C81="Total","",S81/Tamaño!$AS$24)) -> 0.1024451187 | W81: =IF(C81="","",IF(C81="Total",SUM($W$78:$W80),Tamaño!$AT5)) -> 206904 | Z81: =IF(OR(C80="Total",C80=""),"",IF(C81="Total","",W81/Tamaño!$AT$24)) -> 0.1812394118
B82: 0 | C82: =IF(OR(C81="Total",C81=""),"",IF(Tamaño!$AQ6=0,"Total",Tamaño!$AP6)) -> Industrias manufactureras | K82: =IF(C82="","",IF(C82="Total",SUM(K78:M81),Tamaño!$AQ6)) -> 8913 | N82: =IF(N81="","",IF(C82="Total","",K82/Tamaño!$AQ$24)) -> 0.08373259681 | O82: =IF(C82="","",IF(C82="Total",SUM($O$78:$Q81),Tamaño!$AR6)) -> 210395 | R82: =IF(N81="","",IF(C82="Total","",O82/Tamaño!$AR$24)) -> 0.1238698958 | S82: =IF(C82="","",IF(C82="Total",SUM($S$78:$U81),Tamaño!$AS6)) -> 5180 | V82: =IF(OR(C81="",C81="Total"),"",IF(C82="Total","",S82/Tamaño!$AS$24)) -> 0.0770420608 | W82: =IF(C82="","",IF(C82="Total",SUM($W$78:$W81),Tamaño!$AT6)) -> 112847 | Z82: =IF(OR(C81="Total",C81=""),"",IF(C82="Total","",W82/Tamaño!$AT$24)) -> 0.09884934032
B83: 0 | C83: =IF(OR(C82="Total",C82=""),"",IF(Tamaño!$AQ7=0,"Total",Tamaño!$AP7)) -> Admin. pública y defensa; planes seg. social | K83: =IF(C83="","",IF(C83="Total",SUM(K78:M82),Tamaño!$AQ7)) -> 8800 | N83: =IF(N82="","",IF(C83="Total","",K83/Tamaño!$AQ$24)) -> 0.08267102568 | O83: =IF(C83="","",IF(C83="Total",SUM($O$78:$Q82),Tamaño!$AR7)) -> 57772 | R83: =IF(N82="","",IF(C83="Total","",O83/Tamaño!$AR$24)) -> 0.03401322095 | S83: =IF(C83="","",IF(C83="Total",SUM($S$78:$U82),Tamaño!$AS7)) -> 5441 | V83: =IF(OR(C82="",C82="Total"),"",IF(C83="Total","",S83/Tamaño!$AS$24)) -> 0.08092390981 | W83: =IF(C83="","",IF(C83="Total",SUM($W$78:$W82),Tamaño!$AT7)) -> 35550 | Z83: =IF(OR(C82="Total",C82=""),"",IF(C83="Total","",W83/Tamaño!$AT$24)) -> 0.03114034089
B84: 0 | C84: =IF(OR(C83="Total",C83=""),"",IF(Tamaño!$AQ8=0,"Total",Tamaño!$AP8)) -> Construcción | K84: =IF(C84="","",IF(C84="Total",SUM($K$78:$M83),Tamaño!$AQ8)) -> 6144 | N84: =IF(N83="","",IF(C84="Total","",K84/Tamaño!$AQ$24)) -> 0.05771940702 | O84: =IF(C84="","",IF(C84="Total",SUM($O$78:$Q83),Tamaño!$AR8)) -> 151143 | R84: =IF(N83="","",IF(C84="Total","",O84/Tamaño!$AR$24)) -> 0.08898532601 | S84: =IF(C84="","",IF(C84="Total",SUM($S$78:$U83),Tamaño!$AS8)) -> 3791 | V84: =IF(OR(C83="",C83="Total"),"",IF(C84="Total","",S84/Tamaño!$AS$24)) -> 0.05638348504 | W84: =IF(C84="","",IF(C84="Total",SUM($W$78:$W83),Tamaño!$AT8)) -> 105938 | Z84: =IF(OR(C83="Total",C83=""),"",IF(C84="Total","",W84/Tamaño!$AT$24)) -> 0.09279733989
B85: 0 | C85: =IF(OR(C84="Total",C84=""),"",IF(Tamaño!$AQ9=0,"Total",Tamaño!$AP9)) -> Agricultura, ganadería, caza | K85: =IF(C85="","",IF(C85="Total",SUM($K$78:$M84),Tamaño!$AQ9)) -> 4027 | N85: =IF(N84="","",IF(C85="Total","",K85/Tamaño!$AQ$24)) -> 0.03783138869 | O85: =IF(C85="","",IF(C85="Total",SUM($O$78:$Q84),Tamaño!$AR9)) -> 79275 | R85: =IF(N84="","",IF(C85="Total","",O85/Tamaño!$AR$24)) -> 0.04667309581 | S85: =IF(C85="","",IF(C85="Total",SUM($S$78:$U84),Tamaño!$AS9)) -> 1714 | V85: =IF(OR(C84="",C84="Total"),"",IF(C85="Total","",S85/Tamaño!$AS$24)) -> 0.02549229579 | W85: =IF(C85="","",IF(C85="Total",SUM($W$78:$W84),Tamaño!$AT9)) -> 43791 | Z85: =IF(OR(C84="Total",C84=""),"",IF(C85="Total","",W85/Tamaño!$AT$24)) -> 0.03835911865
B86: 0 | C86: =IF(OR(C85="Total",C85=""),"",IF(Tamaño!$AQ10=0,"Total",Tamaño!$AP10)) -> Alojamiento y servicios de comida | K86: =IF(C86="","",IF(C86="Total",SUM($K$78:$M85),Tamaño!$AQ10)) -> 3944 | N86: =IF(N85="","",IF(C86="Total","",K86/Tamaño!$AQ$24)) -> 0.0370516506 | O86: =IF(C86="","",IF(C86="Total",SUM($O$78:$Q85),Tamaño!$AR10)) -> 38262 | R86: =IF(N85="","",IF(C86="Total","",O86/Tamaño!$AR$24)) -> 0.02252672333 | S86: =IF(C86="","",IF(C86="Total",SUM($S$78:$U85),Tamaño!$AS10)) -> 2356 | V86: =IF(OR(C85="",C85="Total"),"",IF(C86="Total","",S86/Tamaño!$AS$24)) -> 0.03504075198 | W86: =IF(C86="","",IF(C86="Total",SUM($W$78:$W85),Tamaño!$AT10)) -> 24696 | Z86: =IF(OR(C85="Total",C85=""),"",IF(C86="Total","",W86/Tamaño!$AT$24)) -> 0.02163268238
B87: 0 | C87: =IF(OR(C86="Total",C86=""),"",IF(Tamaño!$AQ11=0,"Total",Tamaño!$AP11)) -> Transporte y almacenamiento | K87: =IF(C87="","",IF(C87="Total",SUM($K$78:$M86),Tamaño!$AQ11)) -> 3671 | N87: =IF(N86="","",IF(C87="Total","",K87/Tamaño!$AQ$24)) -> 0.03448696992 | O87: =IF(C87="","",IF(C87="Total",SUM($O$78:$Q86),Tamaño!$AR11)) -> 123940 | R87: =IF(N86="","",IF(C87="Total","",O87/Tamaño!$AR$24)) -> 0.0729695805 | S87: =IF(C87="","",IF(C87="Total",SUM($S$78:$U86),Tamaño!$AS11)) -> 1865 | V87: =IF(OR(C86="",C86="Total"),"",IF(C87="Total","",S87/Tamaño!$AS$24)) -> 0.02773811649 | W87: =IF(C87="","",IF(C87="Total",SUM($W$78:$W86),Tamaño!$AT11)) -> 60989 | Z87: =IF(OR(C86="Total",C86=""),"",IF(C87="Total","",W87/Tamaño!$AT$24)) -> 0.05342386077
B88: 0 | C88: =IF(OR(C87="Total",C87=""),"",IF(Tamaño!$AQ12=0,"Total",Tamaño!$AP12)) -> Actividades de los hogares individuales | K88: =IF(C88="","",IF(C88="Total",SUM($K$78:$M87),Tamaño!$AQ12)) -> 3159 | N88: =IF(N87="","",IF(C88="Total","",K88/Tamaño!$AQ$24)) -> 0.02967701933 | O88: =IF(C88="","",IF(C88="Total",SUM($O$78:$Q87),Tamaño!$AR12)) -> 6037 | R88: =IF(N87="","",IF(C88="Total","",O88/Tamaño!$AR$24)) -> 0.003554279147 | S88: =IF(C88="","",IF(C88="Total",SUM($S$78:$U87),Tamaño!$AS12)) -> 2313 | V88: =IF(OR(C87="",C87="Total"),"",IF(C88="Total","",S88/Tamaño!$AS$24)) -> 0.03440121364 | W88: =IF(C88="","",IF(C88="Total",SUM($W$78:$W87),Tamaño!$AT12)) -> 4798 | Z88: =IF(OR(C87="Total",C87=""),"",IF(C88="Total","",W88/Tamaño!$AT$24)) -> 0.004202851071
B89: 0 | C89: =IF(OR(C88="Total",C88=""),"",IF(Tamaño!$AQ13=0,"Total",Tamaño!$AP13)) -> Actividades inmobiliarias | K89: =IF(C89="","",IF(C89="Total",SUM($K$78:$M88),Tamaño!$AQ13)) -> 2925 | N89: =IF(N88="","",IF(C89="Total","",K89/Tamaño!$AQ$24)) -> 0.02747872161 | O89: =IF(C89="","",IF(C89="Total",SUM($O$78:$Q88),Tamaño!$AR13)) -> 15820 | R89: =IF(N88="","",IF(C89="Total","",O89/Tamaño!$AR$24)) -> 0.009314012938 | S89: =IF(C89="","",IF(C89="Total",SUM($S$78:$U88),Tamaño!$AS13)) -> 2139 | V89: =IF(OR(C88="",C88="Total"),"",IF(C89="Total","",S89/Tamaño!$AS$24)) -> 0.0318133143 | W89: =IF(C89="","",IF(C89="Total",SUM($W$78:$W88),Tamaño!$AT13)) -> 12212 | Z89: =IF(OR(C88="Total",C88=""),"",IF(C89="Total","",W89/Tamaño!$AT$24)) -> 0.01069721077
B90: 0 | C90: =IF(OR(C89="Total",C89=""),"",IF(Tamaño!$AQ14=0,"Total",Tamaño!$AP14)) -> Información y comunicaciones | K90: =IF(C90="","",IF(C90="Total",SUM($K$78:$M89),Tamaño!$AQ14)) -> 2896 | N90: =IF(N89="","",IF(C90="Total","",K90/Tamaño!$AQ$24)) -> 0.027206283 | O90: =IF(C90="","",IF(C90="Total",SUM($O$78:$Q89),Tamaño!$AR14)) -> 31013 | R90: =IF(N89="","",IF(C90="Total","",O90/Tamaño!$AR$24)) -> 0.0182588801 | S90: =IF(C90="","",IF(C90="Total",SUM($S$78:$U89),Tamaño!$AS14)) -> 1968 | V90: =IF(OR(C89="",C89="Total"),"",IF(C90="Total","",S90/Tamaño!$AS$24)) -> 0.02927003391 | W90: =IF(C90="","",IF(C90="Total",SUM($W$78:$W89),Tamaño!$AT14)) -> 23963 | Z90: =IF(OR(C89="Total",C89=""),"",IF(C90="Total","",W90/Tamaño!$AT$24)) -> 0.02099060446
B91: 0 | C91: =IF(OR(C90="Total",C90=""),"",IF(Tamaño!$AQ15=0,"Total",Tamaño!$AP15)) -> Act. de atención de la salud humana | K91: =IF(C91="","",IF(C91="Total",SUM($K$78:$M90),Tamaño!$AQ15)) -> 2621 | N91: =IF(N90="","",IF(C91="Total","",K91/Tamaño!$AQ$24)) -> 0.02462281345 | O91: =IF(C91="","",IF(C91="Total",SUM($O$78:$Q90),Tamaño!$AR15)) -> 53957 | R91: =IF(N90="","",IF(C91="Total","",O91/Tamaño!$AR$24)) -> 0.03176714261 | S91: =IF(C91="","",IF(C91="Total",SUM($S$78:$U90),Tamaño!$AS15)) -> 1905 | V91: =IF(OR(C90="",C90="Total"),"",IF(C91="Total","",S91/Tamaño!$AS$24)) -> 0.02833303587 | W91: =IF(C91="","",IF(C91="Total",SUM($W$78:$W90),Tamaño!$AT15)) -> 46301 | Z91: =IF(OR(C90="Total",C90=""),"",IF(C91="Total","",W91/Tamaño!$AT$24)) -> 0.04055777562
B92: 0 | C92: =IF(OR(C91="Total",C91=""),"",IF(Tamaño!$AQ16=0,"Total",Tamaño!$AP16)) -> Actividades financieras y de seguros | K92: =IF(C92="","",IF(C92="Total",SUM($K$78:$M91),Tamaño!$AQ16)) -> 1268 | N92: =IF(N91="","",IF(C92="Total","",K92/Tamaño!$AQ$24)) -> 0.01191214325 | O92: =IF(C92="","",IF(C92="Total",SUM($O$78:$Q91),Tamaño!$AR16)) -> 40852 | R92: =IF(N91="","",IF(C92="Total","",O92/Tamaño!$AR$24)) -> 0.02405158385 | S92: =IF(C92="","",IF(C92="Total",SUM($S$78:$U91),Tamaño!$AS16)) -> 953 | V92: =IF(OR(C91="",C91="Total"),"",IF(C92="Total","",S92/Tamaño!$AS$24)) -> 0.01417395443 | W92: =IF(C92="","",IF(C92="Total",SUM($W$78:$W91),Tamaño!$AT16)) -> 34865 | Z92: =IF(OR(C91="Total",C91=""),"",IF(C92="Total","",W92/Tamaño!$AT$24)) -> 0.030540309
B93: 0 | C93: =IF(OR(C92="Total",C92=""),"",IF(Tamaño!$AQ17=0,"Total",Tamaño!$AP17)) -> Educación | K93: =IF(C93="","",IF(C93="Total",SUM($K$78:$M92),Tamaño!$AQ17)) -> 1167 | N93: =IF(N92="","",IF(C93="Total","",K93/Tamaño!$AQ$24)) -> 0.01096330534 | O93: =IF(C93="","",IF(C93="Total",SUM($O$78:$Q92),Tamaño!$AR17)) -> 42840 | R93: =IF(N92="","",IF(C93="Total","",O93/Tamaño!$AR$24)) -> 0.02522201734 | S93: =IF(C93="","",IF(C93="Total",SUM($S$78:$U92),Tamaño!$AS17)) -> 735 | V93: =IF(OR(C92="",C92="Total"),"",IF(C93="Total","",S93/Tamaño!$AS$24)) -> 0.01093164376 | W93: =IF(C93="","",IF(C93="Total",SUM($W$78:$W92),Tamaño!$AT17)) -> 32404 | Z93: =IF(OR(C92="Total",C92=""),"",IF(C93="Total","",W93/Tamaño!$AT$24)) -> 0.02838457401
B94: 0 | C94: =IF(OR(C93="Total",C93=""),"",IF(Tamaño!$AQ18=0,"Total",Tamaño!$AP18)) -> Act artísticas y de entretenimiento | K94: =IF(C94="","",IF(C94="Total",SUM($K$78:$M93),Tamaño!$AQ18)) -> 960 | N94: =IF(N93="","",IF(C94="Total","",K94/Tamaño!$AQ$24)) -> 0.009018657347 | O94: =IF(C94="","",IF(C94="Total",SUM($O$78:$Q93),Tamaño!$AR18)) -> 15030 | R94: =IF(N93="","",IF(C94="Total","",O94/Tamaño!$AR$24)) -> 0.008848901041 | S94: =IF(C94="","",IF(C94="Total",SUM($S$78:$U93),Tamaño!$AS18)) -> 668 | V94: =IF(OR(C93="",C93="Total"),"",IF(C94="Total","",S94/Tamaño!$AS$24)) -> 0.009935153787 | W94: =IF(C94="","",IF(C94="Total",SUM($W$78:$W93),Tamaño!$AT18)) -> 12138 | Z94: =IF(OR(C93="Total",C93=""),"",IF(C94="Total","",W94/Tamaño!$AT$24)) -> 0.01063238981
B95: 0 | C95: =IF(OR(C94="Total",C94=""),"",IF(Tamaño!$AQ19=0,"Total",Tamaño!$AP19)) -> Distribución de agua; gestión de desechos | K95: =IF(C95="","",IF(C95="Total",SUM($K$78:$M94),Tamaño!$AQ19)) -> 378 | N95: =IF(N94="","",IF(C95="Total","",K95/Tamaño!$AQ$24)) -> 0.003551096331 | O95: =IF(C95="","",IF(C95="Total",SUM($O$78:$Q94),Tamaño!$AR19)) -> 15107 | R95: =IF(N94="","",IF(C95="Total","",O95/Tamaño!$AR$24)) -> 0.008894234732 | S95: =IF(C95="","",IF(C95="Total",SUM($S$78:$U94),Tamaño!$AS19)) -> 141 | V95: =IF(OR(C94="",C94="Total"),"",IF(C95="Total","",S95/Tamaño!$AS$24)) -> 0.002097090844 | W95: =IF(C95="","",IF(C95="Total",SUM($W$78:$W94),Tamaño!$AT19)) -> 8435 | Z95: =IF(OR(C94="Total",C94=""),"",IF(C95="Total","",W95/Tamaño!$AT$24)) -> 0.007388713794
B96: 0 | C96: =IF(OR(C95="Total",C95=""),"",IF(Tamaño!$AQ20=0,"Total",Tamaño!$AP20)) -> Explotación de minas y canteras | K96: =IF(C96="","",IF(C96="Total",SUM($K$78:$M95),Tamaño!$AQ20)) -> 353 | N96: =IF(N95="","",IF(C96="Total","",K96/Tamaño!$AQ$24)) -> 0.003316235462 | O96: =IF(C96="","",IF(C96="Total",SUM($O$78:$Q95),Tamaño!$AR20)) -> 14582 | R96: =IF(N95="","",IF(C96="Total","",O96/Tamaño!$AR$24)) -> 0.008585141382 | S96: =IF(C96="","",IF(C96="Total",SUM($S$78:$U95),Tamaño!$AS20)) -> 110 | V96: =IF(OR(C95="",C95="Total"),"",IF(C96="Total","",S96/Tamaño!$AS$24)) -> 0.001636028318 | W96: =IF(C96="","",IF(C96="Total",SUM($W$78:$W95),Tamaño!$AT20)) -> 8335 | Z96: =IF(OR(C95="Total",C95=""),"",IF(C96="Total","",W96/Tamaño!$AT$24)) -> 0.007301117899
B97: 0 | C97: =IF(OR(C96="Total",C96=""),"",IF(Tamaño!$AQ21=0,"Total",Tamaño!$AP21)) -> Suministro de electricidad, gas y vapor | K97: =IF(C97="","",IF(C97="Total",SUM($K$78:$M96),Tamaño!$AQ21)) -> 107 | N97: =IF(N96="","",IF(C97="Total","",K97/Tamaño!$AQ$24)) -> 0.001005204517 | O97: =IF(C97="","",IF(C97="Total",SUM($O$78:$Q96),Tamaño!$AR21)) -> 1206 | R97: =IF(N96="","",IF(C97="Total","",O97/Tamaño!$AR$24)) -> 0.0007100315805 | S97: =IF(C97="","",IF(C97="Total",SUM($S$78:$U96),Tamaño!$AS21)) -> 71 | V97: =IF(OR(C96="",C96="Total"),"",IF(C97="Total","",S97/Tamaño!$AS$24)) -> 0.001055981914 | W97: =IF(C97="","",IF(C97="Total",SUM($W$78:$W96),Tamaño!$AT21)) -> 918 | Z97: =IF(OR(C96="Total",C96=""),"",IF(C97="Total","",W97/Tamaño!$AT$24)) -> 0.0008041303217
B98: 0 | C98: =IF(OR(C97="Total",C97=""),"",IF(Tamaño!$AQ22=0,"Total",Tamaño!$AP22)) -> Organizaciones y entidades extraterritoriales | K98: =IF(C98="","",IF(C98="Total",SUM($K$78:$M97),Tamaño!$AQ22)) -> 74 | N98: =IF(N97="","",IF(C98="Total","",K98/Tamaño!$AQ$24)) -> 0.0006951881705 | O98: =IF(C98="","",IF(C98="Total",SUM($O$78:$Q97),Tamaño!$AR22)) -> 5057 | R98: =IF(N97="","",IF(C98="Total","",O98/Tamaño!$AR$24)) -> 0.002977304894 | S98: =IF(C98="","",IF(C98="Total",SUM($S$78:$U97),Tamaño!$AS22)) -> 51 | V98: =IF(OR(C97="",C97="Total"),"",IF(C98="Total","",S98/Tamaño!$AS$24)) -> 0.0007585222202 | W98: =IF(C98="","",IF(C98="Total",SUM($W$78:$W97),Tamaño!$AT22)) -> 4458 | Z98: =IF(OR(C97="Total",C97=""),"",IF(C98="Total","",W98/Tamaño!$AT$24)) -> 0.003905025026
B99: 1 | C99: =IF(OR(C98="Total",C98=""),"",IF(Tamaño!$AQ23=0,"Total",Tamaño!$AP23)) -> Total | K99: =IF(C99="","",IF(C99="Total",SUM($K$78:$M98),Tamaño!$AQ23)) -> 106446 | N99: =IF(N98="","",IF(C99="Total","",K99/Tamaño!$AQ$24)) ->  | O99: =IF(C99="","",IF(C99="Total",SUM($O$78:$Q98),Tamaño!$AR23)) -> 1698516 | R99: =IF(N98="","",IF(C99="Total","",O99/Tamaño!$AR$24)) ->  | S99: =IF(C99="","",IF(C99="Total",SUM($S$78:$U98),Tamaño!$AS23)) -> 67236 | V99: =IF(OR(C98="",C98="Total"),"",IF(C99="Total","",S99/Tamaño!$AS$24)) ->  | W99: =IF(C99="","",IF(C99="Total",SUM($W$78:$W98),Tamaño!$AT23)) -> 1141606 | Z99: =IF(OR(C98="Total",C98=""),"",IF(C99="Total","",W99/Tamaño!$AT$24)) -> 
C100: =IF(OR(C99="",C99="Total"),"","Total") ->  | K100: =IF(C100="","",IF(C100="","",SUM(K78:M99))) ->  | O100: =IF(C100="","",SUM(O78:Q99)) ->  | S100: =IF(C100="","",IF(C100="Total",SUM($S$78:$U99),Tamaño!$AS24)) ->  | W100: =IF(C100="","",IF(C100="Total",SUM($W$78:$W99),Tamaño!$AT24)) ->  | Z100: =IF(OR(C99="Total",C99=""),"",IF(C100="Total","",W100/Tamaño!$AT$24)) -> 
C101: *Ubicación basada en la ubicación de los aportantes
L105: =J3 -> Informe Mensual de las cotizaciones
L107: =J5 -> Fecha de corte: 22 de Jun de 2022 | AB107: Pg. 3
L109: Departamento | Q109: =Q7 -> ANTIOQUIA
L110: Municipio | Q110: =Q8 -> MEDELLÍN
D112: Resumen por actividades económicas de los independientes
F114: Actividades económicas | N114: =PROPER(Q55) -> Antioquia | R114: % | T114: =PROPER(Q8) -> Medellín | X114: %
F116: =IF(Tamaño!$BT2="",Total,Tamaño!$BT2) -> Act. profesionales científicas y técnicas | N116: =Tamaño!BU2 -> 58861 | R116: =N116/Tamaño!$BU$25 -> 0.1823637485 | T116: =Tamaño!BV2 -> 38989 | X116: =T116/Tamaño!$BV$25 -> 0.1987835096
F117: =IF(F116="Total","",IF(Tamaño!$BU3=0,"Total",Tamaño!$BT3)) -> Actividades de servicios administrativos | N117: =IF(F117="","",IF(F117="Total",N116,Tamaño!$BU3)) -> 47835 | R117: =IF(F117="Total","",N117/Tamaño!$BU$25) -> 0.1482028832 | T117: =IF(F117="","",IF(F117="Total",SUM($T$116:$T116),Tamaño!$BV3)) -> 28125 | X117: =IF(F117="Total","",T117/Tamaño!$BV$25) -> 0.1433939369
F118: =IF(F117="Total","",IF(Tamaño!$BU4=0,"Total",Tamaño!$BT4)) -> Otras actividades de servicios | N118: =IF(F118="","",IF(F118="Total",SUM($N$116:$N117),Tamaño!$BU4)) -> 46050 | R118: =IF(R117="","",IF(F118="Total","",N118/Tamaño!$BU$25)) -> 0.1426725781 | T118: =IF(F118="","",IF(F118="Total",SUM($T$116:$T117),Tamaño!$BV4)) -> 29770 | X118: =IF(X117="","",IF(F118="Total","",T118/Tamaño!$BV$25)) -> 0.151780889
F119: =IF(OR(F118="Total",F118=""),"",IF(Tamaño!$BU5=0,"Total",Tamaño!$BT5)) -> Comercio y reparación de vehículos | N119: =IF(F119="","",IF(F119="Total",SUM($N$116:$N118),Tamaño!$BU5)) -> 34042 | R119: =IF(R118="","",IF(F119="Total","",N119/Tamaño!$BU$25)) -> 0.1054692704 | T119: =IF(F119="","",IF(F119="Total",SUM($T$116:$T118),Tamaño!$BV5)) -> 19280 | X119: =IF(X118="","",IF(F119="Total","",T119/Tamaño!$BV$25)) -> 0.09829813703
F120: =IF(OR(F119="Total",F119=""),"",IF(Tamaño!$BU6=0,"Total",Tamaño!$BT6)) -> Educación | N120: =IF(F120="","",IF(F120="Total",SUM($N$116:$N119),Tamaño!$BU6)) -> 17917 | R120: =IF(R119="","",IF(F120="Total","",N120/Tamaño!$BU$25)) -> 0.05551063151 | T120: =IF(F120="","",IF(F120="Total",SUM($T$116:$T119),Tamaño!$BV6)) -> 10240 | X120: =IF(X119="","",IF(F120="Total","",T120/Tamaño!$BV$25)) -> 0.05220813917
F121: =IF(OR(F120="Total",F120=""),"",IF(Tamaño!$BU7=0,"Total",Tamaño!$BT7)) -> Act. de atención de la salud humana | N121: =IF(F121="","",IF(F121="Total",SUM($N$116:$N120),Tamaño!$BU7)) -> 17764 | R121: =IF(R120="","",IF(F121="Total","",N121/Tamaño!$BU$25)) -> 0.05503660535 | T121: =IF(F121="","",IF(F121="Total",SUM($T$116:$T120),Tamaño!$BV7)) -> 11761 | X121: =IF(X120="","",IF(F121="Total","",T121/Tamaño!$BV$25)) -> 0.05996288328
F122: =IF(OR(F121="Total",F121=""),"",IF(Tamaño!$BU8=0,"Total",Tamaño!$BT8)) -> Transporte y almacenamiento | N122: =IF(F122="","",IF(F122="Total",SUM($N$116:$N121),Tamaño!$BU8)) -> 15055 | R122: =IF(R121="","",IF(F122="Total","",N122/Tamaño!$BU$25)) -> 0.04664355402 | T122: =IF(F122="","",IF(F122="Total",SUM($T$116:$T121),Tamaño!$BV8)) -> 9213 | X122: =IF(X121="","",IF(F122="Total","",T122/Tamaño!$BV$25)) -> 0.0469720299
F123: =IF(OR(F122="Total",F122=""),"",IF(Tamaño!$BU9=0,"Total",Tamaño!$BT9)) -> Admin. pública y defensa; planes seg. social | N123: =IF(F123="","",IF(F123="Total",SUM($N$116:$N122),Tamaño!$BU9)) -> 14614 | R123: =IF(R122="","",IF(F123="Total","",N123/Tamaño!$BU$25)) -> 0.04527724334 | T123: =IF(F123="","",IF(F123="Total",SUM($T$116:$T122),Tamaño!$BV9)) -> 7652 | X123: =IF(X122="","",IF(F123="Total","",T123/Tamaño!$BV$25)) -> 0.03901334774
F124: =IF(OR(F123="Total",F123=""),"",IF(Tamaño!$BU10=0,"Total",Tamaño!$BT10)) -> Industrias manufactureras | N124: =IF(F124="","",IF(F124="Total",SUM($N$116:$N123),Tamaño!$BU10)) -> 12638 | R124: =IF(R123="","",IF(F124="Total","",N124/Tamaño!$BU$25)) -> 0.03915518005 | T124: =IF(F124="","",IF(F124="Total",SUM($T$116:$T123),Tamaño!$BV10)) -> 7817 | X124: =IF(X123="","",IF(F124="Total","",T124/Tamaño!$BV$25)) -> 0.03985459217
F125: =IF(OR(F124="Total",F124=""),"",IF(Tamaño!$BU11=0,"Total",Tamaño!$BT11)) -> Agricultura, ganadería, caza | N125: =IF(F125="","",IF(F125="Total",SUM($N$116:$N124),Tamaño!$BU11)) -> 10820 | R125: =IF(R124="","",IF(F125="Total","",N125/Tamaño!$BU$25)) -> 0.03352263397 | T125: =IF(F125="","",IF(F125="Total",SUM($T$116:$T124),Tamaño!$BV11)) -> 3590 | X125: =IF(X124="","",IF(F125="Total","",T125/Tamaño!$BV$25)) -> 0.01830343942
F126: =IF(OR(F125="Total",F125=""),"",IF(Tamaño!$BU12=0,"Total",Tamaño!$BT12)) -> Construcción | N126: =IF(F126="","",IF(F126="Total",SUM($N$116:$N125),Tamaño!$BU12)) -> 8514 | R126: =IF(R125="","",IF(F126="Total","",N126/Tamaño!$BU$25)) -> 0.02637816134 | T126: =IF(F126="","",IF(F126="Total",SUM($T$116:$T125),Tamaño!$BV12)) -> 5048 | X126: =IF(X125="","",IF(F126="Total","",T126/Tamaño!$BV$25)) -> 0.02573698111
F127: =IF(OR(F126="Total",F126=""),"",IF(Tamaño!$BU13=0,"Total",Tamaño!$BT13)) -> Actividades inmobiliarias | N127: =IF(F127="","",IF(F127="Total",SUM($N$116:$N126),Tamaño!$BU13)) -> 7997 | R127: =IF(R126="","",IF(F127="Total","",N127/Tamaño!$BU$25)) -> 0.02477638668 | T127: =IF(F127="","",IF(F127="Total",SUM($T$116:$T126),Tamaño!$BV13)) -> 5602 | X127: =IF(X126="","",IF(F127="Total","",T127/Tamaño!$BV$25)) -> 0.02856152301
F128: =IF(OR(F127="Total",F127=""),"",IF(Tamaño!$BU14=0,"Total",Tamaño!$BT14)) -> Act artísticas y de entretenimiento | N128: =IF(F128="","",IF(F128="Total",SUM($N$116:$N127),Tamaño!$BU14)) -> 7542 | R128: =IF(R127="","",IF(F128="Total","",N128/Tamaño!$BU$25)) -> 0.02336670106 | T128: =IF(F128="","",IF(F128="Total",SUM($T$116:$T127),Tamaño!$BV14)) -> 4492 | X128: =IF(X127="","",IF(F128="Total","",T128/Tamaño!$BV$25)) -> 0.0229022423
F129: =IF(OR(F128="Total",F128=""),"",IF(Tamaño!$BU15=0,"Total",Tamaño!$BT15)) -> Información y comunicaciones | N129: =IF(F129="","",IF(F129="Total",SUM($N$116:$N128),Tamaño!$BU15)) -> 7025 | R129: =IF(R128="","",IF(F129="Total","",N129/Tamaño!$BU$25)) -> 0.0217649264 | T129: =IF(F129="","",IF(F129="Total",SUM($T$116:$T128),Tamaño!$BV15)) -> 4479 | X129: =IF(X128="","",IF(F129="Total","",T129/Tamaño!$BV$25)) -> 0.02283596243
F130: =IF(OR(F129="Total",F129=""),"",IF(Tamaño!$BU16=0,"Total",Tamaño!$BT16)) -> Alojamiento y servicios de comida | N130: =IF(F130="","",IF(F130="Total",SUM($N$116:$N129),Tamaño!$BU16)) -> 6726 | R130: =IF(R129="","",IF(F130="Total","",N130/Tamaño!$BU$25)) -> 0.02083856156 | T130: =IF(F130="","",IF(F130="Total",SUM($T$116:$T129),Tamaño!$BV16)) -> 3711 | X130: =IF(X129="","",IF(F130="Total","",T130/Tamaño!$BV$25)) -> 0.018920352
F131: =IF(OR(F130="Total",F130=""),"",IF(Tamaño!$BU17=0,"Total",Tamaño!$BT17)) -> Otras | N131: =IF(F131="","",IF(F131="Total",SUM($N$116:$N130),Tamaño!$BU17)) -> 3183 | R131: =IF(R130="","",IF(F131="Total","",N131/Tamaño!$BU$25)) -> 0.009861602952 | T131: =IF(F131="","",IF(F131="Total",SUM($T$116:$T130),Tamaño!$BV17)) -> 2245 | X131: =IF(X130="","",IF(F131="Total","",T131/Tamaño!$BV$25)) -> 0.0114460227
F132: =IF(OR(F131="Total",F131=""),"",IF(Tamaño!$BU18=0,"Total",Tamaño!$BT18)) -> Actividades financieras y de seguros | N132: =IF(F132="","",IF(F132="Total",SUM($N$116:$N131),Tamaño!$BU18)) -> 2882 | R132: =IF(R131="","",IF(F132="Total","",N132/Tamaño!$BU$25)) -> 0.008929041693 | T132: =IF(F132="","",IF(F132="Total",SUM($T$116:$T131),Tamaño!$BV18)) -> 2158 | X132: =IF(X131="","",IF(F132="Total","",T132/Tamaño!$BV$25)) -> 0.01100245745
F133: =IF(OR(F132="Total",F132=""),"",IF(Tamaño!$BU19=0,"Total",Tamaño!$BT19)) -> Actividades de los hogares individuales | N133: =IF(F133="","",IF(F133="Total",SUM($N$116:$N132),Tamaño!$BU19)) -> 1388 | R133: =IF(R132="","",IF(F133="Total","",N133/Tamaño!$BU$25)) -> 0.004300315708 | T133: =IF(F133="","",IF(F133="Total",SUM($T$116:$T132),Tamaño!$BV19)) -> 980 | X133: =IF(X132="","",IF(F133="Total","",T133/Tamaño!$BV$25)) -> 0.004996482069
F134: =IF(OR(F133="Total",F133=""),"",IF(Tamaño!$BU20=0,"Total",Tamaño!$BT20)) -> Explotación de minas y canteras | N134: =IF(F134="","",IF(F134="Total",SUM($N$116:$N133),Tamaño!$BU20)) -> 1294 | R134: =IF(R133="","",IF(F134="Total","",N134/Tamaño!$BU$25)) -> 0.004009083952 | T134: =IF(F134="","",IF(F134="Total",SUM($T$116:$T133),Tamaño!$BV20)) -> 709 | X134: =IF(X133="","",IF(F134="Total","",T134/Tamaño!$BV$25)) -> 0.003614801823
F135: =IF(OR(F134="Total",F134=""),"",IF(Tamaño!$BU21=0,"Total",Tamaño!$BT21)) -> Distribución de agua; gestión de desechos | N135: =IF(F135="","",IF(F135="Total",SUM($N$116:$N134),Tamaño!$BU21)) -> 479 | R135: =IF(R134="","",IF(F135="Total","",N135/Tamaño!$BU$25)) -> 0.001484042669 | T135: =IF(F135="","",IF(F135="Total",SUM($T$116:$T134),Tamaño!$BV21)) -> 197 | X135: =IF(X134="","",IF(F135="Total","",T135/Tamaño!$BV$25)) -> 0.001004394865
F136: =IF(OR(F135="Total",F135=""),"",IF(Tamaño!$BU22=0,"Total",Tamaño!$BT22)) -> Suministro de electricidad, gas y vapor | N136: =IF(F136="","",IF(F136="Total",SUM($N$116:$N135),Tamaño!$BU22)) -> 94 | R136: =IF(R135="","",IF(F136="Total","",N136/Tamaño!$BU$25)) -> 0.0002912317554 | T136: =IF(F136="","",IF(F136="Total",SUM($T$116:$T135),Tamaño!$BV22)) -> 59 | X136: =IF(X135="","",IF(F136="Total","",T136/Tamaño!$BV$25)) -> 0.0003008086143
F137: =IF(OR(F136="Total",F136=""),"",IF(Tamaño!$BU23=0,"Total",Tamaño!$BT23)) -> Organizaciones y entidades extraterritoriales | N137: =IF(F137="","",IF(F137="Total",SUM($N$116:$N136),Tamaño!$BU23)) -> 47 | R137: =IF(R136="","",IF(F137="Total","",N137/Tamaño!$BU$25)) -> 0.0001456158777 | T137: =IF(F137="","",IF(F137="Total",SUM($T$116:$T136),Tamaño!$BV23)) -> 21 | X137: =IF(X136="","",IF(F137="Total","",T137/Tamaño!$BV$25)) -> 0.0001070674729
F138: =IF(OR(F137="Total",F137=""),"",IF(Tamaño!$BU24=0,"Total",Tamaño!$BT24)) -> Total | N138: =IF(F138="","",IF(F138="Total",SUM($N$116:$N137),Tamaño!$BU24)) -> 322767 | R138: =IF(R137="","",IF(F138="Total","",N138/Tamaño!$BU$25)) ->  | T138: =IF(F138="","",IF(F138="Total",SUM($T$116:$T137),Tamaño!$BV24)) -> 196138 | X138: =IF(X137="","",IF(F138="Total","",T138/Tamaño!$BV$25)) -> 
C139: *Ubicación basada en la ubicación de los cotizantes
D140: ="Resumen por edad y sexo para "&PROPER(Q7) -> Resumen por edad y sexo para Antioquia
F142: =PROPER(Q7) -> Antioquia | X142: Piramided dependientes privados
B143: Edad | F143: Dependiente Privados | O143: Independientes
F144: Hombres | I144: Mujeres | L144: No Identificado | O144: Hombres | R144: Mujeres | U144: No Identificado
B145: 15-20 | F145: =SUMIFS('Edad y sexo'!$F$2:$F$5000,'Edad y sexo'!$B$2:$B$5000,Visor!$Q$7,'Edad y sexo'!$C$2:$C$5000,"M",'Edad y sexo'!$D$2:$D$5000,Visor!$B145,'Edad y sexo'!$E$2:$E$5000,"Dep_sec_priv") -> 11555 | I145: =SUMIFS('Edad y sexo'!$F$2:$F$5000,'Edad y sexo'!$B$2:$B$5000,Visor!$Q$7,'Edad y sexo'!$C$2:$C$5000,"F",'Edad y sexo'!$D$2:$D$5000,Visor!$B145,'Edad y sexo'!$E$2:$E$5000,"Dep_sec_priv") -> 5902 | L145: =SUMIFS('Edad y sexo'!$F$2:$F$5000,'Edad y sexo'!$B$2:$B$5000,Visor!$Q$7,'Edad y sexo'!$C$2:$C$5000,"NI",'Edad y sexo'!$D$2:$D$5000,Visor!$B145,'Edad y sexo'!$E$2:$E$5000,"Dep_sec_priv") -> 0 | O145: =SUMIFS('Edad y sexo'!$F$2:$F$5000,'Edad y sexo'!$B$2:$B$5000,Visor!$Q$7,'Edad y sexo'!$C$2:$C$5000,"M",'Edad y sexo'!$D$2:$D$5000,Visor!$B145,'Edad y sexo'!$E$2:$E$5000,"Independiente") -> 318 | R145: =SUMIFS('Edad y sexo'!$F$2:$F$5000,'Edad y sexo'!$B$2:$B$5000,Visor!$Q$7,'Edad y sexo'!$C$2:$C$5000,"F",'Edad y sexo'!$D$2:$D$5000,Visor!$B145,'Edad y sexo'!$E$2:$E$5000,"Independiente") -> 241 | U145: =SUMIFS('Edad y sexo'!$F$2:$F$5000,'Edad y sexo'!$B$2:$B$5000,Visor!$Q$7,'Edad y sexo'!$C$2:$C$5000,"NI",'Edad y sexo'!$D$2:$D$5000,Visor!$B145,'Edad y sexo'!$E$2:$E$5000,"Independiente") -> 0
B146: 20-25 | F146: =SUMIFS('Edad y sexo'!$F$2:$F$5000,'Edad y sexo'!$B$2:$B$5000,Visor!$Q$7,'Edad y sexo'!$C$2:$C$5000,"M",'Edad y sexo'!$D$2:$D$5000,Visor!$B146,'Edad y sexo'!$E$2:$E$5000,"Dep_sec_priv") -> 108466 | I146: =SUMIFS('Edad y sexo'!$F$2:$F$5000,'Edad y sexo'!$B$2:$B$5000,Visor!$Q$7,'Edad y sexo'!$C$2:$C$5000,"F",'Edad y sexo'!$D$2:$D$5000,Visor!$B146,'Edad y sexo'!$E$2:$E$5000,"Dep_sec_priv") -> 76523 | L146: =SUMIFS('Edad y sexo'!$F$2:$F$5000,'Edad y sexo'!$B$2:$B$5000,Visor!$Q$7,'Edad y sexo'!$C$2:$C$5000,"NI",'Edad y sexo'!$D$2:$D$5000,Visor!$B146,'Edad y sexo'!$E$2:$E$5000,"Dep_sec_priv") -> 0 | O146: =SUMIFS('Edad y sexo'!$F$2:$F$5000,'Edad y sexo'!$B$2:$B$5000,Visor!$Q$7,'Edad y sexo'!$C$2:$C$5000,"M",'Edad y sexo'!$D$2:$D$5000,Visor!$B146,'Edad y sexo'!$E$2:$E$5000,"Independiente") -> 5027 | R146: =SUMIFS('Edad y sexo'!$F$2:$F$5000,'Edad y sexo'!$B$2:$B$5000,Visor!$Q$7,'Edad y sexo'!$C$2:$C$5000,"F",'Edad y sexo'!$D$2:$D$5000,Visor!$B146,'Edad y sexo'!$E$2:$E$5000,"Independiente") -> 5068 | U146: =SUMIFS('Edad y sexo'!$F$2:$F$5000,'Edad y sexo'!$B$2:$B$5000,Visor!$Q$7,'Edad y sexo'!$C$2:$C$5000,"NI",'Edad y sexo'!$D$2:$D$5000,Visor!$B146,'Edad y sexo'!$E$2:$E$5000,"Independiente") -> 0
B147: 25-30 | F147: =SUMIFS('Edad y sexo'!$F$2:$F$5000,'Edad y sexo'!$B$2:$B$5000,Visor!$Q$7,'Edad y sexo'!$C$2:$C$5000,"M",'Edad y sexo'!$D$2:$D$5000,Visor!$B147,'Edad y sexo'!$E$2:$E$5000,"Dep_sec_priv") -> 158966 | I147: =SUMIFS('Edad y sexo'!$F$2:$F$5000,'Edad y sexo'!$B$2:$B$5000,Visor!$Q$7,'Edad y sexo'!$C$2:$C$5000,"F",'Edad y sexo'!$D$2:$D$5000,Visor!$B147,'Edad y sexo'!$E$2:$E$5000,"Dep_sec_priv") -> 125920 | L147: =SUMIFS('Edad y sexo'!$F$2:$F$5000,'Edad y sexo'!$B$2:$B$5000,Visor!$Q$7,'Edad y sexo'!$C$2:$C$5000,"NI",'Edad y sexo'!$D$2:$D$5000,Visor!$B147,'Edad y sexo'!$E$2:$E$5000,"Dep_sec_priv") -> 0 | O147: =SUMIFS('Edad y sexo'!$F$2:$F$5000,'Edad y sexo'!$B$2:$B$5000,Visor!$Q$7,'Edad y sexo'!$C$2:$C$5000,"M",'Edad y sexo'!$D$2:$D$5000,Visor!$B147,'Edad y sexo'!$E$2:$E$5000,"Independiente") -> 13718 | R147: =SUMIFS('Edad y sexo'!$F$2:$F$5000,'Edad y sexo'!$B$2:$B$5000,Visor!$Q$7,'Edad y sexo'!$C$2:$C$5000,"F",'Edad y sexo'!$D$2:$D$5000,Visor!$B147,'Edad y sexo'!$E$2:$E$5000,"Independiente") -> 14990 | U147: =SUMIFS('Edad y sexo'!$F$2:$F$5000,'Edad y sexo'!$B$2:$B$5000,Visor!$Q$7,'Edad y sexo'!$C$2:$C$5000,"NI",'Edad y sexo'!$D$2:$D$5000,Visor!$B147,'Edad y sexo'!$E$2:$E$5000,"Independiente") -> 0
B148: 30-35 | F148: =SUMIFS('Edad y sexo'!$F$2:$F$5000,'Edad y sexo'!$B$2:$B$5000,Visor!$Q$7,'Edad y sexo'!$C$2:$C$5000,"M",'Edad y sexo'!$D$2:$D$5000,Visor!$B148,'Edad y sexo'!$E$2:$E$5000,"Dep_sec_priv") -> 154431 | I148: =SUMIFS('Edad y sexo'!$F$2:$F$5000,'Edad y sexo'!$B$2:$B$5000,Visor!$Q$7,'Edad y sexo'!$C$2:$C$5000,"F",'Edad y sexo'!$D$2:$D$5000,Visor!$B148,'Edad y sexo'!$E$2:$E$5000,"Dep_sec_priv") -> 120498 | L148: =SUMIFS('Edad y sexo'!$F$2:$F$5000,'Edad y sexo'!$B$2:$B$5000,Visor!$Q$7,'Edad y sexo'!$C$2:$C$5000,"NI",'Edad y sexo'!$D$2:$D$5000,Visor!$B148,'Edad y sexo'!$E$2:$E$5000,"Dep_sec_priv") -> 0 | O148: =SUMIFS('Edad y sexo'!$F$2:$F$5000,'Edad y sexo'!$B$2:$B$5000,Visor!$Q$7,'Edad y sexo'!$C$2:$C$5000,"M",'Edad y sexo'!$D$2:$D$5000,Visor!$B148,'Edad y sexo'!$E$2:$E$5000,"Independiente") -> 17534 | R148: =SUMIFS('Edad y sexo'!$F$2:$F$5000,'Edad y sexo'!$B$2:$B$5000,Visor!$Q$7,'Edad y sexo'!$C$2:$C$5000,"F",'Edad y sexo'!$D$2:$D$5000,Visor!$B148,'Edad y sexo'!$E$2:$E$5000,"Independiente") -> 17026 | U148: =SUMIFS('Edad y sexo'!$F$2:$F$5000,'Edad y sexo'!$B$2:$B$5000,Visor!$Q$7,'Edad y sexo'!$C$2:$C$5000,"NI",'Edad y sexo'!$D$2:$D$5000,Visor!$B148,'Edad y sexo'!$E$2:$E$5000,"Independiente") -> 0
B149: 35-40 | F149: =SUMIFS('Edad y sexo'!$F$2:$F$5000,'Edad y sexo'!$B$2:$B$5000,Visor!$Q$7,'Edad y sexo'!$C$2:$C$5000,"M",'Edad y sexo'!$D$2:$D$5000,Visor!$B149,'Edad y sexo'!$E$2:$E$5000,"Dep_sec_priv") -> 128751 | I149: =SUMIFS('Edad y sexo'!$F$2:$F$5000,'Edad y sexo'!$B$2:$B$5000,Visor!$Q$7,'Edad y sexo'!$C$2:$C$5000,"F",'Edad y sexo'!$D$2:$D$5000,Visor!$B149,'Edad y sexo'!$E$2:$E$5000,"Dep_sec_priv") -> 101706 | L149: =SUMIFS('Edad y sexo'!$F$2:$F$5000,'Edad y sexo'!$B$2:$B$5000,Visor!$Q$7,'Edad y sexo'!$C$2:$C$5000,"NI",'Edad y sexo'!$D$2:$D$5000,Visor!$B149,'Edad y sexo'!$E$2:$E$5000,"Dep_sec_priv") -> 0 | O149: =SUMIFS('Edad y sexo'!$F$2:$F$5000,'Edad y sexo'!$B$2:$B$5000,Visor!$Q$7,'Edad y sexo'!$C$2:$C$5000,"M",'Edad y sexo'!$D$2:$D$5000,Visor!$B149,'Edad y sexo'!$E$2:$E$5000,"Independiente") -> 18422 | R149: =SUMIFS('Edad y sexo'!$F$2:$F$5000,'Edad y sexo'!$B$2:$B$5000,Visor!$Q$7,'Edad y sexo'!$C$2:$C$5000,"F",'Edad y sexo'!$D$2:$D$5000,Visor!$B149,'Edad y sexo'!$E$2:$E$5000,"Independiente") -> 16811 | U149: =SUMIFS('Edad y sexo'!$F$2:$F$5000,'Edad y sexo'!$B$2:$B$5000,Visor!$Q$7,'Edad y sexo'!$C$2:$C$5000,"NI",'Edad y sexo'!$D$2:$D$5000,Visor!$B149,'Edad y sexo'!$E$2:$E$5000,"Independiente") -> 0
B150: 40-45 | F150: =SUMIFS('Edad y sexo'!$F$2:$F$5000,'Edad y sexo'!$B$2:$B$5000,Visor!$Q$7,'Edad y sexo'!$C$2:$C$5000,"M",'Edad y sexo'!$D$2:$D$5000,Visor!$B150,'Edad y sexo'!$E$2:$E$5000,"Dep_sec_priv") -> 112595 | I150: =SUMIFS('Edad y sexo'!$F$2:$F$5000,'Edad y sexo'!$B$2:$B$5000,Visor!$Q$7,'Edad y sexo'!$C$2:$C$5000,"F",'Edad y sexo'!$D$2:$D$5000,Visor!$B150,'Edad y sexo'!$E$2:$E$5000,"Dep_sec_priv") -> 86737 | L150: =SUMIFS('Edad y sexo'!$F$2:$F$5000,'Edad y sexo'!$B$2:$B$5000,Visor!$Q$7,'Edad y sexo'!$C$2:$C$5000,"NI",'Edad y sexo'!$D$2:$D$5000,Visor!$B150,'Edad y sexo'!$E$2:$E$5000,"Dep_sec_priv") -> 0 | O150: =SUMIFS('Edad y sexo'!$F$2:$F$5000,'Edad y sexo'!$B$2:$B$5000,Visor!$Q$7,'Edad y sexo'!$C$2:$C$5000,"M",'Edad y sexo'!$D$2:$D$5000,Visor!$B150,'Edad y sexo'!$E$2:$E$5000,"Independiente") -> 19408 | R150: =SUMIFS('Edad y sexo'!$F$2:$F$5000,'Edad y sexo'!$B$2:$B$5000,Visor!$Q$7,'Edad y sexo'!$C$2:$C$5000,"F",'Edad y sexo'!$D$2:$D$5000,Visor!$B150,'Edad y sexo'!$E$2:$E$5000,"Independiente") -> 16669 | U150: =SUMIFS('Edad y sexo'!$F$2:$F$5000,'Edad y sexo'!$B$2:$B$5000,Visor!$Q$7,'Edad y sexo'!$C$2:$C$5000,"NI",'Edad y sexo'!$D$2:$D$5000,Visor!$B150,'Edad y sexo'!$E$2:$E$5000,"Independiente") -> 0
B151: 45-50 | F151: =SUMIFS('Edad y sexo'!$F$2:$F$5000,'Edad y sexo'!$B$2:$B$5000,Visor!$Q$7,'Edad y sexo'!$C$2:$C$5000,"M",'Edad y sexo'!$D$2:$D$5000,Visor!$B151,'Edad y sexo'!$E$2:$E$5000,"Dep_sec_priv") -> 83642 | I151: =SUMIFS('Edad y sexo'!$F$2:$F$5000,'Edad y sexo'!$B$2:$B$5000,Visor!$Q$7,'Edad y sexo'!$C$2:$C$5000,"F",'Edad y sexo'!$D$2:$D$5000,Visor!$B151,'Edad y sexo'!$E$2:$E$5000,"Dep_sec_priv") -> 60926 | L151: =SUMIFS('Edad y sexo'!$F$2:$F$5000,'Edad y sexo'!$B$2:$B$5000,Visor!$Q$7,'Edad y sexo'!$C$2:$C$5000,"NI",'Edad y sexo'!$D$2:$D$5000,Visor!$B151,'Edad y sexo'!$E$2:$E$5000,"Dep_sec_priv") -> 0 | O151: =SUMIFS('Edad y sexo'!$F$2:$F$5000,'Edad y sexo'!$B$2:$B$5000,Visor!$Q$7,'Edad y sexo'!$C$2:$C$5000,"M",'Edad y sexo'!$D$2:$D$5000,Visor!$B151,'Edad y sexo'!$E$2:$E$5000,"Independiente") -> 16487 | R151: =SUMIFS('Edad y sexo'!$F$2:$F$5000,'Edad y sexo'!$B$2:$B$5000,Visor!$Q$7,'Edad y sexo'!$C$2:$C$5000,"F",'Edad y sexo'!$D$2:$D$5000,Visor!$B151,'Edad y sexo'!$E$2:$E$5000,"Independiente") -> 13501 | U151: =SUMIFS('Edad y sexo'!$F$2:$F$5000,'Edad y sexo'!$B$2:$B$5000,Visor!$Q$7,'Edad y sexo'!$C$2:$C$5000,"NI",'Edad y sexo'!$D$2:$D$5000,Visor!$B151,'Edad y sexo'!$E$2:$E$5000,"Independiente") -> 0
B152: 50-55 | F152: =SUMIFS('Edad y sexo'!$F$2:$F$5000,'Edad y sexo'!$B$2:$B$5000,Visor!$Q$7,'Edad y sexo'!$C$2:$C$5000,"M",'Edad y sexo'!$D$2:$D$5000,Visor!$B152,'Edad y sexo'!$E$2:$E$5000,"Dep_sec_priv") -> 75764 | I152: =SUMIFS('Edad y sexo'!$F$2:$F$5000,'Edad y sexo'!$B$2:$B$5000,Visor!$Q$7,'Edad y sexo'!$C$2:$C$5000,"F",'Edad y sexo'!$D$2:$D$5000,Visor!$B152,'Edad y sexo'!$E$2:$E$5000,"Dep_sec_priv") -> 48004 | L152: =SUMIFS('Edad y sexo'!$F$2:$F$5000,'Edad y sexo'!$B$2:$B$5000,Visor!$Q$7,'Edad y sexo'!$C$2:$C$5000,"NI",'Edad y sexo'!$D$2:$D$5000,Visor!$B152,'Edad y sexo'!$E$2:$E$5000,"Dep_sec_priv") -> 0 | O152: =SUMIFS('Edad y sexo'!$F$2:$F$5000,'Edad y sexo'!$B$2:$B$5000,Visor!$Q$7,'Edad y sexo'!$C$2:$C$5000,"M",'Edad y sexo'!$D$2:$D$5000,Visor!$B152,'Edad y sexo'!$E$2:$E$5000,"Independiente") -> 17613 | R152: =SUMIFS('Edad y sexo'!$F$2:$F$5000,'Edad y sexo'!$B$2:$B$5000,Visor!$Q$7,'Edad y sexo'!$C$2:$C$5000,"F",'Edad y sexo'!$D$2:$D$5000,Visor!$B152,'Edad y sexo'!$E$2:$E$5000,"Independiente") -> 14163 | U152: =SUMIFS('Edad y sexo'!$F$2:$F$5000,'Edad y sexo'!$B$2:$B$5000,Visor!$Q$7,'Edad y sexo'!$C$2:$C$5000,"NI",'Edad y sexo'!$D$2:$D$5000,Visor!$B152,'Edad y sexo'!$E$2:$E$5000,"Independiente") -> 0
B153: 55-60 | F153: =SUMIFS('Edad y sexo'!$F$2:$F$5000,'Edad y sexo'!$B$2:$B$5000,Visor!$Q$7,'Edad y sexo'!$C$2:$C$5000,"M",'Edad y sexo'!$D$2:$D$5000,Visor!$B153,'Edad y sexo'!$E$2:$E$5000,"Dep_sec_priv") -> 65777 | I153: =SUMIFS('Edad y sexo'!$F$2:$F$5000,'Edad y sexo'!$B$2:$B$5000,Visor!$Q$7,'Edad y sexo'!$C$2:$C$5000,"F",'Edad y sexo'!$D$2:$D$5000,Visor!$B153,'Edad y sexo'!$E$2:$E$5000,"Dep_sec_priv") -> 32096 | L153: =SUMIFS('Edad y sexo'!$F$2:$F$5000,'Edad y sexo'!$B$2:$B$5000,Visor!$Q$7,'Edad y sexo'!$C$2:$C$5000,"NI",'Edad y sexo'!$D$2:$D$5000,Visor!$B153,'Edad y sexo'!$E$2:$E$5000,"Dep_sec_priv") -> 0 | O153: =SUMIFS('Edad y sexo'!$F$2:$F$5000,'Edad y sexo'!$B$2:$B$5000,Visor!$Q$7,'Edad y sexo'!$C$2:$C$5000,"M",'Edad y sexo'!$D$2:$D$5000,Visor!$B153,'Edad y sexo'!$E$2:$E$5000,"Independiente") -> 19605 | R153: =SUMIFS('Edad y sexo'!$F$2:$F$5000,'Edad y sexo'!$B$2:$B$5000,Visor!$Q$7,'Edad y sexo'!$C$2:$C$5000,"F",'Edad y sexo'!$D$2:$D$5000,Visor!$B153,'Edad y sexo'!$E$2:$E$5000,"Independiente") -> 15542 | U153: =SUMIFS('Edad y sexo'!$F$2:$F$5000,'Edad y sexo'!$B$2:$B$5000,Visor!$Q$7,'Edad y sexo'!$C$2:$C$5000,"NI",'Edad y sexo'!$D$2:$D$5000,Visor!$B153,'Edad y sexo'!$E$2:$E$5000,"Independiente") -> 0 | X153: Piramided independientes
B154: 60-65 | F154: =SUMIFS('Edad y sexo'!$F$2:$F$5000,'Edad y sexo'!$B$2:$B$5000,Visor!$Q$7,'Edad y sexo'!$C$2:$C$5000,"M",'Edad y sexo'!$D$2:$D$5000,Visor!$B154,'Edad y sexo'!$E$2:$E$5000,"Dep_sec_priv") -> 37052 | I154: =SUMIFS('Edad y sexo'!$F$2:$F$5000,'Edad y sexo'!$B$2:$B$5000,Visor!$Q$7,'Edad y sexo'!$C$2:$C$5000,"F",'Edad y sexo'!$D$2:$D$5000,Visor!$B154,'Edad y sexo'!$E$2:$E$5000,"Dep_sec_priv") -> 11896 | L154: =SUMIFS('Edad y sexo'!$F$2:$F$5000,'Edad y sexo'!$B$2:$B$5000,Visor!$Q$7,'Edad y sexo'!$C$2:$C$5000,"NI",'Edad y sexo'!$D$2:$D$5000,Visor!$B154,'Edad y sexo'!$E$2:$E$5000,"Dep_sec_priv") -> 0 | O154: =SUMIFS('Edad y sexo'!$F$2:$F$5000,'Edad y sexo'!$B$2:$B$5000,Visor!$Q$7,'Edad y sexo'!$C$2:$C$5000,"M",'Edad y sexo'!$D$2:$D$5000,Visor!$B154,'Edad y sexo'!$E$2:$E$5000,"Independiente") -> 16395 | R154: =SUMIFS('Edad y sexo'!$F$2:$F$5000,'Edad y sexo'!$B$2:$B$5000,Visor!$Q$7,'Edad y sexo'!$C$2:$C$5000,"F",'Edad y sexo'!$D$2:$D$5000,Visor!$B154,'Edad y sexo'!$E$2:$E$5000,"Independiente") -> 12112 | U154: =SUMIFS('Edad y sexo'!$F$2:$F$5000,'Edad y sexo'!$B$2:$B$5000,Visor!$Q$7,'Edad y sexo'!$C$2:$C$5000,"NI",'Edad y sexo'!$D$2:$D$5000,Visor!$B154,'Edad y sexo'!$E$2:$E$5000,"Independiente") -> 0
B155: 65-70 | F155: =SUMIFS('Edad y sexo'!$F$2:$F$5000,'Edad y sexo'!$B$2:$B$5000,Visor!$Q$7,'Edad y sexo'!$C$2:$C$5000,"M",'Edad y sexo'!$D$2:$D$5000,Visor!$B155,'Edad y sexo'!$E$2:$E$5000,"Dep_sec_priv") -> 10781 | I155: =SUMIFS('Edad y sexo'!$F$2:$F$5000,'Edad y sexo'!$B$2:$B$5000,Visor!$Q$7,'Edad y sexo'!$C$2:$C$5000,"F",'Edad y sexo'!$D$2:$D$5000,Visor!$B155,'Edad y sexo'!$E$2:$E$5000,"Dep_sec_priv") -> 4633 | L155: =SUMIFS('Edad y sexo'!$F$2:$F$5000,'Edad y sexo'!$B$2:$B$5000,Visor!$Q$7,'Edad y sexo'!$C$2:$C$5000,"NI",'Edad y sexo'!$D$2:$D$5000,Visor!$B155,'Edad y sexo'!$E$2:$E$5000,"Dep_sec_priv") -> 0 | O155: =SUMIFS('Edad y sexo'!$F$2:$F$5000,'Edad y sexo'!$B$2:$B$5000,Visor!$Q$7,'Edad y sexo'!$C$2:$C$5000,"M",'Edad y sexo'!$D$2:$D$5000,Visor!$B155,'Edad y sexo'!$E$2:$E$5000,"Independiente") -> 10168 | R155: =SUMIFS('Edad y sexo'!$F$2:$F$5000,'Edad y sexo'!$B$2:$B$5000,Visor!$Q$7,'Edad y sexo'!$C$2:$C$5000,"F",'Edad y sexo'!$D$2:$D$5000,Visor!$B155,'Edad y sexo'!$E$2:$E$5000,"Independiente") -> 9559 | U155: =SUMIFS('Edad y sexo'!$F$2:$F$5000,'Edad y sexo'!$B$2:$B$5000,Visor!$Q$7,'Edad y sexo'!$C$2:$C$5000,"NI",'Edad y sexo'!$D$2:$D$5000,Visor!$B155,'Edad y sexo'!$E$2:$E$5000,"Independiente") -> 0
B156: 70-75 | F156: =SUMIFS('Edad y sexo'!$F$2:$F$5000,'Edad y sexo'!$B$2:$B$5000,Visor!$Q$7,'Edad y sexo'!$C$2:$C$5000,"M",'Edad y sexo'!$D$2:$D$5000,Visor!$B156,'Edad y sexo'!$E$2:$E$5000,"Dep_sec_priv") -> 3434 | I156: =SUMIFS('Edad y sexo'!$F$2:$F$5000,'Edad y sexo'!$B$2:$B$5000,Visor!$Q$7,'Edad y sexo'!$C$2:$C$5000,"F",'Edad y sexo'!$D$2:$D$5000,Visor!$B156,'Edad y sexo'!$E$2:$E$5000,"Dep_sec_priv") -> 1741 | L156: =SUMIFS('Edad y sexo'!$F$2:$F$5000,'Edad y sexo'!$B$2:$B$5000,Visor!$Q$7,'Edad y sexo'!$C$2:$C$5000,"NI",'Edad y sexo'!$D$2:$D$5000,Visor!$B156,'Edad y sexo'!$E$2:$E$5000,"Dep_sec_priv") -> 0 | O156: =SUMIFS('Edad y sexo'!$F$2:$F$5000,'Edad y sexo'!$B$2:$B$5000,Visor!$Q$7,'Edad y sexo'!$C$2:$C$5000,"M",'Edad y sexo'!$D$2:$D$5000,Visor!$B156,'Edad y sexo'!$E$2:$E$5000,"Independiente") -> 6092 | R156: =SUMIFS('Edad y sexo'!$F$2:$F$5000,'Edad y sexo'!$B$2:$B$5000,Visor!$Q$7,'Edad y sexo'!$C$2:$C$5000,"F",'Edad y sexo'!$D$2:$D$5000,Visor!$B156,'Edad y sexo'!$E$2:$E$5000,"Independiente") -> 6731 | U156: =SUMIFS('Edad y sexo'!$F$2:$F$5000,'Edad y sexo'!$B$2:$B$5000,Visor!$Q$7,'Edad y sexo'!$C$2:$C$5000,"NI",'Edad y sexo'!$D$2:$D$5000,Visor!$B156,'Edad y sexo'!$E$2:$E$5000,"Independiente") -> 0
B157: 75-80 | F157: =SUMIFS('Edad y sexo'!$F$2:$F$5000,'Edad y sexo'!$B$2:$B$5000,Visor!$Q$7,'Edad y sexo'!$C$2:$C$5000,"M",'Edad y sexo'!$D$2:$D$5000,Visor!$B157,'Edad y sexo'!$E$2:$E$5000,"Dep_sec_priv") -> 1148 | I157: =SUMIFS('Edad y sexo'!$F$2:$F$5000,'Edad y sexo'!$B$2:$B$5000,Visor!$Q$7,'Edad y sexo'!$C$2:$C$5000,"F",'Edad y sexo'!$D$2:$D$5000,Visor!$B157,'Edad y sexo'!$E$2:$E$5000,"Dep_sec_priv") -> 677 | L157: =SUMIFS('Edad y sexo'!$F$2:$F$5000,'Edad y sexo'!$B$2:$B$5000,Visor!$Q$7,'Edad y sexo'!$C$2:$C$5000,"NI",'Edad y sexo'!$D$2:$D$5000,Visor!$B157,'Edad y sexo'!$E$2:$E$5000,"Dep_sec_priv") -> 0 | O157: =SUMIFS('Edad y sexo'!$F$2:$F$5000,'Edad y sexo'!$B$2:$B$5000,Visor!$Q$7,'Edad y sexo'!$C$2:$C$5000,"M",'Edad y sexo'!$D$2:$D$5000,Visor!$B157,'Edad y sexo'!$E$2:$E$5000,"Independiente") -> 3429 | R157: =SUMIFS('Edad y sexo'!$F$2:$F$5000,'Edad y sexo'!$B$2:$B$5000,Visor!$Q$7,'Edad y sexo'!$C$2:$C$5000,"F",'Edad y sexo'!$D$2:$D$5000,Visor!$B157,'Edad y sexo'!$E$2:$E$5000,"Independiente") -> 4941 | U157: =SUMIFS('Edad y sexo'!$F$2:$F$5000,'Edad y sexo'!$B$2:$B$5000,Visor!$Q$7,'Edad y sexo'!$C$2:$C$5000,"NI",'Edad y sexo'!$D$2:$D$5000,Visor!$B157,'Edad y sexo'!$E$2:$E$5000,"Independiente") -> 0
B158: Más de 80 años | F158: =SUMIFS('Edad y sexo'!$F$2:$F$5000,'Edad y sexo'!$B$2:$B$5000,Visor!$Q$7,'Edad y sexo'!$C$2:$C$5000,"M",'Edad y sexo'!$D$2:$D$5000,Visor!$B158,'Edad y sexo'!$E$2:$E$5000,"Dep_sec_priv") -> 1011 | I158: =SUMIFS('Edad y sexo'!$F$2:$F$5000,'Edad y sexo'!$B$2:$B$5000,Visor!$Q$7,'Edad y sexo'!$C$2:$C$5000,"F",'Edad y sexo'!$D$2:$D$5000,Visor!$B158,'Edad y sexo'!$E$2:$E$5000,"Dep_sec_priv") -> 668 | L158: =SUMIFS('Edad y sexo'!$F$2:$F$5000,'Edad y sexo'!$B$2:$B$5000,Visor!$Q$7,'Edad y sexo'!$C$2:$C$5000,"NI",'Edad y sexo'!$D$2:$D$5000,Visor!$B158,'Edad y sexo'!$E$2:$E$5000,"Dep_sec_priv") -> 0 | O158: =SUMIFS('Edad y sexo'!$F$2:$F$5000,'Edad y sexo'!$B$2:$B$5000,Visor!$Q$7,'Edad y sexo'!$C$2:$C$5000,"M",'Edad y sexo'!$D$2:$D$5000,Visor!$B158,'Edad y sexo'!$E$2:$E$5000,"Independiente") -> 3521 | R158: =SUMIFS('Edad y sexo'!$F$2:$F$5000,'Edad y sexo'!$B$2:$B$5000,Visor!$Q$7,'Edad y sexo'!$C$2:$C$5000,"F",'Edad y sexo'!$D$2:$D$5000,Visor!$B158,'Edad y sexo'!$E$2:$E$5000,"Independiente") -> 6930 | U158: =SUMIFS('Edad y sexo'!$F$2:$F$5000,'Edad y sexo'!$B$2:$B$5000,Visor!$Q$7,'Edad y sexo'!$C$2:$C$5000,"NI",'Edad y sexo'!$D$2:$D$5000,Visor!$B158,'Edad y sexo'!$E$2:$E$5000,"Independiente") -> 0
B159: No identificado | F159: =SUMIFS('Edad y sexo'!$F$2:$F$5000,'Edad y sexo'!$B$2:$B$5000,Visor!$Q$7,'Edad y sexo'!$C$2:$C$5000,"M",'Edad y sexo'!$D$2:$D$5000,"NI",'Edad y sexo'!$E$2:$E$5000,"Dep_sec_priv") -> 5 | I159: =SUMIFS('Edad y sexo'!$F$2:$F$5000,'Edad y sexo'!$B$2:$B$5000,Visor!$Q$7,'Edad y sexo'!$C$2:$C$5000,"F",'Edad y sexo'!$D$2:$D$5000,"NI",'Edad y sexo'!$E$2:$E$5000,"Dep_sec_priv") -> 1 | L159: =SUMIFS('Edad y sexo'!$F$2:$F$5000,'Edad y sexo'!$B$2:$B$5000,Visor!$Q$7,'Edad y sexo'!$C$2:$C$5000,"NI",'Edad y sexo'!$D$2:$D$5000,"NI",'Edad y sexo'!$E$2:$E$5000,"Dep_sec_priv") -> 8846 | O159: =SUMIFS('Edad y sexo'!$F$2:$F$5000,'Edad y sexo'!$B$2:$B$5000,Visor!$Q$7,'Edad y sexo'!$C$2:$C$5000,"M",'Edad y sexo'!$D$2:$D$5000,"NI",'Edad y sexo'!$E$2:$E$5000,"Independiente") -> 2 | R159: =SUMIFS('Edad y sexo'!$F$2:$F$5000,'Edad y sexo'!$B$2:$B$5000,Visor!$Q$7,'Edad y sexo'!$C$2:$C$5000,"F",'Edad y sexo'!$D$2:$D$5000,"NI",'Edad y sexo'!$E$2:$E$5000,"Independiente") -> 1 | U159: =SUMIFS('Edad y sexo'!$F$2:$F$5000,'Edad y sexo'!$B$2:$B$5000,Visor!$Q$7,'Edad y sexo'!$C$2:$C$5000,"NI",'Edad y sexo'!$D$2:$D$5000,"NI",'Edad y sexo'!$E$2:$E$5000,"Independiente") -> 743
B160: Total | F160: =SUM(F145:H159) -> 953378 | I160: =SUM(I145:K159) -> 677928 | L160: =SUM(L145:N159) -> 8846 | O160: =SUM(O145:Q159) -> 167739 | R160: =SUM(R145:T159) -> 154285 | U160: =SUM(U145:W159) -> 743
C162: *Ubicación basada en la ubicación de los cotizantes
L164: =J3 -> Informe Mensual de las cotizaciones
L166: =K53 -> Fecha de corte: 22 de Jun de 2022 | AB166: Pg. 4
L168: Departamento | Q168: =Q55 -> ANTIOQUIA
L169: Municipio | Q169: =Q56 -> MEDELLÍN
C171: ="Resumen municipal "&Q168&":" -> Resumen municipal ANTIOQUIA:
B174: =Q168 -> ANTIOQUIA
B175: Municipio | H175: Apt.Privados | L175: % | M175: Dep.Privados (Ubicación del aportante) | Q175: % | R175: Dep.Privados (Ubicación del cotizante) | V175: % | W175: Independientes | AA175: %
A176: =IF(AND(B177="",B175<>"",B176<>""),1,0) -> 0 | B176: =IF(Tamaño!BF2=0,"",PROPER(Tamaño!BF2)) -> Medellín | H176: =IF(B176="","",Tamaño!BG2) -> 67236 | L176: =H176/SUM($H$176:$K$201) -> 0.631644214 | M176: =IF(B176="","",Tamaño!BJ2) -> 1141606 | Q176: =M176/SUM($M$176:$P$201) -> 0.6721196621 | R176: =IF(B176="","",Tamaño!BH2) -> 1161414 | V176: =R176/SUM($R$176:$U$201) -> 0.7081136382 | W176: =IF(B176="","",Tamaño!BI2) -> 196138 | AA176: =W176/SUM($W$176:$Z$201) -> 0.6076767451
A177: 0 | B177: =IF(OR(B176="",Tamaño!BF3=0),"",PROPER(Tamaño!BF3)) -> Envigado | H177: =IF(B177="","",Tamaño!BG3) -> 6855 | L177: =IF(H177="","",H177/SUM($H$176:$K$201)) -> 0.06439885012 | M177: =IF(B177="","",Tamaño!BJ3) -> 114054 | Q177: =IF(H177="","",M177/SUM($M$176:$P$201)) -> 0.06714920554 | R177: =IF(B177="","",Tamaño!BH3) -> 40742 | V177: =IF(R177="","",R177/SUM($R$176:$U$201)) -> 0.02484038065 | W177: =IF(B177="","",Tamaño!BI3) -> 16811 | AA177: =IF(W177="","",W177/SUM($W$176:$Z$201)) -> 0.05208401107
A178: 0 | B178: =IF(OR(B177="",Tamaño!BF4=0),"",PROPER(Tamaño!BF4)) -> Itagui | H178: =IF(B178="","",Tamaño!BG4) -> 4228 | L178: =IF(H178="","",H178/SUM($H$176:$K$201)) -> 0.03971967007 | M178: =IF(B178="","",Tamaño!BJ4) -> 92649 | Q178: =IF(H178="","",M178/SUM($M$176:$P$201)) -> 0.05454702811 | R178: =IF(B178="","",Tamaño!BH4) -> 51057 | V178: 0.03112943191 | W178: =IF(B178="","",Tamaño!BI4) -> 10503 | AA178: 0.03254050135
A179: 0 | B179: =IF(OR(B178="",Tamaño!BF5=0),"",PROPER(Tamaño!BF5)) -> Rionegro | H179: =IF(B179="","",Tamaño!BG5) -> 3355 | L179: 0.03151832854 | M179: =IF(B179="","",Tamaño!BJ5) -> 48286 | Q179: 0.02842834569 | R179: =IF(B179="","",Tamaño!BH5) -> 53536 | V179: 0.03264087719 | W179: =IF(B179="","",Tamaño!BI5) -> 10257 | AA179: 0.03177834165
A180: 0 | B180: =IF(OR(B179="",Tamaño!BF6=0),"",PROPER(Tamaño!BF6)) -> Bello | H180: =IF(B180="","",Tamaño!BG6) -> 2959 | L180: 0.02779813239 | M180: =IF(B180="","",Tamaño!BJ6) -> 45305 | Q180: 0.02667328421 | R180: =IF(B180="","",Tamaño!BH6) -> 38376 | V180: 0.02339783142 | W180: =IF(B180="","",Tamaño!BI6) -> 12963 | AA180: 0.04016209836
A181: 0 | B181: =IF(OR(B180="",Tamaño!BF7=0),"",PROPER(Tamaño!BF7)) -> Sabaneta | H181: =IF(B181="","",Tamaño!BG7) -> 2169 | L181: 0.02037652894 | M181: =IF(B181="","",Tamaño!BJ7) -> 37785 | Q181: 0.02224588994 | R181: =IF(B181="","",Tamaño!BH7) -> 24343 | V181: 0.01484191709 | W181: =IF(B181="","",Tamaño!BI7) -> 7232 | AA181: 0.02240625591
A182: =IF(AND(B183="",B181<>"",B182<>""),1,0) -> 0 | B182: =IF(OR(B181="",Tamaño!BF8=0),"",PROPER(Tamaño!BF8)) -> Apartadó | H182: =IF(B182="","",Tamaño!BG8) -> 1452 | L182: 0.01364071924 | M182: =IF(B182="","",Tamaño!BJ8) -> 21338 | Q182: 0.01256273123 | R182: =IF(B182="","",Tamaño!BH8) -> 35764 | V182: 0.02180529609 | W182: =IF(B182="","",Tamaño!BI8) -> 3954 | AA182: 0.01225032299
A183: 0 | B183: =IF(OR(B182="",Tamaño!BF9=0),"",PROPER(Tamaño!BF9)) -> La Ceja | H183: =IF(B183="","",Tamaño!BG9) -> 1196 | L183: 0.01123574395 | M183: =IF(B183="","",Tamaño!BJ9) -> 15027 | Q183: 0.008847134793 | R183: =IF(B183="","",Tamaño!BH9) -> 13907 | V183: 0.008479092182 | W183: =IF(B183="","",Tamaño!BI9) -> 3883 | AA183: 0.01203035007
A184: 0 | B184: =IF(OR(B183="",Tamaño!BF10=0),"",PROPER(Tamaño!BF10)) -> La Estrella | H184: =IF(B184="","",Tamaño!BG10) -> 1125 | L184: 0.01056873908 | M184: =IF(B184="","",Tamaño!BJ10) -> 25295 | Q184: 0.01489241196 | R184: =IF(B184="","",Tamaño!BH10) -> 16132 | V184: 0.009835673767 | W184: =IF(B184="","",Tamaño!BI10) -> 2804 | AA184: 0.0086873813
A185: 0 | B185: =IF(OR(B184="",Tamaño!BF11=0),"",PROPER(Tamaño!BF11)) -> Ciudad Bolívar | H185: =IF(B185="","",Tamaño!BG11) -> 1020 | L185: 0.009582323432 | M185: =IF(B185="","",Tamaño!BJ11) -> 6080 | Q185: 0.003579595364 | R185: =IF(B185="","",Tamaño!BH11) -> 1922 | V185: 0.00117184261 | W185: =IF(B185="","",Tamaño!BI11) -> 859 | AA185: 0.002661362531
A186: 0 | B186: =IF(OR(B185="",Tamaño!BF12=0),"",PROPER(Tamaño!BF12)) -> Caldas | H186: =IF(B186="","",Tamaño!BG12) -> 835 | L186: 0.007844353005 | M186: =IF(B186="","",Tamaño!BJ12) -> 9115 | Q186: 0.0053664493 | R186: =IF(B186="","",Tamaño!BH12) -> 8818 | V186: 0.005376330974 | W186: =IF(B186="","",Tamaño!BI12) -> 2724 | AA186: 0.008439524487
A187: 0 | B187: =IF(OR(B186="",Tamaño!BF13=0),"",PROPER(Tamaño!BF13)) -> Marinilla | H187: =IF(B187="","",Tamaño!BG13) -> 734 | L187: 0.006895515097 | M187: =IF(B187="","",Tamaño!BJ13) -> 10354 | Q187: 0.006095909606 | R187: =IF(B187="","",Tamaño!BH13) -> 10019 | V187: 0.00610858018 | W187: =IF(B187="","",Tamaño!BI13) -> 2589 | AA187: 0.008021266115
A188: 0 | B188: =IF(OR(B187="",Tamaño!BF14=0),"",PROPER(Tamaño!BF14)) -> El Carmen De Viboral | H188: =IF(B188="","",Tamaño!BG14) -> 698 | L188: 0.006557315446 | M188: =IF(B188="","",Tamaño!BJ14) -> 8184 | Q188: 0.00481832376 | R188: =IF(B188="","",Tamaño!BH14) -> 8624 | V188: 0.005258049254 | W188: =IF(B188="","",Tamaño!BI14) -> 2504 | AA188: 0.007757918251
A189: 0 | B189: =IF(OR(B188="",Tamaño!BF15=0),"",PROPER(Tamaño!BF15)) -> Copacabana | H189: =IF(B189="","",Tamaño!BG15) -> 692 | L189: 0.006500948838 | M189: =IF(B189="","",Tamaño!BJ15) -> 11338 | Q189: 0.006675238856 | R189: =IF(B189="","",Tamaño!BH15) -> 7849 | V189: 0.004785532073 | W189: =IF(B189="","",Tamaño!BI15) -> 2397 | AA189: 0.007426409763
A190: 0 | B190: =IF(OR(B189="",Tamaño!BF16=0),"",PROPER(Tamaño!BF16)) -> Retiro | H190: =IF(B190="","",Tamaño!BG16) -> 676 | L190: 0.006350637882 | M190: =IF(B190="","",Tamaño!BJ16) -> 3887 | Q190: 0.002288468286 | R190: =IF(B190="","",Tamaño!BH16) -> 4130 | V190: 0.002518059302 | W190: =IF(B190="","",Tamaño!BI16) -> 1523 | AA190: 0.00471857408
A191: 0 | B191: =IF(OR(B190="",Tamaño!BF17=0),"",PROPER(Tamaño!BF17)) -> Caucasia | H191: =IF(B191="","",Tamaño!BG17) -> 627 | L191: 0.00589031058 | M191: =IF(B191="","",Tamaño!BJ17) -> 6379 | Q191: 0.003755631386 | R191: =IF(B191="","",Tamaño!BH17) -> 9166 | V191: 0.005588506431 | W191: =IF(B191="","",Tamaño!BI17) -> 1812 | AA191: 0.005613956817
A192: 0 | B192: =IF(OR(B191="",Tamaño!BF18=0),"",PROPER(Tamaño!BF18)) -> Guarne | H192: =IF(B192="","",Tamaño!BG18) -> 581 | L192: 0.005458166582 | M192: =IF(B192="","",Tamaño!BJ18) -> 8474 | Q192: 0.004989061039 | R192: =IF(B192="","",Tamaño!BH18) -> 9435 | V192: 0.005752515621 | W192: =IF(B192="","",Tamaño!BI18) -> 1875 | AA192: 0.005809144057
A193: 0 | B193: =IF(OR(B192="",Tamaño!BF19=0),"",PROPER(Tamaño!BF19)) -> Santa Rosa De Osos | H193: =IF(B193="","",Tamaño!BG19) -> 543 | L193: 0.005101178062 | M193: =IF(B193="","",Tamaño!BJ19) -> 4982 | Q193: 0.002933148702 | R193: =IF(B193="","",Tamaño!BH19) -> 6323 | V193: 0.0038551305 | W193: =IF(B193="","",Tamaño!BI19) -> 1944 | AA193: 0.006022920559
A194: 0 | B194: =IF(OR(B193="",Tamaño!BF20=0),"",PROPER(Tamaño!BF20)) -> Turbo | H194: =IF(B194="","",Tamaño!BG20) -> 497 | L194: 0.004669034064 | M194: =IF(B194="","",Tamaño!BJ20) -> 4581 | Q194: 0.002697060257 | R194: =IF(B194="","",Tamaño!BH20) -> 7832 | V194: 0.00477516718 | W194: =IF(B194="","",Tamaño!BI20) -> 1343 | AA194: 0.00416089625
A195: 0 | B195: =IF(OR(B194="",Tamaño!BF21=0),"",PROPER(Tamaño!BF21)) -> Don Matías | H195: =IF(B195="","",Tamaño!BG21) -> 486 | L195: 0.004565695282 | M195: =IF(B195="","",Tamaño!BJ21) -> 3690 | Q195: 0.002172484687 | R195: =IF(B195="","",Tamaño!BH21) -> 3848 | V195: 0.002346124018 | W195: =IF(B195="","",Tamaño!BI21) -> 2026 | AA195: 0.006276973792
A196: 0 | B196: =IF(OR(B195="",Tamaño!BF22=0),"",PROPER(Tamaño!BF22)) -> Girardota | H196: =IF(B196="","",Tamaño!BG22) -> 441 | L196: 0.004142945719 | M196: =IF(B196="","",Tamaño!BJ22) -> 8499 | Q196: 0.00500377977 | R196: =IF(B196="","",Tamaño!BH22) -> 10646 | V196: 0.006490861823 | W196: =IF(B196="","",Tamaño!BI22) -> 1564 | AA196: 0.004845600696
A197: 0 | B197: =IF(OR(B196="",Tamaño!BF23=0),"",PROPER(Tamaño!BF23)) -> San Pedro De Los Milagros | H197: =IF(B197="","",Tamaño!BG23) -> 376 | L197: 0.003532307461 | M197: =IF(B197="","",Tamaño!BJ23) -> 2168 | Q197: 0.001276408347 | R197: =IF(B197="","",Tamaño!BH23) -> 3495 | V197: 0.002130900063 | W197: =IF(B197="","",Tamaño!BI23) -> 1179 | AA197: 0.003652789783
A198: 0 | B198: =IF(OR(B197="",Tamaño!BF24=0),"",PROPER(Tamaño!BF24)) -> Puerto Berrío | H198: =IF(B198="","",Tamaño!BG24) -> 370 | L198: 0.003475940853 | M198: =IF(B198="","",Tamaño!BJ24) -> 3771 | Q198: 0.002220173375 | R198: =IF(B198="","",Tamaño!BH24) -> 5961 | V198: 0.003634419249 | W198: =IF(B198="","",Tamaño!BI24) -> 1002 | AA198: 0.003104406584
A199: 0 | B199: =IF(OR(B198="",Tamaño!BF25=0),"",PROPER(Tamaño!BF25)) -> El Santuario | H199: =IF(B199="","",Tamaño!BG25) -> 359 | L199: 0.003372602071 | M199: =IF(B199="","",Tamaño!BJ25) -> 3403 | Q199: 0.002003513655 | R199: =IF(B199="","",Tamaño!BH25) -> 3794 | V199: 0.00231320024 | W199: =IF(B199="","",Tamaño!BI25) -> 1513 | AA199: 0.004687591978
A200: 0 | B200: =IF(OR(B199="",Tamaño!BF26=0),"",PROPER(Tamaño!BF26)) -> Yarumal | H200: =IF(B200="","",Tamaño!BG26) -> 350 | L200: 0.003288052158 | M200: =IF(B200="","",Tamaño!BJ26) -> 2431 | Q200: 0.001431249397 | R200: =IF(B200="","",Tamaño!BH26) -> 3240 | V200: 0.001975426668 | W200: =IF(B200="","",Tamaño!BI26) -> 1377 | AA200: 0.004266235396
B201: =IF(Lista!J3>25,"Otros","") -> Otros | H201: =IF(B201="Otros",SUM(Tamaño!$BG$27:$BG$150),"") -> 6586 | L201: 0.06187174718 | M201: =IF(B201="","",SUM(Tamaño!BJ27:BJ150)) -> 59835 | Q201: 0.03522781063 | R201: =IF(B201="Otros",R14-SUM(R176:U200),"") -> 99779 | V201: 0.06083521527 | W201: =IF(B201="Otros",W14-SUM(W176:Z200),"") -> 29991 | AA201: 0.09291842103
C202: *Para la columna de Apt.Privados y Dep.Privados/Apt se usa la ubicación del aportante, para las demas columnas la ubicación del cotizante
C204: ="Resumen de las novedades Dep.Privados e Independientes mes "&Lista!R2 -> Resumen de las novedades Dep.Privados e Independientes mes Abril
C219: *Ubicación basada en la ubicación de los cotizantes
C220: * Nota: Corresponden a los asociados a aportantes del sector privado, es decir los tipos de cotizantes 1, 2 o 22

Sheet Cotizantes Mes (hidden)
A1: Divipola | B1: Llave | C1: Tipologia | D1: Depto | E1: Mpio | F1: Mpio_0 | G1: Depto_Nom | H1: Mpio_Nom | I1: Tipologia_MES | J1: Ingresos_MES | K1: Retiros_MES | L1: Total_relaciones_laborales_3_20 | M1: Total_relaciones_laborales_4_20 | N1: Total_relaciones_laborales_5_20 | O1: Total_relaciones_laborales_6_20 | P1: Total_relaciones_laborales_7_20 | Q1: Total_relaciones_laborales_8_20 | R1: Total_relaciones_laborales_9_20 | S1: Total_relaciones_laborales_10_20 | T1: Total_relaciones_laborales_11_20 | U1: Total_relaciones_laborales_12_20 | V1: Total_relaciones_laborales_1_21 | W1: Total_relaciones_laborales_2_21 | X1: Total_relaciones_laborales_3_21 | Y1: Total_relaciones_laborales_4_21 | Z1: Total_relaciones_laborales_5_21 | AA1: Total_relaciones_laborales_6_21 | AB1: Total_relaciones_laborales_7_21 | AC1: Total_relaciones_laborales_8_21 | AD1: Total_relaciones_laborales_9_21 | AE1: Total_relaciones_laborales_10_21 | AF1: Total_relaciones_laborales_11_21 | AG1: Total_relaciones_laborales_12_21 | AH1: Total_relaciones_laborales_1_22 | AI1: Total_relaciones_laborales_2_22 | AJ1: Total_relaciones_laborales_3_22 | AK1: Total_relaciones_laborales_4_22 | AQ1: =A1 -> Divipola | AR1: =B1 -> Llave | AS1: Tipologia | AT1: Depto | AU1: Mpio | AV1: Mpio_0 | AW1: Depto_Nom | AX1: Mpio_Nom | AY1: Tipologia_MES | AZ1: Ingresos_MES | BA1: Retiros_MES | BB1: =L1 -> Total_relaciones_laborales_3_20 | BC1: =M1 -> Total_relaciones_laborales_4_20 | BD1: =N1 -> Total_relaciones_laborales_5_20 | BE1: =O1 -> Total_relaciones_laborales_6_20 | BF1: =P1 -> Total_relaciones_laborales_7_20 | BG1: =Q1 -> Total_relaciones_laborales_8_20 | BH1: =R1 -> Total_relaciones_laborales_9_20 | BI1: =S1 -> Total_relaciones_laborales_10_20 | BJ1: =T1 -> Total_relaciones_laborales_11_20 | BK1: =U1 -> Total_relaciones_laborales_12_20 | BL1: =V1 -> Total_relaciones_laborales_1_21 | BM1: =W1 -> Total_relaciones_laborales_2_21 | BN1: =X1 -> Total_relaciones_laborales_3_21 | BO1: =Y1 -> Total_relaciones_laborales_4_21 | BP1: =Z1 -> Total_relaciones_laborales_5_21 | BQ1: =AA1 -> Total_relaciones_laborales_6_21 | BR1: =AB1 -> Total_relaciones_laborales_7_21 | BS1: =AC1 -> Total_relaciones_laborales_8_21 | BT1: =AD1 -> Total_relaciones_laborales_9_21 | BU1: =AE1 -> Total_relaciones_laborales_10_21 | BV1: =AF1 -> Total_relaciones_laborales_11_21 | BW1: =AG1 -> Total_relaciones_laborales_12_21 | BX1: =AH1 -> Total_relaciones_laborales_1_22 | BY1: =AI1 -> Total_relaciones_laborales_2_22 | BZ1: =AJ1 -> Total_relaciones_laborales_3_22 | CA1: =AK1 -> Total_relaciones_laborales_4_22
A2: Sin Info | B2: Sin Info1 | C2: 1 | D2: Sin Info | E2: Sin Info | F2: Sin Info | G2: Sin Info | H2: Sin Info | I2: Dep_No_priv | J2: 0 | K2: 0 | L2: 5 | M2: 5 | N2: 6 | O2: 6 | P2: 5 | Q2: 6 | R2: 4 | S2: 8 | T2: 7 | U2: 8 | V2: 9 | W2: 8 | X2: 10 | Y2: 8 | Z2: 8 | AA2: 8 | AB2: 9 | AC2: 8 | AD2: 7 | AE2: 9 | AF2: 9 | AG2: 16 | AH2: 2 | AI2: 1 | AJ2: 26 | AK2: 83 | AL2: =IF(SUM(L2:AK2)=0,"VERDADERO","FALSO") -> FALSO | AQ2: =_xlfn._xlws.FILTER($A$2:$AK$4989,$G$2:$G$4989=Visor!$Q$7,"") -> 5001 | AR2: 50011 | AS2: 1 | AT2: 5 | AU2: 1 | AV2: 001 | AW2: ANTIOQUIA | AX2: MEDELLÍN | AY2: Dep_No_priv | AZ2: 14239 | BA2: 8271 | BB2: 163974 | BC2: 147590 | BD2: 148310 | BE2: 153799 | BF2: 157199 | BG2: 162955 | BH2: 164600 | BI2: 158454 | BJ2: 152185 | BK2: 141512 | BL2: 135841 | BM2: 151291 | BN2: 159711 | BO2: 158948 | BP2: 162455 | BQ2: 162283 | BR2: 158706 | BS2: 170597 | BT2: 177876 | BU2: 180233 | BV2: 174656 | BW2: 147588 | BX2: 141021 | BY2: 160587 | BZ2: 171449 | CA2: 166544 | CB2: =SUMIFS(CA2:CA379,AS2:AS379,3) -> 322767
A3: Sin Info | B3: Sin Info2 | C3: 2 | D3: Sin Info | E3: Sin Info | F3: Sin Info | G3: Sin Info | H3: Sin Info | I3: Dep_sec_priv | J3: 162 | K3: 136 | L3: 438 | M3: 322 | N3: 414 | O3: 388 | P3: 436 | Q3: 433 | R3: 434 | S3: 444 | T3: 365 | U3: 502 | V3: 457 | W3: 431 | X3: 486 | Y3: 447 | Z3: 359 | AA3: 397 | AB3: 412 | AC3: 419 | AD3: 514 | AE3: 525 | AF3: 541 | AG3: 530 | AH3: 574 | AI3: 534 | AJ3: 669 | AK3: 590 | AL3: =IF(SUM(L3:AK3)=0,"VERDADERO","FALSO") -> FALSO | AQ3: 5318 | AR3: 53182 | AS3: 2 | AT3: 5 | AU3: 318 | AV3: 318 | AW3: ANTIOQUIA | AX3: GUARNE | AY3: Dep_sec_priv | AZ3: 730 | BA3: 703 | BB3: 7402 | BC3: 7153 | BD3: 7188 | BE3: 7150 | BF3: 7169 | BG3: 7196 | BH3: 7410 | BI3: 7609 | BJ3: 7753 | BK3: 7941 | BL3: 7967 | BM3: 8134 | BN3: 8353 | BO3: 8560 | BP3: 8665 | BQ3: 8687 | BR3: 8825 | BS3: 8945 | BT3: 8795 | BU3: 8968 | BV3: 9045 | BW3: 9040 | BX3: 9050 | BY3: 9215 | BZ3: 9419 | CA3: 9435 | CH3: ="Variaciones de "&PROPER(Visor!$Q$7) -> Variaciones de Antioquia
A4: Sin Info | B4: Sin Info3 | C4: 3 | D4: Sin Info | E4: Sin Info | F4: Sin Info | G4: Sin Info | H4: Sin Info | I4: Independiente | J4: 751 | K4: 474 | L4: 21018 | M4: 20900 | N4: 21040 | O4: 21187 | P4: 21347 | Q4: 21504 | R4: 21322 | S4: 21396 | T4: 21519 | U4: 21604 | V4: 21747 | W4: 22013 | X4: 22222 | Y4: 22244 | Z4: 22366 | AA4: 22560 | AB4: 22793 | AC4: 23013 | AD4: 23471 | AE4: 23649 | AF4: 23511 | AG4: 23665 | AH4: 23818 | AI4: 23803 | AJ4: 23977 | AK4: 23545 | AL4: FALSO | AQ4: 5001 | AR4: 50012 | AS4: 2 | AT4: 5 | AU4: 1 | AV4: 001 | AW4: ANTIOQUIA | AX4: MEDELLÍN | AY4: Dep_sec_priv | AZ4: 87177 | BA4: 81359 | BB4: 1093588 | BC4: 1011688 | BD4: 1009718 | BE4: 1013116 | BF4: 1019221 | BG4: 1022409 | BH4: 1042923 | BI4: 1060816 | BJ4: 1073647 | BK4: 1069593 | BL4: 1055879 | BM4: 1078004 | BN4: 1092322 | BO4: 1091227 | BP4: 1093979 | BQ4: 1101166 | BR4: 1113952 | BS4: 1129031 | BT4: 1142501 | BU4: 1150076 | BV4: 1160811 | BW4: 1144842 | BX4: 1136646 | BY4: 1156883 | BZ4: 1167383 | CA4: 1161414 | CH4: 2020-03-01 | CI4: 2020-04-01 | CJ4: 2020-05-01 | CK4: 2020-06-01 | CL4: 2020-07-01 | CM4: 2020-08-01 | CN4: 2020-09-01 | CO4: 2020-10-01 | CP4: 2020-11-01 | CQ4: 2020-12-01 | CR4: 2021-01-01 | CS4: 2021-02-01 | CT4: 2021-03-01 | CU4: 2021-04-01 | CV4: 2021-05-01 | CW4: 2021-06-01 | CX4: 2021-07-01 | CY4: 2021-08-01 | CZ4: 2021-09-01 | DA4: 2021-10-01 | DB4: 2021-11-01 | DC4: 2021-12-01 | DD4: 2022-01-01 | DE4: 2022-02-01 | DF4: 2022-03-01 | DL4: Dependientes | DN4: Dep. Privados | DP4: Independientes
A5: 5001 | B5: 50011 | C5: 1 | D5: 5 | E5: 1 | F5: 001 | G5: ANTIOQUIA | H5: MEDELLÍN | I5: Dep_No_priv | J5: 14239 | K5: 8271 | L5: 163974 | M5: 147590 | N5: 148310 | O5: 153799 | P5: 157199 | Q5: 162955 | R5: 164600 | S5: 158454 | T5: 152185 | U5: 141512 | V5: 135841 | W5: 151291 | X5: 159711 | Y5: 158948 | Z5: 162455 | AA5: 162283 | AB5: 158706 | AC5: 170597 | AD5: 177876 | AE5: 180233 | AF5: 174656 | AG5: 147588 | AH5: 141021 | AI5: 160587 | AJ5: 171449 | AK5: 166544 | AL5: FALSO | AQ5: 5400 | AR5: 54002 | AS5: 2 | AT5: 5 | AU5: 400 | AV5: 400 | AW5: ANTIOQUIA | AX5: LA UNIÓN | AY5: Dep_sec_priv | AZ5: 205 | BA5: 146 | BB5: 1902 | BC5: 1735 | BD5: 1729 | BE5: 1730 | BF5: 1788 | BG5: 1827 | BH5: 1864 | BI5: 1859 | BJ5: 1866 | BK5: 1824 | BL5: 1824 | BM5: 1891 | BN5: 1923 | BO5: 1944 | BP5: 1863 | BQ5: 1884 | BR5: 1911 | BS5: 1933 | BT5: 1951 | BU5: 2025 | BV5: 2076 | BW5: 2105 | BX5: 2197 | BY5: 2199 | BZ5: 2214 | CA5: 2193 | CG5: Independientes | CH5: =IFERROR(SUMIFS(BC$2:BC$600,$AS$2:$AS$600,3)/SUMIFS(BB$2:BB$600,$AS$2:$AS$600,3)-1,"") -> -0.03051981108 | CI5: =IFERROR(SUMIFS(BD$2:BD$600,$AS$2:$AS$600,3)/SUMIFS(BC$2:BC$600,$AS$2:$AS$600,3)-1,"") -> 0.007253785113 | CJ5: 0.01426500035 | CK5: 0.01173279055 | CL5: 0.01266321041 | CM5: 0.01866094358 | CN5: 0.01679277281 | CO5: 0.01300000962 | CP5: -0.007795530394 | CQ5: -0.04027955068 | CR5: 0.01953860171 | CS5: 0.01757258312 | CT5: 0.008980711662 | CU5: 0.007325192818 | CV5: 0.007079562297 | CW5: 0.003754442548 | CX5: 0.01300872864 | CY5: 0.009124672029 | CZ5: 0.007137909041 | DA5: 0.008099361868 | DB5: -0.01606557279 | DC5: -0.02385796416 | DD5: 0.02999586911 | DE5: 0.00158296595 | DF5: -0.02087972092 | DL5: ="∆ Anual "&MID(Lista!$R$2,1,3) -> ∆ Anual Abr | DM5: ="∆ Mensual "&MID(Lista!$R$2,1,3) -> ∆ Mensual Abr | DN5: ="∆ Anual "&MID(Lista!$R$2,1,3) -> ∆ Anual Abr | DO5: ="∆ Mensual "&MID(Lista!$R$2,1,3) -> ∆ Mensual Abr | DP5: ="∆ Anual "&MID(Lista!$R$2,1,3) -> ∆ Anual Abr | DQ5: ="∆ Mensual "&MID(Lista!$R$2,1,3) -> ∆ Mensual Abr
A6: 11001 | B6: 110011 | C6: 1 | D6: 11 | E6: 1 | F6: 001 | G6: BOGOTÁ, D.C. | H6: BOGOTÁ, D.C. | I6: Dep_No_priv | J6: 27204 | K6: 23440 | L6: 390480 | M6: 366570 | N6: 377188 | O6: 365273 | P6: 393585 | Q6: 414361 | R6: 423487 | S6: 419748 | T6: 397816 | U6: 335498 | V6: 328156 | W6: 369530 | X6: 378017 | Y6: 399311 | Z6: 409058 | AA6: 402699 | AB6: 402846 | AC6: 418668 | AD6: 429928 | AE6: 434586 | AF6: 433838 | AG6: 353298 | AH6: 342008 | AI6: 385550 | AJ6: 420493 | AK6: 429313 | AL6: FALSO | AQ6: 5631 | AR6: 56312 | AS6: 2 | AT6: 5 | AU6: 631 | AV6: 631 | AW6: ANTIOQUIA | AX6: SABANETA | AY6: Dep_sec_priv | AZ6: 1684 | BA6: 1554 | BB6: 21591 | BC6: 20085 | BD6: 19943 | BE6: 19788 | BF6: 19959 | BG6: 20412 | BH6: 20798 | BI6: 21235 | BJ6: 22132 | BK6: 21874 | BL6: 21782 | BM6: 22128 | BN6: 22488 | BO6: 22450 | BP6: 22381 | BQ6: 22265 | BR6: 22667 | BS6: 23060 | BT6: 23668 | BU6: 24131 | BV6: 24233 | BW6: 23847 | BX6: 23758 | BY6: 24426 | BZ6: 24482 | CA6: 24343 | CG6: Dependientes | CH6: =IFERROR((SUMIFS(BC$2:BC$600,$AS$2:$AS$600,2)+SUMIFS(BC$2:BC$600,$AS$2:$AS$600,1))/(SUMIFS(BB$2:BB$600,$AS$2:$AS$600,2)+SUMIFS(BB$2:BB$600,$AS$2:$AS$600,1))-1,"") -> -0.07259682039 | CI6: =IFERROR((SUMIFS(BD$2:BD$600,$AS$2:$AS$600,2)+SUMIFS(BD$2:BD$600,$AS$2:$AS$600,1))/(SUMIFS(BC$2:BC$600,$AS$2:$AS$600,2)+SUMIFS(BC$2:BC$600,$AS$2:$AS$600,1))-1,"") -> 0.001180561872 | CJ6: 0.01090945452 | CK6: 0.01056012256 | CL6: 0.007711548344 | CM6: 0.0175479431 | CN6: 0.008462308996 | CO6: 0.005874890629 | CP6: -0.01184411125 | CQ6: -0.0142088592 | CR6: 0.03188970928 | CS6: 0.01986432504 | CT6: 0.001118864367 | CU6: 0.005707154965 | CV6: 0.005190011341 | CW6: 0.007362115192 | CX6: 0.01869515473 | CY6: 0.01496598566 | CZ6: 0.007173005414 | DA6: 0.003866471252 | DB6: -0.03109097268 | DC6: -0.01029728687 | DD6: 0.02871101901 | DE6: 0.01665105924 | DF6: -0.007455269431 | DK6: Nacional | DL6: =(SUMIFS($AK$2:$AK$4995,$C$2:$C$4995,2)+SUMIFS($AK$2:$AK$4995,$C$2:$C$4995,1))/(SUMIFS($Y$2:$Y$4995,$C$2:$C$4995,2)+SUMIFS($Y$2:$Y$4995,$C$2:$C$4995,1))-1 -> 0.07107347141 | DM6: =(SUMIFS($AK$2:$AK$4995,$C$2:$C$4995,2)+SUMIFS($AK$2:$AK$4995,$C$2:$C$4995,1))/(SUMIFS($AJ$2:$AJ$4995,$C$2:$C$4995,2)+SUMIFS($AJ$2:$AJ$4995,$C$2:$C$4995,1))-1 -> -0.005114548346 | DN6: =SUMIFS($AK$2:$AK$4995,$C$2:$C$4995,2)/SUMIFS($Y$2:$Y$4995,$C$2:$C$4995,2)-1 -> 0.07068116591 | DO6: =SUMIFS($AK$2:$AK$4995,$C$2:$C$4995,2)/SUMIFS($AJ$2:$AJ$4995,$C$2:$C$4995,2)-1 -> -0.006798965057 | DP6: =SUMIFS($AK$2:$AK$4995,$C$2:$C$4995,3)/SUMIFS($Y$2:$Y$4995,$C$2:$C$4995,3)-1 -> 0.007851326698 | DQ6: =SUMIFS($AK$2:$AK$4995,$C$2:$C$4995,3)/SUMIFS($AJ$2:$AJ$4995,$C$2:$C$4995,3)-1 -> -0.02550202272
A7: 11001 | B7: 110012 | C7: 2 | D7: 11 | E7: 1 | F7: 001 | G7: BOGOTÁ, D.C. | H7: BOGOTÁ, D.C. | I7: Dep_sec_priv | J7: 230759 | K7: 197721 | L7: 2625113 | M7: 2446599 | N7: 2418436 | O7: 2407116 | P7: 2421978 | Q7: 2421912 | R7: 2458170 | S7: 2484025 | T7: 2516465 | U7: 2506097 | V7: 2484982 | W7: 2529632 | X7: 2558838 | Y7: 2570654 | Z7: 2569003 | AA7: 2584466 | AB7: 2606465 | AC7: 2644715 | AD7: 2680121 | AE7: 2710946 | AF7: 2737935 | AG7: 2710744 | AH7: 2699792 | AI7: 2752026 | AJ7: 2774427 | AK7: 2760926 | AL7: FALSO | AQ7: 5001 | AR7: 50013 | AS7: 3 | AT7: 5 | AU7: 1 | AV7: 001 | AW7: ANTIOQUIA | AX7: MEDELLÍN | AY7: Independiente | AZ7: 8727 | BA7: 6558 | BB7: 193750 | BC7: 186035 | BD7: 186809 | BE7: 189841 | BF7: 191610 | BG7: 193311 | BH7: 195883 | BI7: 198275 | BJ7: 200237 | BK7: 199258 | BL7: 193740 | BM7: 195332 | BN7: 197226 | BO7: 197879 | BP7: 198506 | BQ7: 199136 | BR7: 199265 | BS7: 201436 | BT7: 202952 | BU7: 203652 | BV7: 204861 | BW7: 202400 | BX7: 197352 | BY7: 200814 | BZ7: 201094 | CA7: 196138 | CG7: Dep.Privados | CH7: =IFERROR(SUMIFS(BC$2:BC$600,$AS$2:$AS$600,2)/SUMIFS(BB$2:BB$600,$AS$2:$AS$600,2)-1,"") -> -0.07395331049 | CI7: =IFERROR(SUMIFS(BD$2:BD$600,$AS$2:$AS$600,2)/SUMIFS(BC$2:BC$600,$AS$2:$AS$600,2)-1,"") -> 0.001235403646 | CJ7: 0.006449340431 | CK7: 0.007517092142 | CL7: 0.003452681489 | CM7: 0.02035296773 | CN7: 0.01743219656 | CO7: 0.0124390293 | CP7: -0.004453250807 | CQ7: -0.01198570183 | CR7: 0.02321051766 | CS7: 0.01488673139 | CT7: 0.001444842942 | CU7: 0.002860898527 | CV7: 0.006514266593 | CW7: 0.01035061945 | CX7: 0.01233517004 | CY7: 0.01249548197 | CZ7: 0.006613454112 | DA7: 0.007433197882 | DB7: -0.01463875527 | DC7: -0.005733973405 | DD7: 0.01866475368 | DE7: 0.01012984723 | DF7: -0.00569007807 | DK7: =PROPER(Visor!Q7) -> Antioquia | DL7: =(SUMIFS($CA$2:$CA$700,$AS$2:$AS$700,2)+SUMIFS($CA$2:$CA$700,$AS$2:$AS$700,1))/(SUMIFS($BO$2:$BO$700,$AS$2:$AS$700,2)+SUMIFS($BO$2:$BO$700,$AS$2:$AS$700,1))-1 -> 0.0597031698 | DM7: =(SUMIFS($CA$2:$CA$700,$AS$2:$AS$700,2)+SUMIFS($CA$2:$CA$700,$AS$2:$AS$700,1))/(SUMIFS($BZ$2:$BZ$700,$AS$2:$AS$700,2)+SUMIFS($BZ$2:$BZ$700,$AS$2:$AS$700,1))-1 -> -0.007455269431 | DN7: =SUMIFS($CA$2:$CA$700,$AS$2:$AS$700,2)/SUMIFS($BO$2:$BO$700,$AS$2:$AS$700,2)-1 -> 0.06256984616 | DO7: =SUMIFS($CA$2:$CA$700,$AS$2:$AS$700,2)/SUMIFS($BZ$2:$BZ$700,$AS$2:$AS$700,2)-1 -> -0.00569007807 | DP7: =SUMIFS($CA$2:$CA$700,$AS$2:$AS$700,3)/SUMIFS($BO$2:$BO$700,$AS$2:$AS$700,3)-1 -> 0.02529510426 | DQ7: =SUMIFS($CA$2:$CA$700,$AS$2:$AS$700,3)/SUMIFS($BZ$2:$BZ$700,$AS$2:$AS$700,3)-1 -> -0.02087972092
A8: 76001 | B8: 760013 | C8: 3 | D8: 76 | E8: 1 | F8: 001 | G8: VALLE DEL CAUCA | H8: CALI | I8: Independiente | J8: 5539 | K8: 4577 | L8: 132911 | M8: 129391 | N8: 129525 | O8: 130768 | P8: 132802 | Q8: 133759 | R8: 135098 | S8: 136629 | T8: 138720 | U8: 137887 | V8: 129240 | W8: 132053 | X8: 134274 | Y8: 134917 | Z8: 133711 | AA8: 134118 | AB8: 135391 | AC8: 138000 | AD8: 138958 | AE8: 139819 | AF8: 142491 | AG8: 141377 | AH8: 135108 | AI8: 138237 | AJ8: 138252 | AK8: 135774 | AL8: FALSO | AQ8: 5364 | AR8: 53642 | AS8: 2 | AT8: 5 | AU8: 364 | AV8: 364 | AW8: ANTIOQUIA | AX8: JARDÍN | AY8: Dep_sec_priv | AZ8: 53 | BA8: 45 | BB8: 807 | BC8: 801 | BD8: 839 | BE8: 855 | BF8: 854 | BG8: 823 | BH8: 817 | BI8: 906 | BJ8: 967 | BK8: 1002 | BL8: 1051 | BM8: 1022 | BN8: 971 | BO8: 1048 | BP8: 1093 | BQ8: 1111 | BR8: 1098 | BS8: 1148 | BT8: 1099 | BU8: 1199 | BV8: 1217 | BW8: 1177 | BX8: 1187 | BY8: 1190 | BZ8: 1157 | CA8: 1143 | DK8: =PROPER(Visor!Q8) -> Medellín | DL8: =(SUMIFS($CA$2:$CA$700,$AX$2:$AX$700,Visor!$Q$8,'Cotizantes Mes'!$AS$2:$AS$700,2)+SUMIFS($CA$2:$CA$700,$AX$2:$AX$700,Visor!$Q$8,'Cotizantes Mes'!$AS$2:$AS$700,1))/(SUMIFS($BO$2:$BO$700,$AX$2:$AX$700,Visor!$Q$8,'Cotizantes Mes'!$AS$2:$AS$700,2)+SUMIFS($BO$2:$BO$700,$AX$2:$AX$700,Visor!$Q$8,'Cotizantes Mes'!$AS$2:$AS$700,1))-1 -> 0.06221768952 | DM8: =(SUMIFS($CA$2:$CA$700,$AS$2:$AS$700,2,$AX$2:$AX$700,Visor!$Q$8)+SUMIFS($CA$2:$CA$700,$AS$2:$AS$700,1,$AX$2:$AX$700,Visor!$Q$8))/(SUMIFS($BZ$2:$BZ$700,$AS$2:$AS$700,2,$AX$2:$AX$700,Visor!$Q$8)+SUMIFS($BZ$2:$BZ$700,$AS$2:$AS$700,1,$AX$2:$AX$700,Visor!$Q$8))-1 -> -0.008122004852 | DN8: =SUMIFS($CA$2:$CA$700,$AX$2:$AX$700,Visor!$Q$8,'Cotizantes Mes'!$AS$2:$AS$700,2)/SUMIFS($BO$2:$BO$700,$AX$2:$AX$700,Visor!$Q$8,'Cotizantes Mes'!$AS$2:$AS$700,2)-1 -> 0.06431933961 | DO8: =SUMIFS($CA$2:$CA$700,$AS$2:$AS$700,2,$AX$2:$AX$700,Visor!$Q$8)/SUMIFS($BZ$2:$BZ$700,$AS$2:$AS$700,2,$AX$2:$AX$700,Visor!$Q$8)-1 -> -0.005113146242 | DP8: =SUMIFS($CA$2:$CA$700,$AX$2:$AX$700,Visor!$Q$8,'Cotizantes Mes'!$AS$2:$AS$700,3)/SUMIFS($BO$2:$BO$700,$AX$2:$AX$700,Visor!$Q$8,'Cotizantes Mes'!$AS$2:$AS$700,3)-1 -> -0.008798306036 | DQ8: =SUMIFS($CA$2:$CA$700,$AS$2:$AS$700,3,$AX$2:$AX$700,Visor!$Q$8)/SUMIFS($BZ$2:$BZ$700,$AS$2:$AS$700,3,$AX$2:$AX$700,Visor!$Q$8)-1 -> -0.02464519081
A9: 11001 | B9: 110013 | C9: 3 | D9: 11 | E9: 1 | F9: 001 | G9: BOGOTÁ, D.C. | H9: BOGOTÁ, D.C. | I9: Independiente | J9: 44820 | K9: 37802 | L9: 701656 | M9: 672236 | N9: 675339 | O9: 683729 | P9: 689688 | Q9: 690835 | R9: 699522 | S9: 704814 | T9: 709270 | U9: 706591 | V9: 681685 | W9: 685943 | X9: 693856 | Y9: 694694 | Z9: 694743 | AA9: 698276 | AB9: 700778 | AC9: 703815 | AD9: 708872 | AE9: 711600 | AF9: 712823 | AG9: 705521 | AH9: 689454 | AI9: 696094 | AJ9: 693603 | AK9: 672806 | AL9: FALSO | AQ9: 5631 | AR9: 56313 | AS9: 3 | AT9: 5 | AU9: 631 | AV9: 631 | AW9: ANTIOQUIA | AX9: SABANETA | AY9: Independiente | AZ9: 314 | BA9: 203 | BB9: 5513 | BC9: 5491 | BD9: 5659 | BE9: 5736 | BF9: 5754 | BG9: 5946 | BH9: 6108 | BI9: 6274 | BJ9: 6414 | BK9: 6391 | BL9: 6067 | BM9: 6338 | BN9: 6470 | BO9: 6480 | BP9: 6571 | BQ9: 6648 | BR9: 6698 | BS9: 6806 | BT9: 6906 | BU9: 6920 | BV9: 7027 | BW9: 7048 | BX9: 7135 | BY9: 7455 | BZ9: 7450 | CA9: 7232
A10: 76001 | B10: 760011 | C10: 1 | D10: 76 | E10: 1 | F10: 001 | G10: VALLE DEL CAUCA | H10: CALI | I10: Dep_No_priv | J10: 9009 | K10: 4874 | L10: 95443 | M10: 79139 | N10: 77711 | O10: 75881 | P10: 80462 | Q10: 88844 | R10: 94657 | S10: 95229 | T10: 92563 | U10: 81126 | V10: 71416 | W10: 84439 | X10: 85852 | Y10: 87988 | Z10: 86759 | AA10: 81854 | AB10: 76823 | AC10: 96131 | AD10: 98903 | AE10: 101380 | AF10: 102995 | AG10: 86140 | AH10: 78909 | AI10: 89691 | AJ10: 96719 | AK10: 97426 | AL10: FALSO | AQ10: 5318 | AR10: 53183 | AS10: 3 | AT10: 5 | AU10: 318 | AV10: 318 | AW10: ANTIOQUIA | AX10: GUARNE | AY10: Independiente | AZ10: 72 | BA10: 51 | BB10: 1369 | BC10: 1378 | BD10: 1409 | BE10: 1441 | BF10: 1477 | BG10: 1509 | BH10: 1556 | BI10: 1608 | BJ10: 1641 | BK10: 1562 | BL10: 1465 | BM10: 1537 | BN10: 1610 | BO10: 1641 | BP10: 1676 | BQ10: 1711 | BR10: 1752 | BS10: 1798 | BT10: 1850 | BU10: 1871 | BV10: 1899 | BW10: 1851 | BX10: 1786 | BY10: 1929 | BZ10: 1927 | CA10: 1875
A11: 73449 | B11: 734493 | C11: 3 | D11: 73 | E11: 449 | F11: 449 | G11: TOLIMA | H11: MELGAR | I11: Independiente | J11: 36 | K11: 45 | L11: 1186 | M11: 1166 | N11: 1167 | O11: 1184 | P11: 1169 | Q11: 1212 | R11: 1273 | S11: 1285 | T11: 1295 | U11: 1279 | V11: 1100 | W11: 1317 | X11: 1347 | Y11: 1352 | Z11: 1370 | AA11: 1339 | AB11: 1375 | AC11: 1394 | AD11: 1361 | AE11: 1366 | AF11: 1415 | AG11: 1392 | AH11: 1358 | AI11: 1472 | AJ11: 1402 | AK11: 1362 | AL11: FALSO | AQ11: 5266 | AR11: 52663 | AS11: 3 | AT11: 5 | AU11: 266 | AV11: 266 | AW11: ANTIOQUIA | AX11: ENVIGADO | AY11: Independiente | AZ11: 696 | BA11: 531 | BB11: 13778 | BC11: 13576 | BD11: 13729 | BE11: 13923 | BF11: 14190 | BG11: 14409 | BH11: 14704 | BI11: 14923 | BJ11: 15145 | BK11: 15267 | BL11: 15057 | BM11: 15505 | BN11: 15791 | BO11: 15872 | BP11: 15934 | BQ11: 16158 | BR11: 16228 | BS11: 16404 | BT11: 16593 | BU11: 16794 | BV11: 16965 | BW11: 16861 | BX11: 16713 | BY11: 17029 | BZ11: 17090 | CA11: 16811
A12: 5318 | B12: 53182 | C12: 2 | D12: 5 | E12: 318 | F12: 318 | G12: ANTIOQUIA | H12: GUARNE | I12: Dep_sec_priv | J12: 730 | K12: 703 | L12: 7402 | M12: 7153 | N12: 7188 | O12: 7150 | P12: 7169 | Q12: 7196 | R12: 7410 | S12: 7609 | T12: 7753 | U12: 7941 | V12: 7967 | W12: 8134 | X12: 8353 | Y12: 8560 | Z12: 8665 | AA12: 8687 | AB12: 8825 | AC12: 8945 | AD12: 8795 | AE12: 8968 | AF12: 9045 | AG12: 9040 | AH12: 9050 | AI12: 9215 | AJ12: 9419 | AK12: 9435 | AL12: FALSO | AQ12: 5607 | AR12: 56073 | AS12: 3 | AT12: 5 | AU12: 607 | AV12: 607 | AW12: ANTIOQUIA | AX12: RETIRO | AY12: Independiente | AZ12: 42 | BA12: 26 | BB12: 1105 | BC12: 1089 | BD12: 1122 | BE12: 1144 | BF12: 1175 | BG12: 1195 | BH12: 1245 | BI12: 1268 | BJ12: 1286 | BK12: 1273 | BL12: 1263 | BM12: 1314 | BN12: 1340 | BO12: 1365 | BP12: 1397 | BQ12: 1420 | BR12: 1452 | BS12: 1468 | BT12: 1449 | BU12: 1469 | BV12: 1495 | BW12: 1508 | BX12: 1505 | BY12: 1556 | BZ12: 1561 | CA12: 1523 | CH12: ="Variaciones de "&PROPER(Visor!Q8) -> Variaciones de Medellín
A13: 5001 | B13: 50012 | C13: 2 | D13: 5 | E13: 1 | F13: 001 | G13: ANTIOQUIA | H13: MEDELLÍN | I13: Dep_sec_priv | J13: 87177 | K13: 81359 | L13: 1093588 | M13: 1011688 | N13: 1009718 | O13: 1013116 | P13: 1019221 | Q13: 1022409 | R13: 1042923 | S13: 1060816 | T13: 1073647 | U13: 1069593 | V13: 1055879 | W13: 1078004 | X13: 1092322 | Y13: 1091227 | Z13: 1093979 | AA13: 1101166 | AB13: 1113952 | AC13: 1129031 | AD13: 1142501 | AE13: 1150076 | AF13: 1160811 | AG13: 1144842 | AH13: 1136646 | AI13: 1156883 | AJ13: 1167383 | AK13: 1161414 | AL13: FALSO | AQ13: 5579 | AR13: 55793 | AS13: 3 | AT13: 5 | AU13: 579 | AV13: 579 | AW13: ANTIOQUIA | AX13: PUERTO BERRÍO | AY13: Independiente | AZ13: 21 | BA13: 69 | BB13: 807 | BC13: 800 | BD13: 817 | BE13: 829 | BF13: 849 | BG13: 852 | BH13: 858 | BI13: 914 | BJ13: 1057 | BK13: 1034 | BL13: 764 | BM13: 794 | BN13: 861 | BO13: 936 | BP13: 982 | BQ13: 973 | BR13: 1017 | BS13: 1034 | BT13: 1049 | BU13: 986 | BV13: 1118 | BW13: 1078 | BX13: 1004 | BY13: 1047 | BZ13: 1028 | CA13: 1002 | CH13: =CH4 -> 2020-03-01 | CI13: =CI4 -> 2020-04-01 | CJ13: 2020-05-01 | CK13: 2020-06-01 | CL13: 2020-07-01 | CM13: 2020-08-01 | CN13: 2020-09-01 | CO13: 2020-10-01 | CP13: 2020-11-01 | CQ13: 2020-12-01 | CR13: 2021-01-01 | CS13: 2021-02-01 | CT13: 2021-03-01 | CU13: 2021-04-01 | CV13: 2021-05-01 | CW13: 2021-06-01 | CX13: 2021-07-01 | CY13: 2021-08-01 | CZ13: 2021-09-01 | DA13: 2021-10-01 | DB13: 2021-11-01 | DC13: 2021-12-01 | DD13: 2022-01-01 | DE13: 2022-02-01 | DF13: 2022-03-01
A14: 5400 | B14: 54002 | C14: 2 | D14: 5 | E14: 400 | F14: 400 | G14: ANTIOQUIA | H14: LA UNIÓN | I14: Dep_sec_priv | J14: 205 | K14: 146 | L14: 1902 | M14: 1735 | N14: 1729 | O14: 1730 | P14: 1788 | Q14: 1827 | R14: 1864 | S14: 1859 | T14: 1866 | U14: 1824 | V14: 1824 | W14: 1891 | X14: 1923 | Y14: 1944 | Z14: 1863 | AA14: 1884 | AB14: 1911 | AC14: 1933 | AD14: 1951 | AE14: 2025 | AF14: 2076 | AG14: 2105 | AH14: 2197 | AI14: 2199 | AJ14: 2214 | AK14: 2193 | AL14: FALSO | AQ14: 5615 | AR14: 56153 | AS14: 3 | AT14: 5 | AU14: 615 | AV14: 615 | AW14: ANTIOQUIA | AX14: RIONEGRO | AY14: Independiente | AZ14: 352 | BA14: 220 | BB14: 9408 | BC14: 9026 | BD14: 8885 | BE14: 9030 | BF14: 9160 | BG14: 9396 | BH14: 9510 | BI14: 9672 | BJ14: 9736 | BK14: 9658 | BL14: 9462 | BM14: 9542 | BN14: 9803 | BO14: 9980 | BP14: 10018 | BQ14: 10095 | BR14: 10183 | BS14: 10322 | BT14: 10365 | BU14: 10462 | BV14: 10522 | BW14: 10356 | BX14: 10258 | BY14: 10384 | BZ14: 10397 | CA14: 10257 | CG14: Independientes | CH14: =IFERROR(SUMIFS(BC$2:BC$500,$AS$2:$AS$500,3,$AX$2:$AX$500,Visor!$Q$8)/SUMIFS(BB$2:BB$500,$AS$2:$AS$500,3,$AX$2:$AX$500,Visor!$Q$8)-1,"") -> -0.03981935484 | CI14: =IFERROR(SUMIFS(BD$2:BD$500,$AS$2:$AS$500,3,$AX$2:$AX$500,Visor!$Q$8)/SUMIFS(BC$2:BC$500,$AS$2:$AS$500,3,$AX$2:$AX$500,Visor!$Q$8)-1,"") -> 0.004160507431 | CJ14: =IFERROR(SUMIFS(BE$2:BE$500,$AS$2:$AS$500,3,$AX$2:$AX$500,Visor!$Q$8)/SUMIFS(BD$2:BD$500,$AS$2:$AS$500,3,$AX$2:$AX$500,Visor!$Q$8)-1,"") -> 0.0162304814 | CK14: =IFERROR(SUMIFS(BF$2:BF$500,$AS$2:$AS$500,3,$AX$2:$AX$500,Visor!$Q$8)/SUMIFS(BE$2:BE$500,$AS$2:$AS$500,3,$AX$2:$AX$500,Visor!$Q$8)-1,"") -> 0.009318324282 | CL14: =IFERROR(SUMIFS(BG$2:BG$500,$AS$2:$AS$500,3,$AX$2:$AX$500,Visor!$Q$8)/SUMIFS(BF$2:BF$500,$AS$2:$AS$500,3,$AX$2:$AX$500,Visor!$Q$8)-1,"") -> 0.008877407233 | CM14: =IFERROR(SUMIFS(BH$2:BH$500,$AS$2:$AS$500,3,$AX$2:$AX$500,Visor!$Q$8)/SUMIFS(BG$2:BG$500,$AS$2:$AS$500,3,$AX$2:$AX$500,Visor!$Q$8)-1,"") -> 0.01330498523 | CN14: =IFERROR(SUMIFS(BI$2:BI$500,$AS$2:$AS$500,3,$AX$2:$AX$500,Visor!$Q$8)/SUMIFS(BH$2:BH$500,$AS$2:$AS$500,3,$AX$2:$AX$500,Visor!$Q$8)-1,"") -> 0.01221137107 | CO14: =IFERROR(SUMIFS(BJ$2:BJ$500,$AS$2:$AS$500,3,$AX$2:$AX$500,Visor!$Q$8)/SUMIFS(BI$2:BI$500,$AS$2:$AS$500,3,$AX$2:$AX$500,Visor!$Q$8)-1,"") -> 0.009895347371 | CP14: =IFERROR(SUMIFS(BK$2:BK$500,$AS$2:$AS$500,3,$AX$2:$AX$500,Visor!$Q$8)/SUMIFS(BJ$2:BJ$500,$AS$2:$AS$500,3,$AX$2:$AX$500,Visor!$Q$8)-1,"") -> -0.004889206291 | CQ14: =IFERROR(SUMIFS(BL$2:BL$500,$AS$2:$AS$500,3,$AX$2:$AX$500,Visor!$Q$8)/SUMIFS(BK$2:BK$500,$AS$2:$AS$500,3,$AX$2:$AX$500,Visor!$Q$8)-1,"") -> -0.02769274007 | CR14: =IFERROR(SUMIFS(BM$2:BM$500,$AS$2:$AS$500,3,$AX$2:$AX$500,Visor!$Q$8)/SUMIFS(BL$2:BL$500,$AS$2:$AS$500,3,$AX$2:$AX$500,Visor!$Q$8)-1,"") -> 0.008217198307 | CS14: =IFERROR(SUMIFS(BN$2:BN$500,$AS$2:$AS$500,3,$AX$2:$AX$500,Visor!$Q$8)/SUMIFS(BM$2:BM$500,$AS$2:$AS$500,3,$AX$2:$AX$500,Visor!$Q$8)-1,"") -> 0.00969631192 | CT14: =IFERROR(SUMIFS(BO$2:BO$500,$AS$2:$AS$500,3,$AX$2:$AX$500,Visor!$Q$8)/SUMIFS(BN$2:BN$500,$AS$2:$AS$500,3,$AX$2:$AX$500,Visor!$Q$8)-1,"") -> 0.003310922495 | CU14: =IFERROR(SUMIFS(BP$2:BP$500,$AS$2:$AS$500,3,$AX$2:$AX$500,Visor!$Q$8)/SUMIFS(BO$2:BO$500,$AS$2:$AS$500,3,$AX$2:$AX$500,Visor!$Q$8)-1,"") -> 0.003168603035 | CV14: =IFERROR(SUMIFS(BQ$2:BQ$500,$AS$2:$AS$500,3,$AX$2:$AX$500,Visor!$Q$8)/SUMIFS(BP$2:BP$500,$AS$2:$AS$500,3,$AX$2:$AX$500,Visor!$Q$8)-1,"") -> 0.003173707596 | CW14: =IFERROR(SUMIFS(BR$2:BR$500,$AS$2:$AS$500,3,$AX$2:$AX$500,Visor!$Q$8)/SUMIFS(BQ$2:BQ$500,$AS$2:$AS$500,3,$AX$2:$AX$500,Visor!$Q$8)-1,"") -> 0.0006477984895 | CX14: =IFERROR(SUMIFS(BS$2:BS$500,$AS$2:$AS$500,3,$AX$2:$AX$500,Visor!$Q$8)/SUMIFS(BR$2:BR$500,$AS$2:$AS$500,3,$AX$2:$AX$500,Visor!$Q$8)-1,"") -> 0.01089503927 | CY14: =IFERROR(SUMIFS(BT$2:BT$500,$AS$2:$AS$500,3,$AX$2:$AX$500,Visor!$Q$8)/SUMIFS(BS$2:BS$500,$AS$2:$AS$500,3,$AX$2:$AX$500,Visor!$Q$8)-1,"") -> 0.007525963581 | CZ14: =IFERROR(SUMIFS(BU$2:BU$500,$AS$2:$AS$500,3,$AX$2:$AX$500,Visor!$Q$8)/SUMIFS(BT$2:BT$500,$AS$2:$AS$500,3,$AX$2:$AX$500,Visor!$Q$8)-1,"") -> 0.003449091411 | DA14: =IFERROR(SUMIFS(BV$2:BV$500,$AS$2:$AS$500,3,$AX$2:$AX$500,Visor!$Q$8)/SUMIFS(BU$2:BU$500,$AS$2:$AS$500,3,$AX$2:$AX$500,Visor!$Q$8)-1,"") -> 0.005936597726 | DB14: =IFERROR(SUMIFS(BW$2:BW$500,$AS$2:$AS$500,3,$AX$2:$AX$500,Visor!$Q$8)/SUMIFS(BV$2:BV$500,$AS$2:$AS$500,3,$AX$2:$AX$500,Visor!$Q$8)-1,"") -> -0.01201302346 | DC14: =IFERROR(SUMIFS(BX$2:BX$500,$AS$2:$AS$500,3,$AX$2:$AX$500,Visor!$Q$8)/SUMIFS(BW$2:BW$500,$AS$2:$AS$500,3,$AX$2:$AX$500,Visor!$Q$8)-1,"") -> -0.02494071146 | DD14: =IFERROR(SUMIFS(BY$2:BY$500,$AS$2:$AS$500,3,$AX$2:$AX$500,Visor!$Q$8)/SUMIFS(BX$2:BX$500,$AS$2:$AS$500,3,$AX$2:$AX$500,Visor!$Q$8)-1,"") -> 0.01754225952 | DE14: =IFERROR(SUMIFS(BZ$2:BZ$500,$AS$2:$AS$500,3,$AX$2:$AX$500,Visor!$Q$8)/SUMIFS(BY$2:BY$500,$AS$2:$AS$500,3,$AX$2:$AX$500,Visor!$Q$8)-1,"") -> 0.001394325097 | DF14: =IFERROR(SUMIFS(CA$2:CA$500,$AS$2:$AS$500,3,$AX$2:$AX$500,Visor!$Q$8)/SUMIFS(BZ$2:BZ$500,$AS$2:$AS$500,3,$AX$2:$AX$500,Visor!$Q$8)-1,"") -> -0.02464519081
A15: 68001 | B15: 680013 | C15: 3 | D15: 68 | E15: 1 | F15: 001 | G15: SANTANDER | H15: BUCARAMANGA | I15: Independiente | J15: 2213 | K15: 1937 | L15: 61455 | M15: 59245 | N15: 59184 | O15: 59971 | P15: 60283 | Q15: 60294 | R15: 60736 | S15: 61588 | T15: 61989 | U15: 62345 | V15: 58963 | W15: 59807 | X15: 60683 | Y15: 60893 | Z15: 61069 | AA15: 61439 | AB15: 61606 | AC15: 61587 | AD15: 62141 | AE15: 62585 | AF15: 63082 | AG15: 62495 | AH15: 61102 | AI15: 62161 | AJ15: 61849 | AK15: 59990 | AL15: FALSO | AQ15: 5079 | AR15: 50792 | AS15: 2 | AT15: 5 | AU15: 79 | AV15: 079 | AW15: ANTIOQUIA | AX15: BARBOSA | AY15: Dep_sec_priv | AZ15: 415 | BA15: 262 | BB15: 4286 | BC15: 4045 | BD15: 4120 | BE15: 4275 | BF15: 4317 | BG15: 4331 | BH15: 4372 | BI15: 4338 | BJ15: 4377 | BK15: 4270 | BL15: 4204 | BM15: 4263 | BN15: 4120 | BO15: 4002 | BP15: 3931 | BQ15: 3932 | BR15: 4031 | BS15: 4022 | BT15: 3863 | BU15: 3938 | BV15: 4147 | BW15: 3989 | BX15: 3841 | BY15: 3858 | BZ15: 3885 | CA15: 3918 | CG15: Dependientes | CH15: =IFERROR((SUMIFS(BC$2:BC$500,$AS$2:$AS$500,2,$AX$2:$AX$500,Visor!$Q$8)+SUMIFS(BC$2:BC$500,$AS$2:$AS$500,1,$AX$2:$AX$500,Visor!$Q$8))/(SUMIFS(BB$2:BB$500,$AS$2:$AS$500,2,$AX$2:$AX$500,Visor!$Q$8)+SUMIFS(BB$2:BB$500,$AS$2:$AS$500,1,$AX$2:$AX$500,Visor!$Q$8))-1,"") -> -0.07815439716 | CI15: =IFERROR((SUMIFS(BD$2:BD$500,$AS$2:$AS$500,2,$AX$2:$AX$500,Visor!$Q$8)+SUMIFS(BD$2:BD$500,$AS$2:$AS$500,1,$AX$2:$AX$500,Visor!$Q$8))/(SUMIFS(BC$2:BC$500,$AS$2:$AS$500,2,$AX$2:$AX$500,Visor!$Q$8)+SUMIFS(BC$2:BC$500,$AS$2:$AS$500,1,$AX$2:$AX$500,Visor!$Q$8))-1,"") -> -0.001078257329 | CJ15: =IFERROR((SUMIFS(BE$2:BE$500,$AS$2:$AS$500,2,$AX$2:$AX$500,Visor!$Q$8)+SUMIFS(BE$2:BE$500,$AS$2:$AS$500,1,$AX$2:$AX$500,Visor!$Q$8))/(SUMIFS(BD$2:BD$500,$AS$2:$AS$500,2,$AX$2:$AX$500,Visor!$Q$8)+SUMIFS(BD$2:BD$500,$AS$2:$AS$500,1,$AX$2:$AX$500,Visor!$Q$8))-1,"") -> 0.007674253127 | CK15: =IFERROR((SUMIFS(BF$2:BF$500,$AS$2:$AS$500,2,$AX$2:$AX$500,Visor!$Q$8)+SUMIFS(BF$2:BF$500,$AS$2:$AS$500,1,$AX$2:$AX$500,Visor!$Q$8))/(SUMIFS(BE$2:BE$500,$AS$2:$AS$500,2,$AX$2:$AX$500,Visor!$Q$8)+SUMIFS(BE$2:BE$500,$AS$2:$AS$500,1,$AX$2:$AX$500,Visor!$Q$8))-1,"") -> 0.008145409049 | CL15: =IFERROR((SUMIFS(BG$2:BG$500,$AS$2:$AS$500,2,$AX$2:$AX$500,Visor!$Q$8)+SUMIFS(BG$2:BG$500,$AS$2:$AS$500,1,$AX$2:$AX$500,Visor!$Q$8))/(SUMIFS(BF$2:BF$500,$AS$2:$AS$500,2,$AX$2:$AX$500,Visor!$Q$8)+SUMIFS(BF$2:BF$500,$AS$2:$AS$500,1,$AX$2:$AX$500,Visor!$Q$8))-1,"") -> 0.007602726917 | CM15: =IFERROR((SUMIFS(BH$2:BH$500,$AS$2:$AS$500,2,$AX$2:$AX$500,Visor!$Q$8)+SUMIFS(BH$2:BH$500,$AS$2:$AS$500,1,$AX$2:$AX$500,Visor!$Q$8))/(SUMIFS(BG$2:BG$500,$AS$2:$AS$500,2,$AX$2:$AX$500,Visor!$Q$8)+SUMIFS(BG$2:BG$500,$AS$2:$AS$500,1,$AX$2:$AX$500,Visor!$Q$8))-1,"") -> 0.01869383582 | CN15: =IFERROR((SUMIFS(BI$2:BI$500,$AS$2:$AS$500,2,$AX$2:$AX$500,Visor!$Q$8)+SUMIFS(BI$2:BI$500,$AS$2:$AS$500,1,$AX$2:$AX$500,Visor!$Q$8))/(SUMIFS(BH$2:BH$500,$AS$2:$AS$500,2,$AX$2:$AX$500,Visor!$Q$8)+SUMIFS(BH$2:BH$500,$AS$2:$AS$500,1,$AX$2:$AX$500,Visor!$Q$8))-1,"") -> 0.009728179091 | CO15: =IFERROR((SUMIFS(BJ$2:BJ$500,$AS$2:$AS$500,2,$AX$2:$AX$500,Visor!$Q$8)+SUMIFS(BJ$2:BJ$500,$AS$2:$AS$500,1,$AX$2:$AX$500,Visor!$Q$8))/(SUMIFS(BI$2:BI$500,$AS$2:$AS$500,2,$AX$2:$AX$500,Visor!$Q$8)+SUMIFS(BI$2:BI$500,$AS$2:$AS$500,1,$AX$2:$AX$500,Visor!$Q$8))-1,"") -> 0.005381908847 | CP15: =IFERROR((SUMIFS(BK$2:BK$500,$AS$2:$AS$500,2,$AX$2:$AX$500,Visor!$Q$8)+SUMIFS(BK$2:BK$500,$AS$2:$AS$500,1,$AX$2:$AX$500,Visor!$Q$8))/(SUMIFS(BJ$2:BJ$500,$AS$2:$AS$500,2,$AX$2:$AX$500,Visor!$Q$8)+SUMIFS(BJ$2:BJ$500,$AS$2:$AS$500,1,$AX$2:$AX$500,Visor!$Q$8))-1,"") -> -0.01201388118 | CQ15: =IFERROR((SUMIFS(BL$2:BL$500,$AS$2:$AS$500,2,$AX$2:$AX$500,Visor!$Q$8)+SUMIFS(BL$2:BL$500,$AS$2:$AS$500,1,$AX$2:$AX$500,Visor!$Q$8))/(SUMIFS(BK$2:BK$500,$AS$2:$AS$500,2,$AX$2:$AX$500,Visor!$Q$8)+SUMIFS(BK$2:BK$500,$AS$2:$AS$500,1,$AX$2:$AX$500,Visor!$Q$8))-1,"") -> -0.01600604407 | CR15: =IFERROR((SUMIFS(BM$2:BM$500,$AS$2:$AS$500,2,$AX$2:$AX$500,Visor!$Q$8)+SUMIFS(BM$2:BM$500,$AS$2:$AS$500,1,$AX$2:$AX$500,Visor!$Q$8))/(SUMIFS(BL$2:BL$500,$AS$2:$AS$500,2,$AX$2:$AX$500,Visor!$Q$8)+SUMIFS(BL$2:BL$500,$AS$2:$AS$500,1,$AX$2:$AX$500,Visor!$Q$8))-1,"") -> 0.0315300574 | CS15: =IFERROR((SUMIFS(BN$2:BN$500,$AS$2:$AS$500,2,$AX$2:$AX$500,Visor!$Q$8)+SUMIFS(BN$2:BN$500,$AS$2:$AS$500,1,$AX$2:$AX$500,Visor!$Q$8))/(SUMIFS(BM$2:BM$500,$AS$2:$AS$500,2,$AX$2:$AX$500,Visor!$Q$8)+SUMIFS(BM$2:BM$500,$AS$2:$AS$500,1,$AX$2:$AX$500,Visor!$Q$8))-1,"") -> 0.01849678068 | CT15: =IFERROR((SUMIFS(BO$2:BO$500,$AS$2:$AS$500,2,$AX$2:$AX$500,Visor!$Q$8)+SUMIFS(BO$2:BO$500,$AS$2:$AS$500,1,$AX$2:$AX$500,Visor!$Q$8))/(SUMIFS(BN$2:BN$500,$AS$2:$AS$500,2,$AX$2:$AX$500,Visor!$Q$8)+SUMIFS(BN$2:BN$500,$AS$2:$AS$500,1,$AX$2:$AX$500,Visor!$Q$8))-1,"") -> -0.001483986444 | CU15: =IFERROR((SUMIFS(BP$2:BP$500,$AS$2:$AS$500,2,$AX$2:$AX$500,Visor!$Q$8)+SUMIFS(BP$2:BP$500,$AS$2:$AS$500,1,$AX$2:$AX$500,Visor!$Q$8))/(SUMIFS(BO$2:BO$500,$AS$2:$AS$500,2,$AX$2:$AX$500,Visor!$Q$8)+SUMIFS(BO$2:BO$500,$AS$2:$AS$500,1,$AX$2:$AX$500,Visor!$Q$8))-1,"") -> 0.00500649909 | CV15: =IFERROR((SUMIFS(BQ$2:BQ$500,$AS$2:$AS$500,2,$AX$2:$AX$500,Visor!$Q$8)+SUMIFS(BQ$2:BQ$500,$AS$2:$AS$500,1,$AX$2:$AX$500,Visor!$Q$8))/(SUMIFS(BP$2:BP$500,$AS$2:$AS$500,2,$AX$2:$AX$500,Visor!$Q$8)+SUMIFS(BP$2:BP$500,$AS$2:$AS$500,1,$AX$2:$AX$500,Visor!$Q$8))-1,"") -> 0.005583261835 | CW15: =IFERROR((SUMIFS(BR$2:BR$500,$AS$2:$AS$500,2,$AX$2:$AX$500,Visor!$Q$8)+SUMIFS(BR$2:BR$500,$AS$2:$AS$500,1,$AX$2:$AX$500,Visor!$Q$8))/(SUMIFS(BQ$2:BQ$500,$AS$2:$AS$500,2,$AX$2:$AX$500,Visor!$Q$8)+SUMIFS(BQ$2:BQ$500,$AS$2:$AS$500,1,$AX$2:$AX$500,Visor!$Q$8))-1,"") -> 0.007288778574 | CX15: =IFERROR((SUMIFS(BS$2:BS$500,$AS$2:$AS$500,2,$AX$2:$AX$500,Visor!$Q$8)+SUMIFS(BS$2:BS$500,$AS$2:$AS$500,1,$AX$2:$AX$500,Visor!$Q$8))/(SUMIFS(BR$2:BR$500,$AS$2:$AS$500,2,$AX$2:$AX$500,Visor!$Q$8)+SUMIFS(BR$2:BR$500,$AS$2:$AS$500,1,$AX$2:$AX$500,Visor!$Q$8))-1,"") -> 0.02119186773 | CY15: =IFERROR((SUMIFS(BT$2:BT$500,$AS$2:$AS$500,2,$AX$2:$AX$500,Visor!$Q$8)+SUMIFS(BT$2:BT$500,$AS$2:$AS$500,1,$AX$2:$AX$500,Visor!$Q$8))/(SUMIFS(BS$2:BS$500,$AS$2:$AS$500,2,$AX$2:$AX$500,Visor!$Q$8)+SUMIFS(BS$2:BS$500,$AS$2:$AS$500,1,$AX$2:$AX$500,Visor!$Q$8))-1,"") -> 0.01596533777 | CZ15: =IFERROR((SUMIFS(BU$2:BU$500,$AS$2:$AS$500,2,$AX$2:$AX$500,Visor!$Q$8)+SUMIFS(BU$2:BU$500,$AS$2:$AS$500,1,$AX$2:$AX$500,Visor!$Q$8))/(SUMIFS(BT$2:BT$500,$AS$2:$AS$500,2,$AX$2:$AX$500,Visor!$Q$8)+SUMIFS(BT$2:BT$500,$AS$2:$AS$500,1,$AX$2:$AX$500,Visor!$Q$8))-1,"") -> 0.007522094069 | DA15: =IFERROR((SUMIFS(BV$2:BV$500,$AS$2:$AS$500,2,$AX$2:$AX$500,Visor!$Q$8)+SUMIFS(BV$2:BV$500,$AS$2:$AS$500,1,$AX$2:$AX$500,Visor!$Q$8))/(SUMIFS(BU$2:BU$500,$AS$2:$AS$500,2,$AX$2:$AX$500,Visor!$Q$8)+SUMIFS(BU$2:BU$500,$AS$2:$AS$500,1,$AX$2:$AX$500,Visor!$Q$8))-1,"") -> 0.003877294674 | DB15: =IFERROR((SUMIFS(BW$2:BW$500,$AS$2:$AS$500,2,$AX$2:$AX$500,Visor!$Q$8)+SUMIFS(BW$2:BW$500,$AS$2:$AS$500,1,$AX$2:$AX$500,Visor!$Q$8))/(SUMIFS(BV$2:BV$500,$AS$2:$AS$500,2,$AX$2:$AX$500,Visor!$Q$8)+SUMIFS(BV$2:BV$500,$AS$2:$AS$500,1,$AX$2:$AX$500,Visor!$Q$8))-1,"") -> -0.03222618006 | DC15: =IFERROR((SUMIFS(BX$2:BX$500,$AS$2:$AS$500,2,$AX$2:$AX$500,Visor!$Q$8)+SUMIFS(BX$2:BX$500,$AS$2:$AS$500,1,$AX$2:$AX$500,Visor!$Q$8))/(SUMIFS(BW$2:BW$500,$AS$2:$AS$500,2,$AX$2:$AX$500,Visor!$Q$8)+SUMIFS(BW$2:BW$500,$AS$2:$AS$500,1,$AX$2:$AX$500,Visor!$Q$8))-1,"") -> -0.01142266893 | DD15: =IFERROR((SUMIFS(BY$2:BY$500,$AS$2:$AS$500,2,$AX$2:$AX$500,Visor!$Q$8)+SUMIFS(BY$2:BY$500,$AS$2:$AS$500,1,$AX$2:$AX$500,Visor!$Q$8))/(SUMIFS(BX$2:BX$500,$AS$2:$AS$500,2,$AX$2:$AX$500,Visor!$Q$8)+SUMIFS(BX$2:BX$500,$AS$2:$AS$500,1,$AX$2:$AX$500,Visor!$Q$8))-1,"") -> 0.03115287473 | DE15: =IFERROR((SUMIFS(BZ$2:BZ$500,$AS$2:$AS$500,2,$AX$2:$AX$500,Visor!$Q$8)+SUMIFS(BZ$2:BZ$500,$AS$2:$AS$500,1,$AX$2:$AX$500,Visor!$Q$8))/(SUMIFS(BY$2:BY$500,$AS$2:$AS$500,2,$AX$2:$AX$500,Visor!$Q$8)+SUMIFS(BY$2:BY$500,$AS$2:$AS$500,1,$AX$2:$AX$500,Visor!$Q$8))-1,"") -> 0.01621441095 | DF15: =IFERROR((SUMIFS(CA$2:CA$500,$AS$2:$AS$500,2,$AX$2:$AX$500,Visor!$Q$8)+SUMIFS(CA$2:CA$500,$AS$2:$AS$500,1,$AX$2:$AX$500,Visor!$Q$8))/(SUMIFS(BZ$2:BZ$500,$AS$2:$AS$500,2,$AX$2:$AX$500,Visor!$Q$8)+SUMIFS(BZ$2:BZ$500,$AS$2:$AS$500,1,$AX$2:$AX$500,Visor!$Q$8))-1,"") -> -0.008122004852
A16: 5631 | B16: 56312 | C16: 2 | D16: 5 | E16: 631 | F16: 631 | G16: ANTIOQUIA | H16: SABANETA | I16: Dep_sec_priv | J16: 1684 | K16: 1554 | L16: 21591 | M16: 20085 | N16: 19943 | O16: 19788 | P16: 19959 | Q16: 20412 | R16: 20798 | S16: 21235 | T16: 22132 | U16: 21874 | V16: 21782 | W16: 22128 | X16: 22488 | Y16: 22450 | Z16: 22381 | AA16: 22265 | AB16: 22667 | AC16: 23060 | AD16: 23668 | AE16: 24131 | AF16: 24233 | AG16: 23847 | AH16: 23758 | AI16: 24426 | AJ16: 24482 | AK16: 24343 | AL16: FALSO | AQ16: 5088 | AR16: 50883 | AS16: 3 | AT16: 5 | AU16: 88 | AV16: 088 | AW16: ANTIOQUIA | AX16: BELLO | AY16: Independiente | AZ16: 615 | BA16: 406 | BB16: 9821 | BC16: 9942 | BD16: 10083 | BE16: 10276 | BF16: 10496 | BG16: 10715 | BH16: 11076 | BI16: 11414 | BJ16: 11717 | BK16: 11559 | BL16: 10714 | BM16: 11192 | BN16: 11622 | BO16: 11794 | BP16: 12056 | BQ16: 12209 | BR16: 12315 | BS16: 12482 | BT16: 12622 | BU16: 12781 | BV16: 13063 | BW16: 12770 | BX16: 12692 | BY16: 13171 | BZ16: 13173 | CA16: 12963 | CG16: Dep.Privados | CH16: =IFERROR(SUMIFS(BC$2:BC$500,$AS$2:$AS$500,2,$AX$2:$AX$500,Visor!$Q$8)/SUMIFS(BB$2:BB$500,$AS$2:$AS$500,2,$AX$2:$AX$500,Visor!$Q$8)-1,"") -> -0.07489109244 | CI16: =IFERROR(SUMIFS(BD$2:BD$500,$AS$2:$AS$500,2,$AX$2:$AX$500,Visor!$Q$8)/SUMIFS(BC$2:BC$500,$AS$2:$AS$500,2,$AX$2:$AX$500,Visor!$Q$8)-1,"") -> -0.001947240651 | CJ16: =IFERROR(SUMIFS(BE$2:BE$500,$AS$2:$AS$500,2,$AX$2:$AX$500,Visor!$Q$8)/SUMIFS(BD$2:BD$500,$AS$2:$AS$500,2,$AX$2:$AX$500,Visor!$Q$8)-1,"") -> 0.003365296053 | CK16: =IFERROR(SUMIFS(BF$2:BF$500,$AS$2:$AS$500,2,$AX$2:$AX$500,Visor!$Q$8)/SUMIFS(BE$2:BE$500,$AS$2:$AS$500,2,$AX$2:$AX$500,Visor!$Q$8)-1,"") -> 0.006025963463 | CL16: =IFERROR(SUMIFS(BG$2:BG$500,$AS$2:$AS$500,2,$AX$2:$AX$500,Visor!$Q$8)/SUMIFS(BF$2:BF$500,$AS$2:$AS$500,2,$AX$2:$AX$500,Visor!$Q$8)-1,"") -> 0.003127879037 | CM16: =IFERROR(SUMIFS(BH$2:BH$500,$AS$2:$AS$500,2,$AX$2:$AX$500,Visor!$Q$8)/SUMIFS(BG$2:BG$500,$AS$2:$AS$500,2,$AX$2:$AX$500,Visor!$Q$8)-1,"") -> 0.02006437737 | CN16: =IFERROR(SUMIFS(BI$2:BI$500,$AS$2:$AS$500,2,$AX$2:$AX$500,Visor!$Q$8)/SUMIFS(BH$2:BH$500,$AS$2:$AS$500,2,$AX$2:$AX$500,Visor!$Q$8)-1,"") -> 0.01715658778 | CO16: =IFERROR(SUMIFS(BJ$2:BJ$500,$AS$2:$AS$500,2,$AX$2:$AX$500,Visor!$Q$8)/SUMIFS(BI$2:BI$500,$AS$2:$AS$500,2,$AX$2:$AX$500,Visor!$Q$8)-1,"") -> 0.0120954058 | CP16: =IFERROR(SUMIFS(BK$2:BK$500,$AS$2:$AS$500,2,$AX$2:$AX$500,Visor!$Q$8)/SUMIFS(BJ$2:BJ$500,$AS$2:$AS$500,2,$AX$2:$AX$500,Visor!$Q$8)-1,"") -> -0.003775915175 | CQ16: =IFERROR(SUMIFS(BL$2:BL$500,$AS$2:$AS$500,2,$AX$2:$AX$500,Visor!$Q$8)/SUMIFS(BK$2:BK$500,$AS$2:$AS$500,2,$AX$2:$AX$500,Visor!$Q$8)-1,"") -> -0.01282169947 | CR16: =IFERROR(SUMIFS(BM$2:BM$500,$AS$2:$AS$500,2,$AX$2:$AX$500,Visor!$Q$8)/SUMIFS(BL$2:BL$500,$AS$2:$AS$500,2,$AX$2:$AX$500,Visor!$Q$8)-1,"") -> 0.02095410554 | CS16: =IFERROR(SUMIFS(BN$2:BN$500,$AS$2:$AS$500,2,$AX$2:$AX$500,Visor!$Q$8)/SUMIFS(BM$2:BM$500,$AS$2:$AS$500,2,$AX$2:$AX$500,Visor!$Q$8)-1,"") -> 0.01328195443 | CT16: =IFERROR(SUMIFS(BO$2:BO$500,$AS$2:$AS$500,2,$AX$2:$AX$500,Visor!$Q$8)/SUMIFS(BN$2:BN$500,$AS$2:$AS$500,2,$AX$2:$AX$500,Visor!$Q$8)-1,"") -> -0.001002451658 | CU16: =IFERROR(SUMIFS(BP$2:BP$500,$AS$2:$AS$500,2,$AX$2:$AX$500,Visor!$Q$8)/SUMIFS(BO$2:BO$500,$AS$2:$AS$500,2,$AX$2:$AX$500,Visor!$Q$8)-1,"") -> 0.002521931734 | CV16: =IFERROR(SUMIFS(BQ$2:BQ$500,$AS$2:$AS$500,2,$AX$2:$AX$500,Visor!$Q$8)/SUMIFS(BP$2:BP$500,$AS$2:$AS$500,2,$AX$2:$AX$500,Visor!$Q$8)-1,"") -> 0.006569595943 | CW16: =IFERROR(SUMIFS(BR$2:BR$500,$AS$2:$AS$500,2,$AX$2:$AX$500,Visor!$Q$8)/SUMIFS(BQ$2:BQ$500,$AS$2:$AS$500,2,$AX$2:$AX$500,Visor!$Q$8)-1,"") -> 0.01161132836 | CX16: =IFERROR(SUMIFS(BS$2:BS$500,$AS$2:$AS$500,2,$AX$2:$AX$500,Visor!$Q$8)/SUMIFS(BR$2:BR$500,$AS$2:$AS$500,2,$AX$2:$AX$500,Visor!$Q$8)-1,"") -> 0.0135364899 | CY16: =IFERROR(SUMIFS(BT$2:BT$500,$AS$2:$AS$500,2,$AX$2:$AX$500,Visor!$Q$8)/SUMIFS(BS$2:BS$500,$AS$2:$AS$500,2,$AX$2:$AX$500,Visor!$Q$8)-1,"") -> 0.01193058472 | CZ16: =IFERROR(SUMIFS(BU$2:BU$500,$AS$2:$AS$500,2,$AX$2:$AX$500,Visor!$Q$8)/SUMIFS(BT$2:BT$500,$AS$2:$AS$500,2,$AX$2:$AX$500,Visor!$Q$8)-1,"") -> 0.006630191133 | DA16: =IFERROR(SUMIFS(BV$2:BV$500,$AS$2:$AS$500,2,$AX$2:$AX$500,Visor!$Q$8)/SUMIFS(BU$2:BU$500,$AS$2:$AS$500,2,$AX$2:$AX$500,Visor!$Q$8)-1,"") -> 0.009334165742 | DB16: =IFERROR(SUMIFS(BW$2:BW$500,$AS$2:$AS$500,2,$AX$2:$AX$500,Visor!$Q$8)/SUMIFS(BV$2:BV$500,$AS$2:$AS$500,2,$AX$2:$AX$500,Visor!$Q$8)-1,"") -> -0.01375676144 | DC16: =IFERROR(SUMIFS(BX$2:BX$500,$AS$2:$AS$500,2,$AX$2:$AX$500,Visor!$Q$8)/SUMIFS(BW$2:BW$500,$AS$2:$AS$500,2,$AX$2:$AX$500,Visor!$Q$8)-1,"") -> -0.007159066491 | DD16: =IFERROR(SUMIFS(BY$2:BY$500,$AS$2:$AS$500,2,$AX$2:$AX$500,Visor!$Q$8)/SUMIFS(BX$2:BX$500,$AS$2:$AS$500,2,$AX$2:$AX$500,Visor!$Q$8)-1,"") -> 0.01780413603 | DE16: =IFERROR(SUMIFS(BZ$2:BZ$500,$AS$2:$AS$500,2,$AX$2:$AX$500,Visor!$Q$8)/SUMIFS(BY$2:BY$500,$AS$2:$AS$500,2,$AX$2:$AX$500,Visor!$Q$8)-1,"") -> 0.009076112278 | DF16: =IFERROR(SUMIFS(CA$2:CA$500,$AS$2:$AS$500,2,$AX$2:$AX$500,Visor!$Q$8)/SUMIFS(BZ$2:BZ$500,$AS$2:$AS$500,2,$AX$2:$AX$500,Visor!$Q$8)-1,"") -> -0.005113146242
A17: 13001 | B17: 130012 | C17: 2 | D17: 13 | E17: 1 | F17: 001 | G17: BOLÍVAR | H17: CARTAGENA | I17: Dep_sec_priv | J17: 19574 | K17: 16517 | L17: 212304 | M17: 192636 | N17: 190468 | O17: 187854 | P17: 186353 | Q17: 187174 | R17: 189079 | S17: 192743 | T17: 196716 | U17: 198977 | V17: 194033 | W17: 200245 | X17: 206157 | Y17: 205111 | Z17: 203456 | AA17: 204999 | AB17: 207741 | AC17: 211672 | AD17: 216023 | AE17: 220000 | AF17: 222680 | AG17: 222739 | AH17: 220413 | AI17: 226293 | AJ17: 231091 | AK17: 229588 | AL17: FALSO | AQ17: 5059 | AR17: 50592 | AS17: 2 | AT17: 5 | AU17: 59 | AV17: 059 | AW17: ANTIOQUIA | AX17: ARMENIA | AY17: Dep_sec_priv | AZ17: 15 | BA17: 12 | BB17: 160 | BC17: 162 | BD17: 160 | BE17: 172 | BF17: 171 | BG17: 179 | BH17: 170 | BI17: 162 | BJ17: 166 | BK17: 171 | BL17: 160 | BM17: 164 | BN17: 189 | BO17: 174 | BP17: 201 | BQ17: 186 | BR17: 228 | BS17: 307 | BT17: 263 | BU17: 285 | BV17: 310 | BW17: 298 | BX17: 186 | BY17: 169 | BZ17: 181 | CA17: 183
A18: 68013 | B18: 680132 | C18: 2 | D18: 68 | E18: 13 | F18: 013 | G18: SANTANDER | H18: AGUADA | I18: Dep_sec_priv | J18: 14 | K18: 14 | L18: 842 | M18: 794 | N18: 714 | O18: 783 | P18: 834 | Q18: 710 | R18: 717 | S18: 704 | T18: 842 | U18: 1014 | V18: 981 | W18: 982 | X18: 1883 | Y18: 757 | Z18: 779 | AA18: 1646 | AB18: 709 | AC18: 743 | AD18: 965 | AE18: 1387 | AF18: 374 | AG18: 473 | AH18: 403 | AI18: 410 | AJ18: 363 | AK18: 266 | AL18: FALSO | AQ18: 5088 | AR18: 50882 | AS18: 2 | AT18: 5 | AU18: 88 | AV18: 088 | AW18: ANTIOQUIA | AX18: BELLO | AY18: Dep_sec_priv | AZ18: 3151 | BA18: 2958 | BB18: 36502 | BC18: 33656 | BD18: 33973 | BE18: 35145 | BF18: 35479 | BG18: 35160 | BH18: 35489 | BI18: 35981 | BJ18: 36330 | BK18: 35922 | BL18: 35470 | BM18: 36973 | BN18: 37598 | BO18: 37328 | BP18: 37468 | BQ18: 36683 | BR18: 37198 | BS18: 37669 | BT18: 38246 | BU18: 38580 | BV18: 39328 | BW18: 37569 | BX18: 37836 | BY18: 38528 | BZ18: 38412 | CA18: 38376
A19: 25126 | B19: 251263 | C19: 3 | D19: 25 | E19: 126 | F19: 126 | G19: CUNDINAMARCA | H19: CAJICÁ | I19: Independiente | J19: 250 | K19: 227 | L19: 4625 | M19: 4438 | N19: 4467 | O19: 4574 | P19: 4722 | Q19: 4763 | R19: 4930 | S19: 5054 | T19: 5072 | U19: 5065 | V19: 4994 | W19: 5172 | X19: 5271 | Y19: 5359 | Z19: 5408 | AA19: 5446 | AB19: 5470 | AC19: 5552 | AD19: 5629 | AE19: 5670 | AF19: 5702 | AG19: 5670 | AH19: 5661 | AI19: 5865 | AJ19: 5902 | AK19: 5789 | AL19: FALSO | AQ19: 5212 | AR19: 52122 | AS19: 2 | AT19: 5 | AU19: 212 | AV19: 212 | AW19: ANTIOQUIA | AX19: COPACABANA | AY19: Dep_sec_priv | AZ19: 502 | BA19: 433 | BB19: 7459 | BC19: 7032 | BD19: 6813 | BE19: 6905 | BF19: 7047 | BG19: 7164 | BH19: 7359 | BI19: 7630 | BJ19: 7840 | BK19: 7729 | BL19: 7718 | BM19: 7785 | BN19: 7825 | BO19: 7660 | BP19: 7511 | BQ19: 7429 | BR19: 7391 | BS19: 7449 | BT19: 7492 | BU19: 7508 | BV19: 7389 | BW19: 7356 | BX19: 7480 | BY19: 7656 | BZ19: 7797 | CA19: 7849
A20: 41001 | B20: 410013 | C20: 3 | D20: 41 | E20: 1 | F20: 001 | G20: HUILA | H20: NEIVA | I20: Independiente | J20: 1052 | K20: 939 | L20: 21048 | M20: 20264 | N20: 20332 | O20: 20655 | P20: 21043 | Q20: 21451 | R20: 21962 | S20: 22350 | T20: 22663 | U20: 22346 | V20: 20721 | W20: 21746 | X20: 22194 | Y20: 22506 | Z20: 22447 | AA20: 22627 | AB20: 22863 | AC20: 23050 | AD20: 23218 | AE20: 23452 | AF20: 23595 | AG20: 23244 | AH20: 22856 | AI20: 23466 | AJ20: 23341 | AK20: 22734 | AL20: FALSO | AQ20: 5091 | AR20: 50913 | AS20: 3 | AT20: 5 | AU20: 91 | AV20: 091 | AW20: ANTIOQUIA | AX20: BETANIA | AY20: Independiente | AZ20: 1 | BA20: 1 | BB20: 290 | BC20: 282 | BD20: 279 | BE20: 288 | BF20: 289 | BG20: 291 | BH20: 291 | BI20: 315 | BJ20: 327 | BK20: 321 | BL20: 289 | BM20: 286 | BN20: 277 | BO20: 273 | BP20: 266 | BQ20: 266 | BR20: 264 | BS20: 270 | BT20: 270 | BU20: 268 | BV20: 265 | BW20: 258 | BX20: 240 | BY20: 257 | BZ20: 254 | CA20: 249
A21: 5001 | B21: 50013 | C21: 3 | D21: 5 | E21: 1 | F21: 001 | G21: ANTIOQUIA | H21: MEDELLÍN | I21: Independiente | J21: 8727 | K21: 6558 | L21: 193750 | M21: 186035 | N21: 186809 | O21: 189841 | P21: 191610 | Q21: 193311 | R21: 195883 | S21: 198275 | T21: 200237 | U21: 199258 | V21: 193740 | W21: 195332 | X21: 197226 | Y21: 197879 | Z21: 198506 | AA21: 199136 | AB21: 199265 | AC21: 201436 | AD21: 202952 | AE21: 203652 | AF21: 204861 | AG21: 202400 | AH21: 197352 | AI21: 200814 | AJ21: 201094 | AK21: 196138 | AL21: FALSO | AQ21: 5736 | AR21: 57361 | AS21: 1 | AT21: 5 | AU21: 736 | AV21: 736 | AW21: ANTIOQUIA | AX21: SEGOVIA | AY21: Dep_No_priv | AZ21: 25 | BA21: 9 | BB21: 517 | BC21: 507 | BD21: 501 | BE21: 495 | BF21: 512 | BG21: 535 | BH21: 539 | BI21: 530 | BJ21: 534 | BK21: 539 | BL21: 534 | BM21: 543 | BN21: 537 | BO21: 522 | BP21: 517 | BQ21: 523 | BR21: 526 | BS21: 528 | BT21: 523 | BU21: 524 | BV21: 538 | BW21: 540 | BX21: 514 | BY21: 514 | BZ21: 563 | CA21: 549
A22: 63001 | B22: 630013 | C22: 3 | D22: 63 | E22: 1 | F22: 001 | G22: QUINDÍO | H22: ARMENIA | I22: Independiente | J22: 804 | K22: 808 | L22: 23383 | M22: 22527 | N22: 22412 | O22: 22353 | P22: 22272 | Q22: 22416 | R22: 22658 | S22: 22948 | T22: 23608 | U22: 23408 | V22: 22103 | W22: 23111 | X22: 23409 | Y22: 23486 | Z22: 23410 | AA22: 23565 | AB22: 23649 | AC22: 23736 | AD22: 24016 | AE22: 24191 | AF22: 24291 | AG22: 23849 | AH22: 24653 | AI22: 24991 | AJ22: 24789 | AK22: 24241 | AL22: FALSO | AQ22: 5091 | AR22: 50911 | AS22: 1 | AT22: 5 | AU22: 91 | AV22: 091 | AW22: ANTIOQUIA | AX22: BETANIA | AY22: Dep_No_priv | AZ22: 9 | BA22: 6 | BB22: 164 | BC22: 164 | BD22: 164 | BE22: 163 | BF22: 164 | BG22: 164 | BH22: 163 | BI22: 160 | BJ22: 159 | BK22: 166 | BL22: 157 | BM22: 158 | BN22: 160 | BO22: 161 | BP22: 164 | BQ22: 163 | BR22: 168 | BS22: 172 | BT22: 169 | BU22: 175 | BV22: 174 | BW22: 177 | BX22: 163 | BY22: 158 | BZ22: 169 | CA22: 163
A23: 23001 | B23: 230012 | C23: 2 | D23: 23 | E23: 1 | F23: 001 | G23: CÓRDOBA | H23: MONTERÍA | I23: Dep_sec_priv | J23: 7465 | K23: 6384 | L23: 73706 | M23: 69043 | N23: 70790 | O23: 70846 | P23: 70829 | Q23: 71129 | R23: 72090 | S23: 73344 | T23: 74735 | U23: 74478 | V23: 68967 | W23: 70557 | X23: 72210 | Y23: 72754 | Z23: 73728 | AA23: 74735 | AB23: 75215 | AC23: 76323 | AD23: 78603 | AE23: 79305 | AF23: 81572 | AG23: 81048 | AH23: 76280 | AI23: 79289 | AJ23: 81735 | AK23: 83513 | AL23: FALSO | AQ23: 5873 | AR23: 58731 | AS23: 1 | AT23: 5 | AU23: 873 | AV23: 873 | AW23: ANTIOQUIA | AX23: VIGÍA DEL FUERTE | AY23: Dep_No_priv | AZ23: 4 | BA23: 4 | BB23: 186 | BC23: 185 | BD23: 184 | BE23: 181 | BF23: 184 | BG23: 187 | BH23: 184 | BI23: 189 | BJ23: 190 | BK23: 190 | BL23: 180 | BM23: 194 | BN23: 196 | BO23: 188 | BP23: 182 | BQ23: 181 | BR23: 181 | BS23: 180 | BT23: 182 | BU23: 185 | BV23: 188 | BW23: 188 | BX23: 186 | BY23: 180 | BZ23: 188 | CA23: 180
A24: 23001 | B24: 230013 | C24: 3 | D24: 23 | E24: 1 | F24: 001 | G24: CÓRDOBA | H24: MONTERÍA | I24: Independiente | J24: 927 | K24: 696 | L24: 16257 | M24: 15613 | N24: 15602 | O24: 15767 | P24: 15990 | Q24: 16186 | R24: 16484 | S24: 16816 | T24: 17104 | U24: 16668 | V24: 15488 | W24: 16157 | X24: 16808 | Y24: 17066 | Z24: 17289 | AA24: 17484 | AB24: 17639 | AC24: 17839 | AD24: 17986 | AE24: 18194 | AF24: 18265 | AG24: 17651 | AH24: 16753 | AI24: 17695 | AJ24: 17446 | AK24: 17007 | AL24: FALSO | AQ24: 5004 | AR24: 50043 | AS24: 3 | AT24: 5 | AU24: 4 | AV24: 004 | AW24: ANTIOQUIA | AX24: ABRIAQUÍ | AY24: Independiente | AZ24: 3 | BA24: 1 | BB24: 57 | BC24: 55 | BD24: 56 | BE24: 58 | BF24: 55 | BG24: 52 | BH24: 126 | BI24: 137 | BJ24: 137 | BK24: 137 | BL24: 113 | BM24: 118 | BN24: 118 | BO24: 110 | BP24: 66 | BQ24: 70 | BR24: 72 | BS24: 71 | BT24: 76 | BU24: 72 | BV24: 71 | BW24: 69 | BX24: 45 | BY24: 69 | BZ24: 66 | CA24: 65
A25: 68001 | B25: 680012 | C25: 2 | D25: 68 | E25: 1 | F25: 001 | G25: SANTANDER | H25: BUCARAMANGA | I25: Dep_sec_priv | J25: 19360 | K25: 18472 | L25: 247709 | M25: 224579 | N25: 222139 | O25: 224860 | P25: 226486 | Q25: 228001 | R25: 231410 | S25: 234523 | T25: 238446 | U25: 237216 | V25: 231609 | W25: 238561 | X25: 241734 | Y25: 242400 | Z25: 241691 | AA25: 245242 | AB25: 248278 | AC25: 251811 | AD25: 253007 | AE25: 254390 | AF25: 258415 | AG25: 254874 | AH25: 251545 | AI25: 255659 | AJ25: 258450 | AK25: 255092 | AL25: FALSO | AQ25: 5483 | AR25: 54831 | AS25: 1 | AT25: 5 | AU25: 483 | AV25: 483 | AW25: ANTIOQUIA | AX25: NARIÑO | AY25: Dep_No_priv | AZ25: 7 | BA25: 1 | BB25: 189 | BC25: 190 | BD25: 190 | BE25: 191 | BF25: 192 | BG25: 193 | BH25: 194 | BI25: 194 | BJ25: 189 | BK25: 187 | BL25: 189 | BM25: 194 | BN25: 195 | BO25: 203 | BP25: 208 | BQ25: 203 | BR25: 200 | BS25: 192 | BT25: 195 | BU25: 194 | BV25: 197 | BW25: 197 | BX25: 191 | BY25: 189 | BZ25: 198 | CA25: 188
A26: 8001 | B26: 80013 | C26: 3 | D26: 8 | E26: 1 | F26: 001 | G26: ATLÁNTICO | H26: BARRANQUILLA | I26: Independiente | J26: 4956 | K26: 4097 | L26: 63365 | M26: 68331 | N26: 68011 | O26: 62778 | P26: 63014 | Q26: 63619 | R26: 64866 | S26: 65973 | T26: 66448 | U26: 64460 | V26: 61076 | W26: 62085 | X26: 64041 | Y26: 65641 | Z26: 66708 | AA26: 67167 | AB26: 67158 | AC26: 67803 | AD26: 68378 | AE26: 68752 | AF26: 68950 | AG26: 65849 | AH26: 63968 | AI26: 67721 | AJ26: 67974 | AK26: 65945 | AL26: FALSO | AQ26: 5282 | AR26: 52821 | AS26: 1 | AT26: 5 | AU26: 282 | AV26: 282 | AW26: ANTIOQUIA | AX26: FREDONIA | AY26: Dep_No_priv | AZ26: 19 | BA26: 6 | BB26: 367 | BC26: 368 | BD26: 377 | BE26: 378 | BF26: 375 | BG26: 385 | BH26: 393 | BI26: 388 | BJ26: 383 | BK26: 375 | BL26: 361 | BM26: 353 | BN26: 374 | BO26: 390 | BP26: 399 | BQ26: 393 | BR26: 398 | BS26: 394 | BT26: 397 | BU26: 407 | BV26: 422 | BW26: 404 | BX26: 397 | BY26: 375 | BZ26: 382 | CA26: 375
A27: 25175 | B27: 251753 | C27: 3 | D27: 25 | E27: 175 | F27: 175 | G27: CUNDINAMARCA | H27: CHÍA | I27: Independiente | J27: 328 | K27: 286 | L27: 10121 | M27: 9821 | N27: 9891 | O27: 10081 | P27: 10184 | Q27: 10181 | R27: 10292 | S27: 10427 | T27: 10546 | U27: 10611 | V27: 10348 | W27: 10533 | X27: 10747 | Y27: 10829 | Z27: 10920 | AA27: 10928 | AB27: 11007 | AC27: 11020 | AD27: 11087 | AE27: 11111 | AF27: 11070 | AG27: 11146 | AH27: 11022 | AI27: 11083 | AJ27: 10909 | AK27: 10559 | AL27: FALSO | AQ27: 5129 | AR27: 51292 | AS27: 2 | AT27: 5 | AU27: 129 | AV27: 129 | AW27: ANTIOQUIA | AX27: CALDAS | AY27: Dep_sec_priv | AZ27: 704 | BA27: 709 | BB27: 7904 | BC27: 6746 | BD27: 7032 | BE27: 7120 | BF27: 7459 | BG27: 7612 | BH27: 7826 | BI27: 8086 | BJ27: 8241 | BK27: 8323 | BL27: 8462 | BM27: 8552 | BN27: 8699 | BO27: 8689 | BP27: 8644 | BQ27: 8694 | BR27: 8726 | BS27: 8753 | BT27: 8931 | BU27: 9133 | BV27: 9106 | BW27: 8936 | BX27: 8691 | BY27: 8761 | BZ27: 8835 | CA27: 8818
A28: 50006 | B28: 500063 | C28: 3 | D28: 50 | E28: 6 | F28: 006 | G28: META | H28: ACACÍAS | I28: Independiente | J28: 127 | K28: 118 | L28: 2506 | M28: 2391 | N28: 2368 | O28: 2429 | P28: 2411 | Q28: 2452 | R28: 2474 | S28: 2547 | T28: 2555 | U28: 2582 | V28: 2404 | W28: 2479 | X28: 2544 | Y28: 2587 | Z28: 2643 | AA28: 2657 | AB28: 2745 | AC28: 2719 | AD28: 2737 | AE28: 2725 | AF28: 2715 | AG28: 2719 | AH28: 2679 | AI28: 2703 | AJ28: 2700 | AK28: 2639 | AL28: FALSO | AQ28: 5579 | AR28: 55792 | AS28: 2 | AT28: 5 | AU28: 579 | AV28: 579 | AW28: ANTIOQUIA | AX28: PUERTO BERRÍO | AY28: Dep_sec_priv | AZ28: 792 | BA28: 623 | BB28: 5422 | BC28: 4957 | BD28: 5048 | BE28: 5047 | BF28: 5161 | BG28: 5253 | BH28: 5566 | BI28: 5621 | BJ28: 5472 | BK28: 5707 | BL28: 5688 | BM28: 5941 | BN28: 6224 | BO28: 6406 | BP28: 6480 | BQ28: 6671 | BR28: 6514 | BS28: 6427 | BT28: 6561 | BU28: 5977 | BV28: 5974 | BW28: 5596 | BX28: 5676 | BY28: 6011 | BZ28: 5956 | CA28: 5961 | CG28: Novedades | CH28: Privados | CJ28: Independientes | CN28: Privados | CP28: Independientes
A29: 68001 | B29: 680011 | C29: 1 | D29: 68 | E29: 1 | F29: 001 | G29: SANTANDER | H29: BUCARAMANGA | I29: Dep_No_priv | J29: 4901 | K29: 2852 | L29: 44933 | M29: 35336 | N29: 36393 | O29: 46287 | P29: 33674 | Q29: 36753 | R29: 38674 | S29: 46678 | T29: 41299 | U29: 38414 | V29: 30926 | W29: 38517 | X29: 41394 | Y29: 42688 | Z29: 44032 | AA29: 43982 | AB29: 49397 | AC29: 54124 | AD29: 54643 | AE29: 55358 | AF29: 64771 | AG29: 37683 | AH29: 34507 | AI29: 41417 | AJ29: 44575 | AK29: 44863 | AL29: FALSO | AQ29: 5360 | AR29: 53602 | AS29: 2 | AT29: 5 | AU29: 360 | AV29: 360 | AW29: ANTIOQUIA | AX29: ITAGUI | AY29: Dep_sec_priv | AZ29: 3288 | BA29: 3171 | BB29: 47445 | BC29: 44060 | BD29: 43995 | BE29: 44538 | BF29: 45027 | BG29: 45726 | BH29: 47045 | BI29: 47593 | BJ29: 47892 | BK29: 47823 | BL29: 46865 | BM29: 48000 | BN29: 48770 | BO29: 48999 | BP29: 49000 | BQ29: 50508 | BR29: 50703 | BS29: 50786 | BT29: 51275 | BU29: 52198 | BV29: 52454 | BW29: 51635 | BX29: 51098 | BY29: 51651 | BZ29: 52138 | CA29: 51057 | CH29: Ingresos | CI29: Retiros | CJ29: Ingresos | CK29: Retiros | CN29: Ingresos | CO29: Retiros | CP29: Ingresos | CQ29: Retiros
A30: 73001 | B30: 730013 | C30: 3 | D30: 73 | E30: 1 | F30: 001 | G30: TOLIMA | H30: IBAGUÉ | I30: Independiente | J30: 1473 | K30: 1474 | L30: 29852 | M30: 29165 | N30: 29319 | O30: 29839 | P30: 29963 | Q30: 30229 | R30: 30553 | S30: 31256 | T30: 31784 | U30: 31530 | V30: 29175 | W30: 30227 | X30: 30957 | Y30: 31249 | Z30: 31577 | AA30: 31929 | AB30: 32426 | AC30: 32785 | AD30: 33167 | AE30: 33509 | AF30: 33602 | AG30: 32889 | AH30: 32212 | AI30: 33206 | AJ30: 33051 | AK30: 31905 | AL30: FALSO | AQ30: 5615 | AR30: 56152 | AS30: 2 | AT30: 5 | AU30: 615 | AV30: 615 | AW30: ANTIOQUIA | AX30: RIONEGRO | AY30: Dep_sec_priv | AZ30: 4836 | BA30: 4540 | BB30: 45506 | BC30: 40595 | BD30: 40670 | BE30: 41760 | BF30: 41787 | BG30: 42100 | BH30: 43626 | BI30: 44893 | BJ30: 45783 | BK30: 45425 | BL30: 46193 | BM30: 47108 | BN30: 47878 | BO30: 47073 | BP30: 46756 | BQ30: 47814 | BR30: 48854 | BS30: 49215 | BT30: 50710 | BU30: 51246 | BV30: 51318 | BW30: 50460 | BX30: 52542 | BY30: 53043 | BZ30: 53480 | CA30: 53536 | CG30: =Visor!$Q$7 -> ANTIOQUIA | CH30: =SUMIFS($AZ$2:$AZ$500,$AY$2:$AY$500,"Dep_sec_priv") -> 125589 | CI30: =SUMIFS($BA$2:$BA$500,$AY$2:$AY$500,"Dep_sec_priv") -> 116765 | CJ30: =SUMIFS($AZ$2:$AZ$500,$AY$2:$AY$500,"Independiente") -> 14187 | CK30: =SUMIFS($BA$2:$BA$500,$AY$2:$AY$500,"Independiente") -> 10291 | CM30: =Visor!$Q$7 -> ANTIOQUIA | CN30: =CH30/CH$30 -> 1 | CO30: 1 | CP30: 1 | CQ30: 1
A31: 8001 | B31: 80012 | C31: 2 | D31: 8 | E31: 1 | F31: 001 | G31: ATLÁNTICO | H31: BARRANQUILLA | I31: Dep_sec_priv | J31: 37600 | K31: 34043 | L31: 391444 | M31: 362420 | N31: 363833 | O31: 366803 | P31: 369929 | Q31: 370111 | R31: 374509 | S31: 379189 | T31: 382084 | U31: 380582 | V31: 374106 | W31: 381775 | X31: 389741 | Y31: 390642 | Z31: 392930 | AA31: 398075 | AB31: 403044 | AC31: 408815 | AD31: 413545 | AE31: 418282 | AF31: 422433 | AG31: 419871 | AH31: 411225 | AI31: 419482 | AJ31: 423769 | AK31: 421523 | AL31: FALSO | AQ31: 5284 | AR31: 52841 | AS31: 1 | AT31: 5 | AU31: 284 | AV31: 284 | AW31: ANTIOQUIA | AX31: FRONTINO | AY31: Dep_No_priv | AZ31: 19 | BA31: 4 | BB31: 356 | BC31: 360 | BD31: 365 | BE31: 366 | BF31: 372 | BG31: 381 | BH31: 382 | BI31: 379 | BJ31: 369 | BK31: 373 | BL31: 361 | BM31: 433 | BN31: 443 | BO31: 442 | BP31: 445 | BQ31: 450 | BR31: 433 | BS31: 438 | BT31: 436 | BU31: 440 | BV31: 437 | BW31: 445 | BX31: 400 | BY31: 414 | BZ31: 431 | CA31: 422 | CG31: =Visor!$Q$8 -> MEDELLÍN | CH31: =SUMIFS($AZ$2:$AZ$500,$AY$2:$AY$500,"Dep_sec_priv",$AX$2:$AX$500,Visor!$Q$8) -> 87177 | CI31: =SUMIFS($BA$2:$BA$500,$AY$2:$AY$500,"Dep_sec_priv",$AX$2:$AX$500,Visor!$Q$8) -> 81359 | CJ31: =SUMIFS($AZ$2:$AZ$500,$AY$2:$AY$500,"Independiente",$AX$2:$AX$500,Visor!$Q$8) -> 8727 | CK31: =SUMIFS($BA$2:$BA$500,$AY$2:$AY$500,"Independiente",$AX$2:$AX$500,Visor!$Q$8) -> 6558 | CM31: =Visor!$Q$8 -> MEDELLÍN | CN31: 0.6941451879 | CO31: 0.6967755749 | CP31: 0.6151406217 | CQ31: 0.6372558546
A32: 19698 | B32: 196982 | C32: 2 | D32: 19 | E32: 698 | F32: 698 | G32: CAUCA | H32: SANTANDER DE QUILICHAO | I32: Dep_sec_priv | J32: 486 | K32: 435 | L32: 8082 | M32: 7661 | N32: 7518 | O32: 7397 | P32: 7538 | Q32: 7768 | R32: 7764 | S32: 7884 | T32: 7698 | U32: 7727 | V32: 6761 | W32: 7642 | X32: 7780 | Y32: 7878 | Z32: 7654 | AA32: 7834 | AB32: 8153 | AC32: 8102 | AD32: 8193 | AE32: 8203 | AF32: 8282 | AG32: 8058 | AH32: 7142 | AI32: 7846 | AJ32: 7620 | AK32: 8148 | AL32: FALSO | AQ32: 5690 | AR32: 56902 | AS32: 2 | AT32: 5 | AU32: 690 | AV32: 690 | AW32: ANTIOQUIA | AX32: SANTO DOMINGO | AY32: Dep_sec_priv | AZ32: 29 | BA32: 28 | BB32: 242 | BC32: 281 | BD32: 268 | BE32: 272 | BF32: 252 | BG32: 265 | BH32: 265 | BI32: 285 | BJ32: 278 | BK32: 277 | BL32: 249 | BM32: 251 | BN32: 255 | BO32: 248 | BP32: 250 | BQ32: 245 | BR32: 274 | BS32: 262 | BT32: 289 | BU32: 282 | BV32: 259 | BW32: 254 | BX32: 197 | BY32: 210 | BZ32: 233 | CA32: 227
A33: 41001 | B33: 410012 | C33: 2 | D33: 41 | E33: 1 | F33: 001 | G33: HUILA | H33: NEIVA | I33: Dep_sec_priv | J33: 7041 | K33: 6859 | L33: 74774 | M33: 67222 | N33: 67147 | O33: 67508 | P33: 68467 | Q33: 69176 | R33: 71021 | S33: 72400 | T33: 73766 | U33: 72694 | V33: 69881 | W33: 72352 | X33: 73371 | Y33: 73912 | Z33: 72400 | AA33: 73780 | AB33: 75436 | AC33: 77690 | AD33: 78625 | AE33: 79471 | AF33: 80506 | AG33: 79588 | AH33: 77956 | AI33: 80751 | AJ33: 81292 | AK33: 79778 | AL33: FALSO | AQ33: 5045 | AR33: 50452 | AS33: 2 | AT33: 5 | AU33: 45 | AV33: 045 | AW33: ANTIOQUIA | AX33: APARTADÓ | AY33: Dep_sec_priv | AZ33: 2452 | BA33: 2452 | BB33: 34764 | BC33: 32800 | BD33: 34233 | BE33: 34940 | BF33: 35403 | BG33: 35476 | BH33: 35799 | BI33: 36179 | BJ33: 36470 | BK33: 36056 | BL33: 35616 | BM33: 36118 | BN33: 36909 | BO33: 37166 | BP33: 37715 | BQ33: 37207 | BR33: 36818 | BS33: 36930 | BT33: 37491 | BU33: 37495 | BV33: 37207 | BW33: 36161 | BX33: 35831 | BY33: 36499 | BZ33: 36441 | CA33: 35764
A34: 66400 | B34: 664002 | C34: 2 | D34: 66 | E34: 400 | F34: 400 | G34: RISARALDA | H34: LA VIRGINIA | I34: Dep_sec_priv | J34: 240 | K34: 257 | L34: 2853 | M34: 2751 | N34: 2864 | O34: 2781 | P34: 2804 | Q34: 2871 | R34: 2864 | S34: 2908 | T34: 2962 | U34: 2786 | V34: 2701 | W34: 2703 | X34: 2867 | Y34: 2881 | Z34: 2876 | AA34: 2923 | AB34: 2824 | AC34: 2814 | AD34: 2908 | AE34: 3032 | AF34: 3197 | AG34: 3089 | AH34: 2979 | AI34: 3073 | AJ34: 3138 | AK34: 3091 | AL34: FALSO | AQ34: 5761 | AR34: 57612 | AS34: 2 | AT34: 5 | AU34: 761 | AV34: 761 | AW34: ANTIOQUIA | AX34: SOPETRÁN | AY34: Dep_sec_priv | AZ34: 55 | BA34: 45 | BB34: 628 | BC34: 595 | BD34: 628 | BE34: 622 | BF34: 643 | BG34: 644 | BH34: 641 | BI34: 654 | BJ34: 697 | BK34: 639 | BL34: 638 | BM34: 704 | BN34: 696 | BO34: 686 | BP34: 670 | BQ34: 680 | BR34: 659 | BS34: 658 | BT34: 684 | BU34: 708 | BV34: 620 | BW34: 627 | BX34: 649 | BY34: 713 | BZ34: 703 | CA34: 719
A35: 73349 | B35: 733493 | C35: 3 | D35: 73 | E35: 349 | F35: 349 | G35: TOLIMA | H35: HONDA | I35: Independiente | J35: 20 | K35: 23 | L35: 1005 | M35: 979 | N35: 991 | O35: 1022 | P35: 1033 | Q35: 1030 | R35: 1031 | S35: 1041 | T35: 1040 | U35: 1056 | V35: 966 | W35: 993 | X35: 995 | Y35: 999 | Z35: 995 | AA35: 1009 | AB35: 1039 | AC35: 1028 | AD35: 1054 | AE35: 1067 | AF35: 1064 | AG35: 1042 | AH35: 1002 | AI35: 1044 | AJ35: 1049 | AK35: 1033 | AL35: FALSO | AQ35: 5440 | AR35: 54403 | AS35: 3 | AT35: 5 | AU35: 440 | AV35: 440 | AW35: ANTIOQUIA | AX35: MARINILLA | AY35: Independiente | AZ35: 104 | BA35: 55 | BB35: 2110 | BC35: 2064 | BD35: 2063 | BE35: 2116 | BF35: 2155 | BG35: 2170 | BH35: 2220 | BI35: 2257 | BJ35: 2292 | BK35: 2261 | BL35: 2197 | BM35: 2254 | BN35: 2291 | BO35: 2328 | BP35: 2365 | BQ35: 2391 | BR35: 2387 | BS35: 2418 | BT35: 2446 | BU35: 2527 | BV35: 2563 | BW35: 2486 | BX35: 2476 | BY35: 2608 | BZ35: 2611 | CA35: 2589
A36: 50001 | B36: 500013 | C36: 3 | D36: 50 | E36: 1 | F36: 001 | G36: META | H36: VILLAVICENCIO | I36: Independiente | J36: 1309 | K36: 1194 | L36: 26253 | M36: 24762 | N36: 24906 | O36: 25541 | P36: 25869 | Q36: 26152 | R36: 26851 | S36: 27473 | T36: 27763 | U36: 27672 | V36: 25230 | W36: 26437 | X36: 27289 | Y36: 27741 | Z36: 27635 | AA36: 27810 | AB36: 28190 | AC36: 28692 | AD36: 28948 | AE36: 29148 | AF36: 29391 | AG36: 28919 | AH36: 28022 | AI36: 28761 | AJ36: 28699 | AK36: 27576 | AL36: FALSO | AQ36: 5819 | AR36: 58192 | AS36: 2 | AT36: 5 | AU36: 819 | AV36: 819 | AW36: ANTIOQUIA | AX36: TOLEDO | AY36: Dep_sec_priv | AZ36: 19 | BA36: 60 | BB36: 439 | BC36: 437 | BD36: 454 | BE36: 476 | BF36: 455 | BG36: 456 | BH36: 462 | BI36: 452 | BJ36: 472 | BK36: 460 | BL36: 421 | BM36: 438 | BN36: 462 | BO36: 469 | BP36: 476 | BQ36: 483 | BR36: 486 | BS36: 476 | BT36: 503 | BU36: 512 | BV36: 489 | BW36: 491 | BX36: 503 | BY36: 504 | BZ36: 522 | CA36: 533
A37: 54405 | B37: 544052 | C37: 2 | D37: 54 | E37: 405 | F37: 405 | G37: NORTE DE SANTANDER | H37: LOS PATIOS | I37: Dep_sec_priv | J37: 277 | K37: 212 | L37: 2251 | M37: 2190 | N37: 2378 | O37: 2447 | P37: 2598 | Q37: 2534 | R37: 2505 | S37: 2398 | T37: 2374 | U37: 2264 | V37: 2363 | W37: 2477 | X37: 2532 | Y37: 2579 | Z37: 2713 | AA37: 2719 | AB37: 2821 | AC37: 2859 | AD37: 2869 | AE37: 2832 | AF37: 2905 | AG37: 2784 | AH37: 2774 | AI37: 2892 | AJ37: 3060 | AK37: 3090 | AL37: FALSO | AQ37: 5376 | AR37: 53763 | AS37: 3 | AT37: 5 | AU37: 376 | AV37: 376 | AW37: ANTIOQUIA | AX37: LA CEJA | AY37: Independiente | AZ37: 130 | BA37: 112 | BB37: 3039 | BC37: 2922 | BD37: 2992 | BE37: 3029 | BF37: 3096 | BG37: 3128 | BH37: 3195 | BI37: 3269 | BJ37: 3323 | BK37: 3301 | BL37: 3226 | BM37: 3311 | BN37: 3411 | BO37: 3508 | BP37: 3588 | BQ37: 3625 | BR37: 3723 | BS37: 3809 | BT37: 3835 | BU37: 3910 | BV37: 3916 | BW37: 3879 | BX37: 3807 | BY37: 3922 | BZ37: 3926 | CA37: 3883
A38: 50226 | B38: 502263 | C38: 3 | D38: 50 | E38: 226 | F38: 226 | G38: META | H38: CUMARAL | I38: Independiente | J38: 62 | K38: 60 | L38: 570 | M38: 506 | N38: 496 | O38: 516 | P38: 499 | Q38: 531 | R38: 582 | S38: 598 | T38: 601 | U38: 598 | V38: 508 | W38: 575 | X38: 593 | Y38: 594 | Z38: 632 | AA38: 647 | AB38: 640 | AC38: 638 | AD38: 640 | AE38: 649 | AF38: 660 | AG38: 640 | AH38: 635 | AI38: 680 | AJ38: 697 | AK38: 665 | AL38: FALSO | AQ38: 5380 | AR38: 53803 | AS38: 3 | AT38: 5 | AU38: 380 | AV38: 380 | AW38: ANTIOQUIA | AX38: LA ESTRELLA | AY38: Independiente | AZ38: 116 | BA38: 90 | BB38: 2168 | BC38: 2095 | BD38: 2140 | BE38: 2197 | BF38: 2235 | BG38: 2285 | BH38: 2353 | BI38: 2402 | BJ38: 2446 | BK38: 2454 | BL38: 2338 | BM38: 2451 | BN38: 2467 | BO38: 2502 | BP38: 2529 | BQ38: 2565 | BR38: 2602 | BS38: 2647 | BT38: 2714 | BU38: 2734 | BV38: 2767 | BW38: 2710 | BX38: 2695 | BY38: 2818 | BZ38: 2850 | CA38: 2804
A39: 68895 | B39: 688953 | C39: 3 | D39: 68 | E39: 895 | F39: 895 | G39: SANTANDER | H39: ZAPATOCA | I39: Independiente | J39: 7 | K39: 2 | L39: 226 | M39: 220 | N39: 226 | O39: 229 | P39: 224 | Q39: 227 | R39: 230 | S39: 231 | T39: 238 | U39: 236 | V39: 227 | W39: 228 | X39: 231 | Y39: 237 | Z39: 241 | AA39: 249 | AB39: 244 | AC39: 241 | AD39: 242 | AE39: 248 | AF39: 252 | AG39: 249 | AH39: 250 | AI39: 252 | AJ39: 247 | AK39: 246 | AL39: FALSO | AQ39: 5360 | AR39: 53601 | AS39: 1 | AT39: 5 | AU39: 360 | AV39: 360 | AW39: ANTIOQUIA | AX39: ITAGUI | AY39: Dep_No_priv | AZ39: 1494 | BA39: 459 | BB39: 5191 | BC39: 5554 | BD39: 5715 | BE39: 6031 | BF39: 6502 | BG39: 6635 | BH39: 6298 | BI39: 5532 | BJ39: 5019 | BK39: 4809 | BL39: 5140 | BM39: 5252 | BN39: 5482 | BO39: 6418 | BP39: 7930 | BQ39: 7857 | BR39: 7827 | BS39: 7875 | BT39: 7806 | BU39: 7849 | BV39: 7820 | BW39: 5123 | BX39: 5375 | BY39: 5434 | BZ39: 5650 | CA39: 6570
A40: 25799 | B40: 257993 | C40: 3 | D40: 25 | E40: 799 | F40: 799 | G40: CUNDINAMARCA | H40: TENJO | I40: Independiente | J40: 37 | K40: 29 | L40: 1149 | M40: 1142 | N40: 1152 | O40: 1149 | P40: 1179 | Q40: 1199 | R40: 1199 | S40: 1218 | T40: 1209 | U40: 1210 | V40: 1178 | W40: 1204 | X40: 1270 | Y40: 1296 | Z40: 1284 | AA40: 1293 | AB40: 1307 | AC40: 1336 | AD40: 1336 | AE40: 1340 | AF40: 1295 | AG40: 1284 | AH40: 1319 | AI40: 1340 | AJ40: 1335 | AK40: 1309 | AL40: FALSO | AQ40: 5380 | AR40: 53802 | AS40: 2 | AT40: 5 | AU40: 380 | AV40: 380 | AW40: ANTIOQUIA | AX40: LA ESTRELLA | AY40: Dep_sec_priv | AZ40: 1127 | BA40: 1099 | BB40: 14413 | BC40: 13416 | BD40: 13228 | BE40: 13070 | BF40: 13061 | BG40: 13114 | BH40: 13384 | BI40: 13654 | BJ40: 13787 | BK40: 14289 | BL40: 14154 | BM40: 14333 | BN40: 14615 | BO40: 14835 | BP40: 15013 | BQ40: 15001 | BR40: 15316 | BS40: 15587 | BT40: 15853 | BU40: 15999 | BV40: 16297 | BW40: 16092 | BX40: 16043 | BY40: 16371 | BZ40: 16347 | CA40: 16132
A41: 47001 | B41: 470013 | C41: 3 | D41: 47 | E41: 1 | F41: 001 | G41: MAGDALENA | H41: SANTA MARTA | I41: Independiente | J41: 1186 | K41: 1012 | L41: 20127 | M41: 19340 | N41: 19327 | O41: 19461 | P41: 19557 | Q41: 19534 | R41: 19965 | S41: 19999 | T41: 20577 | U41: 19966 | V41: 18297 | W41: 19143 | X41: 20314 | Y41: 20961 | Z41: 21082 | AA41: 21212 | AB41: 21077 | AC41: 21345 | AD41: 21733 | AE41: 21968 | AF41: 22094 | AG41: 21224 | AH41: 19546 | AI41: 21359 | AJ41: 21411 | AK41: 20884 | AL41: FALSO | AQ41: 5856 | AR41: 58563 | AS41: 3 | AT41: 5 | AU41: 856 | AV41: 856 | AW41: ANTIOQUIA | AX41: VALPARAÍSO | AY41: Independiente | AZ41: 35 | BA41: 12 | BB41: 96 | BC41: 87 | BD41: 89 | BE41: 90 | BF41: 88 | BG41: 85 | BH41: 89 | BI41: 87 | BJ41: 85 | BK41: 88 | BL41: 67 | BM41: 76 | BN41: 82 | BO41: 87 | BP41: 90 | BQ41: 94 | BR41: 95 | BS41: 100 | BT41: 100 | BU41: 105 | BV41: 107 | BW41: 107 | BX41: 103 | BY41: 109 | BZ41: 138 | CA41: 162 | CH41: Privs Mar 21 | CI41: Privs Feb 22 | CJ41: Privs Mar 22 | CK41: Ind Mar 21 | CL41: Ind Feb 22 | CM41: Ind Mar 22
A42: 68276 | B42: 682763 | C42: 3 | D42: 68 | E42: 276 | F42: 276 | G42: SANTANDER | H42: FLORIDABLANCA | I42: Independiente | J42: 508 | K42: 502 | L42: 8699 | M42: 8607 | N42: 8776 | O42: 8944 | P42: 9117 | Q42: 9128 | R42: 9364 | S42: 9621 | T42: 9687 | U42: 9802 | V42: 8913 | W42: 9213 | X42: 9546 | Y42: 9745 | Z42: 9792 | AA42: 9926 | AB42: 10037 | AC42: 10127 | AD42: 10273 | AE42: 10295 | AF42: 10470 | AG42: 10406 | AH42: 10270 | AI42: 10947 | AJ42: 10885 | AK42: 10523 | AL42: FALSO | AQ42: 5264 | AR42: 52643 | AS42: 3 | AT42: 5 | AU42: 264 | AV42: 264 | AW42: ANTIOQUIA | AX42: ENTRERRIOS | AY42: Independiente | AZ42: 36 | BA42: 20 | BB42: 1044 | BC42: 1025 | BD42: 1047 | BE42: 1050 | BF42: 1069 | BG42: 1078 | BH42: 1088 | BI42: 1089 | BJ42: 1110 | BK42: 1115 | BL42: 1108 | BM42: 1112 | BN42: 1112 | BO42: 1106 | BP42: 1116 | BQ42: 1115 | BR42: 1116 | BS42: 1111 | BT42: 1115 | BU42: 1120 | BV42: 1125 | BW42: 1126 | BX42: 1131 | BY42: 1135 | BZ42: 1135 | CA42: 1126 | CG42: AMAZONAS | CH42: =SUMIFS($Y$2:$Y$4998,$G$2:$G$4998,$CG42,$I$2:$I$4998,"Dep_sec_priv") -> 16524 | CI42: =SUMIFS($AJ$2:$AJ$4998,$G$2:$G$4998,$CG42,$I$2:$I$4998,"Dep_sec_priv") -> 16732 | CJ42: =SUMIFS($AK$2:$AK$4998,$G$2:$G$4998,$CG42,$I$2:$I$4998,"Dep_sec_priv") -> 16919 | CK42: =SUMIFS($Y$2:$Y$4998,$G$2:$G$4998,$CG42,$I$2:$I$4998,"Independiente") -> 3438 | CL42: =SUMIFS($AJ$2:$AJ$4998,$G$2:$G$4998,$CG42,$I$2:$I$4998,"Independiente") -> 3723 | CM42: =SUMIFS($AK$2:$AK$4998,$G$2:$G$4998,$CG42,$I$2:$I$4998,"Independiente") -> 3525
A43: 19001 | B43: 190013 | C43: 3 | D43: 19 | E43: 1 | F43: 001 | G43: CAUCA | H43: POPAYÁN | I43: Independiente | J43: 1003 | K43: 830 | L43: 19447 | M43: 18545 | N43: 18141 | O43: 18379 | P43: 18701 | Q43: 19037 | R43: 19554 | S43: 20261 | T43: 20385 | U43: 19745 | V43: 17650 | W43: 18768 | X43: 19385 | Y43: 19615 | Z43: 19396 | AA43: 19685 | AB43: 20036 | AC43: 20300 | AD43: 20636 | AE43: 20987 | AF43: 21055 | AG43: 20751 | AH43: 19383 | AI43: 20418 | AJ43: 20388 | AK43: 19841 | AL43: FALSO | AQ43: 5282 | AR43: 52823 | AS43: 3 | AT43: 5 | AU43: 282 | AV43: 282 | AW43: ANTIOQUIA | AX43: FREDONIA | AY43: Independiente | AZ43: 9 | BA43: 9 | BB43: 282 | BC43: 288 | BD43: 291 | BE43: 307 | BF43: 313 | BG43: 322 | BH43: 325 | BI43: 333 | BJ43: 380 | BK43: 389 | BL43: 324 | BM43: 354 | BN43: 348 | BO43: 358 | BP43: 361 | BQ43: 368 | BR43: 403 | BS43: 432 | BT43: 428 | BU43: 434 | BV43: 435 | BW43: 431 | BX43: 456 | BY43: 472 | BZ43: 446 | CA43: 432 | CG43: ANTIOQUIA | CH43: 1543571 | CI43: 1649538 | CJ43: 1640152 | CK43: 314804 | CL43: 329650 | CM43: 322767
A44: 13001 | B44: 130013 | C44: 3 | D44: 13 | E44: 1 | F44: 001 | G44: BOLÍVAR | H44: CARTAGENA | I44: Independiente | J44: 3385 | K44: 2788 | L44: 40231 | M44: 37187 | N44: 37334 | O44: 37505 | P44: 37765 | Q44: 37962 | R44: 38727 | S44: 39791 | T44: 40992 | U44: 39381 | V44: 37023 | W44: 38755 | X44: 40006 | Y44: 40676 | Z44: 40872 | AA44: 40978 | AB44: 41045 | AC44: 41196 | AD44: 41891 | AE44: 42528 | AF44: 42954 | AG44: 40112 | AH44: 40394 | AI44: 42097 | AJ44: 42062 | AK44: 40783 | AL44: FALSO | AQ44: 5585 | AR44: 55852 | AS44: 2 | AT44: 5 | AU44: 585 | AV44: 585 | AW44: ANTIOQUIA | AX44: PUERTO NARE | AY44: Dep_sec_priv | AZ44: 99 | BA44: 91 | BB44: 836 | BC44: 693 | BD44: 676 | BE44: 750 | BF44: 770 | BG44: 805 | BH44: 797 | BI44: 834 | BJ44: 950 | BK44: 1021 | BL44: 848 | BM44: 890 | BN44: 904 | BO44: 877 | BP44: 889 | BQ44: 888 | BR44: 854 | BS44: 945 | BT44: 992 | BU44: 1010 | BV44: 982 | BW44: 924 | BX44: 801 | BY44: 845 | BZ44: 942 | CA44: 854 | CG44: ARAUCA | CH44: 45227 | CI44: 52073 | CJ44: 52288 | CK44: 9480 | CL44: 8833 | CM44: 8502
A45: 25307 | B45: 253073 | C45: 3 | D45: 25 | E45: 307 | F45: 307 | G45: CUNDINAMARCA | H45: GIRARDOT | I45: Independiente | J45: 354 | K45: 303 | L45: 5858 | M45: 5679 | N45: 5595 | O45: 5527 | P45: 5644 | Q45: 5589 | R45: 5658 | S45: 5730 | T45: 5834 | U45: 5800 | V45: 5237 | W45: 5460 | X45: 5589 | Y45: 5680 | Z45: 5812 | AA45: 5900 | AB45: 5987 | AC45: 6030 | AD45: 6170 | AE45: 6114 | AF45: 6073 | AG45: 6001 | AH45: 5972 | AI45: 6184 | AJ45: 6157 | AK45: 5921 | AL45: FALSO | AQ45: 5591 | AR45: 55912 | AS45: 2 | AT45: 5 | AU45: 591 | AV45: 591 | AW45: ANTIOQUIA | AX45: PUERTO TRIUNFO | AY45: Dep_sec_priv | AZ45: 217 | BA45: 238 | BB45: 1547 | BC45: 1247 | BD45: 1271 | BE45: 1397 | BF45: 1491 | BG45: 1456 | BH45: 1493 | BI45: 1573 | BJ45: 1741 | BK45: 1707 | BL45: 1673 | BM45: 1812 | BN45: 1732 | BO45: 1719 | BP45: 1728 | BQ45: 1696 | BR45: 1768 | BS45: 1780 | BT45: 1848 | BU45: 1845 | BV45: 1893 | BW45: 1889 | BX45: 1757 | BY45: 1809 | BZ45: 1801 | CA45: 1812 | CG45: ARCHIPIÉLAGO DE SAN ANDRÉS, PROVIDENCIA Y SANTA CATALINA | CH45: 49451 | CI45: 47084 | CJ45: 45063 | CK45: 6894 | CL45: 8489 | CM45: 7665
A46: 66001 | B46: 660013 | C46: 3 | D46: 66 | E46: 1 | F46: 001 | G46: RISARALDA | H46: PEREIRA | I46: Independiente | J46: 1425 | K46: 1168 | L46: 39198 | M46: 38195 | N46: 39897 | O46: 39619 | P46: 39432 | Q46: 39136 | R46: 39408 | S46: 40040 | T46: 40559 | U46: 40218 | V46: 38287 | W46: 39006 | X46: 39604 | Y46: 39507 | Z46: 39304 | AA46: 39585 | AB46: 39862 | AC46: 40091 | AD46: 40505 | AE46: 40846 | AF46: 40954 | AG46: 40302 | AH46: 39678 | AI46: 39889 | AJ46: 39882 | AK46: 39074 | AL46: FALSO | AQ46: 5376 | AR46: 53762 | AS46: 2 | AT46: 5 | AU46: 376 | AV46: 376 | AW46: ANTIOQUIA | AX46: LA CEJA | AY46: Dep_sec_priv | AZ46: 1250 | BA46: 1214 | BB46: 12417 | BC46: 11093 | BD46: 11344 | BE46: 11374 | BF46: 11486 | BG46: 11653 | BH46: 12269 | BI46: 12028 | BJ46: 12181 | BK46: 12015 | BL46: 12093 | BM46: 12214 | BN46: 12522 | BO46: 12738 | BP46: 12800 | BQ46: 12983 | BR46: 13061 | BS46: 13292 | BT46: 13453 | BU46: 13872 | BV46: 13879 | BW46: 13443 | BX46: 13635 | BY46: 13852 | BZ46: 14056 | CA46: 13907 | CG46: ATLÁNTICO | CH46: 423005 | CI46: 460147 | CJ46: 458971 | CK46: 78688 | CL46: 82594 | CM46: 80096
A47: 81300 | B47: 813002 | C47: 2 | D47: 81 | E47: 300 | F47: 300 | G47: ARAUCA | H47: FORTUL | I47: Dep_sec_priv | J47: 5531 | K47: 5775 | L47: 15915 | M47: 17751 | N47: 19088 | O47: 20564 | P47: 21628 | Q47: 24176 | R47: 24077 | S47: 24281 | T47: 24816 | U47: 24907 | V47: 24781 | W47: 22305 | X47: 22315 | Y47: 22096 | Z47: 21703 | AA47: 23335 | AB47: 23699 | AC47: 24033 | AD47: 24112 | AE47: 24790 | AF47: 24840 | AG47: 24821 | AH47: 24667 | AI47: 25166 | AJ47: 27907 | AK47: 27640 | AL47: FALSO | AQ47: 5266 | AR47: 52662 | AS47: 2 | AT47: 5 | AU47: 266 | AV47: 266 | AW47: ANTIOQUIA | AX47: ENVIGADO | AY47: Dep_sec_priv | AZ47: 2550 | BA47: 2173 | BB47: 37822 | BC47: 36016 | BD47: 35808 | BE47: 35929 | BF47: 35871 | BG47: 35702 | BH47: 36467 | BI47: 37062 | BJ47: 37400 | BK47: 36997 | BL47: 36516 | BM47: 37292 | BN47: 37716 | BO47: 37350 | BP47: 37603 | BQ47: 37910 | BR47: 38070 | BS47: 38439 | BT47: 39435 | BU47: 39482 | BV47: 39515 | BW47: 39168 | BX47: 39103 | BY47: 39850 | BZ47: 40871 | CA47: 40742 | CG47: BOGOTÁ, D.C. | CH47: 2570654 | CI47: 2774427 | CJ47: 2760926 | CK47: 694694 | CL47: 693603 | CM47: 672806
A48: 76001 | B48: 760012 | C48: 2 | D48: 76 | E48: 1 | F48: 001 | G48: VALLE DEL CAUCA | H48: CALI | I48: Dep_sec_priv | J48: 46296 | K48: 42992 | L48: 663291 | M48: 614047 | N48: 612301 | O48: 612507 | P48: 615396 | Q48: 616869 | R48: 627578 | S48: 634960 | T48: 642371 | U48: 644140 | V48: 625036 | W48: 638371 | X48: 645876 | Y48: 647138 | Z48: 627858 | AA48: 631984 | AB48: 643769 | AC48: 656347 | AD48: 667881 | AE48: 670474 | AF48: 678175 | AG48: 671912 | AH48: 658653 | AI48: 670019 | AJ48: 675637 | AK48: 670141 | AL48: FALSO | AQ48: 5360 | AR48: 53603 | AS48: 3 | AT48: 5 | AU48: 360 | AV48: 360 | AW48: ANTIOQUIA | AX48: ITAGUI | AY48: Independiente | AZ48: 504 | BA48: 333 | BB48: 7816 | BC48: 7681 | BD48: 7815 | BE48: 8038 | BF48: 8233 | BG48: 8386 | BH48: 8634 | BI48: 8846 | BJ48: 8983 | BK48: 8952 | BL48: 8772 | BM48: 9000 | BN48: 9228 | BO48: 9414 | BP48: 9476 | BQ48: 9568 | BR48: 9630 | BS48: 9839 | BT48: 9942 | BU48: 10100 | BV48: 10159 | BW48: 9945 | BX48: 9887 | BY48: 10209 | BZ48: 10592 | CA48: 10503 | CG48: BOLÍVAR | CH48: 223977 | CI48: 252423 | CJ48: 250446 | CK48: 49543 | CL48: 52214 | CM48: 50345
A49: 25290 | B49: 252903 | C49: 3 | D49: 25 | E49: 290 | F49: 290 | G49: CUNDINAMARCA | H49: FUSAGASUGÁ | I49: Independiente | J49: 363 | K49: 578 | L49: 8297 | M49: 8160 | N49: 8174 | O49: 8300 | P49: 8320 | Q49: 8341 | R49: 8463 | S49: 8534 | T49: 8653 | U49: 8449 | V49: 8209 | W49: 8403 | X49: 8565 | Y49: 8598 | Z49: 8593 | AA49: 8693 | AB49: 8726 | AC49: 8774 | AD49: 8813 | AE49: 8867 | AF49: 8856 | AG49: 8779 | AH49: 8616 | AI49: 8776 | AJ49: 8712 | AK49: 8498 | AL49: FALSO | AQ49: 5045 | AR49: 50453 | AS49: 3 | AT49: 5 | AU49: 45 | AV49: 045 | AW49: ANTIOQUIA | AX49: APARTADÓ | AY49: Independiente | AZ49: 189 | BA49: 142 | BB49: 4062 | BC49: 3917 | BD49: 3913 | BE49: 3904 | BF49: 3861 | BG49: 3952 | BH49: 4011 | BI49: 4085 | BJ49: 4081 | BK49: 4003 | BL49: 3622 | BM49: 3764 | BN49: 3919 | BO49: 3940 | BP49: 4008 | BQ49: 4036 | BR49: 4085 | BS49: 4130 | BT49: 4193 | BU49: 4205 | BV49: 4221 | BW49: 4027 | BX49: 3698 | BY49: 4106 | BZ49: 4058 | CA49: 3954 | CG49: BOYACÁ | CH49: 133155 | CI49: 141975 | CJ49: 141718 | CK49: 50243 | CL49: 51409 | CM49: 50506
A50: 25402 | B50: 254023 | C50: 3 | D50: 25 | E50: 402 | F50: 402 | G50: CUNDINAMARCA | H50: LA VEGA | I50: Independiente | J50: 21 | K50: 11 | L50: 651 | M50: 647 | N50: 648 | O50: 663 | P50: 686 | Q50: 679 | R50: 686 | S50: 687 | T50: 689 | U50: 676 | V50: 684 | W50: 725 | X50: 730 | Y50: 732 | Z50: 729 | AA50: 716 | AB50: 707 | AC50: 713 | AD50: 708 | AE50: 700 | AF50: 706 | AG50: 712 | AH50: 699 | AI50: 712 | AJ50: 717 | AK50: 711 | AL50: FALSO | AQ50: 5308 | AR50: 53083 | AS50: 3 | AT50: 5 | AU50: 308 | AV50: 308 | AW50: ANTIOQUIA | AX50: GIRARDOTA | AY50: Independiente | AZ50: 64 | BA50: 31 | BB50: 1126 | BC50: 1134 | BD50: 1154 | BE50: 1172 | BF50: 1269 | BG50: 1336 | BH50: 1353 | BI50: 1388 | BJ50: 1385 | BK50: 1378 | BL50: 1289 | BM50: 1398 | BN50: 1443 | BO50: 1475 | BP50: 1508 | BQ50: 1522 | BR50: 1531 | BS50: 1564 | BT50: 1579 | BU50: 1613 | BV50: 1638 | BW50: 1603 | BX50: 1560 | BY50: 1588 | BZ50: 1582 | CA50: 1564 | CG50: CALDAS | CH50: 144311 | CI50: 156347 | CJ50: 154703 | CK50: 43958 | CL50: 45995 | CM50: 45469
A51: 73001 | B51: 730012 | C51: 2 | D51: 73 | E51: 1 | F51: 001 | G51: TOLIMA | H51: IBAGUÉ | I51: Dep_sec_priv | J51: 9981 | K51: 9772 | L51: 114498 | M51: 103166 | N51: 104168 | O51: 106072 | P51: 107807 | Q51: 109092 | R51: 109789 | S51: 112208 | T51: 113186 | U51: 111670 | V51: 109073 | W51: 112148 | X51: 113542 | Y51: 114176 | Z51: 113964 | AA51: 116033 | AB51: 116966 | AC51: 119193 | AD51: 120292 | AE51: 120987 | AF51: 121813 | AG51: 120081 | AH51: 117296 | AI51: 118390 | AJ51: 118703 | AK51: 117298 | AL51: FALSO | AQ51: 5656 | AR51: 56563 | AS51: 3 | AT51: 5 | AU51: 656 | AV51: 656 | AW51: ANTIOQUIA | AX51: SAN JERÓNIMO | AY51: Independiente | AZ51: 11 | BA51: 19 | BB51: 288 | BC51: 284 | BD51: 300 | BE51: 300 | BF51: 301 | BG51: 308 | BH51: 302 | BI51: 309 | BJ51: 314 | BK51: 312 | BL51: 269 | BM51: 293 | BN51: 296 | BO51: 298 | BP51: 300 | BQ51: 312 | BR51: 311 | BS51: 302 | BT51: 303 | BU51: 313 | BV51: 316 | BW51: 318 | BX51: 301 | BY51: 335 | BZ51: 345 | CA51: 350 | CG51: CAQUETÁ | CH51: 23440 | CI51: 23952 | CJ51: 23543 | CK51: 11436 | CL51: 12076 | CM51: 11814
A52: 25758 | B52: 257583 | C52: 3 | D52: 25 | E52: 758 | F52: 758 | G52: CUNDINAMARCA | H52: SOPÓ | I52: Independiente | J52: 93 | K52: 57 | L52: 1784 | M52: 1724 | N52: 1761 | O52: 1774 | P52: 1803 | Q52: 1817 | R52: 1855 | S52: 1849 | T52: 1862 | U52: 1754 | V52: 1690 | W52: 1832 | X52: 1878 | Y52: 1876 | Z52: 1882 | AA52: 1862 | AB52: 1880 | AC52: 1911 | AD52: 1893 | AE52: 1896 | AF52: 1895 | AG52: 1833 | AH52: 1840 | AI52: 1939 | AJ52: 1942 | AK52: 1881 | AL52: FALSO | AQ52: 5042 | AR52: 50423 | AS52: 3 | AT52: 5 | AU52: 42 | AV52: 042 | AW52: ANTIOQUIA | AX52: SANTAFÉ DE ANTIOQUIA | AY52: Independiente | AZ52: 31 | BA52: 15 | BB52: 690 | BC52: 673 | BD52: 657 | BE52: 667 | BF52: 676 | BG52: 695 | BH52: 708 | BI52: 707 | BJ52: 741 | BK52: 726 | BL52: 683 | BM52: 693 | BN52: 693 | BO52: 705 | BP52: 692 | BQ52: 691 | BR52: 716 | BS52: 738 | BT52: 740 | BU52: 741 | BV52: 740 | BW52: 723 | BX52: 703 | BY52: 727 | BZ52: 736 | CA52: 739 | CG52: CASANARE | CH52: 64247 | CI52: 68336 | CJ52: 68265 | CK52: 17799 | CL52: 18984 | CM52: 18446
A53: 5364 | B53: 53642 | C53: 2 | D53: 5 | E53: 364 | F53: 364 | G53: ANTIOQUIA | H53: JARDÍN | I53: Dep_sec_priv | J53: 53 | K53: 45 | L53: 807 | M53: 801 | N53: 839 | O53: 855 | P53: 854 | Q53: 823 | R53: 817 | S53: 906 | T53: 967 | U53: 1002 | V53: 1051 | W53: 1022 | X53: 971 | Y53: 1048 | Z53: 1093 | AA53: 1111 | AB53: 1098 | AC53: 1148 | AD53: 1099 | AE53: 1199 | AF53: 1217 | AG53: 1177 | AH53: 1187 | AI53: 1190 | AJ53: 1157 | AK53: 1143 | AL53: FALSO | AQ53: 5209 | AR53: 52092 | AS53: 2 | AT53: 5 | AU53: 209 | AV53: 209 | AW53: ANTIOQUIA | AX53: CONCORDIA | AY53: Dep_sec_priv | AZ53: 68 | BA53: 46 | BB53: 799 | BC53: 748 | BD53: 791 | BE53: 771 | BF53: 818 | BG53: 782 | BH53: 797 | BI53: 806 | BJ53: 800 | BK53: 802 | BL53: 771 | BM53: 849 | BN53: 834 | BO53: 814 | BP53: 840 | BQ53: 837 | BR53: 864 | BS53: 850 | BT53: 873 | BU53: 842 | BV53: 855 | BW53: 859 | BX53: 936 | BY53: 987 | BZ53: 977 | CA53: 891 | CG53: CAUCA | CH53: 93282 | CI53: 98043 | CJ53: 96881 | CK53: 30867 | CL53: 32806 | CM53: 32095
A54: 15759 | B54: 157593 | C54: 3 | D54: 15 | E54: 759 | F54: 759 | G54: BOYACÁ | H54: SOGAMOSO | I54: Independiente | J54: 281 | K54: 257 | L54: 7980 | M54: 7664 | N54: 7669 | O54: 7776 | P54: 7839 | Q54: 7898 | R54: 7962 | S54: 8084 | T54: 8221 | U54: 8159 | V54: 7664 | W54: 7929 | X54: 8100 | Y54: 8136 | Z54: 8237 | AA54: 8303 | AB54: 8261 | AC54: 8250 | AD54: 8376 | AE54: 8448 | AF54: 8480 | AG54: 8399 | AH54: 7977 | AI54: 8080 | AJ54: 8009 | AK54: 7742 | AL54: FALSO | AQ54: 5212 | AR54: 52123 | AS54: 3 | AT54: 5 | AU54: 212 | AV54: 212 | AW54: ANTIOQUIA | AX54: COPACABANA | AY54: Independiente | AZ54: 94 | BA54: 54 | BB54: 1627 | BC54: 1624 | BD54: 1634 | BE54: 1692 | BF54: 1732 | BG54: 1784 | BH54: 1847 | BI54: 1920 | BJ54: 2005 | BK54: 2001 | BL54: 1923 | BM54: 2055 | BN54: 2172 | BO54: 2186 | BP54: 2234 | BQ54: 2267 | BR54: 2283 | BS54: 2311 | BT54: 2345 | BU54: 2380 | BV54: 2403 | BW54: 2384 | BX54: 2336 | BY54: 2432 | BZ54: 2432 | CA54: 2397 | CG54: CESAR | CH54: 98674 | CI54: 110282 | CJ54: 108348 | CK54: 28783 | CL54: 29830 | CM54: 29253
A55: 15238 | B55: 152383 | C55: 3 | D55: 15 | E55: 238 | F55: 238 | G55: BOYACÁ | H55: DUITAMA | I55: Independiente | J55: 309 | K55: 282 | L55: 8223 | M55: 7949 | N55: 7945 | O55: 7983 | P55: 8069 | Q55: 8088 | R55: 8155 | S55: 8270 | T55: 8364 | U55: 8258 | V55: 7962 | W55: 8037 | X55: 8162 | Y55: 8219 | Z55: 8219 | AA55: 8247 | AB55: 8351 | AC55: 8305 | AD55: 8393 | AE55: 8533 | AF55: 8578 | AG55: 8395 | AH55: 8166 | AI55: 8260 | AJ55: 8211 | AK55: 8027 | AL55: FALSO | AQ55: 5664 | AR55: 56643 | AS55: 3 | AT55: 5 | AU55: 664 | AV55: 664 | AW55: ANTIOQUIA | AX55: SAN PEDRO DE LOS MILAGROS | AY55: Independiente | AZ55: 26 | BA55: 30 | BB55: 957 | BC55: 969 | BD55: 1040 | BE55: 1050 | BF55: 1074 | BG55: 1107 | BH55: 1097 | BI55: 1114 | BJ55: 1121 | BK55: 1108 | BL55: 1094 | BM55: 1116 | BN55: 1143 | BO55: 1147 | BP55: 1161 | BQ55: 1167 | BR55: 1177 | BS55: 1190 | BT55: 1183 | BU55: 1204 | BV55: 1203 | BW55: 1193 | BX55: 1181 | BY55: 1191 | BZ55: 1186 | CA55: 1179 | CG55: CHOCÓ | CH55: 71746 | CI55: 77861 | CJ55: 70892 | CK55: 10133 | CL55: 10584 | CM55: 10158
A56: 15778 | B56: 157783 | C56: 3 | D56: 15 | E56: 778 | F56: 778 | G56: BOYACÁ | H56: SUTATENZA | I56: Independiente | J56: 2 | K56: 1 | L56: 49 | M56: 45 | N56: 42 | O56: 44 | P56: 38 | Q56: 42 | R56: 43 | S56: 44 | T56: 52 | U56: 41 | V56: 37 | W56: 48 | X56: 52 | Y56: 52 | Z56: 49 | AA56: 52 | AB56: 50 | AC56: 50 | AD56: 52 | AE56: 52 | AF56: 49 | AG56: 49 | AH56: 45 | AI56: 50 | AJ56: 52 | AK56: 52 | AL56: FALSO | AQ56: 5607 | AR56: 56072 | AS56: 2 | AT56: 5 | AU56: 607 | AV56: 607 | AW56: ANTIOQUIA | AX56: RETIRO | AY56: Dep_sec_priv | AZ56: 359 | BA56: 342 | BB56: 3323 | BC56: 3052 | BD56: 2993 | BE56: 3138 | BF56: 3168 | BG56: 3169 | BH56: 3409 | BI56: 3548 | BJ56: 3496 | BK56: 3419 | BL56: 3432 | BM56: 3728 | BN56: 3720 | BO56: 3766 | BP56: 3807 | BQ56: 3815 | BR56: 3910 | BS56: 3846 | BT56: 3892 | BU56: 4005 | BV56: 3952 | BW56: 3914 | BX56: 4047 | BY56: 4174 | BZ56: 4148 | CA56: 4130 | CG56: CÓRDOBA | CH56: 101922 | CI56: 112411 | CJ56: 115112 | CK56: 28764 | CL56: 30261 | CM56: 29433
A57: 23686 | B57: 236863 | C57: 3 | D57: 23 | E57: 686 | F57: 686 | G57: CÓRDOBA | H57: SAN PELAYO | I57: Independiente | J57: 29 | K57: 40 | L57: 150 | M57: 178 | N57: 196 | O57: 205 | P57: 215 | Q57: 212 | R57: 234 | S57: 245 | T57: 255 | U57: 221 | V57: 232 | W57: 257 | X57: 253 | Y57: 271 | Z57: 278 | AA57: 282 | AB57: 296 | AC57: 311 | AD57: 305 | AE57: 323 | AF57: 314 | AG57: 272 | AH57: 326 | AI57: 367 | AJ57: 350 | AK57: 349 | AL57: FALSO | AQ57: 5697 | AR57: 56973 | AS57: 3 | AT57: 5 | AU57: 697 | AV57: 697 | AW57: ANTIOQUIA | AX57: EL SANTUARIO | AY57: Independiente | AZ57: 49 | BA57: 21 | BB57: 1355 | BC57: 1369 | BD57: 1393 | BE57: 1383 | BF57: 1387 | BG57: 1386 | BH57: 1403 | BI57: 1396 | BJ57: 1398 | BK57: 1388 | BL57: 1381 | BM57: 1403 | BN57: 1411 | BO57: 1425 | BP57: 1412 | BQ57: 1425 | BR57: 1442 | BS57: 1456 | BT57: 1466 | BU57: 1490 | BV57: 1492 | BW57: 1488 | BX57: 1498 | BY57: 1520 | BZ57: 1529 | CA57: 1513 | CG57: CUNDINAMARCA | CH57: 355522 | CI57: 382306 | CJ57: 377453 | CK57: 106157 | CL57: 114556 | CM57: 111851
A58: 76834 | B58: 768343 | C58: 3 | D58: 76 | E58: 834 | F58: 834 | G58: VALLE DEL CAUCA | H58: TULUÁ | I58: Independiente | J58: 387 | K58: 246 | L58: 8385 | M58: 8180 | N58: 8175 | O58: 8230 | P58: 8229 | Q58: 8359 | R58: 8603 | S58: 8720 | T58: 8833 | U58: 8777 | V58: 8043 | W58: 8525 | X58: 8695 | Y58: 8704 | Z58: 8646 | AA58: 8867 | AB58: 8658 | AC58: 8913 | AD58: 9066 | AE58: 9125 | AF58: 9245 | AG58: 9156 | AH58: 8828 | AI58: 9213 | AJ58: 9180 | AK58: 9100 | AL58: FALSO | AQ58: 5129 | AR58: 51293 | AS58: 3 | AT58: 5 | AU58: 129 | AV58: 129 | AW58: ANTIOQUIA | AX58: CALDAS | AY58: Independiente | AZ58: 124 | BA58: 81 | BB58: 2210 | BC58: 2177 | BD58: 2247 | BE58: 2297 | BF58: 2336 | BG58: 2392 | BH58: 2449 | BI58: 2486 | BJ58: 2516 | BK58: 2493 | BL58: 2439 | BM58: 2501 | BN58: 2554 | BO58: 2603 | BP58: 2616 | BQ58: 2668 | BR58: 2697 | BS58: 2710 | BT58: 2719 | BU58: 2755 | BV58: 2795 | BW58: 2723 | BX58: 2695 | BY58: 2739 | BZ58: 2762 | CA58: 2724 | CG58: GUAINÍA | CH58: 10382 | CI58: 14872 | CJ58: 13201 | CK58: 1626 | CL58: 1835 | CM58: 1807
A59: 50001 | B59: 500012 | C59: 2 | D59: 50 | E59: 1 | F59: 001 | G59: META | H59: VILLAVICENCIO | I59: Dep_sec_priv | J59: 12413 | K59: 12456 | L59: 120768 | M59: 107379 | N59: 104650 | O59: 105205 | P59: 106958 | Q59: 107187 | R59: 108889 | S59: 110412 | T59: 112829 | U59: 111136 | V59: 109037 | W59: 112723 | X59: 115013 | Y59: 116531 | Z59: 115639 | AA59: 117304 | AB59: 118869 | AC59: 121305 | AD59: 123674 | AE59: 124652 | AF59: 125512 | AG59: 122857 | AH59: 119955 | AI59: 124468 | AJ59: 127500 | AK59: 125537 | AL59: FALSO | AQ59: 5761 | AR59: 57613 | AS59: 3 | AT59: 5 | AU59: 761 | AV59: 761 | AW59: ANTIOQUIA | AX59: SOPETRÁN | AY59: Independiente | AZ59: 10 | BA59: 17 | BB59: 216 | BC59: 203 | BD59: 218 | BE59: 219 | BF59: 220 | BG59: 239 | BH59: 244 | BI59: 265 | BJ59: 270 | BK59: 247 | BL59: 234 | BM59: 258 | BN59: 270 | BO59: 263 | BP59: 261 | BQ59: 267 | BR59: 280 | BS59: 296 | BT59: 304 | BU59: 307 | BV59: 302 | BW59: 276 | BX59: 320 | BY59: 345 | BZ59: 359 | CA59: 351 | CG59: GUAVIARE | CH59: 9461 | CI59: 14236 | CJ59: 15117 | CK59: 3664 | CL59: 3797 | CM59: 3723
A60: 17001 | B60: 170013 | C60: 3 | D60: 17 | E60: 1 | F60: 001 | G60: CALDAS | H60: MANIZALES | I60: Independiente | J60: 1510 | K60: 1116 | L60: 28373 | M60: 27703 | N60: 27687 | O60: 27786 | P60: 28023 | Q60: 28048 | R60: 28214 | S60: 28622 | T60: 29016 | U60: 28824 | V60: 27925 | W60: 28388 | X60: 28786 | Y60: 29224 | Z60: 29421 | AA60: 29629 | AB60: 29754 | AC60: 30235 | AD60: 30484 | AE60: 30721 | AF60: 30797 | AG60: 29930 | AH60: 29755 | AI60: 29946 | AJ60: 29954 | AK60: 29583 | AL60: FALSO | AQ60: 5055 | AR60: 50553 | AS60: 3 | AT60: 5 | AU60: 55 | AV60: 055 | AW60: ANTIOQUIA | AX60: ARGELIA | AY60: Independiente | AZ60: 7 | BA60: 6 | BB60: 78 | BC60: 73 | BD60: 77 | BE60: 54 | BF60: 85 | BG60: 97 | BH60: 97 | BI60: 103 | BJ60: 104 | BK60: 108 | BL60: 69 | BM60: 78 | BN60: 81 | BO60: 83 | BP60: 98 | BQ60: 99 | BR60: 102 | BS60: 100 | BT60: 99 | BU60: 105 | BV60: 103 | BW60: 99 | BX60: 99 | BY60: 113 | BZ60: 119 | CA60: 118 | CG60: HUILA | CH60: 97594 | CI60: 107823 | CJ60: 105556 | CK60: 40117 | CL60: 42212 | CM60: 41060
A61: 73268 | B61: 732683 | C61: 3 | D61: 73 | E61: 268 | F61: 268 | G61: TOLIMA | H61: ESPINAL | I61: Independiente | J61: 97 | K61: 87 | L61: 2755 | M61: 2729 | N61: 2678 | O61: 2635 | P61: 2554 | Q61: 2675 | R61: 2659 | S61: 2846 | T61: 2861 | U61: 2863 | V61: 2430 | W61: 2728 | X61: 2859 | Y61: 2892 | Z61: 2890 | AA61: 2872 | AB61: 2849 | AC61: 2839 | AD61: 3111 | AE61: 3134 | AF61: 3100 | AG61: 3006 | AH61: 2875 | AI61: 3170 | AJ61: 3178 | AK61: 3117 | AL61: FALSO | AQ61: 5154 | AR61: 51543 | AS61: 3 | AT61: 5 | AU61: 154 | AV61: 154 | AW61: ANTIOQUIA | AX61: CAUCASIA | AY61: Independiente | AZ61: 123 | BA61: 71 | BB61: 1552 | BC61: 1530 | BD61: 1541 | BE61: 1560 | BF61: 1595 | BG61: 1595 | BH61: 1647 | BI61: 1666 | BJ61: 1719 | BK61: 1576 | BL61: 1512 | BM61: 1609 | BN61: 1622 | BO61: 1659 | BP61: 1707 | BQ61: 1787 | BR61: 1765 | BS61: 1806 | BT61: 1863 | BU61: 1905 | BV61: 1874 | BW61: 1687 | BX61: 1744 | BY61: 1877 | BZ61: 1855 | CA61: 1812 | CG61: LA GUAJIRA | CH61: 53121 | CI61: 59561 | CJ61: 57486 | CK61: 19839 | CL61: 19906 | CM61: 20432
A62: 20001 | B62: 200013 | C62: 3 | D62: 20 | E62: 1 | F62: 001 | G62: CESAR | H62: VALLEDUPAR | I62: Independiente | J62: 842 | K62: 572 | L62: 17596 | M62: 17068 | N62: 17099 | O62: 17205 | P62: 17267 | Q62: 17339 | R62: 17664 | S62: 18220 | T62: 18475 | U62: 17745 | V62: 15839 | W62: 16527 | X62: 17377 | Y62: 17663 | Z62: 17752 | AA62: 17759 | AB62: 17878 | AC62: 18011 | AD62: 18119 | AE62: 18481 | AF62: 18607 | AG62: 17974 | AH62: 17660 | AI62: 17971 | AJ62: 18171 | AK62: 17736 | AL62: FALSO | AQ62: 5148 | AR62: 51483 | AS62: 3 | AT62: 5 | AU62: 148 | AV62: 148 | AW62: ANTIOQUIA | AX62: EL CARMEN DE VIBORAL | AY62: Independiente | AZ62: 155 | BA62: 83 | BB62: 1836 | BC62: 1778 | BD62: 1799 | BE62: 1800 | BF62: 1837 | BG62: 1906 | BH62: 2005 | BI62: 2036 | BJ62: 2066 | BK62: 2086 | BL62: 1978 | BM62: 2023 | BN62: 2035 | BO62: 2065 | BP62: 2082 | BQ62: 2120 | BR62: 2128 | BS62: 2183 | BT62: 2225 | BU62: 2303 | BV62: 2313 | BW62: 2249 | BX62: 2259 | BY62: 2473 | BZ62: 2485 | CA62: 2504 | CG62: MAGDALENA | CH62: 103772 | CI62: 116555 | CJ62: 116764 | CK62: 30767 | CL62: 31310 | CM62: 30347
A63: 25843 | B63: 258433 | C63: 3 | D63: 25 | E63: 843 | F63: 843 | G63: CUNDINAMARCA | H63: VILLA DE SAN DIEGO DE UBATE | I63: Independiente | J63: 77 | K63: 57 | L63: 2116 | M63: 2074 | N63: 2070 | O63: 2088 | P63: 2084 | Q63: 2084 | R63: 2084 | S63: 2135 | T63: 2170 | U63: 2115 | V63: 2024 | W63: 2081 | X63: 2134 | Y63: 2185 | Z63: 2184 | AA63: 2195 | AB63: 2220 | AC63: 2231 | AD63: 2301 | AE63: 2312 | AF63: 2332 | AG63: 2311 | AH63: 2314 | AI63: 2341 | AJ63: 2360 | AK63: 2326 | AL63: FALSO | AQ63: 5002 | AR63: 50023 | AS63: 3 | AT63: 5 | AU63: 2 | AV63: 002 | AW63: ANTIOQUIA | AX63: ABEJORRAL | AY63: Independiente | AZ63: 27 | BA63: 14 | BB63: 451 | BC63: 441 | BD63: 438 | BE63: 438 | BF63: 444 | BG63: 465 | BH63: 474 | BI63: 484 | BJ63: 481 | BK63: 478 | BL63: 431 | BM63: 463 | BN63: 444 | BO63: 437 | BP63: 439 | BQ63: 445 | BR63: 443 | BS63: 455 | BT63: 462 | BU63: 461 | BV63: 455 | BW63: 442 | BX63: 457 | BY63: 456 | BZ63: 488 | CA63: 484 | CG63: META | CH63: 157209 | CI63: 174567 | CJ63: 173394 | CK63: 39326 | CL63: 41653 | CM63: 40221
A64: 25899 | B64: 258993 | C64: 3 | D64: 25 | E64: 899 | F64: 899 | G64: CUNDINAMARCA | H64: ZIPAQUIRÁ | I64: Independiente | J64: 368 | K64: 299 | L64: 7185 | M64: 6587 | N64: 6757 | O64: 6706 | P64: 6814 | Q64: 6854 | R64: 6881 | S64: 7030 | T64: 7073 | U64: 7001 | V64: 6812 | W64: 7028 | X64: 7215 | Y64: 7290 | Z64: 7377 | AA64: 7525 | AB64: 7580 | AC64: 7598 | AD64: 7642 | AE64: 7678 | AF64: 7661 | AG64: 7680 | AH64: 7626 | AI64: 7835 | AJ64: 7846 | AK64: 7614 | AL64: FALSO | AQ64: 5400 | AR64: 54003 | AS64: 3 | AT64: 5 | AU64: 400 | AV64: 400 | AW64: ANTIOQUIA | AX64: LA UNIÓN | AY64: Independiente | AZ64: 44 | BA64: 23 | BB64: 1165 | BC64: 1149 | BD64: 1177 | BE64: 1201 | BF64: 1210 | BG64: 1219 | BH64: 1236 | BI64: 1236 | BJ64: 1254 | BK64: 1246 | BL64: 1212 | BM64: 1207 | BN64: 1202 | BO64: 1213 | BP64: 1221 | BQ64: 1215 | BR64: 1222 | BS64: 1236 | BT64: 1240 | BU64: 1265 | BV64: 1282 | BW64: 1263 | BX64: 1258 | BY64: 1287 | BZ64: 1283 | CA64: 1281 | CG64: NARIÑO | CH64: 96211 | CI64: 99737 | CJ64: 99515 | CK64: 43527 | CL64: 45844 | CM64: 44785
A65: 88001 | B65: 880013 | C65: 3 | D65: 88 | E65: 1 | F65: 001 | G65: ARCHIPIÉLAGO DE SAN ANDRÉS, PROVIDENCIA Y SANTA CATALINA | H65: SAN ANDRÉS | I65: Independiente | J65: 259 | K65: 150 | L65: 5487 | M65: 5367 | N65: 5479 | O65: 5684 | P65: 5675 | Q65: 5686 | R65: 5805 | S65: 5808 | T65: 5962 | U65: 5736 | V65: 4950 | W65: 5133 | X65: 5416 | Y65: 5676 | Z65: 5589 | AA65: 5600 | AB65: 5511 | AC65: 5571 | AD65: 5651 | AE65: 5962 | AF65: 6156 | AG65: 5690 | AH65: 5496 | AI65: 6154 | AJ65: 6860 | AK65: 6307 | AL65: FALSO | AQ65: 5847 | AR65: 58473 | AS65: 3 | AT65: 5 | AU65: 847 | AV65: 847 | AW65: ANTIOQUIA | AX65: URRAO | AY65: Independiente | AZ65: 25 | BA65: 21 | BB65: 435 | BC65: 424 | BD65: 397 | BE65: 394 | BF65: 398 | BG65: 417 | BH65: 426 | BI65: 447 | BJ65: 460 | BK65: 458 | BL65: 405 | BM65: 399 | BN65: 416 | BO65: 452 | BP65: 467 | BQ65: 470 | BR65: 494 | BS65: 505 | BT65: 513 | BU65: 519 | BV65: 533 | BW65: 507 | BX65: 477 | BY65: 524 | BZ65: 514 | CA65: 502 | CG65: SANTANDER | CH65: 352697 | CI65: 378909 | CJ65: 374857 | CK65: 106991 | CL65: 113040 | CM65: 110004
A66: 54001 | B66: 540011 | C66: 1 | D66: 54 | E66: 1 | F66: 001 | G66: NORTE DE SANTANDER | H66: CÚCUTA | I66: Dep_No_priv | J66: 2133 | K66: 1194 | L66: 29406 | M66: 23534 | N66: 21872 | O66: 23328 | P66: 21107 | Q66: 22077 | R66: 24069 | S66: 24990 | T66: 24407 | U66: 22452 | V66: 18586 | W66: 20994 | X66: 23095 | Y66: 24294 | Z66: 22945 | AA66: 23095 | AB66: 22751 | AC66: 27882 | AD66: 29643 | AE66: 29521 | AF66: 28742 | AG66: 24123 | AH66: 21109 | AI66: 23856 | AJ66: 26035 | AK66: 29836 | AL66: FALSO | AQ66: 5021 | AR66: 50213 | AS66: 3 | AT66: 5 | AU66: 21 | AV66: 021 | AW66: ANTIOQUIA | AX66: ALEJANDRÍA | AY66: Independiente | AZ66: 10 | BA66: 4 | BB66: 99 | BC66: 99 | BD66: 103 | BE66: 109 | BF66: 114 | BG66: 114 | BH66: 113 | BI66: 118 | BJ66: 118 | BK66: 112 | BL66: 78 | BM66: 103 | BN66: 116 | BO66: 127 | BP66: 132 | BQ66: 136 | BR66: 138 | BS66: 138 | BT66: 131 | BU66: 131 | BV66: 137 | BW66: 120 | BX66: 129 | BY66: 141 | BZ66: 139 | CA66: 141 | CG66: PUTUMAYO | CH66: 20813 | CI66: 22599 | CJ66: 22990 | CK66: 9988 | CL66: 10861 | CM66: 10497
A67: 54001 | B67: 540013 | C67: 3 | D67: 54 | E67: 1 | F67: 001 | G67: NORTE DE SANTANDER | H67: CÚCUTA | I67: Independiente | J67: 1686 | K67: 1461 | L67: 31182 | M67: 30308 | N67: 30232 | O67: 30414 | P67: 30502 | Q67: 30871 | R67: 31373 | S67: 32169 | T67: 32485 | U67: 31794 | V67: 29864 | W67: 30336 | X67: 31505 | Y67: 31084 | Z67: 32002 | AA67: 32279 | AB67: 32641 | AC67: 33133 | AD67: 33640 | AE67: 33790 | AF67: 34158 | AG67: 33601 | AH67: 32500 | AI67: 33379 | AJ67: 33262 | AK67: 32159 | AL67: =IF(SUM(L67:AK67)=0,"VERDADERO","FALSO") -> FALSO | AQ67: 5615 | AR67: 56151 | AS67: 1 | AT67: 5 | AU67: 615 | AV67: 615 | AW67: ANTIOQUIA | AX67: RIONEGRO | AY67: Dep_No_priv | AZ67: 679 | BA67: 399 | BB67: 4372 | BC67: 4041 | BD67: 4091 | BE67: 4871 | BF67: 5343 | BG67: 5740 | BH67: 5681 | BI67: 5174 | BJ67: 4984 | BK67: 4541 | BL67: 4248 | BM67: 4806 | BN67: 4907 | BO67: 5046 | BP67: 5205 | BQ67: 4917 | BR67: 4705 | BS67: 4880 | BT67: 5085 | BU67: 5364 | BV67: 5402 | BW67: 4518 | BX67: 4276 | BY67: 4800 | BZ67: 5076 | CA67: 5273 | CG67: QUINDÍO | CH67: 78406 | CI67: 85120 | CJ67: 84417 | CK67: 29028 | CL67: 31026 | CM67: 30307
A68: 25815 | B68: 258152 | C68: 2 | D68: 25 | E68: 815 | F68: 815 | G68: CUNDINAMARCA | H68: TOCAIMA | I68: Dep_sec_priv | J68: 63 | K68: 53 | L68: 453 | M68: 534 | N68: 471 | O68: 492 | P68: 515 | Q68: 520 | R68: 530 | S68: 594 | T68: 603 | U68: 638 | V68: 669 | W68: 671 | X68: 666 | Y68: 687 | Z68: 679 | AA68: 680 | AB68: 701 | AC68: 712 | AD68: 718 | AE68: 743 | AF68: 760 | AG68: 761 | AH68: 772 | AI68: 798 | AJ68: 797 | AK68: 796 | AL68: FALSO | AQ68: 5030 | AR68: 50303 | AS68: 3 | AT68: 5 | AU68: 30 | AV68: 030 | AW68: ANTIOQUIA | AX68: AMAGÁ | AY68: Independiente | AZ68: 41 | BA68: 33 | BB68: 573 | BC68: 554 | BD68: 564 | BE68: 586 | BF68: 584 | BG68: 588 | BH68: 593 | BI68: 620 | BJ68: 625 | BK68: 612 | BL68: 586 | BM68: 630 | BN68: 662 | BO68: 658 | BP68: 673 | BQ68: 683 | BR68: 681 | BS68: 696 | BT68: 702 | BU68: 708 | BV68: 730 | BW68: 727 | BX68: 710 | BY68: 784 | BZ68: 789 | CA68: 760 | CG68: RISARALDA | CH68: 171350 | CI68: 185861 | CJ68: 185227 | CK68: 51318 | CL68: 52677 | CM68: 51728
A69: 25386 | B69: 253863 | C69: 3 | D69: 25 | E69: 386 | F69: 386 | G69: CUNDINAMARCA | H69: LA MESA | I69: Independiente | J69: 68 | K69: 56 | L69: 1585 | M69: 1570 | N69: 1608 | O69: 1673 | P69: 1681 | Q69: 1651 | R69: 1694 | S69: 1736 | T69: 1737 | U69: 1709 | V69: 1689 | W69: 1729 | X69: 1754 | Y69: 1829 | Z69: 1842 | AA69: 1844 | AB69: 1863 | AC69: 1858 | AD69: 1872 | AE69: 1851 | AF69: 1877 | AG69: 1853 | AH69: 1776 | AI69: 1835 | AJ69: 1806 | AK69: 1769 | AL69: FALSO | AQ69: 5031 | AR69: 50313 | AS69: 3 | AT69: 5 | AU69: 31 | AV69: 031 | AW69: ANTIOQUIA | AX69: AMALFI | AY69: Independiente | AZ69: 10 | BA69: 14 | BB69: 668 | BC69: 622 | BD69: 393 | BE69: 387 | BF69: 381 | BG69: 370 | BH69: 621 | BI69: 648 | BJ69: 425 | BK69: 429 | BL69: 349 | BM69: 388 | BN69: 402 | BO69: 431 | BP69: 427 | BQ69: 440 | BR69: 448 | BS69: 458 | BT69: 465 | BU69: 489 | BV69: 485 | BW69: 470 | BX69: 442 | BY69: 466 | BZ69: 429 | CA69: 420 | CG69: NORTE DE SANTANDER | CH69: 146286 | CI69: 159497 | CJ69: 157233 | CK69: 44335 | CL69: 47953 | CM69: 46499
A70: 17013 | B70: 170133 | C70: 3 | D70: 17 | E70: 13 | F70: 013 | G70: CALDAS | H70: AGUADAS | I70: Independiente | J70: 30 | K70: 29 | L70: 552 | M70: 536 | N70: 560 | O70: 567 | P70: 589 | Q70: 603 | R70: 612 | S70: 620 | T70: 623 | U70: 619 | V70: 619 | W70: 644 | X70: 636 | Y70: 636 | Z70: 656 | AA70: 643 | AB70: 657 | AC70: 664 | AD70: 679 | AE70: 688 | AF70: 713 | AG70: 710 | AH70: 691 | AI70: 713 | AJ70: 729 | AK70: 728 | AL70: FALSO | AQ70: 5034 | AR70: 50343 | AS70: 3 | AT70: 5 | AU70: 34 | AV70: 034 | AW70: ANTIOQUIA | AX70: ANDES | AY70: Independiente | AZ70: 43 | BA70: 27 | BB70: 1196 | BC70: 1137 | BD70: 1154 | BE70: 1142 | BF70: 1154 | BG70: 1169 | BH70: 1204 | BI70: 1315 | BJ70: 1334 | BK70: 1328 | BL70: 1200 | BM70: 1248 | BN70: 1252 | BO70: 1254 | BP70: 1266 | BQ70: 1263 | BR70: 1294 | BS70: 1299 | BT70: 1330 | BU70: 1346 | BV70: 1356 | BW70: 1283 | BX70: 1302 | BY70: 1347 | BZ70: 1339 | CA70: 1327 | CG70: SUCRE | CH70: 49720 | CI70: 52105 | CJ70: 51714 | CK70: 16252 | CL70: 16722 | CM70: 16074
A71: 50689 | B71: 506893 | C71: 3 | D71: 50 | E71: 689 | F71: 689 | G71: META | H71: SAN MARTÍN | I71: Independiente | J71: 71 | K71: 46 | L71: 611 | M71: 621 | N71: 606 | O71: 611 | P71: 630 | Q71: 633 | R71: 639 | S71: 635 | T71: 668 | U71: 638 | V71: 543 | W71: 595 | X71: 631 | Y71: 642 | Z71: 681 | AA71: 688 | AB71: 680 | AC71: 711 | AD71: 759 | AE71: 746 | AF71: 805 | AG71: 747 | AH71: 725 | AI71: 769 | AJ71: 767 | AK71: 763 | AL71: FALSO | AQ71: 5368 | AR71: 53683 | AS71: 3 | AT71: 5 | AU71: 368 | AV71: 368 | AW71: ANTIOQUIA | AX71: JERICÓ | AY71: Independiente | AZ71: 12 | BA71: 8 | BB71: 419 | BC71: 417 | BD71: 428 | BE71: 431 | BF71: 450 | BG71: 443 | BH71: 448 | BI71: 446 | BJ71: 447 | BK71: 438 | BL71: 425 | BM71: 443 | BN71: 443 | BO71: 457 | BP71: 463 | BQ71: 463 | BR71: 467 | BS71: 476 | BT71: 487 | BU71: 495 | BV71: 496 | BW71: 490 | BX71: 490 | BY71: 499 | BZ71: 504 | CA71: 499 | CG71: TOLIMA | CH71: 141957 | CI71: 148517 | CJ71: 147543 | CK71: 47788 | CL71: 50746 | CM71: 49152
A72: 25875 | B72: 258753 | C72: 3 | D72: 25 | E72: 875 | F72: 875 | G72: CUNDINAMARCA | H72: VILLETA | I72: Independiente | J72: 62 | K72: 36 | L72: 2053 | M72: 2019 | N72: 2050 | O72: 2049 | P72: 2071 | Q72: 2098 | R72: 2096 | S72: 2127 | T72: 2136 | U72: 2124 | V72: 2117 | W72: 2117 | X72: 2147 | Y72: 2188 | Z72: 2181 | AA72: 2200 | AB72: 2205 | AC72: 2183 | AD72: 2205 | AE72: 2172 | AF72: 2184 | AG72: 2149 | AH72: 2126 | AI72: 2124 | AJ72: 2132 | AK72: 2098 | AL72: FALSO | AQ72: 5353 | AR72: 53533 | AS72: 3 | AT72: 5 | AU72: 353 | AV72: 353 | AW72: ANTIOQUIA | AX72: HISPANIA | AY72: Independiente | AZ72: 3 | BA72: 1 | BB72: 67 | BC72: 72 | BD72: 77 | BE72: 81 | BF72: 74 | BG72: 73 | BH72: 77 | BI72: 79 | BJ72: 92 | BK72: 97 | BL72: 67 | BM72: 79 | BN72: 73 | BO72: 81 | BP72: 85 | BQ72: 85 | BR72: 83 | BS72: 85 | BT72: 85 | BU72: 87 | BV72: 91 | BW72: 86 | BX72: 86 | BY72: 87 | BZ72: 88 | CA72: 89 | CG72: VALLE DEL CAUCA | CH72: 841018 | CI72: 879370 | CJ72: 871722 | CK72: 198036 | CL72: 205947 | CM72: 202392
A73: 15176 | B73: 151763 | C73: 3 | D73: 15 | E73: 176 | F73: 176 | G73: BOYACÁ | H73: CHIQUINQUIRÁ | I73: Independiente | J73: 123 | K73: 83 | L73: 2942 | M73: 2795 | N73: 2773 | O73: 2793 | P73: 2867 | Q73: 2924 | R73: 2956 | S73: 2991 | T73: 2994 | U73: 2994 | V73: 2787 | W73: 2826 | X73: 2919 | Y73: 2927 | Z73: 2961 | AA73: 2990 | AB73: 3050 | AC73: 3032 | AD73: 3089 | AE73: 3138 | AF73: 3097 | AG73: 3036 | AH73: 2884 | AI73: 2959 | AJ73: 2925 | AK73: 2878 | AL73: FALSO | AQ73: 5038 | AR73: 50383 | AS73: 3 | AT73: 5 | AU73: 38 | AV73: 038 | AW73: ANTIOQUIA | AX73: ANGOSTURA | AY73: Independiente | AZ73: 0 | BA73: 2 | BB73: 101 | BC73: 101 | BD73: 106 | BE73: 108 | BF73: 111 | BG73: 119 | BH73: 130 | BI73: 132 | BJ73: 139 | BK73: 133 | BL73: 84 | BM73: 108 | BN73: 109 | BO73: 108 | BP73: 110 | BQ73: 114 | BR73: 106 | BS73: 110 | BT73: 114 | BU73: 114 | BV73: 113 | BW73: 115 | BX73: 94 | BY73: 107 | BZ73: 112 | CA73: 108 | CG73: VAUPÉS | CH73: 2878 | CI73: 2370 | CJ73: 2363 | CK73: 1049 | CL73: 1312 | CM73: 1280
A74: 85410 | B74: 854103 | C74: 3 | D74: 85 | E74: 410 | F74: 410 | G74: CASANARE | H74: TAURAMENA | I74: Independiente | J74: 58 | K74: 42 | L74: 601 | M74: 547 | N74: 579 | O74: 604 | P74: 625 | Q74: 626 | R74: 657 | S74: 679 | T74: 715 | U74: 711 | V74: 579 | W74: 640 | X74: 676 | Y74: 694 | Z74: 702 | AA74: 697 | AB74: 731 | AC74: 728 | AD74: 762 | AE74: 759 | AF74: 766 | AG74: 796 | AH74: 716 | AI74: 743 | AJ74: 752 | AK74: 752 | AL74: FALSO | AQ74: 5031 | AR74: 50312 | AS74: 2 | AT74: 5 | AU74: 31 | AV74: 031 | AW74: ANTIOQUIA | AX74: AMALFI | AY74: Dep_sec_priv | AZ74: 173 | BA74: 234 | BB74: 1758 | BC74: 1521 | BD74: 1550 | BE74: 1741 | BF74: 1829 | BG74: 1787 | BH74: 1804 | BI74: 1800 | BJ74: 1950 | BK74: 1873 | BL74: 1852 | BM74: 2008 | BN74: 2022 | BO74: 2070 | BP74: 2229 | BQ74: 2084 | BR74: 2159 | BS74: 2553 | BT74: 2119 | BU74: 1948 | BV74: 2106 | BW74: 1963 | BX74: 2037 | BY74: 1921 | BZ74: 2291 | CA74: 1984 | CG74: VICHADA | CH74: 73098 | CI74: 91391 | CJ74: 95016 | CK74: 2066 | CL74: 2297 | CM74: 2281
A75: 15516 | B75: 155163 | C75: 3 | D75: 15 | E75: 516 | F75: 516 | G75: BOYACÁ | H75: PAIPA | I75: Independiente | J75: 61 | K75: 38 | L75: 1153 | M75: 1109 | N75: 1099 | O75: 1146 | P75: 1171 | Q75: 1182 | R75: 1217 | S75: 1243 | T75: 1257 | U75: 1275 | V75: 1199 | W75: 1270 | X75: 1292 | Y75: 1318 | Z75: 1347 | AA75: 1350 | AB75: 1384 | AC75: 1390 | AD75: 1404 | AE75: 1426 | AF75: 1428 | AG75: 1416 | AH75: 1375 | AI75: 1401 | AJ75: 1404 | AK75: 1381 | AL75: FALSO | AQ75: 5042 | AR75: 50422 | AS75: 2 | AT75: 5 | AU75: 42 | AV75: 042 | AW75: ANTIOQUIA | AX75: SANTAFÉ DE ANTIOQUIA | AY75: Dep_sec_priv | AZ75: 754 | BA75: 595 | BB75: 6932 | BC75: 6212 | BD75: 5928 | BE75: 5828 | BF75: 5756 | BG75: 5720 | BH75: 5338 | BI75: 5477 | BJ75: 5784 | BK75: 5959 | BL75: 5585 | BM75: 5858 | BN75: 6019 | BO75: 6122 | BP75: 6168 | BQ75: 6169 | BR75: 6140 | BS75: 6195 | BT75: 6151 | BU75: 6225 | BV75: 6399 | BW75: 6287 | BX75: 6092 | BY75: 6244 | BZ75: 6598 | CA75: 6676 | CG75: Sin Info | CH75: 447 | CI75: 669 | CJ75: 590 | CK75: 22244 | CL75: 23977 | CM75: 23545
A76: 15001 | B76: 150012 | C76: 2 | D76: 15 | E76: 1 | F76: 001 | G76: BOYACÁ | H76: TUNJA | I76: Dep_sec_priv | J76: 4400 | K76: 3803 | L76: 51434 | M76: 45522 | N76: 45033 | O76: 46011 | P76: 46134 | Q76: 46654 | R76: 47963 | S76: 48536 | T76: 49362 | U76: 48324 | V76: 47142 | W76: 48708 | X76: 49281 | Y76: 49575 | Z76: 49273 | AA76: 49080 | AB76: 50099 | AC76: 51190 | AD76: 51758 | AE76: 51887 | AF76: 54055 | AG76: 52439 | AH76: 50254 | AI76: 52829 | AJ76: 52939 | AK76: 53170 | AL76: FALSO | AQ76: 5837 | AR76: 58373 | AS76: 3 | AT76: 5 | AU76: 837 | AV76: 837 | AW76: ANTIOQUIA | AX76: TURBO | AY76: Independiente | AZ76: 47 | BA76: 35 | BB76: 1253 | BC76: 1263 | BD76: 1292 | BE76: 1342 | BF76: 1367 | BG76: 1384 | BH76: 1457 | BI76: 1481 | BJ76: 1484 | BK76: 1385 | BL76: 1142 | BM76: 1220 | BN76: 1374 | BO76: 1407 | BP76: 1452 | BQ76: 1491 | BR76: 1490 | BS76: 1536 | BT76: 1506 | BU76: 1508 | BV76: 1520 | BW76: 1380 | BX76: 1319 | BY76: 1409 | BZ76: 1386 | CA76: 1343
A77: 25035 | B77: 250353 | C77: 3 | D77: 25 | E77: 35 | F77: 035 | G77: CUNDINAMARCA | H77: ANAPOIMA | I77: Independiente | J77: 23 | K77: 38 | L77: 564 | M77: 546 | N77: 538 | O77: 536 | P77: 545 | Q77: 560 | R77: 575 | S77: 573 | T77: 584 | U77: 574 | V77: 604 | W77: 622 | X77: 625 | Y77: 629 | Z77: 637 | AA77: 649 | AB77: 634 | AC77: 636 | AD77: 653 | AE77: 638 | AF77: 631 | AG77: 605 | AH77: 638 | AI77: 669 | AJ77: 652 | AK77: 633 | AL77: FALSO | AQ77: 5079 | AR77: 50793 | AS77: 3 | AT77: 5 | AU77: 79 | AV77: 079 | AW77: ANTIOQUIA | AX77: BARBOSA | AY77: Independiente | AZ77: 27 | BA77: 20 | BB77: 846 | BC77: 831 | BD77: 826 | BE77: 846 | BF77: 842 | BG77: 860 | BH77: 880 | BI77: 902 | BJ77: 941 | BK77: 940 | BL77: 863 | BM77: 930 | BN77: 976 | BO77: 998 | BP77: 1032 | BQ77: 1041 | BR77: 1063 | BS77: 1101 | BT77: 1112 | BU77: 1120 | BV77: 1135 | BW77: 1113 | BX77: 1010 | BY77: 1089 | BZ77: 1092 | CA77: 1063
A78: 52001 | B78: 520013 | C78: 3 | D78: 52 | E78: 1 | F78: 001 | G78: NARIÑO | H78: PASTO | I78: Independiente | J78: 1490 | K78: 1218 | L78: 22200 | M78: 21205 | N78: 21238 | O78: 21576 | P78: 21885 | Q78: 22250 | R78: 22716 | S78: 23163 | T78: 23493 | U78: 23125 | V78: 20950 | W78: 22240 | X78: 22869 | Y78: 22976 | Z78: 23011 | AA78: 22955 | AB78: 23005 | AC78: 23442 | AD78: 23742 | AE78: 24293 | AF78: 24689 | AG78: 24045 | AH78: 22798 | AI78: 23544 | AJ78: 23586 | AK78: 23125 | AL78: FALSO | AQ78: 5237 | AR78: 52373 | AS78: 3 | AT78: 5 | AU78: 237 | AV78: 237 | AW78: ANTIOQUIA | AX78: DON MATÍAS | AY78: Independiente | AZ78: 47 | BA78: 31 | BB78: 1864 | BC78: 1863 | BD78: 1972 | BE78: 1952 | BF78: 1985 | BG78: 1975 | BH78: 1960 | BI78: 1961 | BJ78: 1967 | BK78: 1933 | BL78: 1925 | BM78: 1952 | BN78: 1971 | BO78: 1962 | BP78: 1956 | BQ78: 1963 | BR78: 1973 | BS78: 1986 | BT78: 2007 | BU78: 2016 | BV78: 2014 | BW78: 2007 | BX78: 2025 | BY78: 2078 | BZ78: 2063 | CA78: 2026
A79: 5631 | B79: 56313 | C79: 3 | D79: 5 | E79: 631 | F79: 631 | G79: ANTIOQUIA | H79: SABANETA | I79: Independiente | J79: 314 | K79: 203 | L79: 5513 | M79: 5491 | N79: 5659 | O79: 5736 | P79: 5754 | Q79: 5946 | R79: 6108 | S79: 6274 | T79: 6414 | U79: 6391 | V79: 6067 | W79: 6338 | X79: 6470 | Y79: 6480 | Z79: 6571 | AA79: 6648 | AB79: 6698 | AC79: 6806 | AD79: 6906 | AE79: 6920 | AF79: 7027 | AG79: 7048 | AH79: 7135 | AI79: 7455 | AJ79: 7450 | AK79: 7232 | AL79: FALSO | AQ79: 5093 | AR79: 50933 | AS79: 3 | AT79: 5 | AU79: 93 | AV79: 093 | AW79: ANTIOQUIA | AX79: BETULIA | AY79: Independiente | AZ79: 5 | BA79: 13 | BB79: 199 | BC79: 170 | BD79: 168 | BE79: 168 | BF79: 187 | BG79: 200 | BH79: 172 | BI79: 223 | BJ79: 227 | BK79: 226 | BL79: 150 | BM79: 164 | BN79: 174 | BO79: 168 | BP79: 169 | BQ79: 174 | BR79: 181 | BS79: 180 | BT79: 192 | BU79: 192 | BV79: 191 | BW79: 195 | BX79: 185 | BY79: 183 | BZ79: 199 | CA79: 195
A80: 68572 | B80: 685723 | C80: 3 | D80: 68 | E80: 572 | F80: 572 | G80: SANTANDER | H80: PUENTE NACIONAL | I80: Independiente | J80: 9 | K80: 15 | L80: 332 | M80: 326 | N80: 337 | O80: 336 | P80: 331 | Q80: 339 | R80: 342 | S80: 353 | T80: 336 | U80: 340 | V80: 302 | W80: 318 | X80: 345 | Y80: 349 | Z80: 344 | AA80: 360 | AB80: 374 | AC80: 377 | AD80: 368 | AE80: 370 | AF80: 372 | AG80: 378 | AH80: 356 | AI80: 387 | AJ80: 392 | AK80: 382 | AL80: FALSO | AQ80: 5101 | AR80: 51013 | AS80: 3 | AT80: 5 | AU80: 101 | AV80: 101 | AW80: ANTIOQUIA | AX80: CIUDAD BOLÍVAR | AY80: Independiente | AZ80: 43 | BA80: 29 | BB80: 593 | BC80: 601 | BD80: 629 | BE80: 628 | BF80: 665 | BG80: 665 | BH80: 712 | BI80: 774 | BJ80: 804 | BK80: 792 | BL80: 740 | BM80: 775 | BN80: 811 | BO80: 813 | BP80: 813 | BQ80: 808 | BR80: 822 | BS80: 838 | BT80: 840 | BU80: 857 | BV80: 864 | BW80: 861 | BX80: 842 | BY80: 869 | BZ80: 872 | CA80: 859
A81: 25175 | B81: 251752 | C81: 2 | D81: 25 | E81: 175 | F81: 175 | G81: CUNDINAMARCA | H81: CHÍA | I81: Dep_sec_priv | J81: 2346 | K81: 2155 | L81: 26146 | M81: 24147 | N81: 24604 | O81: 24404 | P81: 24667 | Q81: 24070 | R81: 24738 | S81: 25124 | T81: 24531 | U81: 24040 | V81: 24370 | W81: 25734 | X81: 25282 | Y81: 26122 | Z81: 26210 | AA81: 25835 | AB81: 25745 | AC81: 26442 | AD81: 26733 | AE81: 26588 | AF81: 27113 | AG81: 25914 | AH81: 26621 | AI81: 27511 | AJ81: 27533 | AK81: 27444 | AL81: FALSO | AQ81: 5113 | AR81: 51132 | AS81: 2 | AT81: 5 | AU81: 113 | AV81: 113 | AW81: ANTIOQUIA | AX81: BURITICÁ | AY81: Dep_sec_priv | AZ81: 94 | BA81: 101 | BB81: 1038 | BC81: 807 | BD81: 803 | BE81: 721 | BF81: 652 | BG81: 591 | BH81: 549 | BI81: 505 | BJ81: 539 | BK81: 551 | BL81: 674 | BM81: 769 | BN81: 789 | BO81: 814 | BP81: 862 | BQ81: 811 | BR81: 828 | BS81: 882 | BT81: 918 | BU81: 927 | BV81: 892 | BW81: 842 | BX81: 812 | BY81: 830 | BZ81: 907 | CA81: 910
A82: 44001 | B82: 440013 | C82: 3 | D82: 44 | E82: 1 | F82: 001 | G82: LA GUAJIRA | H82: RIOHACHA | I82: Independiente | J82: 1319 | K82: 464 | L82: 7903 | M82: 9476 | N82: 9457 | O82: 9487 | P82: 9743 | Q82: 9816 | R82: 9974 | S82: 10145 | T82: 10253 | U82: 9615 | V82: 5589 | W82: 5963 | X82: 7890 | Y82: 8924 | Z82: 9442 | AA82: 9581 | AB82: 9798 | AC82: 9983 | AD82: 10101 | AE82: 10221 | AF82: 10357 | AG82: 9929 | AH82: 6041 | AI82: 7641 | AJ82: 9807 | AK82: 10323 | AL82: FALSO | AQ82: 5120 | AR82: 51201 | AS82: 1 | AT82: 5 | AU82: 120 | AV82: 120 | AW82: ANTIOQUIA | AX82: CÁCERES | AY82: Dep_No_priv | AZ82: 3 | BA82: 11 | BB82: 376 | BC82: 375 | BD82: 376 | BE82: 379 | BF82: 379 | BG82: 382 | BH82: 391 | BI82: 385 | BJ82: 382 | BK82: 374 | BL82: 364 | BM82: 372 | BN82: 361 | BO82: 359 | BP82: 365 | BQ82: 369 | BR82: 371 | BS82: 367 | BT82: 373 | BU82: 378 | BV82: 391 | BW82: 400 | BX82: 383 | BY82: 385 | BZ82: 402 | CA82: 386
A83: 25377 | B83: 253773 | C83: 3 | D83: 25 | E83: 377 | F83: 377 | G83: CUNDINAMARCA | H83: LA CALERA | I83: Independiente | J83: 73 | K83: 68 | L83: 1668 | M83: 1636 | N83: 1674 | O83: 1684 | P83: 1709 | Q83: 1719 | R83: 1724 | S83: 1765 | T83: 1807 | U83: 1804 | V83: 1707 | W83: 1795 | X83: 1824 | Y83: 1835 | Z83: 1845 | AA83: 1851 | AB83: 1867 | AC83: 1877 | AD83: 1911 | AE83: 1924 | AF83: 1903 | AG83: 1952 | AH83: 1957 | AI83: 1955 | AJ83: 1945 | AK83: 1932 | AL83: FALSO | AQ83: 5887 | AR83: 58873 | AS83: 3 | AT83: 5 | AU83: 887 | AV83: 887 | AW83: ANTIOQUIA | AX83: YARUMAL | AY83: Independiente | AZ83: 50 | BA83: 39 | BB83: 1212 | BC83: 1201 | BD83: 1197 | BE83: 1199 | BF83: 1216 | BG83: 1229 | BH83: 1243 | BI83: 1280 | BJ83: 1288 | BK83: 1276 | BL83: 1206 | BM83: 1260 | BN83: 1261 | BO83: 1255 | BP83: 1265 | BQ83: 1288 | BR83: 1340 | BS83: 1374 | BT83: 1398 | BU83: 1405 | BV83: 1423 | BW83: 1395 | BX83: 1320 | BY83: 1386 | BZ83: 1397 | CA83: 1377
A84: 25001 | B84: 250013 | C84: 3 | D84: 25 | E84: 1 | F84: 001 | G84: CUNDINAMARCA | H84: AGUA DE DIOS | I84: Independiente | J84: 11 | K84: 24 | L84: 608 | M84: 603 | N84: 574 | O84: 568 | P84: 567 | Q84: 561 | R84: 575 | S84: 582 | T84: 575 | U84: 552 | V84: 524 | W84: 530 | X84: 608 | Y84: 611 | Z84: 592 | AA84: 601 | AB84: 634 | AC84: 643 | AD84: 651 | AE84: 654 | AF84: 644 | AG84: 648 | AH84: 616 | AI84: 662 | AJ84: 683 | AK84: 603 | AL84: FALSO | AQ84: 5134 | AR84: 51342 | AS84: 2 | AT84: 5 | AU84: 134 | AV84: 134 | AW84: ANTIOQUIA | AX84: CAMPAMENTO | AY84: Dep_sec_priv | AZ84: 20 | BA84: 25 | BB84: 73 | BC84: 64 | BD84: 63 | BE84: 67 | BF84: 63 | BG84: 64 | BH84: 65 | BI84: 64 | BJ84: 53 | BK84: 51 | BL84: 30 | BM84: 46 | BN84: 62 | BO84: 68 | BP84: 93 | BQ84: 84 | BR84: 72 | BS84: 82 | BT84: 91 | BU84: 100 | BV84: 111 | BW84: 125 | BX84: 128 | BY84: 120 | BZ84: 106 | CA84: 109
A85: 25815 | B85: 258153 | C85: 3 | D85: 25 | E85: 815 | F85: 815 | G85: CUNDINAMARCA | H85: TOCAIMA | I85: Independiente | J85: 14 | K85: 14 | L85: 288 | M85: 288 | N85: 296 | O85: 293 | P85: 297 | Q85: 319 | R85: 357 | S85: 360 | T85: 360 | U85: 346 | V85: 333 | W85: 368 | X85: 372 | Y85: 375 | Z85: 398 | AA85: 403 | AB85: 388 | AC85: 405 | AD85: 393 | AE85: 411 | AF85: 417 | AG85: 409 | AH85: 363 | AI85: 418 | AJ85: 424 | AK85: 404 | AL85: FALSO | AQ85: 5134 | AR85: 51343 | AS85: 3 | AT85: 5 | AU85: 134 | AV85: 134 | AW85: ANTIOQUIA | AX85: CAMPAMENTO | AY85: Independiente | AZ85: 3 | BA85: 1 | BB85: 71 | BC85: 68 | BD85: 67 | BE85: 71 | BF85: 77 | BG85: 88 | BH85: 99 | BI85: 98 | BJ85: 105 | BK85: 99 | BL85: 95 | BM85: 102 | BN85: 102 | BO85: 98 | BP85: 102 | BQ85: 100 | BR85: 101 | BS85: 109 | BT85: 107 | BU85: 108 | BV85: 111 | BW85: 105 | BX85: 102 | BY85: 102 | BZ85: 105 | CA85: 100
A86: 25473 | B86: 254733 | C86: 3 | D86: 25 | E86: 473 | F86: 473 | G86: CUNDINAMARCA | H86: MOSQUERA | I86: Independiente | J86: 273 | K86: 181 | L86: 3891 | M86: 3778 | N86: 3857 | O86: 3907 | P86: 4002 | Q86: 4074 | R86: 4192 | S86: 4313 | T86: 4379 | U86: 4398 | V86: 4224 | W86: 4382 | X86: 4519 | Y86: 4584 | Z86: 4660 | AA86: 4711 | AB86: 4797 | AC86: 4857 | AD86: 4954 | AE86: 5001 | AF86: 5043 | AG86: 4967 | AH86: 4969 | AI86: 5165 | AJ86: 5206 | AK86: 5150 | AL86: FALSO | AQ86: 5148 | AR86: 51482 | AS86: 2 | AT86: 5 | AU86: 148 | AV86: 148 | AW86: ANTIOQUIA | AX86: EL CARMEN DE VIBORAL | AY86: Dep_sec_priv | AZ86: 800 | BA86: 628 | BB86: 7154 | BC86: 6303 | BD86: 6402 | BE86: 6406 | BF86: 6473 | BG86: 6606 | BH86: 6788 | BI86: 6868 | BJ86: 7079 | BK86: 7005 | BL86: 7147 | BM86: 7432 | BN86: 7644 | BO86: 7674 | BP86: 7689 | BQ86: 7623 | BR86: 7739 | BS86: 7826 | BT86: 7917 | BU86: 8060 | BV86: 8173 | BW86: 8041 | BX86: 8139 | BY86: 8349 | BZ86: 8471 | CA86: 8624
A87: 20011 | B87: 200113 | C87: 3 | D87: 20 | E87: 11 | F87: 011 | G87: CESAR | H87: AGUACHICA | I87: Independiente | J87: 176 | K87: 136 | L87: 3022 | M87: 2953 | N87: 3166 | O87: 3170 | P87: 3478 | Q87: 3320 | R87: 3420 | S87: 3539 | T87: 3526 | U87: 3498 | V87: 3065 | W87: 2937 | X87: 3020 | Y87: 3023 | Z87: 3060 | AA87: 3112 | AB87: 3101 | AC87: 3175 | AD87: 3167 | AE87: 3207 | AF87: 3196 | AG87: 3136 | AH87: 3017 | AI87: 3269 | AJ87: 3281 | AK87: 3186 | AL87: FALSO | AQ87: 5604 | AR87: 56043 | AS87: 3 | AT87: 5 | AU87: 604 | AV87: 604 | AW87: ANTIOQUIA | AX87: REMEDIOS | AY87: Independiente | AZ87: 11 | BA87: 9 | BB87: 333 | BC87: 316 | BD87: 317 | BE87: 330 | BF87: 323 | BG87: 368 | BH87: 391 | BI87: 390 | BJ87: 402 | BK87: 386 | BL87: 349 | BM87: 330 | BN87: 345 | BO87: 364 | BP87: 381 | BQ87: 379 | BR87: 383 | BS87: 395 | BT87: 394 | BU87: 394 | BV87: 407 | BW87: 388 | BX87: 355 | BY87: 389 | BZ87: 391 | CA87: 354
A88: 73873 | B88: 738733 | C88: 3 | D88: 73 | E88: 873 | F88: 873 | G88: TOLIMA | H88: VILLARRICA | I88: Independiente | J88: 0 | K88: 0 | L88: 67 | M88: 64 | N88: 67 | O88: 65 | P88: 67 | Q88: 71 | R88: 69 | S88: 75 | T88: 67 | U88: 62 | V88: 46 | W88: 68 | X88: 77 | Y88: 80 | Z88: 82 | AA88: 87 | AB88: 85 | AC88: 85 | AD88: 86 | AE88: 85 | AF88: 86 | AG88: 87 | AH88: 71 | AI88: 87 | AJ88: 87 | AK88: 83 | AL88: FALSO | AQ88: 5154 | AR88: 51542 | AS88: 2 | AT88: 5 | AU88: 154 | AV88: 154 | AW88: ANTIOQUIA | AX88: CAUCASIA | AY88: Dep_sec_priv | AZ88: 1194 | BA88: 884 | BB88: 7832 | BC88: 7412 | BD88: 7626 | BE88: 7781 | BF88: 7659 | BG88: 7804 | BH88: 7716 | BI88: 7663 | BJ88: 7864 | BK88: 7828 | BL88: 7011 | BM88: 8004 | BN88: 8234 | BO88: 8454 | BP88: 7728 | BQ88: 7813 | BR88: 7961 | BS88: 8055 | BT88: 8184 | BU88: 8358 | BV88: 8304 | BW88: 8191 | BX88: 8003 | BY88: 8449 | BZ88: 8683 | CA88: 9166
A89: 5318 | B89: 53183 | C89: 3 | D89: 5 | E89: 318 | F89: 318 | G89: ANTIOQUIA | H89: GUARNE | I89: Independiente | J89: 72 | K89: 51 | L89: 1369 | M89: 1378 | N89: 1409 | O89: 1441 | P89: 1477 | Q89: 1509 | R89: 1556 | S89: 1608 | T89: 1641 | U89: 1562 | V89: 1465 | W89: 1537 | X89: 1610 | Y89: 1641 | Z89: 1676 | AA89: 1711 | AB89: 1752 | AC89: 1798 | AD89: 1850 | AE89: 1871 | AF89: 1899 | AG89: 1851 | AH89: 1786 | AI89: 1929 | AJ89: 1927 | AK89: 1875 | AL89: FALSO | AQ89: 5861 | AR89: 58612 | AS89: 2 | AT89: 5 | AU89: 861 | AV89: 861 | AW89: ANTIOQUIA | AX89: VENECIA | AY89: Dep_sec_priv | AZ89: 60 | BA89: 66 | BB89: 1430 | BC89: 1341 | BD89: 1401 | BE89: 1453 | BF89: 1490 | BG89: 1409 | BH89: 1445 | BI89: 1500 | BJ89: 1634 | BK89: 1556 | BL89: 1573 | BM89: 1552 | BN89: 1508 | BO89: 1514 | BP89: 1482 | BQ89: 1453 | BR89: 1443 | BS89: 1410 | BT89: 1430 | BU89: 1425 | BV89: 1253 | BW89: 1190 | BX89: 1135 | BY89: 1170 | BZ89: 1163 | CA89: 1122
A90: 25269 | B90: 252693 | C90: 3 | D90: 25 | E90: 269 | F90: 269 | G90: CUNDINAMARCA | H90: FACATATIVÁ | I90: Independiente | J90: 244 | K90: 172 | L90: 4826 | M90: 4748 | N90: 4746 | O90: 4778 | P90: 4937 | Q90: 4969 | R90: 5030 | S90: 5057 | T90: 5104 | U90: 5010 | V90: 4814 | W90: 5007 | X90: 5101 | Y90: 5179 | Z90: 5211 | AA90: 5267 | AB90: 5269 | AC90: 5259 | AD90: 5341 | AE90: 5372 | AF90: 5413 | AG90: 5211 | AH90: 5152 | AI90: 5370 | AJ90: 5317 | AK90: 5226 | AL90: FALSO | AQ90: 5172 | AR90: 51723 | AS90: 3 | AT90: 5 | AU90: 172 | AV90: 172 | AW90: ANTIOQUIA | AX90: CHIGORODÓ | AY90: Independiente | AZ90: 64 | BA90: 19 | BB90: 596 | BC90: 616 | BD90: 633 | BE90: 643 | BF90: 654 | BG90: 656 | BH90: 716 | BI90: 716 | BJ90: 719 | BK90: 663 | BL90: 547 | BM90: 592 | BN90: 648 | BO90: 689 | BP90: 737 | BQ90: 762 | BR90: 767 | BS90: 774 | BT90: 797 | BU90: 822 | BV90: 872 | BW90: 792 | BX90: 639 | BY90: 845 | BZ90: 789 | CA90: 808
A91: 25785 | B91: 257853 | C91: 3 | D91: 25 | E91: 785 | F91: 785 | G91: CUNDINAMARCA | H91: TABIO | I91: Independiente | J91: 36 | K91: 37 | L91: 1106 | M91: 1099 | N91: 1091 | O91: 1093 | P91: 1150 | Q91: 1160 | R91: 1186 | S91: 1153 | T91: 1152 | U91: 1151 | V91: 1113 | W91: 1134 | X91: 1153 | Y91: 1155 | Z91: 1156 | AA91: 1146 | AB91: 1144 | AC91: 1153 | AD91: 1160 | AE91: 1196 | AF91: 1188 | AG91: 1158 | AH91: 1162 | AI91: 1223 | AJ91: 1228 | AK91: 1184 | AL91: FALSO | AQ91: 5154 | AR91: 51541 | AS91: 1 | AT91: 5 | AU91: 154 | AV91: 154 | AW91: ANTIOQUIA | AX91: CAUCASIA | AY91: Dep_No_priv | AZ91: 139 | BA91: 113 | BB91: 1810 | BC91: 1808 | BD91: 1809 | BE91: 1815 | BF91: 1850 | BG91: 1820 | BH91: 1826 | BI91: 1844 | BJ91: 1823 | BK91: 1847 | BL91: 1781 | BM91: 1913 | BN91: 2075 | BO91: 2130 | BP91: 2150 | BQ91: 2071 | BR91: 2026 | BS91: 2083 | BT91: 2055 | BU91: 2048 | BV91: 2049 | BW91: 1935 | BX91: 1830 | BY91: 1836 | BZ91: 1939 | CA91: 1949
A92: 25769 | B92: 257693 | C92: 3 | D92: 25 | E92: 769 | F92: 769 | G92: CUNDINAMARCA | H92: SUBACHOQUE | I92: Independiente | J92: 21 | K92: 10 | L92: 686 | M92: 685 | N92: 680 | O92: 697 | P92: 689 | Q92: 696 | R92: 693 | S92: 695 | T92: 701 | U92: 702 | V92: 700 | W92: 707 | X92: 709 | Y92: 714 | Z92: 712 | AA92: 727 | AB92: 724 | AC92: 724 | AD92: 733 | AE92: 725 | AF92: 703 | AG92: 702 | AH92: 705 | AI92: 696 | AJ92: 699 | AK92: 677 | AL92: FALSO | AQ92: 5809 | AR92: 58092 | AS92: 2 | AT92: 5 | AU92: 809 | AV92: 809 | AW92: ANTIOQUIA | AX92: TITIRIBÍ | AY92: Dep_sec_priv | AZ92: 49 | BA92: 55 | BB92: 1005 | BC92: 973 | BD92: 959 | BE92: 956 | BF92: 966 | BG92: 978 | BH92: 978 | BI92: 996 | BJ92: 993 | BK92: 1007 | BL92: 982 | BM92: 1027 | BN92: 998 | BO92: 1004 | BP92: 992 | BQ92: 1001 | BR92: 999 | BS92: 1015 | BT92: 1025 | BU92: 1033 | BV92: 1058 | BW92: 1038 | BX92: 1021 | BY92: 1032 | BZ92: 1034 | CA92: 1026
A93: 25322 | B93: 253222 | C93: 2 | D93: 25 | E93: 322 | F93: 322 | G93: CUNDINAMARCA | H93: GUASCA | I93: Dep_sec_priv | J93: 172 | K93: 135 | L93: 1525 | M93: 1710 | N93: 1420 | O93: 1422 | P93: 1444 | Q93: 1415 | R93: 1373 | S93: 1374 | T93: 1364 | U93: 1360 | V93: 1363 | W93: 1386 | X93: 1369 | Y93: 1396 | Z93: 1403 | AA93: 1659 | AB93: 1672 | AC93: 1678 | AD93: 1751 | AE93: 1909 | AF93: 1925 | AG93: 1865 | AH93: 1799 | AI93: 1844 | AJ93: 1833 | AK93: 1866 | AL93: FALSO | AQ93: 5190 | AR93: 51903 | AS93: 3 | AT93: 5 | AU93: 190 | AV93: 190 | AW93: ANTIOQUIA | AX93: CISNEROS | AY93: Independiente | AZ93: 5 | BA93: 3 | BB93: 198 | BC93: 195 | BD93: 199 | BE93: 204 | BF93: 210 | BG93: 205 | BH93: 205 | BI93: 205 | BJ93: 210 | BK93: 202 | BL93: 190 | BM93: 205 | BN93: 219 | BO93: 239 | BP93: 237 | BQ93: 240 | BR93: 240 | BS93: 250 | BT93: 251 | BU93: 252 | BV93: 260 | BW93: 258 | BX93: 234 | BY93: 251 | BZ93: 232 | CA93: 225
A94: 19548 | B94: 195483 | C94: 3 | D94: 19 | E94: 548 | F94: 548 | G94: CAUCA | H94: PIENDAMÓ | I94: Independiente | J94: 48 | K94: 35 | L94: 648 | M94: 639 | N94: 634 | O94: 648 | P94: 664 | Q94: 688 | R94: 700 | S94: 698 | T94: 720 | U94: 700 | V94: 495 | W94: 644 | X94: 660 | Y94: 674 | Z94: 695 | AA94: 715 | AB94: 732 | AC94: 730 | AD94: 754 | AE94: 759 | AF94: 763 | AG94: 734 | AH94: 631 | AI94: 690 | AJ94: 718 | AK94: 720 | AL94: FALSO | AQ94: 5206 | AR94: 52063 | AS94: 3 | AT94: 5 | AU94: 206 | AV94: 206 | AW94: ANTIOQUIA | AX94: CONCEPCIÓN | AY94: Independiente | AZ94: 8 | BA94: 4 | BB94: 104 | BC94: 106 | BD94: 110 | BE94: 119 | BF94: 127 | BG94: 132 | BH94: 134 | BI94: 132 | BJ94: 131 | BK94: 136 | BL94: 123 | BM94: 120 | BN94: 123 | BO94: 127 | BP94: 136 | BQ94: 140 | BR94: 142 | BS94: 143 | BT94: 153 | BU94: 150 | BV94: 154 | BW94: 143 | BX94: 147 | BY94: 145 | BZ94: 140 | CA94: 143
A95: 73770 | B95: 737703 | C95: 3 | D95: 73 | E95: 770 | F95: 770 | G95: TOLIMA | H95: SUÁREZ | I95: Independiente | J95: 9 | K95: 3 | L95: 63 | M95: 61 | N95: 63 | O95: 57 | P95: 56 | Q95: 56 | R95: 60 | S95: 55 | T95: 58 | U95: 62 | V95: 47 | W95: 59 | X95: 60 | Y95: 62 | Z95: 62 | AA95: 60 | AB95: 64 | AC95: 67 | AD95: 65 | AE95: 66 | AF95: 68 | AG95: 65 | AH95: 57 | AI95: 72 | AJ95: 72 | AK95: 68 | AL95: FALSO | AQ95: 5197 | AR95: 51973 | AS95: 3 | AT95: 5 | AU95: 197 | AV95: 197 | AW95: ANTIOQUIA | AX95: COCORNÁ | AY95: Independiente | AZ95: 6 | BA95: 2 | BB95: 198 | BC95: 201 | BD95: 192 | BE95: 187 | BF95: 192 | BG95: 201 | BH95: 207 | BI95: 206 | BJ95: 216 | BK95: 216 | BL95: 193 | BM95: 193 | BN95: 214 | BO95: 217 | BP95: 225 | BQ95: 223 | BR95: 228 | BS95: 232 | BT95: 238 | BU95: 243 | BV95: 247 | BW95: 255 | BX95: 240 | BY95: 257 | BZ95: 252 | CA95: 252
A96: 25286 | B96: 252863 | C96: 3 | D96: 25 | E96: 286 | F96: 286 | G96: CUNDINAMARCA | H96: FUNZA | I96: Independiente | J96: 216 | K96: 218 | L96: 3677 | M96: 3573 | N96: 3672 | O96: 3827 | P96: 3881 | Q96: 4011 | R96: 4101 | S96: 4262 | T96: 4335 | U96: 4127 | V96: 4087 | W96: 4310 | X96: 4302 | Y96: 4410 | Z96: 4453 | AA96: 4544 | AB96: 4624 | AC96: 4700 | AD96: 4717 | AE96: 4804 | AF96: 4804 | AG96: 4527 | AH96: 4693 | AI96: 4935 | AJ96: 4996 | AK96: 4826 | AL96: FALSO | AQ96: 5209 | AR96: 52093 | AS96: 3 | AT96: 5 | AU96: 209 | AV96: 209 | AW96: ANTIOQUIA | AX96: CONCORDIA | AY96: Independiente | AZ96: 6 | BA96: 5 | BB96: 363 | BC96: 359 | BD96: 361 | BE96: 365 | BF96: 358 | BG96: 364 | BH96: 366 | BI96: 405 | BJ96: 410 | BK96: 400 | BL96: 363 | BM96: 365 | BN96: 374 | BO96: 376 | BP96: 379 | BQ96: 383 | BR96: 378 | BS96: 379 | BT96: 383 | BU96: 383 | BV96: 381 | BW96: 378 | BX96: 366 | BY96: 383 | BZ96: 382 | CA96: 373
A97: 15322 | B97: 153223 | C97: 3 | D97: 15 | E97: 322 | F97: 322 | G97: BOYACÁ | H97: GUATEQUE | I97: Independiente | J97: 12 | K97: 12 | L97: 405 | M97: 405 | N97: 397 | O97: 392 | P97: 399 | Q97: 413 | R97: 410 | S97: 421 | T97: 432 | U97: 423 | V97: 404 | W97: 414 | X97: 423 | Y97: 411 | Z97: 397 | AA97: 395 | AB97: 403 | AC97: 398 | AD97: 403 | AE97: 398 | AF97: 394 | AG97: 394 | AH97: 385 | AI97: 384 | AJ97: 383 | AK97: 387 | AL97: FALSO | AQ97: 5861 | AR97: 58613 | AS97: 3 | AT97: 5 | AU97: 861 | AV97: 861 | AW97: ANTIOQUIA | AX97: VENECIA | AY97: Independiente | AZ97: 6 | BA97: 9 | BB97: 162 | BC97: 154 | BD97: 154 | BE97: 161 | BF97: 169 | BG97: 171 | BH97: 168 | BI97: 185 | BJ97: 189 | BK97: 187 | BL97: 160 | BM97: 174 | BN97: 179 | BO97: 177 | BP97: 193 | BQ97: 193 | BR97: 204 | BS97: 208 | BT97: 212 | BU97: 213 | BV97: 223 | BW97: 213 | BX97: 200 | BY97: 227 | BZ97: 223 | CA97: 213
A98: 54001 | B98: 540012 | C98: 2 | D98: 54 | E98: 1 | F98: 001 | G98: NORTE DE SANTANDER | H98: CÚCUTA | I98: Dep_sec_priv | J98: 9778 | K98: 9667 | L98: 115679 | M98: 105411 | N98: 106773 | O98: 108669 | P98: 108845 | Q98: 110999 | R98: 112201 | S98: 113366 | T98: 115218 | U98: 113960 | V98: 110300 | W98: 117243 | X98: 119860 | Y98: 120768 | Z98: 120445 | AA98: 121720 | AB98: 124212 | AC98: 126467 | AD98: 127771 | AE98: 129754 | AF98: 132374 | AG98: 129921 | AH98: 126262 | AI98: 130073 | AJ98: 132131 | AK98: 129832 | AL98: FALSO | AQ98: 5051 | AR98: 50513 | AS98: 3 | AT98: 5 | AU98: 51 | AV98: 051 | AW98: ANTIOQUIA | AX98: ARBOLETES | AY98: Independiente | AZ98: 6 | BA98: 19 | BB98: 257 | BC98: 295 | BD98: 315 | BE98: 316 | BF98: 302 | BG98: 307 | BH98: 329 | BI98: 318 | BJ98: 345 | BK98: 309 | BL98: 232 | BM98: 239 | BN98: 282 | BO98: 334 | BP98: 357 | BQ98: 362 | BR98: 369 | BS98: 387 | BT98: 405 | BU98: 410 | BV98: 414 | BW98: 414 | BX98: 262 | BY98: 352 | BZ98: 342 | CA98: 319
A99: 50313 | B99: 503133 | C99: 3 | D99: 50 | E99: 313 | F99: 313 | G99: META | H99: GRANADA | I99: Independiente | J99: 86 | K99: 57 | L99: 2352 | M99: 2274 | N99: 2265 | O99: 2234 | P99: 2255 | Q99: 2274 | R99: 2360 | S99: 2432 | T99: 2189 | U99: 2160 | V99: 1849 | W99: 2073 | X99: 2118 | Y99: 2118 | Z99: 2150 | AA99: 2194 | AB99: 2194 | AC99: 2254 | AD99: 2285 | AE99: 2285 | AF99: 2328 | AG99: 2266 | AH99: 2154 | AI99: 2311 | AJ99: 2316 | AK99: 2259 | AL99: FALSO | AQ99: 5240 | AR99: 52403 | AS99: 3 | AT99: 5 | AU99: 240 | AV99: 240 | AW99: ANTIOQUIA | AX99: EBÉJICO | AY99: Independiente | AZ99: 9 | BA99: 3 | BB99: 137 | BC99: 137 | BD99: 135 | BE99: 140 | BF99: 143 | BG99: 142 | BH99: 145 | BI99: 151 | BJ99: 158 | BK99: 162 | BL99: 143 | BM99: 146 | BN99: 150 | BO99: 152 | BP99: 156 | BQ99: 163 | BR99: 161 | BS99: 164 | BT99: 166 | BU99: 168 | BV99: 169 | BW99: 171 | BX99: 169 | BY99: 192 | BZ99: 176 | CA99: 219
A100: 17380 | B100: 173803 | C100: 3 | D100: 17 | E100: 380 | F100: 380 | G100: CALDAS | H100: LA DORADA | I100: Independiente | J100: 167 | K100: 152 | L100: 3226 | M100: 3153 | N100: 3155 | O100: 3127 | P100: 3167 | Q100: 3239 | R100: 3280 | S100: 3339 | T100: 3385 | U100: 3351 | V100: 3068 | W100: 3216 | X100: 3296 | Y100: 3312 | Z100: 3361 | AA100: 3398 | AB100: 3414 | AC100: 3439 | AD100: 3567 | AE100: 3649 | AF100: 3685 | AG100: 3593 | AH100: 3535 | AI100: 3640 | AJ100: 3686 | AK100: 3597 | AL100: FALSO | AQ100: 5686 | AR100: 56863 | AS100: 3 | AT100: 5 | AU100: 686 | AV100: 686 | AW100: ANTIOQUIA | AX100: SANTA ROSA DE OSOS | AY100: Independiente | AZ100: 35 | BA100: 41 | BB100: 1689 | BC100: 1696 | BD100: 1738 | BE100: 1748 | BF100: 1756 | BG100: 1767 | BH100: 1767 | BI100: 1795 | BJ100: 1808 | BK100: 1794 | BL100: 1737 | BM100: 1777 | BN100: 1814 | BO100: 1835 | BP100: 1847 | BQ100: 1886 | BR100: 1878 | BS100: 1903 | BT100: 1959 | BU100: 2003 | BV100: 2011 | BW100: 1975 | BX100: 1938 | BY100: 2000 | BZ100: 1986 | CA100: 1944
A101: 68307 | B101: 683073 | C101: 3 | D101: 68 | E101: 307 | F101: 307 | G101: SANTANDER | H101: GIRÓN | I101: Independiente | J101: 194 | K101: 150 | L101: 3150 | M101: 3053 | N101: 3020 | O101: 3108 | P101: 3086 | Q101: 3162 | R101: 3170 | S101: 3314 | T101: 3349 | U101: 3287 | V101: 3057 | W101: 3186 | X101: 3271 | Y101: 3321 | Z101: 3351 | AA101: 3494 | AB101: 3580 | AC101: 3572 | AD101: 3647 | AE101: 3690 | AF101: 3616 | AG101: 3548 | AH101: 3587 | AI101: 3931 | AJ101: 3916 | AK101: 3842 | AL101: FALSO | AQ101: 5284 | AR101: 52843 | AS101: 3 | AT101: 5 | AU101: 284 | AV101: 284 | AW101: ANTIOQUIA | AX101: FRONTINO | AY101: Independiente | AZ101: 11 | BA101: 8 | BB101: 255 | BC101: 268 | BD101: 263 | BE101: 280 | BF101: 280 | BG101: 267 | BH101: 268 | BI101: 275 | BJ101: 280 | BK101: 271 | BL101: 219 | BM101: 232 | BN101: 263 | BO101: 273 | BP101: 272 | BQ101: 310 | BR101: 324 | BS101: 337 | BT101: 325 | BU101: 339 | BV101: 329 | BW101: 328 | BX101: 294 | BY101: 299 | BZ101: 308 | CA101: 304
A102: 68081 | B102: 680813 | C102: 3 | D102: 68 | E102: 81 | F102: 081 | G102: SANTANDER | H102: BARRANCABERMEJA | I102: Independiente | J102: 425 | K102: 461 | L102: 6695 | M102: 6446 | N102: 6431 | O102: 6482 | P102: 6845 | Q102: 6898 | R102: 7057 | S102: 7304 | T102: 7633 | U102: 7598 | V102: 5959 | W102: 6394 | X102: 6692 | Y102: 6796 | Z102: 7049 | AA102: 7322 | AB102: 7497 | AC102: 7596 | AD102: 7802 | AE102: 7907 | AF102: 8003 | AG102: 7878 | AH102: 7227 | AI102: 8374 | AJ102: 8555 | AK102: 8375 | AL102: FALSO | AQ102: 5284 | AR102: 52842 | AS102: 2 | AT102: 5 | AU102: 284 | AV102: 284 | AW102: ANTIOQUIA | AX102: FRONTINO | AY102: Dep_sec_priv | AZ102: 32 | BA102: 25 | BB102: 359 | BC102: 360 | BD102: 358 | BE102: 367 | BF102: 367 | BG102: 377 | BH102: 394 | BI102: 397 | BJ102: 411 | BK102: 409 | BL102: 355 | BM102: 387 | BN102: 400 | BO102: 418 | BP102: 418 | BQ102: 401 | BR102: 388 | BS102: 399 | BT102: 420 | BU102: 421 | BV102: 428 | BW102: 471 | BX102: 424 | BY102: 467 | BZ102: 490 | CA102: 473
A103: 73624 | B103: 736243 | C103: 3 | D103: 73 | E103: 624 | F103: 624 | G103: TOLIMA | H103: ROVIRA | I103: Independiente | J103: 5 | K103: 5 | L103: 198 | M103: 182 | N103: 187 | O103: 196 | P103: 202 | Q103: 203 | R103: 215 | S103: 219 | T103: 198 | U103: 191 | V103: 181 | W103: 191 | X103: 213 | Y103: 206 | Z103: 217 | AA103: 216 | AB103: 217 | AC103: 217 | AD103: 217 | AE103: 223 | AF103: 224 | AG103: 212 | AH103: 215 | AI103: 236 | AJ103: 230 | AK103: 233 | AL103: FALSO | AQ103: 5679 | AR103: 56792 | AS103: 2 | AT103: 5 | AU103: 679 | AV103: 679 | AW103: ANTIOQUIA | AX103: SANTA BÁRBARA | AY103: Dep_sec_priv | AZ103: 87 | BA103: 75 | BB103: 744 | BC103: 677 | BD103: 704 | BE103: 721 | BF103: 814 | BG103: 796 | BH103: 778 | BI103: 750 | BJ103: 697 | BK103: 728 | BL103: 738 | BM103: 692 | BN103: 693 | BO103: 715 | BP103: 740 | BQ103: 788 | BR103: 773 | BS103: 778 | BT103: 838 | BU103: 865 | BV103: 891 | BW103: 892 | BX103: 939 | BY103: 960 | BZ103: 1060 | CA103: 1024
A104: 25599 | B104: 255993 | C104: 3 | D104: 25 | E104: 599 | F104: 599 | G104: CUNDINAMARCA | H104: APULO | I104: Independiente | J104: 10 | K104: 10 | L104: 185 | M104: 184 | N104: 184 | O104: 178 | P104: 185 | Q104: 181 | R104: 188 | S104: 178 | T104: 176 | U104: 170 | V104: 182 | W104: 182 | X104: 183 | Y104: 183 | Z104: 185 | AA104: 185 | AB104: 181 | AC104: 190 | AD104: 191 | AE104: 196 | AF104: 197 | AG104: 211 | AH104: 197 | AI104: 210 | AJ104: 212 | AK104: 206 | AL104: FALSO | AQ104: 5172 | AR104: 51722 | AS104: 2 | AT104: 5 | AU104: 172 | AV104: 172 | AW104: ANTIOQUIA | AX104: CHIGORODÓ | AY104: Dep_sec_priv | AZ104: 371 | BA104: 278 | BB104: 3610 | BC104: 3557 | BD104: 3852 | BE104: 3783 | BF104: 3799 | BG104: 3813 | BH104: 3877 | BI104: 3849 | BJ104: 3871 | BK104: 3815 | BL104: 3779 | BM104: 4006 | BN104: 3975 | BO104: 4174 | BP104: 4148 | BQ104: 4108 | BR104: 4254 | BS104: 4117 | BT104: 4171 | BU104: 4209 | BV104: 4261 | BW104: 4129 | BX104: 3967 | BY104: 4250 | BZ104: 4224 | CA104: 4242
A105: 76147 | B105: 761473 | C105: 3 | D105: 76 | E105: 147 | F105: 147 | G105: VALLE DEL CAUCA | H105: CARTAGO | I105: Independiente | J105: 234 | K105: 175 | L105: 6833 | M105: 6623 | N105: 6606 | O105: 6573 | P105: 6531 | Q105: 6518 | R105: 6598 | S105: 6683 | T105: 6712 | U105: 6622 | V105: 6436 | W105: 6526 | X105: 6688 | Y105: 6682 | Z105: 6650 | AA105: 6632 | AB105: 6617 | AC105: 6708 | AD105: 6761 | AE105: 6757 | AF105: 6816 | AG105: 6718 | AH105: 6651 | AI105: 6721 | AJ105: 6709 | AK105: 6573 | AL105: FALSO | AQ105: 5686 | AR105: 56862 | AS105: 2 | AT105: 5 | AU105: 686 | AV105: 686 | AW105: ANTIOQUIA | AX105: SANTA ROSA DE OSOS | AY105: Dep_sec_priv | AZ105: 471 | BA105: 426 | BB105: 5723 | BC105: 5456 | BD105: 5681 | BE105: 5697 | BF105: 5723 | BG105: 5670 | BH105: 5812 | BI105: 5922 | BJ105: 6132 | BK105: 5923 | BL105: 5840 | BM105: 5979 | BN105: 6254 | BO105: 6337 | BP105: 6375 | BQ105: 6447 | BR105: 6538 | BS105: 6357 | BT105: 6356 | BU105: 6488 | BV105: 6447 | BW105: 6164 | BX105: 5983 | BY105: 6316 | BZ105: 6346 | CA105: 6323
A106: 5266 | B106: 52663 | C106: 3 | D106: 5 | E106: 266 | F106: 266 | G106: ANTIOQUIA | H106: ENVIGADO | I106: Independiente | J106: 696 | K106: 531 | L106: 13778 | M106: 13576 | N106: 13729 | O106: 13923 | P106: 14190 | Q106: 14409 | R106: 14704 | S106: 14923 | T106: 15145 | U106: 15267 | V106: 15057 | W106: 15505 | X106: 15791 | Y106: 15872 | Z106: 15934 | AA106: 16158 | AB106: 16228 | AC106: 16404 | AD106: 16593 | AE106: 16794 | AF106: 16965 | AG106: 16861 | AH106: 16713 | AI106: 17029 | AJ106: 17090 | AK106: 16811 | AL106: FALSO | AQ106: 5674 | AR106: 56742 | AS106: 2 | AT106: 5 | AU106: 674 | AV106: 674 | AW106: ANTIOQUIA | AX106: SAN VICENTE | AY106: Dep_sec_priv | AZ106: 103 | BA106: 83 | BB106: 717 | BC106: 714 | BD106: 711 | BE106: 719 | BF106: 737 | BG106: 724 | BH106: 734 | BI106: 723 | BJ106: 735 | BK106: 736 | BL106: 765 | BM106: 742 | BN106: 737 | BO106: 770 | BP106: 781 | BQ106: 806 | BR106: 868 | BS106: 922 | BT106: 929 | BU106: 940 | BV106: 922 | BW106: 881 | BX106: 907 | BY106: 927 | BZ106: 938 | CA106: 985
A107: 81001 | B107: 810013 | C107: 3 | D107: 81 | E107: 1 | F107: 001 | G107: ARAUCA | H107: ARAUCA | I107: Independiente | J107: 287 | K107: 250 | L107: 4617 | M107: 4336 | N107: 4281 | O107: 4264 | P107: 4411 | Q107: 4446 | R107: 4573 | S107: 4755 | T107: 4764 | U107: 4741 | V107: 4273 | W107: 4576 | X107: 4809 | Y107: 4921 | Z107: 4951 | AA107: 4970 | AB107: 5188 | AC107: 5061 | AD107: 4701 | AE107: 4767 | AF107: 4750 | AG107: 4549 | AH107: 4422 | AI107: 4498 | AJ107: 4411 | AK107: 4177 | AL107: FALSO | AQ107: 5308 | AR107: 53082 | AS107: 2 | AT107: 5 | AU107: 308 | AV107: 308 | AW107: ANTIOQUIA | AX107: GIRARDOTA | AY107: Dep_sec_priv | AZ107: 620 | BA107: 575 | BB107: 8918 | BC107: 8444 | BD107: 8438 | BE107: 8438 | BF107: 8498 | BG107: 8668 | BH107: 8864 | BI107: 9125 | BJ107: 9157 | BK107: 9160 | BL107: 9168 | BM107: 9466 | BN107: 9682 | BO107: 9808 | BP107: 9771 | BQ107: 9962 | BR107: 10031 | BS107: 10182 | BT107: 10238 | BU107: 10287 | BV107: 10366 | BW107: 10293 | BX107: 10360 | BY107: 10405 | BZ107: 10637 | CA107: 10646
A108: 15001 | B108: 150013 | C108: 3 | D108: 15 | E108: 1 | F108: 001 | G108: BOYACÁ | H108: TUNJA | I108: Independiente | J108: 1050 | K108: 877 | L108: 16144 | M108: 15558 | N108: 15862 | O108: 16136 | P108: 16311 | Q108: 16524 | R108: 16833 | S108: 17097 | T108: 17445 | U108: 17041 | V108: 15612 | W108: 16254 | X108: 16913 | Y108: 17115 | Z108: 17105 | AA108: 17403 | AB108: 17540 | AC108: 17521 | AD108: 17721 | AE108: 17989 | AF108: 18194 | AG108: 17774 | AH108: 16655 | AI108: 17392 | AJ108: 17280 | AK108: 17126 | AL108: FALSO | AQ108: 5093 | AR108: 50932 | AS108: 2 | AT108: 5 | AU108: 93 | AV108: 093 | AW108: ANTIOQUIA | AX108: BETULIA | AY108: Dep_sec_priv | AZ108: 44 | BA108: 80 | BB108: 460 | BC108: 422 | BD108: 411 | BE108: 391 | BF108: 382 | BG108: 435 | BH108: 407 | BI108: 365 | BJ108: 357 | BK108: 337 | BL108: 307 | BM108: 326 | BN108: 354 | BO108: 402 | BP108: 459 | BQ108: 505 | BR108: 493 | BS108: 513 | BT108: 447 | BU108: 405 | BV108: 419 | BW108: 471 | BX108: 435 | BY108: 428 | BZ108: 454 | CA108: 479
A109: 76520 | B109: 765203 | C109: 3 | D109: 76 | E109: 520 | F109: 520 | G109: VALLE DEL CAUCA | H109: PALMIRA | I109: Independiente | J109: 467 | K109: 354 | L109: 14373 | M109: 14142 | N109: 14204 | O109: 14227 | P109: 14169 | Q109: 14285 | R109: 14544 | S109: 14631 | T109: 14821 | U109: 14721 | V109: 14010 | W109: 14197 | X109: 14434 | Y109: 14420 | Z109: 14336 | AA109: 14424 | AB109: 14627 | AC109: 14772 | AD109: 14948 | AE109: 14830 | AF109: 14965 | AG109: 14882 | AH109: 14417 | AI109: 14780 | AJ109: 14706 | AK109: 14440 | AL109: FALSO | AQ109: 5264 | AR109: 52642 | AS109: 2 | AT109: 5 | AU109: 264 | AV109: 264 | AW109: ANTIOQUIA | AX109: ENTRERRIOS | AY109: Dep_sec_priv | AZ109: 161 | BA109: 184 | BB109: 2107 | BC109: 2048 | BD109: 2045 | BE109: 2056 | BF109: 2110 | BG109: 2108 | BH109: 2244 | BI109: 2232 | BJ109: 2267 | BK109: 2190 | BL109: 2213 | BM109: 2252 | BN109: 2265 | BO109: 2313 | BP109: 2355 | BQ109: 2359 | BR109: 2343 | BS109: 2374 | BT109: 2391 | BU109: 2172 | BV109: 2115 | BW109: 2117 | BX109: 2130 | BY109: 2149 | BZ109: 2212 | CA109: 2239
A110: 68679 | B110: 686793 | C110: 3 | D110: 68 | E110: 679 | F110: 679 | G110: SANTANDER | H110: SAN GIL | I110: Independiente | J110: 150 | K110: 128 | L110: 4315 | M110: 4169 | N110: 4133 | O110: 4206 | P110: 4246 | Q110: 4269 | R110: 4315 | S110: 4453 | T110: 4507 | U110: 4525 | V110: 4007 | W110: 4242 | X110: 4407 | Y110: 4484 | Z110: 4547 | AA110: 4627 | AB110: 4652 | AC110: 4621 | AD110: 4699 | AE110: 4728 | AF110: 4749 | AG110: 4648 | AH110: 4719 | AI110: 4776 | AJ110: 4762 | AK110: 4660 | AL110: FALSO | AQ110: 5306 | AR110: 53063 | AS110: 3 | AT110: 5 | AU110: 306 | AV110: 306 | AW110: ANTIOQUIA | AX110: GIRALDO | AY110: Independiente | AZ110: 13 | BA110: 2 | BB110: 69 | BC110: 66 | BD110: 72 | BE110: 74 | BF110: 67 | BG110: 73 | BH110: 76 | BI110: 76 | BJ110: 86 | BK110: 72 | BL110: 71 | BM110: 81 | BN110: 83 | BO110: 80 | BP110: 86 | BQ110: 96 | BR110: 89 | BS110: 87 | BT110: 92 | BU110: 93 | BV110: 96 | BW110: 84 | BX110: 96 | BY110: 108 | BZ110: 105 | CA110: 108
A111: 68861 | B111: 688613 | C111: 3 | D111: 68 | E111: 861 | F111: 861 | G111: SANTANDER | H111: VÉLEZ | I111: Independiente | J111: 16 | K111: 16 | L111: 870 | M111: 843 | N111: 834 | O111: 857 | P111: 849 | Q111: 855 | R111: 865 | S111: 872 | T111: 898 | U111: 890 | V111: 821 | W111: 861 | X111: 883 | Y111: 899 | Z111: 914 | AA111: 904 | AB111: 913 | AC111: 912 | AD111: 914 | AE111: 901 | AF111: 908 | AG111: 881 | AH111: 869 | AI111: 902 | AJ111: 890 | AK111: 867 | AL111: FALSO | AQ111: 5237 | AR111: 52372 | AS111: 2 | AT111: 5 | AU111: 237 | AV111: 237 | AW111: ANTIOQUIA | AX111: DON MATÍAS | AY111: Dep_sec_priv | AZ111: 236 | BA111: 283 | BB111: 3643 | BC111: 3522 | BD111: 3589 | BE111: 3595 | BF111: 3536 | BG111: 3475 | BH111: 3498 | BI111: 3530 | BJ111: 3538 | BK111: 3477 | BL111: 3468 | BM111: 3674 | BN111: 3790 | BO111: 3762 | BP111: 3764 | BQ111: 3797 | BR111: 3864 | BS111: 3877 | BT111: 3911 | BU111: 3896 | BV111: 3873 | BW111: 3828 | BX111: 3762 | BY111: 3902 | BZ111: 3896 | CA111: 3848
A112: 5607 | B112: 56073 | C112: 3 | D112: 5 | E112: 607 | F112: 607 | G112: ANTIOQUIA | H112: RETIRO | I112: Independiente | J112: 42 | K112: 26 | L112: 1105 | M112: 1089 | N112: 1122 | O112: 1144 | P112: 1175 | Q112: 1195 | R112: 1245 | S112: 1268 | T112: 1286 | U112: 1273 | V112: 1263 | W112: 1314 | X112: 1340 | Y112: 1365 | Z112: 1397 | AA112: 1420 | AB112: 1452 | AC112: 1468 | AD112: 1449 | AE112: 1469 | AF112: 1495 | AG112: 1508 | AH112: 1505 | AI112: 1556 | AJ112: 1561 | AK112: 1523 | AL112: FALSO | AQ112: 5310 | AR112: 53102 | AS112: 2 | AT112: 5 | AU112: 310 | AV112: 310 | AW112: ANTIOQUIA | AX112: GÓMEZ PLATA | AY112: Dep_sec_priv | AZ112: 59 | BA112: 61 | BB112: 543 | BC112: 464 | BD112: 473 | BE112: 435 | BF112: 440 | BG112: 475 | BH112: 508 | BI112: 528 | BJ112: 527 | BK112: 506 | BL112: 497 | BM112: 603 | BN112: 649 | BO112: 697 | BP112: 701 | BQ112: 686 | BR112: 692 | BS112: 711 | BT112: 678 | BU112: 733 | BV112: 728 | BW112: 748 | BX112: 745 | BY112: 768 | BZ112: 770 | CA112: 719
A113: 95015 | B113: 950151 | C113: 1 | D113: 95 | E113: 15 | F113: 015 | G113: GUAVIARE | H113: CALAMAR | I113: Dep_No_priv | J113: 0 | K113: 0 | L113: 142 | M113: 147 | N113: 112 | O113: 145 | P113: 144 | Q113: 140 | R113: 148 | S113: 144 | T113: 142 | U113: 141 | V113: 139 | W113: 138 | X113: 142 | Y113: 139 | Z113: 145 | AA113: 146 | AB113: 146 | AC113: 146 | AD113: 150 | AE113: 145 | AF113: 157 | AG113: 158 | AH113: 157 | AI113: 155 | AJ113: 172 | AK113: 162 | AL113: FALSO | AQ113: 5321 | AR113: 53213 | AS113: 3 | AT113: 5 | AU113: 321 | AV113: 321 | AW113: ANTIOQUIA | AX113: GUATAPE | AY113: Independiente | AZ113: 23 | BA113: 16 | BB113: 349 | BC113: 344 | BD113: 344 | BE113: 366 | BF113: 364 | BG113: 363 | BH113: 359 | BI113: 391 | BJ113: 408 | BK113: 408 | BL113: 380 | BM113: 422 | BN113: 439 | BO113: 451 | BP113: 450 | BQ113: 457 | BR113: 462 | BS113: 457 | BT113: 466 | BU113: 474 | BV113: 471 | BW113: 459 | BX113: 446 | BY113: 471 | BZ113: 494 | CA113: 493
A114: 25754 | B114: 257543 | C114: 3 | D114: 25 | E114: 754 | F114: 754 | G114: CUNDINAMARCA | H114: SOACHA | I114: Independiente | J114: 594 | K114: 481 | L114: 7880 | M114: 7792 | N114: 7939 | O114: 8117 | P114: 8373 | Q114: 8526 | R114: 8890 | S114: 9188 | T114: 9451 | U114: 9379 | V114: 8906 | W114: 9325 | X114: 9850 | Y114: 10023 | Z114: 10215 | AA114: 10477 | AB114: 10715 | AC114: 10959 | AD114: 11191 | AE114: 11355 | AF114: 11416 | AG114: 11175 | AH114: 11214 | AI114: 11799 | AJ114: 11844 | AK114: 11682 | AL114: FALSO | AQ114: 5736 | AR114: 57362 | AS114: 2 | AT114: 5 | AU114: 736 | AV114: 736 | AW114: ANTIOQUIA | AX114: SEGOVIA | AY114: Dep_sec_priv | AZ114: 988 | BA114: 624 | BB114: 4906 | BC114: 4800 | BD114: 4952 | BE114: 5046 | BF114: 5221 | BG114: 5350 | BH114: 5609 | BI114: 5744 | BJ114: 5785 | BK114: 5664 | BL114: 5893 | BM114: 6107 | BN114: 6246 | BO114: 6186 | BP114: 6050 | BQ114: 6476 | BR114: 6553 | BS114: 6703 | BT114: 6805 | BU114: 6945 | BV114: 6976 | BW114: 7173 | BX114: 6940 | BY114: 7039 | BZ114: 6876 | CA114: 6900
A115: 76736 | B115: 767362 | C115: 2 | D115: 76 | E115: 736 | F115: 736 | G115: VALLE DEL CAUCA | H115: SEVILLA | I115: Dep_sec_priv | J115: 162 | K115: 213 | L115: 1689 | M115: 1666 | N115: 1729 | O115: 1698 | P115: 1721 | Q115: 1796 | R115: 1858 | S115: 1752 | T115: 1735 | U115: 1770 | V115: 1766 | W115: 1861 | X115: 1871 | Y115: 1854 | Z115: 1952 | AA115: 1970 | AB115: 2022 | AC115: 2083 | AD115: 2145 | AE115: 2226 | AF115: 2266 | AG115: 2219 | AH115: 2149 | AI115: 2178 | AJ115: 2217 | AK115: 2185 | AL115: FALSO | AQ115: 5150 | AR115: 51502 | AS115: 2 | AT115: 5 | AU115: 150 | AV115: 150 | AW115: ANTIOQUIA | AX115: CAROLINA | AY115: Dep_sec_priv | AZ115: 23 | BA115: 21 | BB115: 169 | BC115: 166 | BD115: 163 | BE115: 174 | BF115: 172 | BG115: 186 | BH115: 189 | BI115: 180 | BJ115: 197 | BK115: 208 | BL115: 192 | BM115: 232 | BN115: 274 | BO115: 301 | BP115: 302 | BQ115: 322 | BR115: 360 | BS115: 397 | BT115: 426 | BU115: 416 | BV115: 411 | BW115: 423 | BX115: 383 | BY115: 336 | BZ115: 290 | CA115: 279
A116: 73275 | B116: 732753 | C116: 3 | D116: 73 | E116: 275 | F116: 275 | G116: TOLIMA | H116: FLANDES | I116: Independiente | J116: 22 | K116: 17 | L116: 473 | M116: 460 | N116: 470 | O116: 466 | P116: 495 | Q116: 504 | R116: 499 | S116: 520 | T116: 532 | U116: 536 | V116: 489 | W116: 556 | X116: 570 | Y116: 575 | Z116: 600 | AA116: 600 | AB116: 592 | AC116: 581 | AD116: 553 | AE116: 538 | AF116: 541 | AG116: 525 | AH116: 557 | AI116: 571 | AJ116: 552 | AK116: 521 | AL116: FALSO | AQ116: 5313 | AR116: 53133 | AS116: 3 | AT116: 5 | AU116: 313 | AV116: 313 | AW116: ANTIOQUIA | AX116: GRANADA | AY116: Independiente | AZ116: 3 | BA116: 10 | BB116: 193 | BC116: 188 | BD116: 193 | BE116: 193 | BF116: 201 | BG116: 212 | BH116: 208 | BI116: 211 | BJ116: 211 | BK116: 210 | BL116: 188 | BM116: 192 | BN116: 197 | BO116: 197 | BP116: 207 | BQ116: 211 | BR116: 218 | BS116: 225 | BT116: 223 | BU116: 223 | BV116: 218 | BW116: 208 | BX116: 219 | BY116: 234 | BZ116: 250 | CA116: 234
A117: 23660 | B117: 236601 | C117: 1 | D117: 23 | E117: 660 | F117: 660 | G117: CÓRDOBA | H117: SAHAGÚN | I117: Dep_No_priv | J117: 37 | K117: 34 | L117: 1267 | M117: 1258 | N117: 1280 | O117: 1317 | P117: 1311 | Q117: 1373 | R117: 1379 | S117: 1409 | T117: 1355 | U117: 1308 | V117: 1352 | W117: 1328 | X117: 1342 | Y117: 1313 | Z117: 1333 | AA117: 1319 | AB117: 1338 | AC117: 1325 | AD117: 1320 | AE117: 1285 | AF117: 1305 | AG117: 1331 | AH117: 1349 | AI117: 1338 | AJ117: 1370 | AK117: 1321 | AL117: FALSO | AQ117: 5321 | AR117: 53212 | AS117: 2 | AT117: 5 | AU117: 321 | AV117: 321 | AW117: ANTIOQUIA | AX117: GUATAPE | AY117: Dep_sec_priv | AZ117: 77 | BA117: 60 | BB117: 683 | BC117: 592 | BD117: 569 | BE117: 536 | BF117: 515 | BG117: 525 | BH117: 583 | BI117: 629 | BJ117: 674 | BK117: 674 | BL117: 649 | BM117: 660 | BN117: 713 | BO117: 700 | BP117: 725 | BQ117: 747 | BR117: 785 | BS117: 814 | BT117: 830 | BU117: 832 | BV117: 827 | BW117: 840 | BX117: 816 | BY117: 804 | BZ117: 843 | CA117: 839
A118: 25473 | B118: 254732 | C118: 2 | D118: 25 | E118: 473 | F118: 473 | G118: CUNDINAMARCA | H118: MOSQUERA | I118: Dep_sec_priv | J118: 2507 | K118: 2325 | L118: 17026 | M118: 15581 | N118: 15390 | O118: 15045 | P118: 15714 | Q118: 15777 | R118: 16066 | S118: 16370 | T118: 16703 | U118: 15969 | V118: 17090 | W118: 17547 | X118: 17359 | Y118: 18339 | Z118: 17928 | AA118: 17379 | AB118: 17864 | AC118: 17970 | AD118: 18552 | AE118: 18777 | AF118: 19059 | AG118: 18565 | AH118: 19572 | AI118: 19894 | AJ118: 20230 | AK118: 20370 | AL118: FALSO | AQ118: 5541 | AR118: 55413 | AS118: 3 | AT118: 5 | AU118: 541 | AV118: 541 | AW118: ANTIOQUIA | AX118: PEÑOL | AY118: Independiente | AZ118: 25 | BA118: 10 | BB118: 599 | BC118: 602 | BD118: 613 | BE118: 615 | BF118: 628 | BG118: 648 | BH118: 655 | BI118: 669 | BJ118: 696 | BK118: 701 | BL118: 666 | BM118: 671 | BN118: 699 | BO118: 750 | BP118: 779 | BQ118: 778 | BR118: 794 | BS118: 802 | BT118: 791 | BU118: 800 | BV118: 794 | BW118: 789 | BX118: 786 | BY118: 852 | BZ118: 896 | CA118: 880
A119: 5579 | B119: 55793 | C119: 3 | D119: 5 | E119: 579 | F119: 579 | G119: ANTIOQUIA | H119: PUERTO BERRÍO | I119: Independiente | J119: 21 | K119: 69 | L119: 807 | M119: 800 | N119: 817 | O119: 829 | P119: 849 | Q119: 852 | R119: 858 | S119: 914 | T119: 1057 | U119: 1034 | V119: 764 | W119: 794 | X119: 861 | Y119: 936 | Z119: 982 | AA119: 973 | AB119: 1017 | AC119: 1034 | AD119: 1049 | AE119: 986 | AF119: 1118 | AG119: 1078 | AH119: 1004 | AI119: 1047 | AJ119: 1028 | AK119: 1002 | AL119: FALSO | AQ119: 5667 | AR119: 56673 | AS119: 3 | AT119: 5 | AU119: 667 | AV119: 667 | AW119: ANTIOQUIA | AX119: SAN RAFAEL | AY119: Independiente | AZ119: 27 | BA119: 7 | BB119: 216 | BC119: 210 | BD119: 218 | BE119: 220 | BF119: 220 | BG119: 246 | BH119: 256 | BI119: 255 | BJ119: 258 | BK119: 252 | BL119: 203 | BM119: 223 | BN119: 254 | BO119: 268 | BP119: 288 | BQ119: 303 | BR119: 313 | BS119: 319 | BT119: 327 | BU119: 333 | BV119: 333 | BW119: 328 | BX119: 318 | BY119: 335 | BZ119: 325 | CA119: 326
A120: 76275 | B120: 762752 | C120: 2 | D120: 76 | E120: 275 | F120: 275 | G120: VALLE DEL CAUCA | H120: FLORIDA | I120: Dep_sec_priv | J120: 414 | K120: 400 | L120: 2662 | M120: 2393 | N120: 2690 | O120: 2502 | P120: 2405 | Q120: 2437 | R120: 2510 | S120: 2656 | T120: 2745 | U120: 2563 | V120: 2569 | W120: 2617 | X120: 2576 | Y120: 2598 | Z120: 2263 | AA120: 2357 | AB120: 2432 | AC120: 2404 | AD120: 2546 | AE120: 2679 | AF120: 2674 | AG120: 2404 | AH120: 2516 | AI120: 2641 | AJ120: 2640 | AK120: 2624 | AL120: FALSO | AQ120: 5440 | AR120: 54402 | AS120: 2 | AT120: 5 | AU120: 440 | AV120: 440 | AW120: ANTIOQUIA | AX120: MARINILLA | AY120: Dep_sec_priv | AZ120: 881 | BA120: 842 | BB120: 7213 | BC120: 6334 | BD120: 6429 | BE120: 6609 | BF120: 6724 | BG120: 6827 | BH120: 7080 | BI120: 7302 | BJ120: 7508 | BK120: 7571 | BL120: 7595 | BM120: 7856 | BN120: 8121 | BO120: 8153 | BP120: 8089 | BQ120: 8208 | BR120: 8421 | BS120: 8573 | BT120: 8786 | BU120: 9063 | BV120: 9103 | BW120: 8927 | BX120: 9171 | BY120: 9728 | BZ120: 10081 | CA120: 10019
A121: 25214 | B121: 252142 | C121: 2 | D121: 25 | E121: 214 | F121: 214 | G121: CUNDINAMARCA | H121: COTA | I121: Dep_sec_priv | J121: 1054 | K121: 875 | L121: 13916 | M121: 12777 | N121: 12307 | O121: 12598 | P121: 12775 | Q121: 12941 | R121: 13208 | S121: 13637 | T121: 13749 | U121: 13698 | V121: 14668 | W121: 13935 | X121: 14227 | Y121: 14482 | Z121: 14328 | AA121: 14511 | AB121: 14653 | AC121: 14755 | AD121: 15166 | AE121: 14929 | AF121: 15787 | AG121: 15565 | AH121: 15776 | AI121: 16403 | AJ121: 16547 | AK121: 16504 | AL121: FALSO | AQ121: 5475 | AR121: 54751 | AS121: 1 | AT121: 5 | AU121: 475 | AV121: 475 | AW121: ANTIOQUIA | AX121: MURINDÓ | AY121: Dep_No_priv | AZ121: 1 | BA121: 0 | BB121: 131 | BC121: 125 | BD121: 125 | BE121: 112 | BF121: 112 | BG121: 111 | BH121: 123 | BI121: 123 | BJ121: 134 | BK121: 122 | BL121: 106 | BM121: 123 | BN121: 123 | BO121: 122 | BP121: 123 | BQ121: 115 | BR121: 116 | BS121: 117 | BT121: 117 | BU121: 127 | BV121: 129 | BW121: 120 | BX121: 113 | BY121: 116 | BZ121: 117 | CA121: 106
A122: 8758 | B122: 87583 | C122: 3 | D122: 8 | E122: 758 | F122: 758 | G122: ATLÁNTICO | H122: SOLEDAD | I122: Independiente | J122: 525 | K122: 522 | L122: 4299 | M122: 4326 | N122: 4402 | O122: 4484 | P122: 4489 | Q122: 4702 | R122: 4849 | S122: 4917 | T122: 4945 | U122: 4604 | V122: 4047 | W122: 4377 | X122: 4867 | Y122: 5091 | Z122: 5224 | AA122: 5239 | AB122: 5290 | AC122: 5210 | AD122: 5359 | AE122: 5449 | AF122: 5411 | AG122: 5047 | AH122: 5070 | AI122: 5632 | AJ122: 5648 | AK122: 5481 | AL122: FALSO | AQ122: 5483 | AR122: 54833 | AS122: 3 | AT122: 5 | AU122: 483 | AV122: 483 | AW122: ANTIOQUIA | AX122: NARIÑO | AY122: Independiente | AZ122: 7 | BA122: 7 | BB122: 86 | BC122: 85 | BD122: 89 | BE122: 92 | BF122: 101 | BG122: 98 | BH122: 101 | BI122: 95 | BJ122: 100 | BK122: 104 | BL122: 84 | BM122: 83 | BN122: 85 | BO122: 97 | BP122: 101 | BQ122: 99 | BR122: 100 | BS122: 106 | BT122: 108 | BU122: 110 | BV122: 113 | BW122: 114 | BX122: 89 | BY122: 114 | BZ122: 116 | CA122: 113
A123: 25658 | B123: 256583 | C123: 3 | D123: 25 | E123: 658 | F123: 658 | G123: CUNDINAMARCA | H123: SAN FRANCISCO | I123: Independiente | J123: 9 | K123: 4 | L123: 218 | M123: 209 | N123: 231 | O123: 239 | P123: 236 | Q123: 233 | R123: 262 | S123: 262 | T123: 272 | U123: 273 | V123: 274 | W123: 291 | X123: 283 | Y123: 295 | Z123: 281 | AA123: 288 | AB123: 292 | AC123: 289 | AD123: 299 | AE123: 294 | AF123: 293 | AG123: 276 | AH123: 288 | AI123: 296 | AJ123: 300 | AK123: 291 | AL123: FALSO | AQ123: 5501 | AR123: 55013 | AS123: 3 | AT123: 5 | AU123: 501 | AV123: 501 | AW123: ANTIOQUIA | AX123: OLAYA | AY123: Independiente | AZ123: 1 | BA123: 0 | BB123: 46 | BC123: 47 | BD123: 46 | BE123: 48 | BF123: 44 | BG123: 47 | BH123: 50 | BI123: 47 | BJ123: 51 | BK123: 54 | BL123: 40 | BM123: 49 | BN123: 49 | BO123: 48 | BP123: 50 | BQ123: 52 | BR123: 55 | BS123: 59 | BT123: 58 | BU123: 60 | BV123: 58 | BW123: 57 | BX123: 55 | BY123: 60 | BZ123: 56 | CA123: 55
A124: 5615 | B124: 56153 | C124: 3 | D124: 5 | E124: 615 | F124: 615 | G124: ANTIOQUIA | H124: RIONEGRO | I124: Independiente | J124: 352 | K124: 220 | L124: 9408 | M124: 9026 | N124: 8885 | O124: 9030 | P124: 9160 | Q124: 9396 | R124: 9510 | S124: 9672 | T124: 9736 | U124: 9658 | V124: 9462 | W124: 9542 | X124: 9803 | Y124: 9980 | Z124: 10018 | AA124: 10095 | AB124: 10183 | AC124: 10322 | AD124: 10365 | AE124: 10462 | AF124: 10522 | AG124: 10356 | AH124: 10258 | AI124: 10384 | AJ124: 10397 | AK124: 10257 | AL124: FALSO | AQ124: 5658 | AR124: 56582 | AS124: 2 | AT124: 5 | AU124: 658 | AV124: 658 | AW124: ANTIOQUIA | AX124: SAN JOSÉ DE LA MONTAÑA | AY124: Dep_sec_priv | AZ124: 21 | BA124: 15 | BB124: 289 | BC124: 276 | BD124: 283 | BE124: 277 | BF124: 282 | BG124: 303 | BH124: 293 | BI124: 285 | BJ124: 278 | BK124: 259 | BL124: 237 | BM124: 230 | BN124: 237 | BO124: 252 | BP124: 250 | BQ124: 243 | BR124: 239 | BS124: 228 | BT124: 226 | BU124: 232 | BV124: 231 | BW124: 267 | BX124: 256 | BY124: 242 | BZ124: 236 | CA124: 239
A125: 25430 | B125: 254302 | C125: 2 | D125: 25 | E125: 430 | F125: 430 | G125: CUNDINAMARCA | H125: MADRID | I125: Dep_sec_priv | J125: 2826 | K125: 2098 | L125: 13829 | M125: 12090 | N125: 12930 | O125: 12964 | P125: 13040 | Q125: 13430 | R125: 13599 | S125: 14180 | T125: 14350 | U125: 14224 | V125: 15160 | W125: 14896 | X125: 14806 | Y125: 15618 | Z125: 14865 | AA125: 14542 | AB125: 15081 | AC125: 15345 | AD125: 15495 | AE125: 16135 | AF125: 16381 | AG125: 16429 | AH125: 18169 | AI125: 17828 | AJ125: 18320 | AK125: 18392 | AL125: FALSO | AQ125: 5576 | AR125: 55763 | AS125: 3 | AT125: 5 | AU125: 576 | AV125: 576 | AW125: ANTIOQUIA | AX125: PUEBLORRICO | AY125: Independiente | AZ125: 9 | BA125: 3 | BB125: 180 | BC125: 181 | BD125: 200 | BE125: 189 | BF125: 186 | BG125: 188 | BH125: 197 | BI125: 208 | BJ125: 202 | BK125: 185 | BL125: 174 | BM125: 180 | BN125: 185 | BO125: 184 | BP125: 184 | BQ125: 182 | BR125: 184 | BS125: 189 | BT125: 192 | BU125: 189 | BV125: 194 | BW125: 190 | BX125: 199 | BY125: 214 | BZ125: 206 | CA125: 208
A126: 25430 | B126: 254303 | C126: 3 | D126: 25 | E126: 430 | F126: 430 | G126: CUNDINAMARCA | H126: MADRID | I126: Independiente | J126: 183 | K126: 99 | L126: 3245 | M126: 3243 | N126: 3277 | O126: 3294 | P126: 3402 | Q126: 3475 | R126: 3583 | S126: 3675 | T126: 3722 | U126: 3727 | V126: 3416 | W126: 3559 | X126: 3752 | Y126: 3848 | Z126: 3875 | AA126: 3942 | AB126: 3987 | AC126: 4053 | AD126: 4117 | AE126: 4190 | AF126: 4202 | AG126: 4140 | AH126: 3998 | AI126: 4159 | AJ126: 4127 | AK126: 4058 | AL126: FALSO | AQ126: 5670 | AR126: 56703 | AS126: 3 | AT126: 5 | AU126: 670 | AV126: 670 | AW126: ANTIOQUIA | AX126: SAN ROQUE | AY126: Independiente | AZ126: 7 | BA126: 5 | BB126: 210 | BC126: 192 | BD126: 199 | BE126: 208 | BF126: 205 | BG126: 209 | BH126: 216 | BI126: 207 | BJ126: 221 | BK126: 208 | BL126: 205 | BM126: 212 | BN126: 211 | BO126: 244 | BP126: 254 | BQ126: 254 | BR126: 264 | BS126: 268 | BT126: 270 | BU126: 276 | BV126: 276 | BW126: 270 | BX126: 231 | BY126: 273 | BZ126: 258 | CA126: 260
A127: 70001 | B127: 700012 | C127: 2 | D127: 70 | E127: 1 | F127: 001 | G127: SUCRE | H127: SINCELEJO | I127: Dep_sec_priv | J127: 2915 | K127: 2683 | L127: 38051 | M127: 35395 | N127: 36459 | O127: 36129 | P127: 36626 | Q127: 36666 | R127: 36976 | S127: 37761 | T127: 38159 | U127: 37718 | V127: 35716 | W127: 36784 | X127: 37904 | Y127: 39290 | Z127: 37740 | AA127: 37983 | AB127: 38293 | AC127: 38564 | AD127: 39691 | AE127: 39399 | AF127: 40211 | AG127: 39805 | AH127: 37632 | AI127: 39104 | AJ127: 39737 | AK127: 39573 | AL127: FALSO | AQ127: 5893 | AR127: 58933 | AS127: 3 | AT127: 5 | AU127: 893 | AV127: 893 | AW127: ANTIOQUIA | AX127: YONDÓ | AY127: Independiente | AZ127: 20 | BA127: 3 | BB127: 164 | BC127: 172 | BD127: 188 | BE127: 195 | BF127: 206 | BG127: 197 | BH127: 206 | BI127: 223 | BJ127: 281 | BK127: 286 | BL127: 146 | BM127: 153 | BN127: 160 | BO127: 220 | BP127: 221 | BQ127: 222 | BR127: 216 | BS127: 214 | BT127: 202 | BU127: 209 | BV127: 240 | BW127: 240 | BX127: 164 | BY127: 187 | BZ127: 189 | CA127: 197
A128: 25286 | B128: 252862 | C128: 2 | D128: 25 | E128: 286 | F128: 286 | G128: CUNDINAMARCA | H128: FUNZA | I128: Dep_sec_priv | J128: 2714 | K128: 2566 | L128: 17498 | M128: 16090 | N128: 16077 | O128: 15946 | P128: 16922 | Q128: 17286 | R128: 17389 | S128: 17763 | T128: 17961 | U128: 17604 | V128: 18472 | W128: 18930 | X128: 19075 | Y128: 19697 | Z128: 19180 | AA128: 19350 | AB128: 19373 | AC128: 19773 | AD128: 20209 | AE128: 21462 | AF128: 21801 | AG128: 21530 | AH128: 21926 | AI128: 22464 | AJ128: 22473 | AK128: 22241 | AL128: FALSO | AQ128: 5591 | AR128: 55913 | AS128: 3 | AT128: 5 | AU128: 591 | AV128: 591 | AW128: ANTIOQUIA | AX128: PUERTO TRIUNFO | AY128: Independiente | AZ128: 33 | BA128: 19 | BB128: 252 | BC128: 249 | BD128: 253 | BE128: 253 | BF128: 258 | BG128: 241 | BH128: 246 | BI128: 256 | BJ128: 272 | BK128: 266 | BL128: 234 | BM128: 247 | BN128: 270 | BO128: 278 | BP128: 305 | BQ128: 313 | BR128: 288 | BS128: 295 | BT128: 306 | BU128: 314 | BV128: 306 | BW128: 294 | BX128: 288 | BY128: 311 | BZ128: 317 | CA128: 326
A129: 25899 | B129: 258992 | C129: 2 | D129: 25 | E129: 899 | F129: 899 | G129: CUNDINAMARCA | H129: ZIPAQUIRÁ | I129: Dep_sec_priv | J129: 2055 | K129: 1774 | L129: 17725 | M129: 16372 | N129: 16476 | O129: 16712 | P129: 17034 | Q129: 17074 | R129: 17270 | S129: 17675 | T129: 17665 | U129: 17696 | V129: 17851 | W129: 18453 | X129: 18486 | Y129: 18720 | Z129: 18171 | AA129: 18566 | AB129: 18942 | AC129: 18992 | AD129: 19189 | AE129: 19368 | AF129: 19390 | AG129: 18647 | AH129: 18992 | AI129: 19549 | AJ129: 20024 | AK129: 20193 | AL129: FALSO | AQ129: 5142 | AR129: 51423 | AS129: 3 | AT129: 5 | AU129: 142 | AV129: 142 | AW129: ANTIOQUIA | AX129: CARACOLÍ | AY129: Independiente | AZ129: 2 | BA129: 1 | BB129: 101 | BC129: 99 | BD129: 102 | BE129: 98 | BF129: 99 | BG129: 105 | BH129: 106 | BI129: 103 | BJ129: 117 | BK129: 117 | BL129: 104 | BM129: 104 | BN129: 109 | BO129: 99 | BP129: 104 | BQ129: 104 | BR129: 111 | BS129: 114 | BT129: 119 | BU129: 113 | BV129: 109 | BW129: 106 | BX129: 104 | BY129: 114 | BZ129: 101 | CA129: 97
A130: 85250 | B130: 852503 | C130: 3 | D130: 85 | E130: 250 | F130: 250 | G130: CASANARE | H130: PAZ DE ARIPORO | I130: Independiente | J130: 39 | K130: 60 | L130: 579 | M130: 568 | N130: 557 | O130: 563 | P130: 582 | Q130: 595 | R130: 589 | S130: 630 | T130: 626 | U130: 601 | V130: 487 | W130: 572 | X130: 618 | Y130: 657 | Z130: 645 | AA130: 660 | AB130: 664 | AC130: 690 | AD130: 710 | AE130: 725 | AF130: 732 | AG130: 711 | AH130: 684 | AI130: 742 | AJ130: 769 | AK130: 735 | AL130: FALSO | AQ130: 5604 | AR130: 56042 | AS130: 2 | AT130: 5 | AU130: 604 | AV130: 604 | AW130: ANTIOQUIA | AX130: REMEDIOS | AY130: Dep_sec_priv | AZ130: 306 | BA130: 322 | BB130: 1444 | BC130: 1265 | BD130: 1319 | BE130: 1411 | BF130: 1430 | BG130: 1466 | BH130: 1532 | BI130: 1609 | BJ130: 1686 | BK130: 1688 | BL130: 1742 | BM130: 1846 | BN130: 1869 | BO130: 2050 | BP130: 2159 | BQ130: 2113 | BR130: 2105 | BS130: 2144 | BT130: 2253 | BU130: 2218 | BV130: 2316 | BW130: 2244 | BX130: 2270 | BY130: 2374 | BZ130: 2546 | CA130: 2502
A131: 70001 | B131: 700013 | C131: 3 | D131: 70 | E131: 1 | F131: 001 | G131: SUCRE | H131: SINCELEJO | I131: Independiente | J131: 629 | K131: 466 | L131: 12098 | M131: 11714 | N131: 11719 | O131: 11563 | P131: 11626 | Q131: 11667 | R131: 11800 | S131: 11983 | T131: 12130 | U131: 11744 | V131: 10437 | W131: 11081 | X131: 11583 | Y131: 11743 | Z131: 11733 | AA131: 11823 | AB131: 11987 | AC131: 12060 | AD131: 12143 | AE131: 12299 | AF131: 12344 | AG131: 11983 | AH131: 11702 | AI131: 11861 | AJ131: 11714 | AK131: 11267 | AL131: =IF(SUM(L131:AK131)=0,"VERDADERO","FALSO") -> FALSO | AQ131: 5086 | AR131: 50863 | AS131: 3 | AT131: 5 | AU131: 86 | AV131: 086 | AW131: ANTIOQUIA | AX131: BELMIRA | AY131: Independiente | AZ131: 2 | BA131: 2 | BB131: 117 | BC131: 111 | BD131: 116 | BE131: 115 | BF131: 120 | BG131: 114 | BH131: 122 | BI131: 128 | BJ131: 125 | BK131: 125 | BL131: 117 | BM131: 121 | BN131: 124 | BO131: 128 | BP131: 128 | BQ131: 130 | BR131: 133 | BS131: 142 | BT131: 145 | BU131: 145 | BV131: 147 | BW131: 147 | BX131: 153 | BY131: 160 | BZ131: 154 | CA131: 157
A132: 63130 | B132: 631303 | C132: 3 | D132: 63 | E132: 130 | F132: 130 | G132: QUINDÍO | H132: CALARCA | I132: Independiente | J132: 60 | K132: 52 | L132: 1414 | M132: 1406 | N132: 1422 | O132: 1390 | P132: 1397 | Q132: 1442 | R132: 1454 | S132: 1506 | T132: 1584 | U132: 1600 | V132: 1449 | W132: 1575 | X132: 1623 | Y132: 1628 | Z132: 1634 | AA132: 1663 | AB132: 1650 | AC132: 1686 | AD132: 1747 | AE132: 1799 | AF132: 1814 | AG132: 1801 | AH132: 1799 | AI132: 1770 | AJ132: 1770 | AK132: 1729 | AL132: FALSO | AQ132: 5642 | AR132: 56423 | AS132: 3 | AT132: 5 | AU132: 642 | AV132: 642 | AW132: ANTIOQUIA | AX132: SALGAR | AY132: Independiente | AZ132: 18 | BA132: 11 | BB132: 228 | BC132: 228 | BD132: 234 | BE132: 230 | BF132: 238 | BG132: 246 | BH132: 252 | BI132: 298 | BJ132: 297 | BK132: 305 | BL132: 231 | BM132: 250 | BN132: 268 | BO132: 264 | BP132: 273 | BQ132: 263 | BR132: 273 | BS132: 284 | BT132: 285 | BU132: 288 | BV132: 287 | BW132: 283 | BX132: 256 | BY132: 267 | BZ132: 269 | CA132: 281
A133: 25312 | B133: 253122 | C133: 2 | D133: 25 | E133: 312 | F133: 312 | G133: CUNDINAMARCA | H133: GRANADA | I133: Dep_sec_priv | J133: 15 | K133: 13 | L133: 166 | M133: 179 | N133: 187 | O133: 197 | P133: 186 | Q133: 159 | R133: 159 | S133: 166 | T133: 184 | U133: 191 | V133: 198 | W133: 191 | X133: 204 | Y133: 221 | Z133: 230 | AA133: 225 | AB133: 210 | AC133: 227 | AD133: 231 | AE133: 238 | AF133: 233 | AG133: 241 | AH133: 259 | AI133: 314 | AJ133: 338 | AK133: 336 | AL133: FALSO | AQ133: 5585 | AR133: 55853 | AS133: 3 | AT133: 5 | AU133: 585 | AV133: 585 | AW133: ANTIOQUIA | AX133: PUERTO NARE | AY133: Independiente | AZ133: 36 | BA133: 42 | BB133: 178 | BC133: 170 | BD133: 174 | BE133: 172 | BF133: 191 | BG133: 206 | BH133: 216 | BI133: 244 | BJ133: 256 | BK133: 254 | BL133: 205 | BM133: 221 | BN133: 228 | BO133: 272 | BP133: 240 | BQ133: 288 | BR133: 283 | BS133: 272 | BT133: 262 | BU133: 282 | BV133: 314 | BW133: 323 | BX133: 289 | BY133: 307 | BZ133: 288 | CA133: 289
A134: 25290 | B134: 252902 | C134: 2 | D134: 25 | E134: 290 | F134: 290 | G134: CUNDINAMARCA | H134: FUSAGASUGÁ | I134: Dep_sec_priv | J134: 1271 | K134: 1238 | L134: 13344 | M134: 12351 | N134: 12473 | O134: 12725 | P134: 12905 | Q134: 12805 | R134: 13325 | S134: 13517 | T134: 13896 | U134: 13741 | V134: 13667 | W134: 14379 | X134: 14562 | Y134: 14690 | Z134: 14818 | AA134: 14926 | AB134: 15140 | AC134: 15408 | AD134: 15683 | AE134: 15259 | AF134: 15242 | AG134: 15194 | AH134: 15021 | AI134: 15532 | AJ134: 15686 | AK134: 15481 | AL134: FALSO | AQ134: 5664 | AR134: 56642 | AS134: 2 | AT134: 5 | AU134: 664 | AV134: 664 | AW134: ANTIOQUIA | AX134: SAN PEDRO DE LOS MILAGROS | AY134: Dep_sec_priv | AZ134: 232 | BA134: 231 | BB134: 2989 | BC134: 2812 | BD134: 2984 | BE134: 2989 | BF134: 2998 | BG134: 3000 | BH134: 3082 | BI134: 3143 | BJ134: 3136 | BK134: 3119 | BL134: 3154 | BM134: 3140 | BN134: 3201 | BO134: 3197 | BP134: 3245 | BQ134: 3312 | BR134: 3357 | BS134: 3395 | BT134: 3420 | BU134: 3489 | BV134: 3513 | BW134: 3544 | BX134: 3428 | BY134: 3417 | BZ134: 3503 | CA134: 3495
A135: 25754 | B135: 257542 | C135: 2 | D135: 25 | E135: 754 | F135: 754 | G135: CUNDINAMARCA | H135: SOACHA | I135: Dep_sec_priv | J135: 1359 | K135: 1192 | L135: 16600 | M135: 15412 | N135: 15513 | O135: 15547 | P135: 15568 | Q135: 15893 | R135: 16538 | S135: 16733 | T135: 16983 | U135: 15552 | V135: 15139 | W135: 16963 | X135: 17487 | Y135: 17805 | Z135: 17394 | AA135: 17554 | AB135: 17775 | AC135: 18172 | AD135: 18506 | AE135: 18716 | AF135: 18955 | AG135: 17548 | AH135: 17264 | AI135: 19535 | AJ135: 20101 | AK135: 19586 | AL135: FALSO | AQ135: 5670 | AR135: 56701 | AS135: 1 | AT135: 5 | AU135: 670 | AV135: 670 | AW135: ANTIOQUIA | AX135: SAN ROQUE | AY135: Dep_No_priv | AZ135: 6 | BA135: 12 | BB135: 484 | BC135: 481 | BD135: 482 | BE135: 478 | BF135: 449 | BG135: 458 | BH135: 467 | BI135: 449 | BJ135: 454 | BK135: 459 | BL135: 440 | BM135: 451 | BN135: 510 | BO135: 507 | BP135: 503 | BQ135: 524 | BR135: 507 | BS135: 503 | BT135: 489 | BU135: 464 | BV135: 471 | BW135: 453 | BX135: 444 | BY135: 473 | BZ135: 509 | CA135: 491
A136: 85162 | B136: 851623 | C136: 3 | D136: 85 | E136: 162 | F136: 162 | G136: CASANARE | H136: MONTERREY | I136: Independiente | J136: 36 | K136: 20 | L136: 506 | M136: 495 | N136: 498 | O136: 519 | P136: 533 | Q136: 528 | R136: 547 | S136: 557 | T136: 565 | U136: 579 | V136: 438 | W136: 514 | X136: 557 | Y136: 552 | Z136: 559 | AA136: 562 | AB136: 574 | AC136: 591 | AD136: 583 | AE136: 621 | AF136: 642 | AG136: 615 | AH136: 588 | AI136: 604 | AJ136: 596 | AK136: 561 | AL136: FALSO | AQ136: 5190 | AR136: 51902 | AS136: 2 | AT136: 5 | AU136: 190 | AV136: 190 | AW136: ANTIOQUIA | AX136: CISNEROS | AY136: Dep_sec_priv | AZ136: 53 | BA136: 39 | BB136: 1620 | BC136: 1553 | BD136: 1608 | BE136: 1582 | BF136: 1624 | BG136: 1631 | BH136: 1531 | BI136: 1511 | BJ136: 1558 | BK136: 1508 | BL136: 1410 | BM136: 1385 | BN136: 1371 | BO136: 1299 | BP136: 1315 | BQ136: 1259 | BR136: 1129 | BS136: 1023 | BT136: 926 | BU136: 905 | BV136: 840 | BW136: 859 | BX136: 800 | BY136: 805 | BZ136: 786 | CA136: 766
A137: 25019 | B137: 250193 | C137: 3 | D137: 25 | E137: 19 | F137: 019 | G137: CUNDINAMARCA | H137: ALBÁN | I137: Independiente | J137: 8 | K137: 4 | L137: 121 | M137: 117 | N137: 112 | O137: 119 | P137: 113 | Q137: 115 | R137: 114 | S137: 122 | T137: 123 | U137: 123 | V137: 125 | W137: 132 | X137: 129 | Y137: 128 | Z137: 128 | AA137: 129 | AB137: 143 | AC137: 142 | AD137: 149 | AE137: 145 | AF137: 147 | AG137: 148 | AH137: 142 | AI137: 149 | AJ137: 153 | AK137: 150 | AL137: FALSO | AQ137: 5670 | AR137: 56702 | AS137: 2 | AT137: 5 | AU137: 670 | AV137: 670 | AW137: ANTIOQUIA | AX137: SAN ROQUE | AY137: Dep_sec_priv | AZ137: 53 | BA137: 64 | BB137: 772 | BC137: 647 | BD137: 693 | BE137: 721 | BF137: 619 | BG137: 623 | BH137: 634 | BI137: 679 | BJ137: 695 | BK137: 664 | BL137: 665 | BM137: 728 | BN137: 787 | BO137: 787 | BP137: 858 | BQ137: 908 | BR137: 879 | BS137: 887 | BT137: 902 | BU137: 933 | BV137: 930 | BW137: 909 | BX137: 884 | BY137: 918 | BZ137: 894 | CA137: 871
A138: 76111 | B138: 761113 | C138: 3 | D138: 76 | E138: 111 | F138: 111 | G138: VALLE DEL CAUCA | H138: GUADALAJARA DE BUGA | I138: Independiente | J138: 150 | K138: 141 | L138: 5530 | M138: 5454 | N138: 5436 | O138: 5475 | P138: 5507 | Q138: 5596 | R138: 5717 | S138: 5810 | T138: 5856 | U138: 5819 | V138: 5220 | W138: 5447 | X138: 5689 | Y138: 5797 | Z138: 5779 | AA138: 5813 | AB138: 5813 | AC138: 5906 | AD138: 5987 | AE138: 6036 | AF138: 6090 | AG138: 5957 | AH138: 5788 | AI138: 5916 | AJ138: 5884 | AK138: 5788 | AL138: FALSO | AQ138: 5674 | AR138: 56743 | AS138: 3 | AT138: 5 | AU138: 674 | AV138: 674 | AW138: ANTIOQUIA | AX138: SAN VICENTE | AY138: Independiente | AZ138: 17 | BA138: 9 | BB138: 274 | BC138: 273 | BD138: 278 | BE138: 289 | BF138: 289 | BG138: 298 | BH138: 300 | BI138: 302 | BJ138: 316 | BK138: 306 | BL138: 289 | BM138: 288 | BN138: 321 | BO138: 344 | BP138: 360 | BQ138: 368 | BR138: 373 | BS138: 378 | BT138: 385 | BU138: 396 | BV138: 402 | BW138: 379 | BX138: 364 | BY138: 398 | BZ138: 393 | CA138: 372
A139: 25269 | B139: 252692 | C139: 2 | D139: 25 | E139: 269 | F139: 269 | G139: CUNDINAMARCA | H139: FACATATIVÁ | I139: Dep_sec_priv | J139: 4389 | K139: 3986 | L139: 23228 | M139: 22488 | N139: 21966 | O139: 21658 | P139: 22098 | Q139: 22136 | R139: 22801 | S139: 23413 | T139: 23826 | U139: 24471 | V139: 26532 | W139: 25811 | X139: 25333 | Y139: 27376 | Z139: 25946 | AA139: 24831 | AB139: 25238 | AC139: 25462 | AD139: 25406 | AE139: 26029 | AF139: 26703 | AG139: 26223 | AH139: 28531 | AI139: 27762 | AJ139: 28144 | AK139: 28888 | AL139: FALSO | AQ139: 5679 | AR139: 56793 | AS139: 3 | AT139: 5 | AU139: 679 | AV139: 679 | AW139: ANTIOQUIA | AX139: SANTA BÁRBARA | AY139: Independiente | AZ139: 9 | BA139: 7 | BB139: 306 | BC139: 300 | BD139: 303 | BE139: 296 | BF139: 300 | BG139: 302 | BH139: 302 | BI139: 340 | BJ139: 350 | BK139: 351 | BL139: 325 | BM139: 339 | BN139: 333 | BO139: 346 | BP139: 354 | BQ139: 357 | BR139: 362 | BS139: 363 | BT139: 372 | BU139: 372 | BV139: 375 | BW139: 360 | BX139: 360 | BY139: 411 | BZ139: 411 | CA139: 397
A140: 25817 | B140: 258173 | C140: 3 | D140: 25 | E140: 817 | F140: 817 | G140: CUNDINAMARCA | H140: TOCANCIPÁ | I140: Independiente | J140: 130 | K140: 107 | L140: 1324 | M140: 1251 | N140: 1260 | O140: 1275 | P140: 1312 | Q140: 1306 | R140: 1372 | S140: 1424 | T140: 1458 | U140: 1500 | V140: 1323 | W140: 1402 | X140: 1489 | Y140: 1504 | Z140: 1551 | AA140: 1566 | AB140: 1616 | AC140: 1602 | AD140: 1624 | AE140: 1643 | AF140: 1679 | AG140: 1666 | AH140: 1633 | AI140: 1716 | AJ140: 1714 | AK140: 1673 | AL140: FALSO | AQ140: 5789 | AR140: 57892 | AS140: 2 | AT140: 5 | AU140: 789 | AV140: 789 | AW140: ANTIOQUIA | AX140: TÁMESIS | AY140: Dep_sec_priv | AZ140: 154 | BA140: 165 | BB140: 704 | BC140: 693 | BD140: 664 | BE140: 746 | BF140: 757 | BG140: 731 | BH140: 778 | BI140: 832 | BJ140: 853 | BK140: 793 | BL140: 865 | BM140: 934 | BN140: 928 | BO140: 981 | BP140: 972 | BQ140: 865 | BR140: 871 | BS140: 800 | BT140: 884 | BU140: 872 | BV140: 898 | BW140: 851 | BX140: 877 | BY140: 950 | BZ140: 1023 | CA140: 970
A141: 5079 | B141: 50792 | C141: 2 | D141: 5 | E141: 79 | F141: 079 | G141: ANTIOQUIA | H141: BARBOSA | I141: Dep_sec_priv | J141: 415 | K141: 262 | L141: 4286 | M141: 4045 | N141: 4120 | O141: 4275 | P141: 4317 | Q141: 4331 | R141: 4372 | S141: 4338 | T141: 4377 | U141: 4270 | V141: 4204 | W141: 4263 | X141: 4120 | Y141: 4002 | Z141: 3931 | AA141: 3932 | AB141: 4031 | AC141: 4022 | AD141: 3863 | AE141: 3938 | AF141: 4147 | AG141: 3989 | AH141: 3841 | AI141: 3858 | AJ141: 3885 | AK141: 3918 | AL141: FALSO | AQ141: 5390 | AR141: 53902 | AS141: 2 | AT141: 5 | AU141: 390 | AV141: 390 | AW141: ANTIOQUIA | AX141: LA PINTADA | AY141: Dep_sec_priv | AZ141: 209 | BA141: 75 | BB141: 1739 | BC141: 1661 | BD141: 1657 | BE141: 1634 | BF141: 1638 | BG141: 1547 | BH141: 1571 | BI141: 1537 | BJ141: 1542 | BK141: 1545 | BL141: 1435 | BM141: 1393 | BN141: 1362 | BO141: 1319 | BP141: 1392 | BQ141: 1327 | BR141: 1301 | BS141: 1249 | BT141: 1216 | BU141: 1286 | BV141: 1276 | BW141: 1156 | BX141: 1159 | BY141: 1169 | BZ141: 1184 | CA141: 1206
A142: 50006 | B142: 500062 | C142: 2 | D142: 50 | E142: 6 | F142: 006 | G142: META | H142: ACACÍAS | I142: Dep_sec_priv | J142: 1708 | K142: 1503 | L142: 12395 | M142: 11033 | N142: 10945 | O142: 10717 | P142: 10607 | Q142: 10082 | R142: 10202 | S142: 10698 | T142: 10661 | U142: 10656 | V142: 10357 | W142: 10533 | X142: 11245 | Y142: 11205 | Z142: 11147 | AA142: 11477 | AB142: 11631 | AC142: 11794 | AD142: 12159 | AE142: 12507 | AF142: 13303 | AG142: 12874 | AH142: 12769 | AI142: 13145 | AJ142: 13040 | AK142: 13194 | AL142: FALSO | AQ142: 5856 | AR142: 58562 | AS142: 2 | AT142: 5 | AU142: 856 | AV142: 856 | AW142: ANTIOQUIA | AX142: VALPARAÍSO | AY142: Dep_sec_priv | AZ142: 28 | BA142: 30 | BB142: 334 | BC142: 323 | BD142: 321 | BE142: 339 | BF142: 327 | BG142: 321 | BH142: 322 | BI142: 327 | BJ142: 324 | BK142: 323 | BL142: 306 | BM142: 314 | BN142: 329 | BO142: 349 | BP142: 354 | BQ142: 351 | BR142: 341 | BS142: 345 | BT142: 345 | BU142: 359 | BV142: 361 | BW142: 363 | BX142: 345 | BY142: 364 | BZ142: 377 | CA142: 365
A143: 73686 | B143: 736861 | C143: 1 | D143: 73 | E143: 686 | F143: 686 | G143: TOLIMA | H143: SANTA ISABEL | I143: Dep_No_priv | J143: 1 | K143: 4 | L143: 134 | M143: 136 | N143: 136 | O143: 138 | P143: 137 | Q143: 142 | R143: 138 | S143: 137 | T143: 134 | U143: 137 | V143: 134 | W143: 134 | X143: 139 | Y143: 139 | Z143: 152 | AA143: 206 | AB143: 208 | AC143: 208 | AD143: 210 | AE143: 209 | AF143: 172 | AG143: 150 | AH143: 144 | AI143: 147 | AJ143: 153 | AK143: 136 | AL143: FALSO | AQ143: 5120 | AR143: 51203 | AS143: 3 | AT143: 5 | AU143: 120 | AV143: 120 | AW143: ANTIOQUIA | AX143: CÁCERES | AY143: Independiente | AZ143: 8 | BA143: 7 | BB143: 278 | BC143: 280 | BD143: 283 | BE143: 128 | BF143: 136 | BG143: 132 | BH143: 134 | BI143: 142 | BJ143: 143 | BK143: 131 | BL143: 110 | BM143: 119 | BN143: 132 | BO143: 155 | BP143: 163 | BQ143: 165 | BR143: 164 | BS143: 182 | BT143: 182 | BU143: 193 | BV143: 201 | BW143: 189 | BX143: 155 | BY143: 173 | BZ143: 172 | CA143: 169
A144: 25019 | B144: 250192 | C144: 2 | D144: 25 | E144: 19 | F144: 019 | G144: CUNDINAMARCA | H144: ALBÁN | I144: Dep_sec_priv | J144: 24 | K144: 35 | L144: 411 | M144: 372 | N144: 357 | O144: 356 | P144: 382 | Q144: 379 | R144: 385 | S144: 374 | T144: 388 | U144: 384 | V144: 366 | W144: 383 | X144: 354 | Y144: 374 | Z144: 371 | AA144: 388 | AB144: 366 | AC144: 367 | AD144: 369 | AE144: 377 | AF144: 368 | AG144: 376 | AH144: 360 | AI144: 352 | AJ144: 362 | AK144: 348 | AL144: FALSO | AQ144: 5658 | AR144: 56583 | AS144: 3 | AT144: 5 | AU144: 658 | AV144: 658 | AW144: ANTIOQUIA | AX144: SAN JOSÉ DE LA MONTAÑA | AY144: Independiente | AZ144: 4 | BA144: 2 | BB144: 167 | BC144: 170 | BD144: 171 | BE144: 174 | BF144: 184 | BG144: 183 | BH144: 185 | BI144: 186 | BJ144: 188 | BK144: 179 | BL144: 180 | BM144: 180 | BN144: 181 | BO144: 184 | BP144: 191 | BQ144: 195 | BR144: 192 | BS144: 195 | BT144: 189 | BU144: 192 | BV144: 184 | BW144: 173 | BX144: 180 | BY144: 191 | BZ144: 203 | CA144: 201
A145: 15104 | B145: 151042 | C145: 2 | D145: 15 | E145: 104 | F145: 104 | G145: BOYACÁ | H145: BOYACÁ | I145: Dep_sec_priv | J145: 352 | K145: 310 | L145: 4315 | M145: 3880 | N145: 4139 | O145: 4233 | P145: 3742 | Q145: 3454 | R145: 3470 | S145: 3700 | T145: 3827 | U145: 3881 | V145: 3793 | W145: 3653 | X145: 3643 | Y145: 3910 | Z145: 3562 | AA145: 3879 | AB145: 3987 | AC145: 4211 | AD145: 3688 | AE145: 3657 | AF145: 4119 | AG145: 3748 | AH145: 4184 | AI145: 4157 | AJ145: 4292 | AK145: 4260 | AL145: FALSO | AQ145: 5887 | AR145: 58872 | AS145: 2 | AT145: 5 | AU145: 887 | AV145: 887 | AW145: ANTIOQUIA | AX145: YARUMAL | AY145: Dep_sec_priv | AZ145: 258 | BA145: 257 | BB145: 2938 | BC145: 2838 | BD145: 2904 | BE145: 2900 | BF145: 2946 | BG145: 2629 | BH145: 2656 | BI145: 2684 | BJ145: 2786 | BK145: 2779 | BL145: 2706 | BM145: 2792 | BN145: 2837 | BO145: 2885 | BP145: 2926 | BQ145: 2951 | BR145: 2978 | BS145: 2968 | BT145: 3018 | BU145: 3066 | BV145: 3112 | BW145: 3056 | BX145: 2994 | BY145: 3099 | BZ145: 3242 | CA145: 3240
A146: 41615 | B146: 416152 | C146: 2 | D146: 41 | E146: 615 | F146: 615 | G146: HUILA | H146: RIVERA | I146: Dep_sec_priv | J146: 181 | K146: 201 | L146: 1131 | M146: 1049 | N146: 1041 | O146: 1044 | P146: 1044 | Q146: 1102 | R146: 1117 | S146: 1157 | T146: 1143 | U146: 1091 | V146: 1490 | W146: 1507 | X146: 1616 | Y146: 1611 | Z146: 1577 | AA146: 1664 | AB146: 1654 | AC146: 1129 | AD146: 1652 | AE146: 1683 | AF146: 1678 | AG146: 1634 | AH146: 1690 | AI146: 1837 | AJ146: 1809 | AK146: 1830 | AL146: FALSO | AQ146: 5091 | AR146: 50912 | AS146: 2 | AT146: 5 | AU146: 91 | AV146: 091 | AW146: ANTIOQUIA | AX146: BETANIA | AY146: Dep_sec_priv | AZ146: 24 | BA146: 37 | BB146: 272 | BC146: 240 | BD146: 240 | BE146: 242 | BF146: 239 | BG146: 281 | BH146: 259 | BI146: 230 | BJ146: 206 | BK146: 179 | BL146: 200 | BM146: 198 | BN146: 186 | BO146: 171 | BP146: 205 | BQ146: 254 | BR146: 231 | BS146: 250 | BT146: 200 | BU146: 180 | BV146: 227 | BW146: 290 | BX146: 232 | BY146: 248 | BZ146: 217 | CA146: 232
A147: 66001 | B147: 660012 | C147: 2 | D147: 66 | E147: 1 | F147: 001 | G147: RISARALDA | H147: PEREIRA | I147: Dep_sec_priv | J147: 12965 | K147: 11832 | L147: 142015 | M147: 129505 | N147: 129764 | O147: 130581 | P147: 132906 | Q147: 133614 | R147: 135556 | S147: 136964 | T147: 138073 | U147: 137794 | V147: 135494 | W147: 138446 | X147: 139833 | Y147: 141073 | Z147: 138392 | AA147: 139870 | AB147: 141867 | AC147: 144849 | AD147: 147301 | AE147: 149073 | AF147: 150661 | AG147: 149737 | AH147: 147952 | AI147: 151161 | AJ147: 152601 | AK147: 152050 | AL147: FALSO | AQ147: 5690 | AR147: 56901 | AS147: 1 | AT147: 5 | AU147: 690 | AV147: 690 | AW147: ANTIOQUIA | AX147: SANTO DOMINGO | AY147: Dep_No_priv | AZ147: 5 | BA147: 6 | BB147: 289 | BC147: 286 | BD147: 288 | BE147: 272 | BF147: 277 | BG147: 281 | BH147: 278 | BI147: 276 | BJ147: 280 | BK147: 277 | BL147: 274 | BM147: 278 | BN147: 280 | BO147: 273 | BP147: 277 | BQ147: 275 | BR147: 278 | BS147: 282 | BT147: 284 | BU147: 283 | BV147: 285 | BW147: 282 | BX147: 284 | BY147: 282 | BZ147: 293 | CA147: 280
A148: 68500 | B148: 685002 | C148: 2 | D148: 68 | E148: 500 | F148: 500 | G148: SANTANDER | H148: OIBA | I148: Dep_sec_priv | J148: 35 | K148: 73 | L148: 505 | M148: 429 | N148: 419 | O148: 435 | P148: 456 | Q148: 505 | R148: 626 | S148: 660 | T148: 632 | U148: 602 | V148: 594 | W148: 670 | X148: 687 | Y148: 670 | Z148: 689 | AA148: 689 | AB148: 686 | AC148: 644 | AD148: 643 | AE148: 630 | AF148: 582 | AG148: 537 | AH148: 511 | AI148: 537 | AJ148: 534 | AK148: 520 | AL148: FALSO | AQ148: 5697 | AR148: 56972 | AS148: 2 | AT148: 5 | AU148: 697 | AV148: 697 | AW148: ANTIOQUIA | AX148: EL SANTUARIO | AY148: Dep_sec_priv | AZ148: 293 | BA148: 270 | BB148: 3371 | BC148: 3197 | BD148: 3073 | BE148: 3136 | BF148: 3248 | BG148: 3342 | BH148: 3434 | BI148: 3464 | BJ148: 3416 | BK148: 3395 | BL148: 3362 | BM148: 3403 | BN148: 3448 | BO148: 3465 | BP148: 3555 | BQ148: 3603 | BR148: 3631 | BS148: 3612 | BT148: 3619 | BU148: 3651 | BV148: 3662 | BW148: 3613 | BX148: 3619 | BY148: 3657 | BZ148: 3769 | CA148: 3794
A149: 25320 | B149: 253203 | C149: 3 | D149: 25 | E149: 320 | F149: 320 | G149: CUNDINAMARCA | H149: GUADUAS | I149: Independiente | J149: 41 | K149: 21 | L149: 698 | M149: 692 | N149: 691 | O149: 696 | P149: 695 | Q149: 698 | R149: 779 | S149: 801 | T149: 804 | U149: 805 | V149: 754 | W149: 788 | X149: 805 | Y149: 813 | Z149: 820 | AA149: 830 | AB149: 827 | AC149: 831 | AD149: 844 | AE149: 853 | AF149: 857 | AG149: 899 | AH149: 798 | AI149: 835 | AJ149: 832 | AK149: 832 | AL149: FALSO | AQ149: 5756 | AR149: 57563 | AS149: 3 | AT149: 5 | AU149: 756 | AV149: 756 | AW149: ANTIOQUIA | AX149: SONSON | AY149: Independiente | AZ149: 27 | BA149: 19 | BB149: 731 | BC149: 696 | BD149: 688 | BE149: 678 | BF149: 652 | BG149: 681 | BH149: 708 | BI149: 713 | BJ149: 727 | BK149: 722 | BL149: 671 | BM149: 679 | BN149: 693 | BO149: 696 | BP149: 724 | BQ149: 730 | BR149: 727 | BS149: 722 | BT149: 749 | BU149: 751 | BV149: 771 | BW149: 758 | BX149: 788 | BY149: 795 | BZ149: 789 | CA149: 776
A150: 25269 | B150: 252691 | C150: 1 | D150: 25 | E150: 269 | F150: 269 | G150: CUNDINAMARCA | H150: FACATATIVÁ | I150: Dep_No_priv | J150: 457 | K150: 234 | L150: 3348 | M150: 3261 | N150: 3274 | O150: 3209 | P150: 3420 | Q150: 3367 | R150: 3512 | S150: 3532 | T150: 3545 | U150: 3522 | V150: 3488 | W150: 3494 | X150: 3493 | Y150: 3531 | Z150: 3564 | AA150: 3526 | AB150: 3525 | AC150: 3599 | AD150: 3611 | AE150: 3642 | AF150: 3624 | AG150: 3553 | AH150: 3303 | AI150: 3635 | AJ150: 3747 | AK150: 3940 | AL150: FALSO | AQ150: 5756 | AR150: 57562 | AS150: 2 | AT150: 5 | AU150: 756 | AV150: 756 | AW150: ANTIOQUIA | AX150: SONSON | AY150: Dep_sec_priv | AZ150: 80 | BA150: 91 | BB150: 1540 | BC150: 1370 | BD150: 1428 | BE150: 1442 | BF150: 1494 | BG150: 1545 | BH150: 1568 | BI150: 1601 | BJ150: 1596 | BK150: 1604 | BL150: 1547 | BM150: 1594 | BN150: 1571 | BO150: 1596 | BP150: 1605 | BQ150: 1601 | BR150: 1666 | BS150: 1645 | BT150: 1713 | BU150: 1749 | BV150: 1617 | BW150: 1639 | BX150: 1641 | BY150: 1672 | BZ150: 1785 | CA150: 1756
A151: 25040 | B151: 250402 | C151: 2 | D151: 25 | E151: 40 | F151: 040 | G151: CUNDINAMARCA | H151: ANOLAIMA | I151: Dep_sec_priv | J151: 18 | K151: 22 | L151: 388 | M151: 383 | N151: 371 | O151: 388 | P151: 395 | Q151: 383 | R151: 411 | S151: 451 | T151: 425 | U151: 424 | V151: 346 | W151: 380 | X151: 409 | Y151: 394 | Z151: 380 | AA151: 408 | AB151: 416 | AC151: 417 | AD151: 410 | AE151: 412 | AF151: 419 | AG151: 403 | AH151: 399 | AI151: 441 | AJ151: 434 | AK151: 437 | AL151: FALSO | AQ151: 5789 | AR151: 57893 | AS151: 3 | AT151: 5 | AU151: 789 | AV151: 789 | AW151: ANTIOQUIA | AX151: TÁMESIS | AY151: Independiente | AZ151: 21 | BA151: 15 | BB151: 298 | BC151: 285 | BD151: 292 | BE151: 295 | BF151: 299 | BG151: 300 | BH151: 306 | BI151: 300 | BJ151: 308 | BK151: 304 | BL151: 306 | BM151: 301 | BN151: 319 | BO151: 317 | BP151: 304 | BQ151: 311 | BR151: 308 | BS151: 318 | BT151: 327 | BU151: 352 | BV151: 348 | BW151: 318 | BX151: 326 | BY151: 342 | BZ151: 349 | CA151: 349
A152: 25001 | B152: 250011 | C152: 1 | D152: 25 | E152: 1 | F152: 001 | G152: CUNDINAMARCA | H152: AGUA DE DIOS | I152: Dep_No_priv | J152: 147 | K152: 292 | L152: 2459 | M152: 2864 | N152: 2314 | O152: 2374 | P152: 2286 | Q152: 2475 | R152: 2550 | S152: 2656 | T152: 2807 | U152: 2477 | V152: 2400 | W152: 2419 | X152: 2452 | Y152: 2660 | Z152: 2774 | AA152: 2707 | AB152: 2929 | AC152: 2855 | AD152: 2882 | AE152: 3413 | AF152: 3650 | AG152: 2672 | AH152: 2635 | AI152: 2804 | AJ152: 2748 | AK152: 2456 | AL152: FALSO | AQ152: 5792 | AR152: 57923 | AS152: 3 | AT152: 5 | AU152: 792 | AV152: 792 | AW152: ANTIOQUIA | AX152: TARSO | AY152: Independiente | AZ152: 4 | BA152: 3 | BB152: 93 | BC152: 85 | BD152: 108 | BE152: 120 | BF152: 125 | BG152: 130 | BH152: 129 | BI152: 130 | BJ152: 129 | BK152: 131 | BL152: 119 | BM152: 129 | BN152: 130 | BO152: 132 | BP152: 134 | BQ152: 127 | BR152: 132 | BS152: 136 | BT152: 128 | BU152: 125 | BV152: 125 | BW152: 116 | BX152: 125 | BY152: 137 | BZ152: 137 | CA152: 131
A153: 25486 | B153: 254862 | C153: 2 | D153: 25 | E153: 486 | F153: 486 | G153: CUNDINAMARCA | H153: NEMOCÓN | I153: Dep_sec_priv | J153: 184 | K153: 155 | L153: 1313 | M153: 1326 | N153: 1301 | O153: 1320 | P153: 1266 | Q153: 1188 | R153: 1283 | S153: 1331 | T153: 1280 | U153: 1283 | V153: 1395 | W153: 1469 | X153: 1380 | Y153: 1479 | Z153: 1294 | AA153: 1312 | AB153: 1320 | AC153: 1396 | AD153: 1511 | AE153: 1557 | AF153: 1552 | AG153: 1467 | AH153: 1879 | AI153: 1944 | AJ153: 1811 | AK153: 1827 | AL153: FALSO | AQ153: 5809 | AR153: 58093 | AS153: 3 | AT153: 5 | AU153: 809 | AV153: 809 | AW153: ANTIOQUIA | AX153: TITIRIBÍ | AY153: Independiente | AZ153: 8 | BA153: 2 | BB153: 163 | BC153: 161 | BD153: 163 | BE153: 167 | BF153: 168 | BG153: 169 | BH153: 171 | BI153: 172 | BJ153: 175 | BK153: 171 | BL153: 157 | BM153: 159 | BN153: 170 | BO153: 173 | BP153: 173 | BQ153: 171 | BR153: 169 | BS153: 174 | BT153: 178 | BU153: 178 | BV153: 185 | BW153: 186 | BX153: 188 | BY153: 195 | BZ153: 191 | CA153: 195
A154: 25402 | B154: 254022 | C154: 2 | D154: 25 | E154: 402 | F154: 402 | G154: CUNDINAMARCA | H154: LA VEGA | I154: Dep_sec_priv | J154: 56 | K154: 52 | L154: 765 | M154: 710 | N154: 719 | O154: 763 | P154: 743 | Q154: 749 | R154: 749 | S154: 770 | T154: 777 | U154: 762 | V154: 732 | W154: 731 | X154: 735 | Y154: 739 | Z154: 761 | AA154: 732 | AB154: 748 | AC154: 769 | AD154: 778 | AE154: 851 | AF154: 854 | AG154: 843 | AH154: 888 | AI154: 871 | AJ154: 870 | AK154: 884 | AL154: FALSO | AQ154: 5030 | AR154: 50302 | AS154: 2 | AT154: 5 | AU154: 30 | AV154: 030 | AW154: ANTIOQUIA | AX154: AMAGÁ | AY154: Dep_sec_priv | AZ154: 533 | BA154: 445 | BB154: 4483 | BC154: 4144 | BD154: 4342 | BE154: 4489 | BF154: 4521 | BG154: 4672 | BH154: 5072 | BI154: 5191 | BJ154: 5158 | BK154: 5189 | BL154: 5291 | BM154: 5362 | BN154: 5266 | BO154: 5333 | BP154: 5253 | BQ154: 5236 | BR154: 5350 | BS154: 5290 | BT154: 5171 | BU154: 5253 | BV154: 5116 | BW154: 5105 | BX154: 5078 | BY154: 4865 | BZ154: 5027 | CA154: 4950
A155: 50689 | B155: 506891 | C155: 1 | D155: 50 | E155: 689 | F155: 689 | G155: META | H155: SAN MARTÍN | I155: Dep_No_priv | J155: 20 | K155: 16 | L155: 477 | M155: 475 | N155: 480 | O155: 493 | P155: 517 | Q155: 516 | R155: 506 | S155: 518 | T155: 480 | U155: 454 | V155: 412 | W155: 413 | X155: 433 | Y155: 439 | Z155: 435 | AA155: 436 | AB155: 440 | AC155: 440 | AD155: 461 | AE155: 439 | AF155: 472 | AG155: 463 | AH155: 445 | AI155: 437 | AJ155: 453 | AK155: 438 | AL155: FALSO | AQ155: 5088 | AR155: 50881 | AS155: 1 | AT155: 5 | AU155: 88 | AV155: 088 | AW155: ANTIOQUIA | AX155: BELLO | AY155: Dep_No_priv | AZ155: 637 | BA155: 474 | BB155: 5927 | BC155: 6562 | BD155: 6641 | BE155: 7067 | BF155: 7753 | BG155: 7956 | BH155: 7602 | BI155: 6428 | BJ155: 5798 | BK155: 5305 | BL155: 5483 | BM155: 5840 | BN155: 6690 | BO155: 6462 | BP155: 6576 | BQ155: 6337 | BR155: 6248 | BS155: 6971 | BT155: 6923 | BU155: 7036 | BV155: 7167 | BW155: 6462 | BX155: 5545 | BY155: 5864 | BZ155: 6248 | CA155: 6237
A156: 25718 | B156: 257182 | C156: 2 | D156: 25 | E156: 718 | F156: 718 | G156: CUNDINAMARCA | H156: SASAIMA | I156: Dep_sec_priv | J156: 26 | K156: 31 | L156: 548 | M156: 513 | N156: 468 | O156: 477 | P156: 515 | Q156: 513 | R156: 508 | S156: 485 | T156: 493 | U156: 476 | V156: 446 | W156: 445 | X156: 449 | Y156: 448 | Z156: 433 | AA156: 440 | AB156: 457 | AC156: 471 | AD156: 481 | AE156: 468 | AF156: 464 | AG156: 474 | AH156: 465 | AI156: 482 | AJ156: 492 | AK156: 488 | AL156: FALSO | AQ156: 5854 | AR156: 58543 | AS156: 3 | AT156: 5 | AU156: 854 | AV156: 854 | AW156: ANTIOQUIA | AX156: VALDIVIA | AY156: Independiente | AZ156: 5 | BA156: 6 | BB156: 151 | BC156: 146 | BD156: 157 | BE156: 159 | BF156: 153 | BG156: 174 | BH156: 193 | BI156: 204 | BJ156: 214 | BK156: 214 | BL156: 158 | BM156: 159 | BN156: 169 | BO156: 166 | BP156: 180 | BQ156: 179 | BR156: 174 | BS156: 183 | BT156: 190 | BU156: 189 | BV156: 192 | BW156: 182 | BX156: 136 | BY156: 179 | BZ156: 176 | CA156: 167
A157: 25843 | B157: 258432 | C157: 2 | D157: 25 | E157: 843 | F157: 843 | G157: CUNDINAMARCA | H157: VILLA DE SAN DIEGO DE UBATE | I157: Dep_sec_priv | J157: 632 | K157: 525 | L157: 5684 | M157: 5356 | N157: 5377 | O157: 5759 | P157: 5837 | Q157: 5607 | R157: 5595 | S157: 5740 | T157: 5743 | U157: 5813 | V157: 5915 | W157: 6119 | X157: 6347 | Y157: 6502 | Z157: 6541 | AA157: 6606 | AB157: 6638 | AC157: 6787 | AD157: 6909 | AE157: 6787 | AF157: 6792 | AG157: 6537 | AH157: 6599 | AI157: 6729 | AJ157: 6790 | AK157: 6863 | AL157: FALSO | AQ157: 5647 | AR157: 56473 | AS157: 3 | AT157: 5 | AU157: 647 | AV157: 647 | AW157: ANTIOQUIA | AX157: SAN ANDRÉS DE CUERQUÍA | AY157: Independiente | AZ157: 9 | BA157: 0 | BB157: 100 | BC157: 96 | BD157: 99 | BE157: 95 | BF157: 98 | BG157: 106 | BH157: 108 | BI157: 109 | BJ157: 111 | BK157: 107 | BL157: 100 | BM157: 104 | BN157: 108 | BO157: 106 | BP157: 107 | BQ157: 111 | BR157: 108 | BS157: 106 | BT157: 118 | BU157: 118 | BV157: 121 | BW157: 115 | BX157: 106 | BY157: 108 | BZ157: 112 | CA157: 114
A158: 68081 | B158: 680812 | C158: 2 | D158: 68 | E158: 81 | F158: 081 | G158: SANTANDER | H158: BARRANCABERMEJA | I158: Dep_sec_priv | J158: 4321 | K158: 4009 | L158: 36566 | M158: 31089 | N158: 30105 | O158: 30813 | P158: 32051 | Q158: 32799 | R158: 34405 | S158: 35364 | T158: 35478 | U158: 35087 | V158: 33825 | W158: 35456 | X158: 34436 | Y158: 33944 | Z158: 34274 | AA158: 34395 | AB158: 35148 | AC158: 37173 | AD158: 37963 | AE158: 37879 | AF158: 38040 | AG158: 36652 | AH158: 35077 | AI158: 36291 | AJ158: 37431 | AK158: 36676 | AL158: FALSO | AQ158: 5034 | AR158: 50342 | AS158: 2 | AT158: 5 | AU158: 34 | AV158: 034 | AW158: ANTIOQUIA | AX158: ANDES | AY158: Dep_sec_priv | AZ158: 109 | BA158: 85 | BB158: 1707 | BC158: 1625 | BD158: 1700 | BE158: 1713 | BF158: 1694 | BG158: 1707 | BH158: 1781 | BI158: 1812 | BJ158: 1799 | BK158: 1795 | BL158: 1794 | BM158: 1779 | BN158: 1826 | BO158: 1819 | BP158: 1854 | BQ158: 1847 | BR158: 1885 | BS158: 1915 | BT158: 1982 | BU158: 1981 | BV158: 1940 | BW158: 1923 | BX158: 1830 | BY158: 1859 | BZ158: 1894 | CA158: 1850
A159: 15238 | B159: 152382 | C159: 2 | D159: 15 | E159: 238 | F159: 238 | G159: BOYACÁ | H159: DUITAMA | I159: Dep_sec_priv | J159: 1638 | K159: 1735 | L159: 18605 | M159: 17041 | N159: 17152 | O159: 17359 | P159: 17204 | Q159: 17157 | R159: 17543 | S159: 18166 | T159: 18436 | U159: 18286 | V159: 18146 | W159: 18661 | X159: 18827 | Y159: 18937 | Z159: 18617 | AA159: 19143 | AB159: 18510 | AC159: 18942 | AD159: 19138 | AE159: 19292 | AF159: 19635 | AG159: 19394 | AH159: 19254 | AI159: 19342 | AJ159: 19754 | AK159: 19611 | AL159: FALSO | AQ159: 5736 | AR159: 57363 | AS159: 3 | AT159: 5 | AU159: 736 | AV159: 736 | AW159: ANTIOQUIA | AX159: SEGOVIA | AY159: Independiente | AZ159: 15 | BA159: 14 | BB159: 575 | BC159: 557 | BD159: 539 | BE159: 542 | BF159: 510 | BG159: 509 | BH159: 514 | BI159: 530 | BJ159: 560 | BK159: 553 | BL159: 537 | BM159: 550 | BN159: 585 | BO159: 600 | BP159: 632 | BQ159: 650 | BR159: 606 | BS159: 617 | BT159: 642 | BU159: 667 | BV159: 635 | BW159: 635 | BX159: 575 | BY159: 613 | BZ159: 606 | CA159: 568
A160: 5088 | B160: 50883 | C160: 3 | D160: 5 | E160: 88 | F160: 088 | G160: ANTIOQUIA | H160: BELLO | I160: Independiente | J160: 615 | K160: 406 | L160: 9821 | M160: 9942 | N160: 10083 | O160: 10276 | P160: 10496 | Q160: 10715 | R160: 11076 | S160: 11414 | T160: 11717 | U160: 11559 | V160: 10714 | W160: 11192 | X160: 11622 | Y160: 11794 | Z160: 12056 | AA160: 12209 | AB160: 12315 | AC160: 12482 | AD160: 12622 | AE160: 12781 | AF160: 13063 | AG160: 12770 | AH160: 12692 | AI160: 13171 | AJ160: 13173 | AK160: 12963 | AL160: FALSO | AQ160: 5250 | AR160: 52503 | AS160: 3 | AT160: 5 | AU160: 250 | AV160: 250 | AW160: ANTIOQUIA | AX160: EL BAGRE | AY160: Independiente | AZ160: 29 | BA160: 21 | BB160: 391 | BC160: 405 | BD160: 441 | BE160: 435 | BF160: 444 | BG160: 428 | BH160: 458 | BI160: 454 | BJ160: 460 | BK160: 452 | BL160: 414 | BM160: 432 | BN160: 467 | BO160: 515 | BP160: 488 | BQ160: 485 | BR160: 504 | BS160: 519 | BT160: 525 | BU160: 545 | BV160: 545 | BW160: 530 | BX160: 529 | BY160: 521 | BZ160: 488 | CA160: 469
A161: 25001 | B161: 250012 | C161: 2 | D161: 25 | E161: 1 | F161: 001 | G161: CUNDINAMARCA | H161: AGUA DE DIOS | I161: Dep_sec_priv | J161: 4768 | K161: 4385 | L161: 52693 | M161: 50674 | N161: 48618 | O161: 51249 | P161: 50389 | Q161: 51689 | R161: 54543 | S161: 55847 | T161: 52323 | U161: 55631 | V161: 51083 | W161: 53232 | X161: 56667 | Y161: 62111 | Z161: 62945 | AA161: 57334 | AB161: 59330 | AC161: 60231 | AD161: 63473 | AE161: 58199 | AF161: 57827 | AG161: 53979 | AH161: 55014 | AI161: 56934 | AJ161: 61161 | AK161: 55970 | AL161: FALSO | AQ161: 5895 | AR161: 58953 | AS161: 3 | AT161: 5 | AU161: 895 | AV161: 895 | AW161: ANTIOQUIA | AX161: ZARAGOZA | AY161: Independiente | AZ161: 59 | BA161: 31 | BB161: 218 | BC161: 228 | BD161: 249 | BE161: 263 | BF161: 263 | BG161: 218 | BH161: 297 | BI161: 325 | BJ161: 347 | BK161: 285 | BL161: 250 | BM161: 322 | BN161: 350 | BO161: 383 | BP161: 392 | BQ161: 409 | BR161: 369 | BS161: 364 | BT161: 395 | BU161: 395 | BV161: 445 | BW161: 316 | BX161: 318 | BY161: 341 | BZ161: 365 | CA161: 388
A162: 99773 | B162: 997732 | C162: 2 | D162: 99 | E162: 773 | F162: 773 | G162: VICHADA | H162: CUMARIBO | I162: Dep_sec_priv | J162: 3276 | K162: 3722 | L162: 20057 | M162: 16658 | N162: 18234 | O162: 19022 | P162: 19526 | Q162: 19384 | R162: 19898 | S162: 20324 | T162: 20820 | U162: 20291 | V162: 20448 | W162: 20895 | X162: 21987 | Y162: 22514 | Z162: 21550 | AA162: 22658 | AB162: 22606 | AC162: 22976 | AD162: 23387 | AE162: 23680 | AF162: 23902 | AG162: 23148 | AH162: 22559 | AI162: 22588 | AJ162: 21898 | AK162: 21596 | AL162: FALSO | AQ162: 5895 | AR162: 58951 | AS162: 1 | AT162: 5 | AU162: 895 | AV162: 895 | AW162: ANTIOQUIA | AX162: ZARAGOZA | AY162: Dep_No_priv | AZ162: 10 | BA162: 3 | BB162: 350 | BC162: 355 | BD162: 354 | BE162: 367 | BF162: 375 | BG162: 375 | BH162: 374 | BI162: 370 | BJ162: 361 | BK162: 358 | BL162: 346 | BM162: 397 | BN162: 372 | BO162: 362 | BP162: 355 | BQ162: 365 | BR162: 367 | BS162: 368 | BT162: 370 | BU162: 366 | BV162: 377 | BW162: 385 | BX162: 372 | BY162: 364 | BZ162: 374 | CA162: 363
A163: 15759 | B163: 157592 | C163: 2 | D163: 15 | E163: 759 | F163: 759 | G163: BOYACÁ | H163: SOGAMOSO | I163: Dep_sec_priv | J163: 1646 | K163: 1542 | L163: 17137 | M163: 15203 | N163: 15450 | O163: 15714 | P163: 15710 | Q163: 15931 | R163: 16267 | S163: 16488 | T163: 16617 | U163: 16681 | V163: 16451 | W163: 17039 | X163: 17090 | Y163: 17165 | Z163: 16920 | AA163: 17369 | AB163: 17374 | AC163: 17427 | AD163: 17868 | AE163: 17797 | AF163: 18211 | AG163: 17580 | AH163: 17327 | AI163: 17744 | AJ163: 18107 | AK163: 17993 | AL163: FALSO | AQ163: 5585 | AR163: 55851 | AS163: 1 | AT163: 5 | AU163: 585 | AV163: 585 | AW163: ANTIOQUIA | AX163: PUERTO NARE | AY163: Dep_No_priv | AZ163: 11 | BA163: 5 | BB163: 259 | BC163: 259 | BD163: 264 | BE163: 267 | BF163: 278 | BG163: 302 | BH163: 299 | BI163: 291 | BJ163: 291 | BK163: 284 | BL163: 284 | BM163: 288 | BN163: 279 | BO163: 277 | BP163: 284 | BQ163: 286 | BR163: 279 | BS163: 280 | BT163: 272 | BU163: 270 | BV163: 269 | BW163: 275 | BX163: 264 | BY163: 258 | BZ163: 266 | CA163: 269
A164: 25797 | B164: 257973 | C164: 3 | D164: 25 | E164: 797 | F164: 797 | G164: CUNDINAMARCA | H164: TENA | I164: Independiente | J164: 5 | K164: 6 | L164: 175 | M164: 172 | N164: 170 | O164: 176 | P164: 171 | Q164: 166 | R164: 164 | S164: 168 | T164: 195 | U164: 171 | V164: 166 | W164: 179 | X164: 189 | Y164: 201 | Z164: 207 | AA164: 206 | AB164: 210 | AC164: 207 | AD164: 205 | AE164: 213 | AF164: 221 | AG164: 231 | AH164: 228 | AI164: 237 | AJ164: 231 | AK164: 226 | AL164: FALSO | AQ164: 5237 | AR164: 52371 | AS164: 1 | AT164: 5 | AU164: 237 | AV164: 237 | AW164: ANTIOQUIA | AX164: DON MATÍAS | AY164: Dep_No_priv | AZ164: 15 | BA164: 10 | BB164: 334 | BC164: 331 | BD164: 323 | BE164: 328 | BF164: 340 | BG164: 356 | BH164: 353 | BI164: 341 | BJ164: 328 | BK164: 315 | BL164: 315 | BM164: 325 | BN164: 330 | BO164: 321 | BP164: 325 | BQ164: 333 | BR164: 332 | BS164: 339 | BT164: 354 | BU164: 349 | BV164: 343 | BW164: 347 | BX164: 337 | BY164: 350 | BZ164: 362 | CA164: 345
A165: 76400 | B165: 764003 | C165: 3 | D165: 76 | E165: 400 | F165: 400 | G165: VALLE DEL CAUCA | H165: LA UNIÓN | I165: Independiente | J165: 26 | K165: 18 | L165: 1008 | M165: 1004 | N165: 937 | O165: 914 | P165: 942 | Q165: 942 | R165: 952 | S165: 976 | T165: 1005 | U165: 975 | V165: 953 | W165: 990 | X165: 1017 | Y165: 1023 | Z165: 1042 | AA165: 999 | AB165: 1029 | AC165: 1059 | AD165: 1055 | AE165: 1024 | AF165: 1020 | AG165: 1020 | AH165: 1021 | AI165: 1040 | AJ165: 1052 | AK165: 1022 | AL165: FALSO | AQ165: 5250 | AR165: 52501 | AS165: 1 | AT165: 5 | AU165: 250 | AV165: 250 | AW165: ANTIOQUIA | AX165: EL BAGRE | AY165: Dep_No_priv | AZ165: 50 | BA165: 23 | BB165: 755 | BC165: 768 | BD165: 772 | BE165: 795 | BF165: 802 | BG165: 824 | BH165: 785 | BI165: 785 | BJ165: 781 | BK165: 726 | BL165: 711 | BM165: 742 | BN165: 738 | BO165: 745 | BP165: 752 | BQ165: 779 | BR165: 766 | BS165: 755 | BT165: 744 | BU165: 719 | BV165: 735 | BW165: 739 | BX165: 712 | BY165: 713 | BZ165: 739 | CA165: 727
A166: 25126 | B166: 251262 | C166: 2 | D166: 25 | E166: 126 | F166: 126 | G166: CUNDINAMARCA | H166: CAJICÁ | I166: Dep_sec_priv | J166: 1312 | K166: 1252 | L166: 13196 | M166: 12347 | N166: 12476 | O166: 12672 | P166: 12856 | Q166: 12797 | R166: 12979 | S166: 12992 | T166: 12963 | U166: 12956 | V166: 13248 | W166: 13731 | X166: 13657 | Y166: 13668 | Z166: 13874 | AA166: 14091 | AB166: 14404 | AC166: 14794 | AD166: 15099 | AE166: 15491 | AF166: 15636 | AG166: 15181 | AH166: 15337 | AI166: 15771 | AJ166: 16133 | AK166: 15889 | AL166: FALSO | AQ166: 5364 | AR166: 53643 | AS166: 3 | AT166: 5 | AU166: 364 | AV166: 364 | AW166: ANTIOQUIA | AX166: JARDÍN | AY166: Independiente | AZ166: 14 | BA166: 4 | BB166: 401 | BC166: 398 | BD166: 396 | BE166: 400 | BF166: 405 | BG166: 417 | BH166: 419 | BI166: 424 | BJ166: 444 | BK166: 451 | BL166: 437 | BM166: 436 | BN166: 427 | BO166: 428 | BP166: 438 | BQ166: 440 | BR166: 444 | BS166: 462 | BT166: 461 | BU166: 474 | BV166: 489 | BW166: 481 | BX166: 476 | BY166: 486 | BZ166: 486 | CA166: 492
A167: 25662 | B167: 256623 | C167: 3 | D167: 25 | E167: 662 | F167: 662 | G167: CUNDINAMARCA | H167: SAN JUAN DE RÍO SECO | I167: Independiente | J167: 2 | K167: 3 | L167: 164 | M167: 175 | N167: 178 | O167: 178 | P167: 180 | Q167: 174 | R167: 193 | S167: 198 | T167: 210 | U167: 203 | V167: 192 | W167: 207 | X167: 213 | Y167: 222 | Z167: 222 | AA167: 224 | AB167: 225 | AC167: 232 | AD167: 232 | AE167: 236 | AF167: 233 | AG167: 238 | AH167: 225 | AI167: 224 | AJ167: 218 | AK167: 209 | AL167: FALSO | AQ167: 5045 | AR167: 50451 | AS167: 1 | AT167: 5 | AU167: 45 | AV167: 045 | AW167: ANTIOQUIA | AX167: APARTADÓ | AY167: Dep_No_priv | AZ167: 517 | BA167: 574 | BB167: 3813 | BC167: 3349 | BD167: 3261 | BE167: 3372 | BF167: 3492 | BG167: 3633 | BH167: 3699 | BI167: 3440 | BJ167: 3324 | BK167: 3170 | BL167: 3084 | BM167: 3354 | BN167: 3639 | BO167: 3954 | BP167: 3944 | BQ167: 3908 | BR167: 3705 | BS167: 3815 | BT167: 3861 | BU167: 3792 | BV167: 3836 | BW167: 3573 | BX167: 3368 | BY167: 3682 | BZ167: 3939 | CA167: 4218
A168: 25019 | B168: 250191 | C168: 1 | D168: 25 | E168: 19 | F168: 019 | G168: CUNDINAMARCA | H168: ALBÁN | I168: Dep_No_priv | J168: 2 | K168: 1 | L168: 109 | M168: 106 | N168: 150 | O168: 153 | P168: 152 | Q168: 153 | R168: 152 | S168: 150 | T168: 151 | U168: 106 | V168: 106 | W168: 95 | X168: 95 | Y168: 95 | Z168: 136 | AA168: 135 | AB168: 136 | AC168: 141 | AD168: 141 | AE168: 141 | AF168: 143 | AG168: 106 | AH168: 103 | AI168: 102 | AJ168: 105 | AK168: 104 | AL168: FALSO | AQ168: 5002 | AR168: 50022 | AS168: 2 | AT168: 5 | AU168: 2 | AV168: 002 | AW168: ANTIOQUIA | AX168: ABEJORRAL | AY168: Dep_sec_priv | AZ168: 363 | BA168: 436 | BB168: 2199 | BC168: 2017 | BD168: 1893 | BE168: 2075 | BF168: 2990 | BG168: 2409 | BH168: 2398 | BI168: 2396 | BJ168: 2382 | BK168: 2249 | BL168: 2377 | BM168: 2398 | BN168: 2508 | BO168: 3604 | BP168: 3524 | BQ168: 3603 | BR168: 2885 | BS168: 2806 | BT168: 3218 | BU168: 2440 | BV168: 2316 | BW168: 2278 | BX168: 2111 | BY168: 2536 | BZ168: 2865 | CA168: 2896
A169: 15759 | B169: 157591 | C169: 1 | D169: 15 | E169: 759 | F169: 759 | G169: BOYACÁ | H169: SOGAMOSO | I169: Dep_No_priv | J169: 286 | K169: 242 | L169: 5125 | M169: 4725 | N169: 2304 | O169: 2420 | P169: 2471 | Q169: 2688 | R169: 2915 | S169: 2891 | T169: 2777 | U169: 2540 | V169: 2645 | W169: 2457 | X169: 2715 | Y169: 2731 | Z169: 2704 | AA169: 2733 | AB169: 2782 | AC169: 2929 | AD169: 4872 | AE169: 5057 | AF169: 4980 | AG169: 2923 | AH169: 2616 | AI169: 3202 | AJ169: 3335 | AK169: 3324 | AL169: FALSO | AQ169: 5059 | AR169: 50593 | AS169: 3 | AT169: 5 | AU169: 59 | AV169: 059 | AW169: ANTIOQUIA | AX169: ARMENIA | AY169: Independiente | AZ169: 3 | BA169: 6 | BB169: 177 | BC169: 172 | BD169: 175 | BE169: 176 | BF169: 164 | BG169: 168 | BH169: 166 | BI169: 160 | BJ169: 165 | BK169: 170 | BL169: 167 | BM169: 166 | BN169: 165 | BO169: 165 | BP169: 163 | BQ169: 163 | BR169: 161 | BS169: 164 | BT169: 167 | BU169: 171 | BV169: 172 | BW169: 179 | BX169: 178 | BY169: 163 | BZ169: 162 | CA169: 151
A170: 68655 | B170: 686552 | C170: 2 | D170: 68 | E170: 655 | F170: 655 | G170: SANTANDER | H170: SABANA DE TORRES | I170: Dep_sec_priv | J170: 483 | K170: 523 | L170: 3721 | M170: 3286 | N170: 3299 | O170: 3386 | P170: 3487 | Q170: 3244 | R170: 3285 | S170: 3277 | T170: 3284 | U170: 3179 | V170: 3176 | W170: 3217 | X170: 3270 | Y170: 3406 | Z170: 3318 | AA170: 3402 | AB170: 3339 | AC170: 3332 | AD170: 3260 | AE170: 3381 | AF170: 3363 | AG170: 3357 | AH170: 3467 | AI170: 3579 | AJ170: 3670 | AK170: 3684 | AL170: FALSO | AQ170: 5310 | AR170: 53103 | AS170: 3 | AT170: 5 | AU170: 310 | AV170: 310 | AW170: ANTIOQUIA | AX170: GÓMEZ PLATA | AY170: Independiente | AZ170: 2 | BA170: 6 | BB170: 183 | BC170: 186 | BD170: 196 | BE170: 189 | BF170: 198 | BG170: 212 | BH170: 231 | BI170: 231 | BJ170: 244 | BK170: 242 | BL170: 162 | BM170: 204 | BN170: 224 | BO170: 249 | BP170: 270 | BQ170: 281 | BR170: 285 | BS170: 286 | BT170: 275 | BU170: 278 | BV170: 277 | BW170: 261 | BX170: 195 | BY170: 265 | BZ170: 262 | CA170: 253
A171: 95001 | B171: 950012 | C171: 2 | D171: 95 | E171: 1 | F171: 001 | G171: GUAVIARE | H171: SAN JOSÉ DEL GUAVIARE | I171: Dep_sec_priv | J171: 2086 | K171: 1764 | L171: 5702 | M171: 5053 | N171: 5414 | O171: 5737 | P171: 6269 | Q171: 6466 | R171: 6160 | S171: 6209 | T171: 6322 | U171: 6329 | V171: 6073 | W171: 6401 | X171: 6960 | Y171: 6773 | Z171: 6673 | AA171: 7075 | AB171: 7229 | AC171: 7515 | AD171: 8175 | AE171: 8330 | AF171: 9024 | AG171: 9065 | AH171: 9288 | AI171: 10534 | AJ171: 10945 | AK171: 12059 | AL171: FALSO | AQ171: 5086 | AR171: 50862 | AS171: 2 | AT171: 5 | AU171: 86 | AV171: 086 | AW171: ANTIOQUIA | AX171: BELMIRA | AY171: Dep_sec_priv | AZ171: 24 | BA171: 26 | BB171: 280 | BC171: 268 | BD171: 258 | BE171: 285 | BF171: 285 | BG171: 273 | BH171: 309 | BI171: 248 | BJ171: 228 | BK171: 214 | BL171: 257 | BM171: 278 | BN171: 289 | BO171: 272 | BP171: 289 | BQ171: 378 | BR171: 330 | BS171: 363 | BT171: 303 | BU171: 267 | BV171: 294 | BW171: 297 | BX171: 240 | BY171: 244 | BZ171: 258 | CA171: 271
A172: 25279 | B172: 252792 | C172: 2 | D172: 25 | E172: 279 | F172: 279 | G172: CUNDINAMARCA | H172: FOMEQUE | I172: Dep_sec_priv | J172: 78 | K172: 47 | L172: 829 | M172: 780 | N172: 808 | O172: 811 | P172: 834 | Q172: 832 | R172: 876 | S172: 896 | T172: 855 | U172: 803 | V172: 808 | W172: 807 | X172: 752 | Y172: 771 | Z172: 751 | AA172: 752 | AB172: 754 | AC172: 768 | AD172: 791 | AE172: 783 | AF172: 711 | AG172: 726 | AH172: 705 | AI172: 742 | AJ172: 763 | AK172: 769 | AL172: FALSO | AQ172: 5652 | AR172: 56522 | AS172: 2 | AT172: 5 | AU172: 652 | AV172: 652 | AW172: ANTIOQUIA | AX172: SAN FRANCISCO | AY172: Dep_sec_priv | AZ172: 7 | BA172: 5 | BB172: 61 | BC172: 63 | BD172: 55 | BE172: 64 | BF172: 68 | BG172: 54 | BH172: 50 | BI172: 49 | BJ172: 53 | BK172: 48 | BL172: 38 | BM172: 46 | BN172: 60 | BO172: 81 | BP172: 91 | BQ172: 115 | BR172: 116 | BS172: 137 | BT172: 157 | BU172: 159 | BV172: 164 | BW172: 163 | BX172: 135 | BY172: 125 | BZ172: 126 | CA172: 122
A173: 25320 | B173: 253202 | C173: 2 | D173: 25 | E173: 320 | F173: 320 | G173: CUNDINAMARCA | H173: GUADUAS | I173: Dep_sec_priv | J173: 153 | K173: 135 | L173: 1452 | M173: 1328 | N173: 1269 | O173: 1288 | P173: 1278 | Q173: 1284 | R173: 1319 | S173: 1374 | T173: 1416 | U173: 1403 | V173: 1414 | W173: 1487 | X173: 1486 | Y173: 1393 | Z173: 1384 | AA173: 1331 | AB173: 1216 | AC173: 1172 | AD173: 1177 | AE173: 1135 | AF173: 1174 | AG173: 1114 | AH173: 1108 | AI173: 1164 | AJ173: 1151 | AK173: 1180 | AL173: FALSO | AQ173: 5308 | AR173: 53081 | AS173: 1 | AT173: 5 | AU173: 308 | AV173: 308 | AW173: ANTIOQUIA | AX173: GIRARDOTA | AY173: Dep_No_priv | AZ173: 92 | BA173: 65 | BB173: 992 | BC173: 1027 | BD173: 1034 | BE173: 1061 | BF173: 1100 | BG173: 1113 | BH173: 1067 | BI173: 1005 | BJ173: 971 | BK173: 950 | BL173: 951 | BM173: 1010 | BN173: 1042 | BO173: 1021 | BP173: 1036 | BQ173: 1031 | BR173: 1035 | BS173: 1077 | BT173: 1072 | BU173: 1067 | BV173: 1056 | BW173: 1015 | BX173: 985 | BY173: 1026 | BZ173: 1052 | CA173: 1062
A174: 25758 | B174: 257582 | C174: 2 | D174: 25 | E174: 758 | F174: 758 | G174: CUNDINAMARCA | H174: SOPÓ | I174: Dep_sec_priv | J174: 334 | K174: 302 | L174: 3453 | M174: 3227 | N174: 3342 | O174: 3289 | P174: 3312 | Q174: 3283 | R174: 3415 | S174: 3452 | T174: 3473 | U174: 3434 | V174: 3518 | W174: 3604 | X174: 3588 | Y174: 3803 | Z174: 3633 | AA174: 3572 | AB174: 3557 | AC174: 3616 | AD174: 3593 | AE174: 3636 | AF174: 3682 | AG174: 3712 | AH174: 4178 | AI174: 4298 | AJ174: 4343 | AK174: 4377 | AL174: FALSO | AQ174: 5353 | AR174: 53532 | AS174: 2 | AT174: 5 | AU174: 353 | AV174: 353 | AW174: ANTIOQUIA | AX174: HISPANIA | AY174: Dep_sec_priv | AZ174: 12 | BA174: 22 | BB174: 371 | BC174: 326 | BD174: 310 | BE174: 319 | BF174: 318 | BG174: 312 | BH174: 303 | BI174: 250 | BJ174: 227 | BK174: 209 | BL174: 186 | BM174: 192 | BN174: 202 | BO174: 195 | BP174: 186 | BQ174: 187 | BR174: 199 | BS174: 201 | BT174: 192 | BU174: 210 | BV174: 208 | BW174: 197 | BX174: 213 | BY174: 214 | BZ174: 219 | CA174: 215
A175: 25592 | B175: 255923 | C175: 3 | D175: 25 | E175: 592 | F175: 592 | G175: CUNDINAMARCA | H175: QUEBRADANEGRA | I175: Independiente | J175: 1 | K175: 1 | L175: 84 | M175: 84 | N175: 80 | O175: 80 | P175: 77 | Q175: 80 | R175: 84 | S175: 83 | T175: 84 | U175: 83 | V175: 77 | W175: 87 | X175: 87 | Y175: 95 | Z175: 93 | AA175: 94 | AB175: 96 | AC175: 94 | AD175: 105 | AE175: 106 | AF175: 96 | AG175: 90 | AH175: 98 | AI175: 94 | AJ175: 102 | AK175: 102 | AL175: FALSO | AQ175: 5837 | AR175: 58371 | AS175: 1 | AT175: 5 | AU175: 837 | AV175: 837 | AW175: ANTIOQUIA | AX175: TURBO | AY175: Dep_No_priv | AZ175: 133 | BA175: 112 | BB175: 3112 | BC175: 3172 | BD175: 2897 | BE175: 2887 | BF175: 2869 | BG175: 2857 | BH175: 2818 | BI175: 2699 | BJ175: 2713 | BK175: 2582 | BL175: 2486 | BM175: 2570 | BN175: 2718 | BO175: 2695 | BP175: 2780 | BQ175: 2750 | BR175: 4208 | BS175: 4223 | BT175: 4409 | BU175: 4468 | BV175: 4442 | BW175: 2686 | BX175: 2629 | BY175: 2914 | BZ175: 2966 | CA175: 2957
A176: 25718 | B176: 257181 | C176: 1 | D176: 25 | E176: 718 | F176: 718 | G176: CUNDINAMARCA | H176: SASAIMA | I176: Dep_No_priv | J176: 4 | K176: 6 | L176: 183 | M176: 179 | N176: 184 | O176: 236 | P176: 233 | Q176: 345 | R176: 282 | S176: 286 | T176: 335 | U176: 175 | V176: 172 | W176: 176 | X176: 174 | Y176: 177 | Z176: 215 | AA176: 212 | AB176: 212 | AC176: 217 | AD176: 212 | AE176: 281 | AF176: 212 | AG176: 178 | AH176: 172 | AI176: 179 | AJ176: 184 | AK176: 178 | AL176: FALSO | AQ176: 5837 | AR176: 58372 | AS176: 2 | AT176: 5 | AU176: 837 | AV176: 837 | AW176: ANTIOQUIA | AX176: TURBO | AY176: Dep_sec_priv | AZ176: 343 | BA176: 351 | BB176: 7027 | BC176: 7014 | BD176: 7027 | BE176: 7055 | BF176: 7115 | BG176: 7105 | BH176: 7248 | BI176: 7466 | BJ176: 7469 | BK176: 7401 | BL176: 7155 | BM176: 7465 | BN176: 7682 | BO176: 7820 | BP176: 7841 | BQ176: 7743 | BR176: 7781 | BS176: 7994 | BT176: 7993 | BU176: 8044 | BV176: 8083 | BW176: 7956 | BX176: 7655 | BY176: 7885 | BZ176: 7978 | CA176: 7832
A177: 25328 | B177: 253283 | C177: 3 | D177: 25 | E177: 328 | F177: 328 | G177: CUNDINAMARCA | H177: GUAYABAL DE SIQUIMA | I177: Independiente | J177: 2 | K177: 5 | L177: 74 | M177: 72 | N177: 77 | O177: 80 | P177: 78 | Q177: 86 | R177: 89 | S177: 97 | T177: 98 | U177: 95 | V177: 84 | W177: 97 | X177: 101 | Y177: 109 | Z177: 105 | AA177: 105 | AB177: 108 | AC177: 108 | AD177: 107 | AE177: 110 | AF177: 113 | AG177: 114 | AH177: 99 | AI177: 114 | AJ177: 117 | AK177: 115 | AL177: FALSO | AQ177: 5147 | AR177: 51472 | AS177: 2 | AT177: 5 | AU177: 147 | AV177: 147 | AW177: ANTIOQUIA | AX177: CAREPA | AY177: Dep_sec_priv | AZ177: 264 | BA177: 248 | BB177: 4042 | BC177: 3916 | BD177: 4031 | BE177: 3984 | BF177: 4080 | BG177: 4064 | BH177: 4099 | BI177: 4132 | BJ177: 4103 | BK177: 4047 | BL177: 3839 | BM177: 4019 | BN177: 4122 | BO177: 4198 | BP177: 4363 | BQ177: 4371 | BR177: 4237 | BS177: 4299 | BT177: 4380 | BU177: 4280 | BV177: 4298 | BW177: 4389 | BX177: 4274 | BY177: 4363 | BZ177: 4309 | CA177: 4132
A178: 27006 | B178: 270062 | C178: 2 | D178: 27 | E178: 6 | F178: 006 | G178: CHOCÓ | H178: ACANDÍ | I178: Dep_sec_priv | J178: 366 | K178: 653 | L178: 4330 | M178: 3880 | N178: 3859 | O178: 4201 | P178: 4768 | Q178: 4669 | R178: 4862 | S178: 4862 | T178: 5874 | U178: 4693 | V178: 4560 | W178: 4899 | X178: 5056 | Y178: 5153 | Z178: 5262 | AA178: 5292 | AB178: 5240 | AC178: 5252 | AD178: 6040 | AE178: 5143 | AF178: 5210 | AG178: 4894 | AH178: 5056 | AI178: 5038 | AJ178: 5947 | AK178: 4235 | AL178: FALSO | AQ178: 5059 | AR178: 50591 | AS178: 1 | AT178: 5 | AU178: 59 | AV178: 059 | AW178: ANTIOQUIA | AX178: ARMENIA | AY178: Dep_No_priv | AZ178: 2 | BA178: 4 | BB178: 82 | BC178: 81 | BD178: 90 | BE178: 88 | BF178: 86 | BG178: 93 | BH178: 90 | BI178: 82 | BJ178: 87 | BK178: 84 | BL178: 93 | BM178: 94 | BN178: 98 | BO178: 95 | BP178: 100 | BQ178: 97 | BR178: 99 | BS178: 102 | BT178: 91 | BU178: 95 | BV178: 100 | BW178: 96 | BX178: 87 | BY178: 90 | BZ178: 95 | CA178: 90
A179: 25740 | B179: 257403 | C179: 3 | D179: 25 | E179: 740 | F179: 740 | G179: CUNDINAMARCA | H179: SIBATÉ | I179: Independiente | J179: 42 | K179: 34 | L179: 798 | M179: 759 | N179: 770 | O179: 772 | P179: 797 | Q179: 762 | R179: 791 | S179: 1026 | T179: 1078 | U179: 1112 | V179: 891 | W179: 985 | X179: 884 | Y179: 946 | Z179: 968 | AA179: 1011 | AB179: 1025 | AC179: 937 | AD179: 954 | AE179: 960 | AF179: 947 | AG179: 917 | AH179: 762 | AI179: 1040 | AJ179: 1076 | AK179: 1068 | AL179: FALSO | AQ179: 5101 | AR179: 51012 | AS179: 2 | AT179: 5 | AU179: 101 | AV179: 101 | AW179: ANTIOQUIA | AX179: CIUDAD BOLÍVAR | AY179: Dep_sec_priv | AZ179: 136 | BA179: 131 | BB179: 1877 | BC179: 1771 | BD179: 1789 | BE179: 1853 | BF179: 1859 | BG179: 1835 | BH179: 1772 | BI179: 1836 | BJ179: 1804 | BK179: 1762 | BL179: 1703 | BM179: 1850 | BN179: 1945 | BO179: 1895 | BP179: 1881 | BQ179: 1907 | BR179: 1916 | BS179: 1928 | BT179: 2013 | BU179: 1998 | BV179: 1914 | BW179: 1843 | BX179: 1874 | BY179: 1895 | BZ179: 1936 | CA179: 1922
A180: 25817 | B180: 258172 | C180: 2 | D180: 25 | E180: 817 | F180: 817 | G180: CUNDINAMARCA | H180: TOCANCIPÁ | I180: Dep_sec_priv | J180: 1381 | K180: 1147 | L180: 11995 | M180: 11053 | N180: 10848 | O180: 10752 | P180: 11006 | Q180: 11142 | R180: 11302 | S180: 11413 | T180: 11746 | U180: 11651 | V180: 12189 | W180: 12832 | X180: 12948 | Y180: 13200 | Z180: 13061 | AA180: 12967 | AB180: 13188 | AC180: 13207 | AD180: 13343 | AE180: 14203 | AF180: 13779 | AG180: 13766 | AH180: 14332 | AI180: 14569 | AJ180: 14642 | AK180: 14535 | AL180: FALSO | AQ180: 5591 | AR180: 55911 | AS180: 1 | AT180: 5 | AU180: 591 | AV180: 591 | AW180: ANTIOQUIA | AX180: PUERTO TRIUNFO | AY180: Dep_No_priv | AZ180: 16 | BA180: 14 | BB180: 491 | BC180: 483 | BD180: 469 | BE180: 479 | BF180: 544 | BG180: 560 | BH180: 582 | BI180: 615 | BJ180: 631 | BK180: 624 | BL180: 601 | BM180: 525 | BN180: 555 | BO180: 522 | BP180: 502 | BQ180: 524 | BR180: 530 | BS180: 521 | BT180: 530 | BU180: 539 | BV180: 553 | BW180: 578 | BX180: 548 | BY180: 534 | BZ180: 557 | CA180: 534
A181: 25718 | B181: 257183 | C181: 3 | D181: 25 | E181: 718 | F181: 718 | G181: CUNDINAMARCA | H181: SASAIMA | I181: Independiente | J181: 8 | K181: 15 | L181: 228 | M181: 230 | N181: 243 | O181: 239 | P181: 231 | Q181: 241 | R181: 250 | S181: 242 | T181: 249 | U181: 249 | V181: 227 | W181: 233 | X181: 242 | Y181: 240 | Z181: 246 | AA181: 275 | AB181: 276 | AC181: 281 | AD181: 284 | AE181: 375 | AF181: 380 | AG181: 371 | AH181: 372 | AI181: 374 | AJ181: 372 | AK181: 359 | AL181: FALSO | AQ181: 5172 | AR181: 51721 | AS181: 1 | AT181: 5 | AU181: 172 | AV181: 172 | AW181: ANTIOQUIA | AX181: CHIGORODÓ | AY181: Dep_No_priv | AZ181: 56 | BA181: 109 | BB181: 1834 | BC181: 1588 | BD181: 1598 | BE181: 1721 | BF181: 1658 | BG181: 1706 | BH181: 1220 | BI181: 1215 | BJ181: 1795 | BK181: 1672 | BL181: 1752 | BM181: 1778 | BN181: 1836 | BO181: 1774 | BP181: 1857 | BQ181: 1882 | BR181: 1850 | BS181: 1893 | BT181: 1922 | BU181: 1917 | BV181: 1660 | BW181: 1830 | BX181: 1748 | BY181: 1778 | BZ181: 1867 | CA181: 1747
A182: 25875 | B182: 258752 | C182: 2 | D182: 25 | E182: 875 | F182: 875 | G182: CUNDINAMARCA | H182: VILLETA | I182: Dep_sec_priv | J182: 268 | K182: 326 | L182: 2093 | M182: 1856 | N182: 1965 | O182: 1998 | P182: 2016 | Q182: 1996 | R182: 2043 | S182: 2166 | T182: 2192 | U182: 2165 | V182: 2180 | W182: 2376 | X182: 2380 | Y182: 2458 | Z182: 2528 | AA182: 2466 | AB182: 2431 | AC182: 2423 | AD182: 2457 | AE182: 2534 | AF182: 2472 | AG182: 2454 | AH182: 2388 | AI182: 2552 | AJ182: 2610 | AK182: 2644 | AL182: FALSO | AQ182: 5895 | AR182: 58952 | AS182: 2 | AT182: 5 | AU182: 895 | AV182: 895 | AW182: ANTIOQUIA | AX182: ZARAGOZA | AY182: Dep_sec_priv | AZ182: 37 | BA182: 69 | BB182: 508 | BC182: 484 | BD182: 524 | BE182: 551 | BF182: 479 | BG182: 592 | BH182: 625 | BI182: 600 | BJ182: 634 | BK182: 634 | BL182: 614 | BM182: 650 | BN182: 668 | BO182: 669 | BP182: 684 | BQ182: 674 | BR182: 702 | BS182: 713 | BT182: 797 | BU182: 726 | BV182: 692 | BW182: 691 | BX182: 635 | BY182: 741 | BZ182: 786 | CA182: 640
A183: 15407 | B183: 154072 | C183: 2 | D183: 15 | E183: 407 | F183: 407 | G183: BOYACÁ | H183: VILLA DE LEYVA | I183: Dep_sec_priv | J183: 103 | K183: 133 | L183: 1400 | M183: 1194 | N183: 1165 | O183: 1152 | P183: 1100 | Q183: 1115 | R183: 1176 | S183: 1219 | T183: 1276 | U183: 1236 | V183: 1289 | W183: 1325 | X183: 1376 | Y183: 1420 | Z183: 1422 | AA183: 1438 | AB183: 1455 | AC183: 1495 | AD183: 1513 | AE183: 1588 | AF183: 1655 | AG183: 1624 | AH183: 1571 | AI183: 1605 | AJ183: 1611 | AK183: 1636 | AL183: FALSO | AQ183: 5631 | AR183: 56311 | AS183: 1 | AT183: 5 | AU183: 631 | AV183: 631 | AW183: ANTIOQUIA | AX183: SABANETA | AY183: Dep_No_priv | AZ183: 242 | BA183: 196 | BB183: 2225 | BC183: 2325 | BD183: 2158 | BE183: 2220 | BF183: 2351 | BG183: 2432 | BH183: 2434 | BI183: 2207 | BJ183: 2157 | BK183: 1963 | BL183: 1983 | BM183: 2251 | BN183: 2556 | BO183: 2512 | BP183: 2566 | BQ183: 2516 | BR183: 2190 | BS183: 2544 | BT183: 2517 | BU183: 2556 | BV183: 2554 | BW183: 2487 | BX183: 2578 | BY183: 2881 | BZ183: 2945 | CA183: 2965
A184: 25260 | B184: 252602 | C184: 2 | D184: 25 | E184: 260 | F184: 260 | G184: CUNDINAMARCA | H184: EL ROSAL | I184: Dep_sec_priv | J184: 317 | K184: 214 | L184: 2120 | M184: 2033 | N184: 1982 | O184: 2029 | P184: 2049 | Q184: 1951 | R184: 1988 | S184: 2007 | T184: 2032 | U184: 2000 | V184: 2013 | W184: 2223 | X184: 2318 | Y184: 2330 | Z184: 2375 | AA184: 2351 | AB184: 2326 | AC184: 2203 | AD184: 2363 | AE184: 2407 | AF184: 2409 | AG184: 2351 | AH184: 2426 | AI184: 2453 | AJ184: 2549 | AK184: 2569 | AL184: FALSO | AQ184: 5040 | AR184: 50402 | AS184: 2 | AT184: 5 | AU184: 40 | AV184: 040 | AW184: ANTIOQUIA | AX184: ANORÍ | AY184: Dep_sec_priv | AZ184: 29 | BA184: 33 | BB184: 456 | BC184: 408 | BD184: 430 | BE184: 450 | BF184: 520 | BG184: 586 | BH184: 566 | BI184: 590 | BJ184: 577 | BK184: 524 | BL184: 469 | BM184: 588 | BN184: 552 | BO184: 561 | BP184: 561 | BQ184: 603 | BR184: 575 | BS184: 625 | BT184: 640 | BU184: 675 | BV184: 673 | BW184: 695 | BX184: 606 | BY184: 653 | BZ184: 626 | CA184: 576
A185: 25799 | B185: 257992 | C185: 2 | D185: 25 | E185: 799 | F185: 799 | G185: CUNDINAMARCA | H185: TENJO | I185: Dep_sec_priv | J185: 476 | K185: 407 | L185: 6336 | M185: 6031 | N185: 6093 | O185: 5858 | P185: 5993 | Q185: 6041 | R185: 6084 | S185: 5861 | T185: 6010 | U185: 5998 | V185: 5799 | W185: 6072 | X185: 6089 | Y185: 6079 | Z185: 6086 | AA185: 6210 | AB185: 6231 | AC185: 6291 | AD185: 6017 | AE185: 6330 | AF185: 6478 | AG185: 6406 | AH185: 6124 | AI185: 6478 | AJ185: 6523 | AK185: 6570 | AL185: FALSO | AQ185: 5282 | AR185: 52822 | AS185: 2 | AT185: 5 | AU185: 282 | AV185: 282 | AW185: ANTIOQUIA | AX185: FREDONIA | AY185: Dep_sec_priv | AZ185: 85 | BA185: 87 | BB185: 1773 | BC185: 1654 | BD185: 1667 | BE185: 1631 | BF185: 1656 | BG185: 1630 | BH185: 1693 | BI185: 1740 | BJ185: 1676 | BK185: 1649 | BL185: 1607 | BM185: 1638 | BN185: 1741 | BO185: 1747 | BP185: 1773 | BQ185: 1598 | BR185: 1769 | BS185: 1752 | BT185: 1803 | BU185: 1763 | BV185: 1787 | BW185: 1755 | BX185: 1800 | BY185: 1794 | BZ185: 1782 | CA185: 1758
A186: 95001 | B186: 950011 | C186: 1 | D186: 95 | E186: 1 | F186: 001 | G186: GUAVIARE | H186: SAN JOSÉ DEL GUAVIARE | I186: Dep_No_priv | J186: 379 | K186: 108 | L186: 2657 | M186: 2607 | N186: 2663 | O186: 2585 | P186: 2664 | Q186: 2719 | R186: 2730 | S186: 2684 | T186: 2685 | U186: 2508 | V186: 2390 | W186: 2470 | X186: 2543 | Y186: 2629 | Z186: 3218 | AA186: 3985 | AB186: 4039 | AC186: 4111 | AD186: 4192 | AE186: 4123 | AF186: 4164 | AG186: 2689 | AH186: 2584 | AI186: 2658 | AJ186: 3503 | AK186: 3548 | AL186: FALSO | AQ186: 5036 | AR186: 50362 | AS186: 2 | AT186: 5 | AU186: 36 | AV186: 036 | AW186: ANTIOQUIA | AX186: ANGELÓPOLIS | AY186: Dep_sec_priv | AZ186: 76 | BA186: 55 | BB186: 485 | BC186: 433 | BD186: 417 | BE186: 441 | BF186: 447 | BG186: 430 | BH186: 436 | BI186: 461 | BJ186: 427 | BK186: 418 | BL186: 386 | BM186: 391 | BN186: 397 | BO186: 403 | BP186: 385 | BQ186: 403 | BR186: 417 | BS186: 477 | BT186: 416 | BU186: 424 | BV186: 396 | BW186: 463 | BX186: 375 | BY186: 405 | BZ186: 465 | CA186: 493
